Workbook

Sheet Referências (hidden)
G1: Datas | H1: Bovespa
A2: Nome | B2: Código | G2: =_xll.ECONOMATICA("ibov","close",,"latest","20y","d",,,"true","false") -> 2004-09-17 | H2: 23073
A3: IFIX - Índice de Fundos Imobiliários | B3: IFIX | G3: 2004-09-20 | H3: 23078
A4: IDIV - Índice Dividendos BM&FBOVESPA | B4: IDIV | G4: 2004-09-21 | H4: 23105
A5: IBOVESPA - Índice Bovespa | B5: IBOV | G5: 2004-09-22 | H5: 22748
A6: IBRX 100 - Índice Brasil 100 | B6: IBXX | G6: 2004-09-23 | H6: 22943
G7: 2004-09-24 | H7: 22972
G8: 2004-09-27 | H8: 22834
G9: 2004-09-28 | H9: 23230
G10: 2004-09-29 | H10: 23208
G11: 2004-09-30 | H11: 23245
G12: 2004-10-01 | H12: 23777
G13: 2004-10-04 | H13: 24150
G14: 2004-10-05 | H14: 24205
G15: 2004-10-06 | H15: 24027
G16: 2004-10-07 | H16: 24104
G17: 2004-10-08 | H17: 23926
G18: 2004-10-11 | H18: 23953
G19: 2004-10-12
G20: 2004-10-13 | H20: 23289
G21: 2004-10-14 | H21: 22959
G22: 2004-10-15 | H22: 23367
G23: 2004-10-18 | H23: 23411
G24: 2004-10-19 | H24: 22892
G25: 2004-10-20 | H25: 22873
G26: 2004-10-21 | H26: 23058
G27: 2004-10-22 | H27: 22735
G28: 2004-10-25 | H28: 22602
G29: 2004-10-26 | H29: 22848
G30: 2004-10-27 | H30: 23170
G31: 2004-10-28 | H31: 22928
G32: 2004-10-29 | H32: 23052
G33: 2004-11-01 | H33: 23272
G34: 2004-11-02
G35: 2004-11-03 | H35: 23660
G36: 2004-11-04 | H36: 23879
G37: 2004-11-05 | H37: 23541
G38: 2004-11-08 | H38: 23211
G39: 2004-11-09 | H39: 23215
G40: 2004-11-10 | H40: 23454
G41: 2004-11-11 | H41: 23520
G42: 2004-11-12 | H42: 24035
G43: 2004-11-15
G44: 2004-11-16 | H44: 23772
G45: 2004-11-17 | H45: 24169
G46: 2004-11-18 | H46: 24143
G47: 2004-11-19 | H47: 24034
G48: 2004-11-22 | H48: 24444
G49: 2004-11-23 | H49: 24340
G50: 2004-11-24 | H50: 24368
G51: 2004-11-25 | H51: 24866
G52: 2004-11-26 | H52: 24997
G53: 2004-11-29 | H53: 24854
G54: 2004-11-30 | H54: 25128
G55: 2004-12-01 | H55: 25234
G56: 2004-12-02 | H56: 25200
G57: 2004-12-03 | H57: 25467
G58: 2004-12-06 | H58: 25632
G59: 2004-12-07 | H59: 24988
G60: 2004-12-08 | H60: 24968
G61: 2004-12-09 | H61: 24526
G62: 2004-12-10 | H62: 24933
G63: 2004-12-13 | H63: 25225
G64: 2004-12-14 | H64: 25563
G65: 2004-12-15 | H65: 25575
G66: 2004-12-16 | H66: 25831
G67: 2004-12-17 | H67: 25659
G68: 2004-12-20 | H68: 25536
G69: 2004-12-21 | H69: 25889
G70: 2004-12-22 | H70: 25723
G71: 2004-12-23 | H71: 25878
G72: 2004-12-24
G73: 2004-12-27 | H73: 25936
G74: 2004-12-28 | H74: 26116
G75: 2004-12-29 | H75: 26161
G76: 2004-12-30 | H76: 26196
G77: 2004-12-31
G78: 2005-01-03 | H78: 25722
G79: 2005-01-04 | H79: 24848
G80: 2005-01-05 | H80: 24691
G81: 2005-01-06 | H81: 24366
G82: 2005-01-07 | H82: 24747
G83: 2005-01-10 | H83: 24291
G84: 2005-01-11 | H84: 24369
G85: 2005-01-12 | H85: 24509
G86: 2005-01-13 | H86: 24805
G87: 2005-01-14 | H87: 24924
G88: 2005-01-17 | H88: 24515
G89: 2005-01-18 | H89: 24089
G90: 2005-01-19 | H90: 24271
G91: 2005-01-20 | H91: 23609
G92: 2005-01-21 | H92: 23818
G93: 2005-01-24 | H93: 24197
G94: 2005-01-25
G95: 2005-01-26 | H95: 24530
G96: 2005-01-27 | H96: 24029
G97: 2005-01-28 | H97: 23968
G98: 2005-01-31 | H98: 24350
G99: 2005-02-01 | H99: 24149
G100: 2005-02-02 | H100: 24605
G101: 2005-02-03 | H101: 24873
G102: 2005-02-04 | H102: 25731
G103: 2005-02-07
G104: 2005-02-08
G105: 2005-02-09 | H105: 26313
G106: 2005-02-10 | H106: 26415
G107: 2005-02-11 | H107: 26670
G108: 2005-02-14 | H108: 26531
G109: 2005-02-15 | H109: 26610
G110: 2005-02-16 | H110: 26384
G111: 2005-02-17 | H111: 27090
G112: 2005-02-18 | H112: 26756
G113: 2005-02-21 | H113: 26853
G114: 2005-02-22 | H114: 26740
G115: 2005-02-23 | H115: 27198
G116: 2005-02-24 | H116: 28436
G117: 2005-02-25 | H117: 28425
G118: 2005-02-28 | H118: 28139
G119: 2005-03-01 | H119: 27729
G120: 2005-03-02 | H120: 28199
G121: 2005-03-03 | H121: 28668
G122: 2005-03-04 | H122: 29197
G123: 2005-03-07 | H123: 29455
G124: 2005-03-08 | H124: 29021
G125: 2005-03-09 | H125: 28514
G126: 2005-03-10 | H126: 28567
G127: 2005-03-11 | H127: 28074
G128: 2005-03-14 | H128: 28098
G129: 2005-03-15 | H129: 27587
G130: 2005-03-16 | H130: 27826
G131: 2005-03-17 | H131: 28085
G132: 2005-03-18 | H132: 27593
G133: 2005-03-21 | H133: 27411
G134: 2005-03-22 | H134: 26618
G135: 2005-03-23 | H135: 26248
G136: 2005-03-24 | H136: 26701
G137: 2005-03-25
G138: 2005-03-28 | H138: 26257
G139: 2005-03-29 | H139: 25842
G140: 2005-03-30 | H140: 26469
G141: 2005-03-31 | H141: 26610
G142: 2005-04-01 | H142: 26773
G143: 2005-04-04 | H143: 26406
G144: 2005-04-05 | H144: 26038
G145: 2005-04-06 | H145: 25695
G146: 2005-04-07 | H146: 26307
G147: 2005-04-08 | H147: 25884
G148: 2005-04-11 | H148: 25899
G149: 2005-04-12 | H149: 26206
G150: 2005-04-13 | H150: 26066
G151: 2005-04-14 | H151: 24984
G152: 2005-04-15 | H152: 24655
G153: 2005-04-18 | H153: 24877
G154: 2005-04-19 | H154: 25566
G155: 2005-04-20 | H155: 25062
G156: 2005-04-21
G157: 2005-04-22 | H157: 24767
G158: 2005-04-25 | H158: 25231
G159: 2005-04-26 | H159: 25304
G160: 2005-04-27 | H160: 25241
G161: 2005-04-28 | H161: 24439
G162: 2005-04-29 | H162: 24843
G163: 2005-05-02 | H163: 24704
G164: 2005-05-03 | H164: 24715
G165: 2005-05-04 | H165: 25474
G166: 2005-05-05 | H166: 25435
G167: 2005-05-06 | H167: 25589
G168: 2005-05-09 | H168: 25464
G169: 2005-05-10 | H169: 24762
G170: 2005-05-11 | H170: 24698
G171: 2005-05-12 | H171: 24117
G172: 2005-05-13 | H172: 23887
G173: 2005-05-16 | H173: 24378
G174: 2005-05-17 | H174: 24412
G175: 2005-05-18 | H175: 24898
G176: 2005-05-19 | H176: 24829
G177: 2005-05-20 | H177: 24522
G178: 2005-05-23 | H178: 24214
G179: 2005-05-24 | H179: 24545
G180: 2005-05-25 | H180: 24478
G181: 2005-05-26
G182: 2005-05-27 | H182: 25255
G183: 2005-05-30 | H183: 25424
G184: 2005-05-31 | H184: 25207
G185: 2005-06-01 | H185: 25948
G186: 2005-06-02 | H186: 26639
G187: 2005-06-03 | H187: 26365
G188: 2005-06-06 | H188: 25556
G189: 2005-06-07 | H189: 25026
G190: 2005-06-08 | H190: 24701
G191: 2005-06-09 | H191: 24483
G192: 2005-06-10 | H192: 24950
G193: 2005-06-13 | H193: 24901
G194: 2005-06-14 | H194: 25744
G195: 2005-06-15 | H195: 25481
G196: 2005-06-16 | H196: 25750
G197: 2005-06-17 | H197: 26092
G198: 2005-06-20 | H198: 26045
G199: 2005-06-21 | H199: 25721
G200: 2005-06-22 | H200: 25678
... 5020 more rows

Sheet Lâmina Empréstimo BTC
F1: Lâmina Empréstimo BTC | K1: =IFERROR(UPPER(_xll.ECONOMATICA(G7,"name")&" "&_xll.ECONOMATICA(G7,"class")&" | Listagem Bovespa: "&_xll.ECONOMATICA(G7,"Segmento listagem Bovespa")&" | Setor Bovespa: "&_xll.ECONOMATICA(G7,"Segment Bovespa")),"") -> VALE ON | LISTAGEM BOVESPA: NOVO MERCADO | SETOR BOVESPA: MINERAIS METÁLICOS
B3: Dta. Últ. Cot.: | D3: =IF(Z4="",_xll.ECONOMATICA("bova11","Date last op contr (sec lending)"),Z4) -> 2024-09-18 | E3: ← Não Modificar
B4: Dta. Pref. Últ. Cot.: | E4: ← Para alterar a data da Célula D3, basta digitar na Célula D4
B6: ="Informações Gerais" -> Informações Gerais | I6: BTC - Dados Mensais
B7: Código | F7: Selecione ou digite o cógido → | G7: VALE3 | I7: Data | J7: Valo em aberto (R$ -milhares) BTC | L7: Qtd títulos em aberto (R$ Milhares) BTC | N7: Qtd títulos mercado a vista (R$ Milhares) | P7: Percentual BTC vs Mercado a vista | R7: Taxa média de aluguel no mês % | T7: Fechamento ajust p/ prov no mês R$ | V7: Preço máximo ajust p/ prov no mês R$ | X7: Fechamento vs náximo no mês %
B8: Data último contrato aberto (empréstimo) | G8: =IFERROR(_xll.ECONOMATICA($G$7&"<XBSP>","Date last op contr (sec lending)",,,,,,,"false","FALSE"),"") -> 2024-09-18
B9: Valor de Mercado | G9: =IFERROR(_xll.ECONOMATICA($G$7&"<XBSP>","MarketCapitaliz",,$D$3,,,,"thousands","false","FALSE"),"") -> 245747759.3
B10: Volatilidade | G10: =IFERROR(_xll.ECONOMATICA($G$7&"<XBSP>","Volatility",,$D$3,,,,"decimal","false","FALSE"),"") -> 0.204204828 | I10: =EOMONTH(I11,-1) -> 2024-04-30 | J10: =IFERROR(_xll.ECONOMATICA($G$7&"<XBSP>","Value$-onLoan",,I10,I10,"m",,"thousands","false","false"),"") -> 10096285.54 | L10: =IFERROR(_xll.ECONOMATICA($G$7&"<XBSP>","#Sec-onLoan",,$I10,$I10,"m",,"thousands","false","false"),"") -> 162864.5 | N10: =IFERROR(_xll.ECONOMATICA($G$7&"<XBSP>","#Shares",,$I10,$I10,"m",,"thousands","false","false",,{"std.tec.caddip=true"}),"") -> 536843.3 | P10: =L10/N10 -> 0.3033743739 | R10: =IFERROR(_xll.ECONOMATICA($G$7&"<XBSP>","AvgFeeLndr-inPer",,$I10,$I10,"m",,,"false","false",,{"std.tec.caddip=true"}),"") -> 0.0619528704 | T10: =IFERROR(_xll.ECONOMATICA($G$7&"<XBSP>","Close",,$I10,$I10,"m",,,"false","false",,{"tc.dft=true"}),"") -> 61.05945827 | V10: =IFERROR(_xll.ECONOMATICA($G$7&"<XBSP>","High",,$I10,$I10,"m",,,"false","false",,{"std.tec.caddip=true"}),"") -> 61.83126371 | X10: =T10/V10 -> 0.9875175534
B11: Beta | G11: =IFERROR(_xll.ECONOMATICA($G$7&"<XBSP>","Beta",,$D$3,,,,,"false","FALSE"),"") -> 0.5569539557 | I11: =EOMONTH(I12,-1) -> 2024-05-31 | J11: =IFERROR(_xll.ECONOMATICA($G$7&"<XBSP>","Value$-onLoan",,I11,I11,"m",,"thousands","false","false"),"") -> 7024703.927 | L11: =IFERROR(_xll.ECONOMATICA($G$7&"<XBSP>","#Sec-onLoan",,I11,I11,"m",,"thousands","false","false"),"") -> 108746.12 | N11: =IFERROR(_xll.ECONOMATICA($G$7&"<XBSP>","#Shares",,$I11,$I11,"m",,"thousands","false","false",,{"std.tec.caddip=true"}),"") -> 382872.6 | P11: =L11/N11 -> 0.2840269061 | R11: =IFERROR(_xll.ECONOMATICA($G$7&"<XBSP>","AvgFeeLndr-inPer",,$I11,$I11,"m",,,"false","false",,{"std.tec.caddip=true"}),"") -> 0.04017192973 | T11: =IFERROR(_xll.ECONOMATICA($G$7&"<XBSP>","Close",,$I11,$I11,"m",,,"false","false",,{"tc.dft=true"}),"") -> 60.97263015 | V11: =IFERROR(_xll.ECONOMATICA($G$7&"<XBSP>","High",,$I11,$I11,"m",,,"false","false",,{"std.tec.caddip=true"}),"") -> 64.7351817 | X11: =T11/V11 -> 0.9418777943
B12: Valor de Mercado - Free Float | G12: =IFERROR(INDEX('Guia de BTC'!Q:Q,MATCH('Lâmina Empréstimo BTC'!$G$7&"<XBSP>",'Guia de BTC'!C:C,0)),"") -> 231232230.7 | I12: 2024-06-30 | J12: =IFERROR(_xll.ECONOMATICA($G$7&"<XBSP>","Value$-onLoan",,I12,I12,"m",,"thousands","false","false"),"") -> 6831721.165 | L12: =IFERROR(_xll.ECONOMATICA($G$7&"<XBSP>","#Sec-onLoan",,I12,I12,"m",,"thousands","false","false"),"") -> 111777.272 | N12: =IFERROR(_xll.ECONOMATICA($G$7&"<XBSP>","#Shares",,$I12,$I12,"m",,"thousands","false","false",,{"std.tec.caddip=true"}),"") -> 350117.1 | P12: 0.3192568201 | R12: =IFERROR(_xll.ECONOMATICA($G$7&"<XBSP>","AvgFeeLndr-inPer",,$I12,$I12,"m",,,"false","false",,{"std.tec.caddip=true"}),"") -> 0.0381179791 | T12: =IFERROR(_xll.ECONOMATICA($G$7&"<XBSP>","Close",,$I12,$I12,"m",,,"false","false",,{"tc.dft=true"}),"") -> 60.02716848 | V12: =IFERROR(_xll.ECONOMATICA($G$7&"<XBSP>","High",,$I12,$I12,"m",,,"false","false",,{"std.tec.caddip=true"}),"") -> 60.63496527 | X12: 0.9899761337
B13: % IBOV | G13: =IFERROR(INDEX('Guia de BTC'!H:H,MATCH('Lâmina Empréstimo BTC'!$G$7&"<XBSP>",'Guia de BTC'!C:C,0)),"") -> 0.11133 | I13: =EOMONTH(I14,-1) -> 2024-07-31 | J13: =IFERROR(_xll.ECONOMATICA($G$7&"<XBSP>","Value$-onLoan",,I13,I13,"m",,"thousands","false","false"),"") -> 13767269.67 | L13: =IFERROR(_xll.ECONOMATICA($G$7&"<XBSP>","#Sec-onLoan",,I13,I13,"m",,"thousands","false","false"),"") -> 224645.037 | N13: =IFERROR(_xll.ECONOMATICA($G$7&"<XBSP>","#Shares",,$I13,$I13,"m",,"thousands","false","false",,{"std.tec.caddip=true"}),"") -> 498381.9 | P13: 0.4507487872 | R13: =IFERROR(_xll.ECONOMATICA($G$7&"<XBSP>","AvgFeeLndr-inPer",,$I13,$I13,"m",,,"false","false",,{"std.tec.caddip=true"}),"") -> 0.3331576882 | T13: =IFERROR(_xll.ECONOMATICA($G$7&"<XBSP>","Close",,$I13,$I13,"m",,,"false","false",,{"tc.dft=true"}),"") -> 59.45796197 | V13: =IFERROR(_xll.ECONOMATICA($G$7&"<XBSP>","High",,$I13,$I13,"m",,,"false","false",,{"std.tec.caddip=true"}),"") -> 62.55483132 | X13: 0.9504935225
B14: % Float Alugado | G14: =IFERROR(INDEX('Guia de BTC'!R:R,MATCH('Lâmina Empréstimo BTC'!$G$7&"<XBSP>",'Guia de BTC'!C:C,0)),"") -> 0.02870406131 | I14: =EOMONTH(I15,-1) -> 2024-08-31 | J14: =IFERROR(_xll.ECONOMATICA($G$7&"<XBSP>","Value$-onLoan",,I14,I14,"m",,"thousands","false","false"),"") -> 6526960.463 | L14: =IFERROR(_xll.ECONOMATICA($G$7&"<XBSP>","#Sec-onLoan",,I14,I14,"m",,"thousands","false","false"),"") -> 113939.103 | N14: =IFERROR(_xll.ECONOMATICA($G$7&"<XBSP>","#Shares",,$I14,$I14,"m",,"thousands","false","false",,{"std.tec.caddip=true"}),"") -> 588871.8 | P14: 0.1934871104 | R14: =IFERROR(_xll.ECONOMATICA($G$7&"<XBSP>","AvgFeeLndr-inPer",,$I14,$I14,"m",,,"false","false",,{"std.tec.caddip=true"}),"") -> 0.4048629335 | T14: =IFERROR(_xll.ECONOMATICA($G$7&"<XBSP>","Close",,$I14,$I14,"m",,,"false","false",,{"tc.dft=true"}),"") -> 59.58 | V14: =IFERROR(_xll.ECONOMATICA($G$7&"<XBSP>","High",,$I14,$I14,"m",,,"false","false",,{"std.tec.caddip=true"}),"") -> 60.14 | X14: 0.9906883937
B15: Valor Alugado | G15: =IFERROR(INDEX('Guia de BTC'!T:T,MATCH('Lâmina Empréstimo BTC'!$G$7&"<XBSP>",'Guia de BTC'!C:C,0)),"") -> 6637304.128 | I15: =D3 -> 2024-09-18 | J15: =IFERROR(_xll.ECONOMATICA($G$7&"<XBSP>","Value$-onLoan",,I15,I15,"m",,"thousands","false","false"),"") -> 6637304.128 | K15: =IFERROR(INDEX('[1]Informações Financeiras'!C:C,MATCH([1]Lâmina!$I11,'[1]Informações Financeiras'!$B:$B,0)),"") ->  | L15: =IFERROR(_xll.ECONOMATICA($G$7&"<XBSP>","#Sec-onLoan",,I15,I15,"m",,"thousands","false","false"),"") -> 115041.342 | N15: =IFERROR(_xll.ECONOMATICA($G$7&"<XBSP>","#Shares",,$I15,$I15,"m",,"thousands","false","false",,{"std.tec.caddip=true"}),"") -> 219127.8 | P15: 0.5249965636 | R15: =IFERROR(_xll.ECONOMATICA($G$7&"<XBSP>","AvgFeeLndr-inPer",,$I15,$I15,"m",,,"false","false",,{"std.tec.caddip=true"}),"") -> 0.02909774217 | T15: =IFERROR(_xll.ECONOMATICA($G$7&"<XBSP>","Close",,$I15,$I15,"m",,,"false","false",,{"tc.dft=true"}),"") -> 57.54 | V15: =IFERROR(_xll.ECONOMATICA($G$7&"<XBSP>","High",,$I15,$I15,"m",,,"false","false",,{"std.tec.caddip=true"}),"") -> 59 | X15: 0.9752542373
B16: Volume Médio | G16: =IFERROR(INDEX('Guia de BTC'!Y:Y,MATCH('Lâmina Empréstimo BTC'!$G$7&"<XBSP>",'Guia de BTC'!C:C,0)),"") -> 1162684.2 | I16: Retorno %
B17: Dias de Giro | G17: =IFERROR(INDEX('Guia de BTC'!Z:Z,MATCH('Lâmina Empréstimo BTC'!$G$7&"<XBSP>",'Guia de BTC'!C:C,0)),"") -> 5.708604392 | I17: Tipo | J17: =EOMONTH(K17,-1) -> 2024-04-30 | K17: 2024-05-31 | L17: 2024-06-30 | M17: =EOMONTH(N17,-1) -> 2024-07-31 | N17: =EOMONTH(O17,-1) -> 2024-08-31 | O17: =D3 -> 2024-09-18 | P17: =DATE(YEAR(Q17)-1,12,31) -> 2022-12-31 | Q17: =DATE(YEAR(R17)-1,12,31) -> 2023-12-31 | R17: =D3 -> 2024-09-18 | S17: 1d | T17: 1m | U17: 6m | V17: 12m | W17: 24m | X17: 36m
B18: Aluguel vs Vista | G18: =IFERROR(INDEX('Guia de BTC'!AF:AF,MATCH('Lâmina Empréstimo BTC'!$G$7&"<XBSP>",'Guia de BTC'!C:C,0)),"") -> 0.1540791224 | I18: =G7 -> VALE3 | J18: =IFERROR(_xll.ECONOMATICA($G$7&"<XBSP>","return","in the month",J17,,,,"decimal"),"") -> 0.04044057209 | K18: =IFERROR(_xll.ECONOMATICA($G$7&"<XBSP>","return","in the month",K17,,,,"decimal"),"") -> -0.001422025596 | L18: =IFERROR(_xll.ECONOMATICA($G$7&"<XBSP>","return","in the month",L17,,,,"decimal"),"") -> -0.01550632911 | M18: =IFERROR(_xll.ECONOMATICA($G$7&"<XBSP>","return","in the month",M17,,,,"decimal"),"") -> -0.009482481516 | N18: =IFERROR(_xll.ECONOMATICA($G$7&"<XBSP>","return","in the month",N17,,,,"decimal"),"") -> 0.002052509506 | O18: =IFERROR(_xll.ECONOMATICA($G$7&"<XBSP>","return","in the month",O17,,,,"decimal"),"") -> -0.03423967775 | P18: =IFERROR(_xll.ECONOMATICA($G$7&"<XBSP>","return","in the year",P17,,,,"decimal"),"") -> 0.2494856599 | Q18: =IFERROR(_xll.ECONOMATICA($G$7&"<XBSP>","return","in the year",Q17,,,,"decimal"),"") -> -0.05734342929 | R18: =IFERROR(_xll.ECONOMATICA($G$7&"<XBSP>","return","in the year",,,,,"decimal"),"") -> -0.192877344 | S18: =IFERROR(_xll.ECONOMATICA($G$7&"<XBSP>","return",S17,$D$3,,,,"decimal"),"") -> -0.01167983511 | T18: =IFERROR(_xll.ECONOMATICA($G$7&"<XBSP>","return",T17,,,,,"decimal"),"") -> 0.0260342368 | U18: =IFERROR(_xll.ECONOMATICA($G$7&"<XBSP>","return",U17,,,,,"decimal"),"") -> -0.0206572474 | V18: =IFERROR(_xll.ECONOMATICA($G$7&"<XBSP>","return",V17,,,,,"decimal"),"") -> -0.06530208884 | W18: =IFERROR(_xll.ECONOMATICA($G$7&"<XBSP>","return",W17,,,,,"decimal"),"") -> -0.005822467336 | X18: =IFERROR(_xll.ECONOMATICA($G$7&"<XBSP>","return",X17,,,,,"decimal"),"") -> -0.05035422685
B19: ▲ 1 dia - Número de Ações | G19: =IFERROR(INDEX('Guia de BTC'!AJ:AJ,MATCH('Lâmina Empréstimo BTC'!$G$7&"<XBSP>",'Guia de BTC'!C:C,0)),"") -> 0.008470545324 | I19: IBOV | J19: =IFERROR(_xll.ECONOMATICA($I$19,"return","in the month",J17,,,,"decimal"),"") -> -0.0170320539 | K19: =IFERROR(_xll.ECONOMATICA($I$19,"return","in the month",K17,,,,"decimal"),"") -> -0.03038415415 | L19: =IFERROR(_xll.ECONOMATICA($I$19,"return","in the month",L17,,,,"decimal"),"") -> 0.01481153391 | M19: =IFERROR(_xll.ECONOMATICA($I$19,"return","in the month",M17,,,,"decimal"),"") -> 0.03022648924 | N19: =IFERROR(_xll.ECONOMATICA($I$19,"return","in the month",N17,,,,"decimal"),"") -> 0.0654295462 | O19: =IFERROR(_xll.ECONOMATICA($I$19,"return","in the month",O17,,,,"decimal"),"") -> -0.01659009907 | P19: =IFERROR(_xll.ECONOMATICA($I$19,"return","in the year",P17,,,,"decimal"),"") -> 0.04686172159 | Q19: =IFERROR(_xll.ECONOMATICA($I$19,"return","in the year",Q17,,,,"decimal"),"") -> 0.22281614 | R19: =IFERROR(_xll.ECONOMATICA($I$19,"return","in the year",,,,,"decimal"),"") -> -0.003260790829 | S19: =IFERROR(_xll.ECONOMATICA($I$19,"return",S17,$D$3,,,,"decimal"),"") -> -0.008984130802 | T19: =IFERROR(_xll.ECONOMATICA($I$19,"return",T17,,,,,"decimal"),"") -> -0.00153456523 | U19: =IFERROR(_xll.ECONOMATICA($I$19,"return",U17,,,,,"decimal"),"") -> 0.053511511 | V19: =IFERROR(_xll.ECONOMATICA($I$19,"return",V17,,,,,"decimal"),"") -> 0.1306933295 | W19: =IFERROR(_xll.ECONOMATICA($I$19,"return",W17,,,,,"decimal"),"") -> 0.2238949228 | X19: =IFERROR(_xll.ECONOMATICA($I$19,"return",X17,,,,,"decimal"),"") -> 0.200183472
B20: ▲ 5 dia - Número de Ações | G20: =IFERROR(INDEX('Guia de BTC'!AL:AL,MATCH('Lâmina Empréstimo BTC'!$G$7&"<XBSP>",'Guia de BTC'!C:C,0)),"") -> 0.07781203374 | I20: CDI Acumulado | J20: =IFERROR(_xll.ECONOMATICA($I$20,"return","in the month",J17,,,,"decimal"),"") -> 0.008874228419 | K20: =IFERROR(_xll.ECONOMATICA($I$20,"return","in the month",K17,,,,"decimal"),"") -> 0.008324331297 | L20: =IFERROR(_xll.ECONOMATICA($I$20,"return","in the month",L17,,,,"decimal"),"") -> 0.007883288397 | M20: =IFERROR(_xll.ECONOMATICA($I$20,"return","in the month",M17,,,,"decimal"),"") -> 0.009071127501 | N20: =IFERROR(_xll.ECONOMATICA($I$20,"return","in the month",N17,,,,"decimal"),"") -> 0.008675025852 | O20: =IFERROR(_xll.ECONOMATICA($I$20,"return","in the month",O17,,,,"decimal"),"") -> 0.005117093679 | P20: =IFERROR(_xll.ECONOMATICA($I$20,"return","in the year",P17,,,,"decimal"),"") -> 0.1239101924 | Q20: =IFERROR(_xll.ECONOMATICA($I$20,"return","in the year",Q17,,,,"decimal"),"") -> 0.1303947493 | R20: =IFERROR(_xll.ECONOMATICA($I$20,"return","in the year",,,,,"decimal"),"") -> 0.07640024266 | S20: =IFERROR(_xll.ECONOMATICA($I$20,"return",S17,$D$3,,,,"decimal"),"") -> 0.0003926962217 | T20: =IFERROR(_xll.ECONOMATICA($I$20,"return",T17,,,,,"decimal"),"") -> 0.009071128896 | U20: =IFERROR(_xll.ECONOMATICA($I$20,"return",U17,,,,,"decimal"),"") -> 0.05232054666 | V20: =IFERROR(_xll.ECONOMATICA($I$20,"return",V17,,,,,"decimal"),"") -> 0.1116680771 | W20: =IFERROR(_xll.ECONOMATICA($I$20,"return",W17,,,,,"decimal"),"") -> 0.2620626096 | X20: =IFERROR(_xll.ECONOMATICA($I$20,"return",X17,,,,,"decimal"),"") -> 0.3956802802
B22: Taxas Médias de Aluguel Diárias | I22: Análise Gráfica | W22: Selecione os Meses ou Digite uma Data → | X22: 12M

Sheet Guia de BTC
F1: Guia de BTC
C2: Data: | D2: ='Lâmina Empréstimo BTC'!$D$3 -> 2024-09-18 | E2: ← Não Modificar
C3: Unidades: | D3: =VLOOKUP(Base!J2,Base!I5:J7,2,FALSE) -> Thousands | E3: ← Escolha unidade em (Units, Thousands, Millions, Billions)
T4: Selecionar período ↓ (D=dias; W=semanas; M=mês; Q=trimestre; Y=ano) | Y4: Selecionar período ↓
B5: Relatório considera ativos com valores de aluguéis > R$ 1.000.000 | T5: 12M | Y5: 1M | AB5: D-0 | AC5: D-1M | AI5: 1 | AK5: 5 | AN5: 1D | AQ5: 3D | AT5: 5D | AW5: 15D | BA5: No dia | BB5: No Mês | BC5: No Ano | BD5: 12m | BE5: 24m | BF5: 36m
B6: Nº | C6: Código | D6: =_xll.ECONOMATICA($C$7:$C$450,"ticker") -> Código | E6: =_xll.ECONOMATICA($C$7:$C$400,"name") -> Nome | F6: =_xll.ECONOMATICA($C$7:$C$400,"segment bovespa",,,,,,,,,"Segmento Bovespa") -> Segmento Bovespa | G6: =_xll.ECONOMATICA($C$7:$C$400,"close",,$D$2,,,,,,,"Preço R$") -> Preço R$ | H6: Partic. IBOV | I6: =_xll.ECONOMATICA($C$7:$C$400,"class") -> Classe | J6: Classe Aj. | K6: =_xll.ECONOMATICA($C$7:$C$400,"ShrsHold",,,,,,"decimal",,"true","FF ON",{"std.cac.tpa=0";"std.cac.ccacq=7";"std.cac.nm=0";"std.cac.fam=1"}) -> FF ON | L6: =_xll.ECONOMATICA($C$7:$C$400,"ShrsHold",,,,,,"decimal",,"true","FF PN",{"std.cac.tpa=1";"std.cac.ccacq=7";"std.cac.nm=0";"std.cac.fam=1"}) -> FF PN | M6: =_xll.ECONOMATICA($C$7:$C$400,"ShrsHold",,,,,,"decimal",,"true","FF TOTAL",{"std.cac.ccacq=7";"std.cac.nm=0";"std.cac.fam=1"}) -> FF TOTAL | N6: =_xll.ECONOMATICA($C$7:$C$400,"MarketCapitaliz",,$D$2,,,,$D$3,,,"Valor de Mercado da Empresa (R$)",) -> Valor de Mercado da Empresa (R$) | O6: =_xll.ECONOMATICA($C$7:$C$400,"MarketCapitaliz",,$D$2,,,,$D$3,,,"Valor de Mercado Classe (R$)",{"ppf.vmclsemp=true"}) -> Valor de Mercado Classe (R$) | P6: Valor de Mercado Cálculo | Q6: Valor de Mercado Free Float R$ | R6: % Float Alugado | T6: =_xll.ECONOMATICA($C$7:$C$400,"Value$-onLoan",,$D$2,,,,D3,,,"Valor Alugado (R$)") -> Valor Alugado (R$) | U6: =_xll.ECONOMATICA($C$7:$C$400,"Max of the serie",$T$5,$D$2,,,,$D$3,,,"Valor Máximo Alugado (R$)",{"std.tec.cals=26"}) -> Valor Máximo Alugado (R$) | V6: =_xll.ECONOMATICA($C$7:$C$400,"Max of the serie",$T$5,$D$2,,,,,,,"Data Máximo Alugado",{"std.tec.cals=26";"std.tec.dtovlr=true"}) -> Data Máximo Alugado | W6: % do Máximo | Y6: =_xll.ECONOMATICA($C$7:$C$400,"Hist Average",$Y$5,$D$2,,,,$D$3,,,"Volume Médio (R$)",{"std.tec.cals=7"}) -> Volume Médio (R$) | Z6: Dias de Giro | AB6: =_xll.ECONOMATICA($C$7:$C$400,"#Sec-onLoan",,$D$2,,,,$D$3,,,"Nº Ações Alugadas",{"tc.pers=4"}) -> Nº Ações Alugadas | AC6: =_xll.ECONOMATICA($C$7:$C$400,"#Sec-onLoan",,EDATE(D2,-1),,,,$D$3,,,"Nº Ações Alugadas",{"tc.pers=4"}) -> Nº Ações Alugadas | AD6: Δ Ações Alugadas | AE6: =_xll.ECONOMATICA($C$7:$C$400,"#Shares","1M",EDATE(D2,-1),,,,$D$3,,,"Nº Ações à Vista",) -> Nº Ações à Vista | AF6: Δ Aluguel vs à Vista Qdade de ações | AH6: =_xll.ECONOMATICA($C$7:$C$400,"#Sec-onLoan",,$D$2,,,,$D$3,,,"Nº Ações Alugadas",{"tc.pers=4"}) -> Nº Ações Alugadas | AI6: =_xll.ECONOMATICA($C$7:$C$400,"#Sec-onLoan",,$D$2-AI5,,,,$D$3,,,"Nº Ações Alugadas",{"tc.pers=4"}) -> Nº Ações Alugadas | AJ6: Δ de 1 dia | AK6: =_xll.ECONOMATICA($C$7:$C$400,"#Sec-onLoan",,$D$2-AK5,,,,$D$3,,,"Nº Ações Alugadas",{"tc.pers=4"}) -> Nº Ações Alugadas | AL6: Δ de 5 dias | AN6: =_xll.ECONOMATICA($C$7:$C$400,"AvgFeeLndr-inPer",AN5,$D$2,,,,"DECIMAL","false","true","Taxa Média De Aluguel") -> Taxa Média De Aluguel | AO6: =_xll.ECONOMATICA($C$7:$C$400,"AvgFee-D+0",AN5,$D$2,,,,"DECIMAL","false","true","Taxa Média de Aluguel D+0 1 dia %") -> Taxa Média de Aluguel D+0 1 dia % | AP6: =_xll.ECONOMATICA($C$7:$C$400,"AvgFee-D+1",AN5,$D$2,,,,"DECIMAL","false","true","Taxa Média de Aluguel D+1 1 dia %") -> Taxa Média de Aluguel D+1 1 dia % | AQ6: =_xll.ECONOMATICA($C$7:$C$400,"AvgFeeLndr-inPer",AQ5,$D$2,,,,"DECIMAL","false","true","Taxa Média Balcão 3 dias %",{"std.tec.caddip=true"}) -> Taxa Média Balcão 3 dias % | AR6: =_xll.ECONOMATICA($C$7:$C$400,"AvgFee-D+0",AQ5,$D$2,,,,"DECIMAL","false","true","Taxa Média D+0 3 dias %",{"std.tec.caddip=true"}) -> Taxa Média D+0 3 dias % | AS6: =_xll.ECONOMATICA($C$7:$C$400,"AvgFee-D+1",AQ5,$D$2,,,,"DECIMAL","false","true","Taxa Média D+1 3 dias %") -> Taxa Média D+1 3 dias % | AT6: =_xll.ECONOMATICA($C$7:$C$400,"AvgFeeLndr-inPer",AT5,$D$2,,,,"DECIMAL","false","true","Taxa Média Balcão 5 dias %",{"std.tec.caddip=true"}) -> Taxa Média Balcão 5 dias % | AU6: =_xll.ECONOMATICA($C$7:$C$400,"AvgFee-D+0",AT5,$D$2,,,,"DECIMAL","false","true","Taxa Média D+0 5 dias %",{"std.tec.caddip=true"}) -> Taxa Média D+0 5 dias % | AV6: =_xll.ECONOMATICA($C$7:$C$400,"AvgFee-D+1",AT5,$D$2,,,,"DECIMAL","false","true","Taxa Média D+1 5 dias %") -> Taxa Média D+1 5 dias % | AW6: =_xll.ECONOMATICA($C$7:$C$400,"AvgFeeLndr-inPer",AW5,$D$2,,,,"DECIMAL","false","true","Taxa Média Balcão 15 dias %",{"std.tec.caddip=true"}) -> Taxa Média Balcão 15 dias % | AX6: =_xll.ECONOMATICA($C$7:$C$400,"AvgFee-D+0",AW5,$D$2,,,,"DECIMAL","false","true","Taxa Média D+0 15 dias %",{"std.tec.caddip=true"}) -> Taxa Média D+0 15 dias % | AY6: =_xll.ECONOMATICA($C$7:$C$400,"AvgFee-D+1",AW5,$D$2,,,,"DECIMAL","false","true","Taxa Média D+1 15 dias %") -> Taxa Média D+1 15 dias % | BA6: =_xll.ECONOMATICA($C$7:$C$400,"return","1d",$D$2,,,,"decimal",,,"Retorno") -> Retorno | BB6: =_xll.ECONOMATICA($C$7:$C$400,"return","in the month",$D$2,,,,"decimal",,,"Retorno") -> Retorno | BC6: =_xll.ECONOMATICA($C$7:$C$400,"return","in the year",$D$2,,,,"decimal",,,"Retorno") -> Retorno | BD6: =_xll.ECONOMATICA($C$7:$C$400,"return",BD5,$D$2,,,,"decimal",,,"Retorno") -> Retorno | BE6: =_xll.ECONOMATICA($C$7:$C$400,"return",BE5,$D$2,,,,"decimal",,,"Retorno") -> Retorno | BF6: =_xll.ECONOMATICA($C$7:$C$400,"return",BF5,$D$2,,,,"decimal",,,"Retorno") -> Retorno
B7: 1 | C7: =IF($B7="","",INDEX(Base!$B:$B,MATCH('Guia de BTC'!$B7,Base!$F:$F,0))) -> BOVA11<XBSP> | D7: BOVA11 | E7: Ishares Bova Ci | F7: - | G7: 130.05 | H7: =IFERROR((_xll.ECONOMATICA(C7,"Partic in ibovespa")/100),"") ->  | J7: =LEFT(I7,2) ->  | P7: =IF(N7="","",IF(O7>1,O7,N7)) ->  | Q7: =IFERROR(IF(J7="on",P7*K7,IF(J7="pn",P7*L7,IF(J7="un",P7*M7,""))),"") ->  | R7: =IFERROR(T7/Q7,"") ->  | T7: 12517499.3 | U7: 12728673.51 | V7: 2024-09-03 | W7: =IFERROR(T7/U7,"") -> 0.9834095662 | Y7: 603200.4199 | Z7: =IFERROR(T7/Y7,"") -> 20.751808 | AB7: 96434.205 | AC7: 96380.505 | AD7: =IF(AB7="","",AB7-AC7) -> 53.7 | AE7: 123737.876 | AF7: =IFERROR(ABS(AD7/AE7),"") -> 0.0004339819119 | AH7: 96434.205 | AI7: 96609.832 | AJ7: =IFERROR((AH7/AI7)-1,"") -> -0.001817899859 | AK7: 95407.674 | AL7: =IFERROR((AH7/AK7)-1,"") -> 0.01075941753 | AN7: 0.0093 | AO7: 0.001 | AP7: 0.0092 | AQ7: 0.01059740767 | AR7: 0.01732909201 | AS7: 0.009172428054 | AT7: 0.01153035883 | AU7: 0.01642504658 | AV7: 0.00979715125 | AW7: 0.01140183261 | AX7: 0.01728933763 | AY7: 0.008740791849 | BA7: -0.009746440265 | BB7: -0.01923076923 | BC7: -0.002607561928 | BD7: 0.1343218491 | BE7: 0.2315340909 | BF7: 0.2138323689
B8: =IF($B7>=Base!$G$3,"",$B7+1) -> 2 | C8: =IF($B8="","",INDEX(Base!$B:$B,MATCH('Guia de BTC'!$B8,Base!$F:$F,0))) -> PETR4<XBSP> | D8: PETR4 | E8: Petrobras | F8: Exploração refino e distribuição | G8: 36.15 | H8: =IFERROR((_xll.ECONOMATICA(C8,"Partic in ibovespa")/100),"") -> 0.07257 | I8: PN | J8: =LEFT(I8,2) -> PN | K8: 0.4722833446 | L8: 0.7909851509 | M8: 0.6091518773 | N8: 493240678.5 | O8: 196891024.8 | P8: =IF(N8="","",IF(O8>1,O8,N8)) -> 196891024.8 | Q8: =IFERROR(IF(J8="on",P8*K8,IF(J8="pn",P8*L8,IF(J8="un",P8*M8,""))),"") -> 155737877 | R8: =IFERROR(T8/Q8,"") -> 0.04921115853 | T8: 7664041.355 | U8: 16301338.56 | V8: 2024-05-20 | W8: =IFERROR(T8/U8,"") -> 0.4701479776 | Y8: 1360018.427 | Z8: =IFERROR(T8/Y8,"") -> 5.635248172 | AB8: 201515.277 | AC8: 269950.047 | AD8: -68434.77 | AE8: 680043.1 | AF8: =IFERROR(ABS(AD8/AE8),"") -> 0.1006329893 | AH8: 201515.277 | AI8: 194675.973 | AJ8: 0.03513173143 | AK8: 191508.034 | AL8: 0.05225495135 | AN8: 0.0001 | AO8: 0.0002 | AP8: 0.0002 | AQ8: 0.0001511346565 | AR8: 0.0002 | AS8: 0.0002 | AT8: 0.0001672337206 | AU8: 0.0002 | AV8: 0.0002 | AW8: 0.0002970025763 | AX8: 0.0009835098367 | AY8: 0.0003151736741 | BA8: -0.02402807775 | BB8: -0.08178816358 | BC8: 0.1019516509 | BD8: 0.2483776335 | BE8: 0.9652683895 | BF8: 3.077293518
B9: =IF($B8>=Base!$G$3,"",$B8+1) -> 3 | C9: =IF($B9="","",INDEX(Base!$B:$B,MATCH('Guia de BTC'!$B9,Base!$F:$F,0))) -> ITUB4<XBSP> | D9: ITUB4 | E9: ItauUnibanco | F9: Bancos | G9: 36.7 | H9: =IFERROR((_xll.ECONOMATICA(C9,"Partic in ibovespa")/100),"") -> 0.07407 | I9: PN | J9: PN | K9: 0.08119469955 | L9: 0.989074647 | M9: 0.5299283551 | N9: 336029259 | O9: 177413561.9 | P9: 177413561.9 | Q9: 175475256.1 | R9: 0.0383103656 | T9: 6722521.215 | U9: 7600504.511 | V9: 2024-01-22 | W9: 0.8844835504 | Y9: 705631.0361 | Z9: 9.526963626 | AB9: 182790.946 | AC9: 202145.556 | AD9: -19354.61 | AE9: 521767.6 | AF9: 0.03709431172 | AH9: 182790.946 | AI9: 180830.397 | AJ9: 0.01084192167 | AK9: 184479.815 | AL9: -0.009154763083 | AN9: 0.0005 | AO9: 0.0005 | AP9: 0.0005 | AQ9: 0.0005 | AR9: 0.0005 | AS9: 0.0004798703171 | AT9: 0.0005279831131 | AU9: 0.0005333989242 | AV9: 0.0005830931747 | AW9: 0.0005377311917 | AX9: 0.0005706394969 | AY9: 0.0004907786942 | BA9: -0.005689515036 | BB9: 0.000481157831 | BC9: 0.1379561165 | BD9: 0.4329571764 | BE9: 0.5503840392 | BF9: 0.8624320584
B10: =IF($B9>=Base!$G$3,"",$B9+1) -> 4 | C10: =IF($B10="","",INDEX(Base!$B:$B,MATCH('Guia de BTC'!$B10,Base!$F:$F,0))) -> VALE3<XBSP> | D10: VALE3 | E10: Vale | F10: Minerais metálicos | G10: 57.54 | H10: =IFERROR((_xll.ECONOMATICA(C10,"Partic in ibovespa")/100),"") -> 0.11133 | I10: ON | J10: ON | K10: 0.9409332236 | L10: 1 | M10: 0.9409332238 | N10: 245747759.3 | O10: 245747758.6 | P10: 245747758.6 | Q10: 231232230.7 | R10: 0.02870406131 | T10: 6637304.128 | U10: 16890863.98 | V10: 2023-11-24 | W10: 0.3929523164 | Y10: 1162684.2 | Z10: 5.708604392 | AB10: 115041.342 | AC10: 207824.446 | AD10: -92783.104 | AE10: 602178.3 | AF10: 0.1540791224 | AH10: 115041.342 | AI10: 114075.064 | AJ10: 0.008470545324 | AK10: 106735.997 | AL10: 0.07781203374 | AN10: 0.0003 | AP10: 0.0001 | AQ10: 0.0003383195097 | AR10: 0.001 | AS10: 0.0001 | AT10: 0.0003932475684 | AU10: 0.000500557318 | AV10: 0.0001532785105 | AW10: 0.0002876399509 | AX10: 0.000796340223 | AY10: 0.0001845031029 | BA10: -0.01167983511 | BB10: -0.03423967775 | BC10: -0.192877344 | BD10: -0.06530208884 | BE10: -0.005822467336 | BF10: -0.05035422685
B11: =IF($B10>=Base!$G$3,"",$B10+1) -> 5 | C11: =IF($B11="","",INDEX(Base!$B:$B,MATCH('Guia de BTC'!$B11,Base!$F:$F,0))) -> BBAS3<XBSP> | D11: BBAS3 | E11: Brasil | F11: Bancos | G11: 28.25 | H11: =IFERROR((_xll.ECONOMATICA(C11,"Partic in ibovespa")/100),"") -> 0.03638 | I11: ON | J11: ON | K11: 0.4960209697 | M11: 0.4960209697 | N11: 161249346.7 | O11: 161249346.7 | P11: 161249346.7 | Q11: 79983057.32 | R11: 0.05539762863 | T11: 4430871.706 | U11: 5962643.35 | V11: 2024-06-18 | W11: 0.7431052716 | Y11: 378464.557 | Z11: 11.70749446 | AB11: 155795.263 | AC11: 134698.101 | AD11: 21097.162 | AE11: 335953.2 | AF11: 0.06279791947 | AH11: 155795.263 | AI11: 157688.77 | AJ11: -0.01200787475 | AK11: 161474.828 | AL11: -0.03517306735 | AN11: 0.0005 | AO11: 0.0005 | AP11: 0.0005 | AQ11: 0.0005 | AR11: 0.0005 | AS11: 0.0005059481066 | AT11: 0.0005 | AU11: 0.0005 | AV11: 0.0005050585213 | AW11: 0.0005563704895 | AX11: 0.0005021961446 | AY11: 0.0004709562369 | BA11: -0.004931313843 | BB11: 0.01119535525 | BC11: 0.09284760953 | BD11: 0.3065808499 | BE11: 0.7548087094 | BF11: 1.639463373
B12: =IF($B11>=Base!$G$3,"",$B11+1) -> 6 | C12: =IF($B12="","",INDEX(Base!$B:$B,MATCH('Guia de BTC'!$B12,Base!$F:$F,0))) -> WEGE3<XBSP> | D12: WEGE3 | E12: Weg | F12: Motores compressores e outros | G12: 53.36 | H12: =IFERROR((_xll.ECONOMATICA(C12,"Partic in ibovespa")/100),"") -> 0.03068 | I12: ON | J12: ON | K12: 0.3531078269 | M12: 0.3531078269 | N12: 223871503.3 | O12: 223871503.3 | P12: 223871503.3 | Q12: 79050780.04 | R12: 0.04136250188 | T12: 3269738.038 | U12: 3496272.72 | V12: 2024-09-16 | W12: 0.9352068046 | Y12: 306602.3997 | Z12: 10.66442416 | AB12: 61529.815 | AC12: 65354.509 | AD12: -3824.694 | AE12: 167959.3 | AF12: 0.02277155239 | AH12: 61529.815 | AI12: 63633.375 | AJ12: -0.03305749538 | AK12: 59318.494 | AL12: 0.03727877852 | AN12: 0.0006 | AP12: 0.0007 | AQ12: 0.000488956152 | AS12: 0.0006469652212 | AT12: 0.0005331171168 | AU12: 0.0006 | AV12: 0.0006686110147 | AW12: 0.001007653097 | AX12: 0.001125306295 | AY12: 0.0009353589301 | BA12: 0.0007501875462 | BB12: -0.01458910434 | BC12: 0.4675718706 | BD12: 0.5191529924 | BE12: 0.8113027675 | BF12: 0.4317512942
B13: =IF($B12>=Base!$G$3,"",$B12+1) -> 7 | C13: =IF($B13="","",INDEX(Base!$B:$B,MATCH('Guia de BTC'!$B13,Base!$F:$F,0))) -> BBDC4<XBSP> | D13: BBDC4 | E13: Bradesco | F13: Bancos | G13: 15.24 | H13: =IFERROR((_xll.ECONOMATICA(C13,"Partic in ibovespa")/100),"") -> 0.03542 | I13: PN | J13: PN | K13: 0.2784882002 | L13: 0.9657546727 | M13: 0.621526041 | N13: 153061477.7 | O13: 80708510.16 | P13: 80708510.16 | Q13: 77944620.82 | R13: 0.03939651406 | T13: 3070746.35 | U13: 6474904.122 | V13: 2023-12-27 | W13: 0.474253563 | Y13: 455652.7637 | Z13: 6.739224677 | AB13: 198625.276 | AC13: 224559.963 | AD13: -25934.687 | AE13: 928308.9 | AF13: 0.02793756152 | AH13: 198625.276 | AI13: 202291.191 | AJ13: -0.01812197052 | AK13: 205181.579 | AL13: -0.03195366286 | AN13: 0.0003 | AP13: 0.0003 | AQ13: 0.0003360388507 | AS13: 0.0002957206015 | AT13: 0.0003736820398 | AV13: 0.0003214629255 | AW13: 0.0003060137977 | AX13: 0.0003 | AY13: 0.0002709759959 | BA13: -0.005870841487 | BB13: -0.02438877856 | BC13: -0.06892037805 | BD13: 0.1151011248 | BE13: -0.06625914857 | BF13: 0.01092030229
B14: =IF($B13>=Base!$G$3,"",$B13+1) -> 8 | C14: =IF($B14="","",INDEX(Base!$B:$B,MATCH('Guia de BTC'!$B14,Base!$F:$F,0))) -> PETR3<XBSP> | D14: PETR3 | E14: Petrobras | F14: Exploração refino e distribuição | G14: 39.82 | H14: =IFERROR((_xll.ECONOMATICA(C14,"Partic in ibovespa")/100),"") -> 0.04417 | I14: ON | J14: ON | K14: 0.4722833446 | L14: 0.7909851509 | M14: 0.6091518773 | N14: 493240678.5 | O14: 296349653.6 | P14: 296349653.6 | Q14: 139961005.6 | R14: 0.02030646391 | T14: 2842113.109 | U14: 6722798.587 | V14: 2024-03-15 | W14: 0.4227574383 | Y14: 436614.5878 | Z14: 6.509432319 | AB14: 68398.32 | AC14: 72545.751 | AD14: -4147.431 | AE14: 154531.8 | AF14: 0.02683868951 | AH14: 68398.32 | AI14: 64934.796 | AJ14: 0.05333849051 | AK14: 64035.744 | AL14: 0.06812720096 | AN14: 0.0011 | AO14: 0.001 | AP14: 0.001 | AQ14: 0.001154513335 | AR14: 0.001 | AS14: 0.001098550501 | AT14: 0.001170582815 | AU14: 0.001 | AV14: 0.001110207949 | AW14: 0.001479798162 | AX14: 0.001 | AY14: 0.001366780037 | BA14: -0.01727541955 | BB14: -0.07265952492 | BC14: 0.1520826869 | BD14: 0.244986323 | BE14: 0.8478122621 | BF14: 3.048014342
B15: =IF($B14>=Base!$G$3,"",$B14+1) -> 9 | C15: =IF($B15="","",INDEX(Base!$B:$B,MATCH('Guia de BTC'!$B15,Base!$F:$F,0))) -> RENT3<XBSP> | D15: RENT3 | E15: Localiza | F15: Aluguel de carros | G15: 44.82 | H15: =IFERROR((_xll.ECONOMATICA(C15,"Partic in ibovespa")/100),"") -> 0.01985 | I15: ON | J15: ON | K15: 0.9121277505 | M15: 0.9121277505 | N15: 47600070.44 | O15: 47600070.44 | P15: 47600070.44 | Q15: 43417345.18 | R15: 0.06229366428 | T15: 2704625.525 | U15: 3258499.303 | V15: 2024-08-15 | W15: 0.8300218209 | Y15: 333150.3106 | Z15: 8.118334092 | AB15: 63200.482 | AC15: 70882.697 | AD15: -7682.215 | AE15: 314745.3 | AF15: 0.02440771951 | AH15: 63200.482 | AI15: 65002.292 | AJ15: -0.02771917643 | AK15: 63647.441 | AL15: -0.007022419016 | AN15: 0.0023 | AP15: 0.0021 | AQ15: 0.002326038993 | AR15: 0.0017 | AS15: 0.001735853017 | AT15: 0.002503124028 | AU15: 0.001703576341 | AV15: 0.001951862547 | AW15: 0.003053813406 | AX15: 0.001368918924 | AY15: 0.002685642513 | BA15: 0.01196658388 | BB15: 0.0833937636 | BC15: -0.2819277695 | BD15: -0.2265146406 | BE15: -0.2295841788 | BF15: -0.1502186923
B16: =IF($B15>=Base!$G$3,"",$B15+1) -> 10 | C16: =IF($B16="","",INDEX(Base!$B:$B,MATCH('Guia de BTC'!$B16,Base!$F:$F,0))) -> ABEV3<XBSP> | D16: ABEV3 | E16: Ambev S/A | F16: Cervejas e refrigerantes | G16: 12.98 | H16: =IFERROR((_xll.ECONOMATICA(C16,"Partic in ibovespa")/100),"") -> 0.02584 | I16: ON | J16: ON | K16: 0.2789015548 | M16: 0.2789015548 | N16: 204125842.4 | O16: 204125842.4 | P16: 204125842.4 | Q16: 56931014.81 | R16: 0.04257318361 | T16: 2423734.547 | U16: 3909047.672 | V16: 2023-12-19 | W16: 0.6200319745 | Y16: 318627.5538 | Z16: 7.606795198 | AB16: 187276.281 | AC16: 190349.657 | AD16: -3073.376 | AE16: 644608.6 | AF16: 0.004767817246 | AH16: 187276.281 | AI16: 188136.969 | AJ16: -0.004574794654 | AK16: 196270.822 | AL16: -0.04582719381 | AN16: 0.0018 | AO16: 0.0017 | AP16: 0.0019 | AQ16: 0.002020237394 | AR16: 0.001289331692 | AS16: 0.001686759 | AT16: 0.001853508684 | AU16: 0.00128940832 | AV16: 0.001393538504 | AW16: 0.001515584686 | AX16: 0.001289459047 | AY16: 0.001293425337 | BA16: 0.001543209875 | BB16: 0.00933125972 | BC16: -0.05462490896 | BD16: 0.02004953372 | BE16: -0.0584070238 | BF16: -0.05087337139
B17: =IF($B16>=Base!$G$3,"",$B16+1) -> 11 | C17: =IF($B17="","",INDEX(Base!$B:$B,MATCH('Guia de BTC'!$B17,Base!$F:$F,0))) -> B3SA3<XBSP> | D17: B3SA3 | E17: B3 | F17: Serviços financeiros diversos | G17: 12.13 | H17: =IFERROR((_xll.ECONOMATICA(C17,"Partic in ibovespa")/100),"") -> 0.03029 | I17: ON | J17: ON | K17: 0.9936718675 | M17: 0.9936718675 | N17: 66224830.18 | O17: 66224830.18 | P17: 66224830.18 | Q17: 65805750.68 | R17: 0.03524172378 | T17: 2319108.088 | U17: 2448565.396 | V17: 2023-12-18 | W17: 0.9471293238 | Y17: 533276.504 | Z17: 4.348791051 | AB17: 186461.754 | AC17: 136009.458 | AD17: 50452.296 | AE17: 654906.7 | AF17: 0.07703737952 | AH17: 186461.754 | AI17: 181631.387 | AJ17: 0.02659434077 | AK17: 193337.683 | AL17: -0.03556434986 | AN17: 0.0005 | AP17: 0.0005 | AQ17: 0.0005 | AS17: 0.0004955449594 | AT17: 0.0004702851035 | AU17: 0.0003 | AV17: 0.0004486974543 | AW17: 0.0003208216902 | AX17: 0.0008993553454 | AY17: 0.0003754690307 | BA17: -0.01060358891 | BB17: -0.04337539432 | BC17: -0.145425382 | BD17: -0.04133445276 | BE17: 0.04403876023 | BF17: -0.03577447997
B18: =IF($B17>=Base!$G$3,"",$B17+1) -> 12 | C18: =IF($B18="","",INDEX(Base!$B:$B,MATCH('Guia de BTC'!$B18,Base!$F:$F,0))) -> ELET3<XBSP> | D18: ELET3 | E18: Eletrobras | F18: Energia elétrica | G18: 41.79 | H18: =IFERROR((_xll.ECONOMATICA(C18,"Partic in ibovespa")/100),"") -> 0.0337 | I18: ON | J18: ON | K18: 0.975411696 | L18: 0.9599675622 | M18: 0.9735367353 | N18: 95266771.16 | O18: 82633080.39 | P18: 82633080.39 | Q18: 80601273.09 | R18: 0.02693504388 | T18: 2170998.828 | U18: 2245269.33 | V18: 2023-11-07 | W18: 0.9669213391 | Y18: 294695.6241 | Z18: 7.366919119 | AB18: 52205.979 | AC18: 54455.024 | AD18: -2249.045 | AE18: 154771.8 | AF18: 0.01453136166 | AH18: 52205.979 | AI18: 51772.598 | AJ18: 0.008370856722 | AK18: 50861.426 | AL18: 0.0264356135 | AN18: 0.0008 | AO18: 0.0008 | AP18: 0.0008 | AQ18: 0.0009011881471 | AR18: 0.0008 | AS18: 0.0008147495961 | AT18: 0.0009412345861 | AU18: 0.000998032912 | AV18: 0.0008199610477 | AW18: 0.000995151799 | AX18: 0.0009994545871 | AY18: 0.0009126965806 | BA18: -0.009246088194 | BB18: 0.0009580838323 | BC18: -0.004420091897 | BD18: 0.1865858287 | BE18: -0.03104835726 | BF18: 0.1443636165
B19: =IF($B18>=Base!$G$3,"",$B18+1) -> 13 | C19: =IF($B19="","",INDEX(Base!$B:$B,MATCH('Guia de BTC'!$B19,Base!$F:$F,0))) -> EMBR3<XBSP> | D19: EMBR3 | E19: Embraer | F19: Material aeronáutico e de defesa | G19: 47.45 | H19: =IFERROR((_xll.ECONOMATICA(C19,"Partic in ibovespa")/100),"") -> 0.01579 | I19: ON | J19: ON | K19: 0.99212246 | M19: 0.99212246 | N19: 34858335.85 | O19: 34858335.85 | P19: 34858335.85 | Q19: 34583737.92 | R19: 0.06002330556 | T19: 2075830.268 | U19: 3048043.416 | V19: 2024-09-04 | W19: 0.6810369753 | Y19: 471472.9637 | Z19: 4.402861729 | AB19: 43269.161 | AC19: 29114.44 | AD19: 14154.721 | AE19: 178107.5 | AF19: 0.07947290822 | AH19: 43269.161 | AI19: 44820.154 | AJ19: -0.03460481193 | AK19: 43053.018 | AL19: 0.00502039137 | AN19: 0.073 | AO19: 0.0961 | AP19: 0.0646 | AQ19: 0.1066408121 | AR19: 0.1117160928 | AS19: 0.06797695224 | AT19: 0.1245165397 | AU19: 0.1168226531 | AV19: 0.07096992981 | AW19: 0.1439270689 | AX19: 0.01115981409 | AY19: 0.1034009348 | BA19: -0.01942550114 | BB19: 0.01323937647 | BC19: 1.119249665 | BD19: 1.643454039 | BE19: 2.581132075 | BF19: 1.272509579
B20: =IF($B19>=Base!$G$3,"",$B19+1) -> 14 | C20: =IF($B20="","",INDEX(Base!$B:$B,MATCH('Guia de BTC'!$B20,Base!$F:$F,0))) -> PRIO3<XBSP> | D20: PRIO3 | E20: Petrorio | F20: Exploração refino e distribuição | G20: 43.19 | H20: =IFERROR((_xll.ECONOMATICA(C20,"Partic in ibovespa")/100),"") -> 0.01563 | I20: ON | J20: ON | K20: 0.8955785823 | M20: 0.8955785823 | N20: 36070223.17 | O20: 36070223.17 | P20: 36070223.17 | Q20: 32303719.33 | R20: 0.06172608779 | T20: 1993982.215 | U20: 4935037.138 | V20: 2024-04-18 | W20: 0.4040460405 | Y20: 380429.0599 | Z20: 5.241403525 | AB20: 44984.568 | AC20: 34796.105 | AD20: 10188.463 | AE20: 199165.5 | AF20: 0.05115576242 | AH20: 44984.568 | AI20: 44507.266 | AJ20: 0.01072413659 | AK20: 41925.867 | AL20: 0.07295498505 | AN20: 0.0004 | AP20: 0.0004 | AQ20: 0.0004 | AS20: 0.0003398264924 | AT20: 0.0003752442903 | AU20: 0.0002 | AV20: 0.0002581118454 | AW20: 0.0002296536671 | AX20: 0.0002061410811 | AY20: 0.0002462154263 | BA20: -0.003920664206 | BB20: -0.07792485056 | BC20: -0.06210640608 | BD20: -0.101757244 | BE20: 0.5438747726 | BF20: 1.15542457
B21: =IF($B20>=Base!$G$3,"",$B20+1) -> 15 | C21: =IF($B21="","",INDEX(Base!$B:$B,MATCH('Guia de BTC'!$B21,Base!$F:$F,0))) -> BRAV3<XBSP> | D21: BRAV3 | E21: Brava | F21: Exploração refino e distribuição | G21: 20.85 | H21: =IFERROR((_xll.ECONOMATICA(C21,"Partic in ibovespa")/100),"") -> 0.00438 | I21: ON | J21: ON | K21: 0.9995734448 | M21: 0.9995734448 | N21: 9678134.819 | O21: 9678134.819 | P21: 9678134.819 | Q21: 9674006.561 | R21: 0.1793910926 | T21: 1735430.606 | U21: 1933088.114 | V21: 2024-08-05 | W21: 0.8977503889 | Y21: 157833.2429 | Z21: 10.99534277 | AB21: 72289.866 | AC21: 53485.623 | AD21: 18804.243 | AE21: 122933.5 | AF21: 0.1529627237 | AH21: 72289.866 | AI21: 63841.222 | AJ21: 0.1323383816 | AK21: 69449.877 | AL21: 0.04089264262 | AN21: 0.0113 | AP21: 0.0091 | AQ21: 0.01147138752 | AS21: 0.009634626886 | AT21: 0.01217087413 | AU21: 0.015 | AV21: 0.01116773437 | AW21: 0.0155558745 | AX21: 0.002184510594 | AY21: 0.01313942161 | BA21: -0.03248259861 | BB21: -0.2093287827 | BC21: -0.1973041871 | BD21: -0.3521238955 | BE21: -0.4368369297 | BF21: -0.3739890498
B22: =IF($B21>=Base!$G$3,"",$B21+1) -> 16 | C22: =IF($B22="","",INDEX(Base!$B:$B,MATCH('Guia de BTC'!$B22,Base!$F:$F,0))) -> BOVV11<XBSP> | D22: BOVV11 | E22: It Now Ibov | F22: - | G22: 136.58 | H22: =IFERROR((_xll.ECONOMATICA(C22,"Partic in ibovespa")/100),"") ->  | T22: 1723162.265 | U22: 2483005.671 | V22: 2024-04-24 | W22: 0.693982412 | Y22: 233482.0457 | Z22: 7.380277399 | AB22: 12523.743 | AC22: 12313.051 | AD22: 210.692 | AE22: 36451.796 | AF22: 0.005780016985 | AH22: 12523.743 | AI22: 12341.167 | AJ22: 0.01479406283 | AK22: 12186.853 | AL22: 0.02764372394 | AN22: 0.0138 | AO22: 0.0138 | AP22: 0.0017 | AQ22: 0.0138 | AR22: 0.0138 | AS22: 0.0017 | AT22: 0.0138 | AU22: 0.0138 | AV22: 0.01339977094 | AW22: 0.0138605584 | AX22: 0.008055541253 | AY22: 0.0146029261 | BA22: -0.007484921154 | BB22: -0.01528478731 | BC22: -0.0001464128845 | BD22: 0.1371243027 | BE22: 0.2362418537 | BF22: 0.2194642857
B23: =IF($B22>=Base!$G$3,"",$B22+1) -> 17 | C23: =IF($B23="","",INDEX(Base!$B:$B,MATCH('Guia de BTC'!$B23,Base!$F:$F,0))) -> CMIG4<XBSP> | D23: CMIG4 | E23: Cemig | F23: Energia elétrica | G23: 11.71 | H23: =IFERROR((_xll.ECONOMATICA(C23,"Partic in ibovespa")/100),"") -> 0.00986 | I23: PN | J23: PN | K23: 0.4902798684 | L23: 0.9755702115 | M23: 0.8133532129 | N23: 36289920.32 | O23: 22295067.14 | P23: 22295067.14 | Q23: 21750403.37 | R23: 0.07014542492 | T23: 1525691.286 | U23: 1564969.425 | V23: 2024-08-26 | W23: 0.9749016571 | Y23: 149682.5715 | Z23: 10.19284524 | AB23: 130032.848 | AC23: 117225.751 | AD23: 12807.097 | AE23: 254578.2 | AF23: 0.05030712371 | AH23: 130032.848 | AI23: 126991.956 | AJ23: 0.02394554817 | AK23: 126171.356 | AL23: 0.03060513989 | AN23: 0.0017 | AP23: 0.0017 | AQ23: 0.0017 | AR23: 0.001 | AS23: 0.001690722826 | AT23: 0.0017 | AU23: 0.001 | AV23: 0.0016852259 | AW23: 0.001805987276 | AX23: 0.001092252845 | AY23: 0.001544273642 | BA23: -0.0008532423208 | BB23: 0.006878761824 | BC23: 0.4510082644 | BD23: 0.3947495705 | BE23: 0.7298419331 | BF23: 1.072801756
B24: =IF($B23>=Base!$G$3,"",$B23+1) -> 18 | C24: =IF($B24="","",INDEX(Base!$B:$B,MATCH('Guia de BTC'!$B24,Base!$F:$F,0))) -> SMAL11<XBSP> | D24: SMAL11 | E24: Ishares Smal Ci | F24: - | G24: 102.29 | H24: =IFERROR((_xll.ECONOMATICA(C24,"Partic in ibovespa")/100),"") ->  | T24: 1523456.064 | U24: 2266344.828 | V24: 2024-04-18 | W24: 0.6722084147 | Y24: 191116.5606 | Z24: 7.971345125 | AB24: 14823.91 | AC24: 14187.065 | AD24: 636.845 | AE24: 60215.798 | AF24: 0.01057604518 | AH24: 14823.91 | AI24: 15000.888 | AJ24: -0.0117978349 | AK24: 14400.259 | AL24: 0.02941967919 | AN24: 0.0385 | AO24: 0.001 | AP24: 0.0365 | AQ24: 0.0385 | AR24: 0.001 | AS24: 0.03596808516 | AT24: 0.03864819485 | AU24: 0.01210357186 | AV24: 0.03668541274 | AW24: 0.042135268 | AX24: 0.005881295939 | AY24: 0.0357806346 | BA24: -0.007760209525 | BB24: -0.004670623723 | BC24: -0.09637809187 | BD24: -0.02996680891 | BE24: -0.02950664137 | BF24: -0.2198749237
B25: =IF($B24>=Base!$G$3,"",$B24+1) -> 19 | C25: =IF($B25="","",INDEX(Base!$B:$B,MATCH('Guia de BTC'!$B25,Base!$F:$F,0))) -> BBSE3<XBSP> | D25: BBSE3 | E25: BBSeguridade | F25: Seguradoras | G25: 35.59 | H25: =IFERROR((_xll.ECONOMATICA(C25,"Partic in ibovespa")/100),"") -> 0.01028 | I25: ON | J25: ON | K25: 0.3186661675 | M25: 0.3186661675 | N25: 69086810.42 | O25: 69086810.42 | P25: 69086810.42 | Q25: 22015629.1 | R25: 0.06367268821 | T25: 1401794.287 | U25: 1850047.828 | V25: 2024-08-19 | W25: 0.757707053 | Y25: 141471.8752 | Z25: 9.908642871 | AB25: 38456.389 | AC25: 41388.315 | AD25: -2931.926 | AE25: 101873.4 | AF25: 0.02878009372 | AH25: 38456.389 | AI25: 38674.667 | AJ25: -0.005643952927 | AK25: 39006.143 | AL25: -0.01409403642 | AN25: 0.0015 | AO25: 0.0013 | AP25: 0.0017 | AQ25: 0.001662502747 | AR25: 0.001124194365 | AS25: 0.001698559928 | AT25: 0.001579140398 | AU25: 0.001124194365 | AV25: 0.001359220327 | AW25: 0.0008007560583 | AX25: 0.001124194365 | AY25: 0.001052481509 | BA25: -0.01028921023 | BB25: -0.03103729921 | BC25: 0.1403200504 | BD25: 0.2051435206 | BE25: 0.4435498227 | BF25: 1.369049118
B26: =IF($B25>=Base!$G$3,"",$B25+1) -> 20 | C26: =IF($B26="","",INDEX(Base!$B:$B,MATCH('Guia de BTC'!$B26,Base!$F:$F,0))) -> BPAC11<XBSP> | D26: BPAC11 | E26: Btgp Banco | F26: Bancos | G26: 35.21 | H26: =IFERROR((_xll.ECONOMATICA(C26,"Partic in ibovespa")/100),"") -> 0.02053 | I26: UNT | J26: UN | K26: 0.1185916752 | L26: 0.5050333983 | M26: 0.2617326295 | N26: 161973630.7 | O26: 0 | P26: 161973630.7 | Q26: 42393784.27 | R26: 0.03163354592 | T26: 1341065.722 | U26: 1341065.722 | V26: 2024-09-18 | W26: 1 | Y26: 225334.2702 | Z26: 5.951450352 | AB26: 38019.44 | AC26: 32612.585 | AD26: 5406.855 | AE26: 198655.8 | AF26: 0.02721720181 | AH26: 38019.44 | AI26: 35923.319 | AJ26: 0.05834987018 | AK26: 32486.148 | AL26: 0.1703277348 | AN26: 0.0005 | AP26: 0.0005 | AQ26: 0.0005 | AS26: 0.0004789315691 | AT26: 0.0005201177521 | AV26: 0.0004876482152 | AW26: 0.0004050309335 | AY26: 0.0003607062462 | BA26: -0.001418037436 | BB26: -0.009842519685 | BC26: -0.04800890844 | BD26: 0.1175904514 | BE26: 0.3994329512 | BF26: 0.4283246588
B27: =IF($B26>=Base!$G$3,"",$B26+1) -> 21 | C27: =IF($B27="","",INDEX(Base!$B:$B,MATCH('Guia de BTC'!$B27,Base!$F:$F,0))) -> TAEE11<XBSP> | D27: TAEE11 | E27: Taesa | F27: Energia elétrica | G27: 34.43 | H27: =IFERROR((_xll.ECONOMATICA(C27,"Partic in ibovespa")/100),"") -> 0.00341 | I27: UNT N2 | J27: UN | K27: 0.3700068874 | L27: 0.9872484074 | M27: 0.6344526583 | N27: 11920638.14 | O27: 0 | P27: 11920638.14 | Q27: 7563080.557 | R27: 0.1769158776 | T27: 1338029.034 | U27: 1782467.682 | V27: 2024-05-02 | W27: 0.7506610341 | Y27: 55573.62274 | Z27: 24.07669264 | AB27: 37795.623 | AC27: 42419.532 | AD27: -4623.909 | AE27: 34802.5 | AF27: 0.1328614036 | AH27: 37795.623 | AI27: 36858.718 | AJ27: 0.02541881679 | AK27: 36446.99 | AL27: 0.03700258924 | AN27: 0.0026 | AO27: 0.001 | AP27: 0.0023 | AQ27: 0.002657032987 | AR27: 0.001 | AS27: 0.002174938475 | AT27: 0.002679500355 | AU27: 0.001 | AV27: 0.002171770551 | AW27: 0.002867563476 | AX27: 0.001 | AY27: 0.002385112047 | BA27: -0.00634920635 | BB27: -0.0287729196 | BC27: -0.02876416102 | BD27: 0.07812486365 | BE27: 0.0223222326 | BF27: 0.2960725626
B28: =IF($B27>=Base!$G$3,"",$B27+1) -> 22 | C28: =IF($B28="","",INDEX(Base!$B:$B,MATCH('Guia de BTC'!$B28,Base!$F:$F,0))) -> SUZB3<XBSP> | D28: SUZB3 | E28: Suzano S.A. | F28: Papel e celulose | G28: 52.6 | H28: =IFERROR((_xll.ECONOMATICA(C28,"Partic in ibovespa")/100),"") -> 0.01503 | I28: ON | J28: ON | K28: 0.4990214332 | M28: 0.4990214332 | N28: 66492586.55 | O28: 66492586.55 | P28: 66492586.55 | Q28: 33181225.84 | R28: 0.04006804775 | T28: 1329506.941 | U28: 3160119.279 | V28: 2023-12-06 | W28: 0.4207141642 | Y28: 264275.8531 | Z28: 5.030754515 | AB28: 24122.675 | AC28: 25485.64 | AD28: -1362.965 | AE28: 154012.1 | AF28: 0.008849726742 | AH28: 24122.675 | AI28: 24330.285 | AJ28: -0.008532986769 | AK28: 24828.359 | AL28: -0.02842249864 | AN28: 0.0002 | AO28: 0.0002 | AP28: 0.0002 | AQ28: 0.0002 | AR28: 0.0002 | AS28: 0.0002 | AT28: 0.0002347978823 | AU28: 0.0002278826708 | AV28: 0.0003309002257 | AW28: 0.0002548918905 | AX28: 0.0002258737121 | AY28: 0.0002969739813 | BA28: -0.01294802027 | BB28: -0.04363636364 | BC28: -0.0544670142 | BD28: 0.03419988733 | BE28: 0.2789857755 | BF28: 0.085222316
B29: =IF($B28>=Base!$G$3,"",$B28+1) -> 23 | C29: =IF($B29="","",INDEX(Base!$B:$B,MATCH('Guia de BTC'!$B29,Base!$F:$F,0))) -> EGIE3<XBSP> | D29: EGIE3 | E29: Engie Brasil | F29: Energia elétrica | G29: 43.66 | H29: =IFERROR((_xll.ECONOMATICA(C29,"Partic in ibovespa")/100),"") -> 0.00505 | I29: ON | J29: ON | K29: 0.3128180665 | M29: 0.3128180665 | N29: 35623405.13 | O29: 35623405.13 | P29: 35623405.13 | Q29: 11143644.71 | R29: 0.1165406648 | T29: 1298687.763 | U29: 1512723.18 | V29: 2024-05-10 | W29: 0.8585098585 | Y29: 45591.28457 | Z29: 28.48543918 | AB29: 29034.137 | AC29: 30293.563 | AD29: -1259.426 | AE29: 20317 | AF29: 0.06198877787 | AH29: 29034.137 | AI29: 28349.023 | AJ29: 0.02416711151 | AK29: 28294.676 | AL29: 0.02613428053 | AN29: 0.0239 | AO29: 0.001 | AP29: 0.0238 | AQ29: 0.02453501687 | AR29: 0.001 | AS29: 0.02446854956 | AT29: 0.0252401691 | AU29: 0.001 | AV29: 0.02341263273 | AW29: 0.02665537043 | AX29: 0.001 | AY29: 0.02205448033 | BA29: -0.01109852775 | BB29: -0.03321523472 | BC29: 0.01573211336 | BD29: 0.08770194671 | BE29: 0.2748970922 | BF29: 0.369177081
B30: =IF($B29>=Base!$G$3,"",$B29+1) -> 24 | C30: =IF($B30="","",INDEX(Base!$B:$B,MATCH('Guia de BTC'!$B30,Base!$F:$F,0))) -> VIVT3<XBSP> | D30: VIVT3 | E30: Telef Brasil | F30: Telecomunicações | G30: 55.81 | H30: =IFERROR((_xll.ECONOMATICA(C30,"Partic in ibovespa")/100),"") -> 0.0103 | I30: ON | J30: ON | K30: 0.2464359171 | M30: 0.2464359171 | N30: 91915743.95 | O30: 91915743.95 | P30: 91915743.95 | Q30: 22651340.65 | R30: 0.05708599985 | T30: 1293074.429 | U30: 1365582.014 | V30: 2023-11-16 | W30: 0.9469035295 | Y30: 128109.4956 | Z30: 10.09350964 | AB30: 23952.538 | AC30: 17379.428 | AD30: 6573.11 | AE30: 48614.2 | AF30: 0.1352096712 | AH30: 23952.538 | AI30: 23640.201 | AJ30: 0.01321211271 | AK30: 23182.598 | AL30: 0.03321198081 | AN30: 0.0019 | AO30: 0.0014 | AP30: 0.0019 | AQ30: 0.001965606467 | AR30: 0.0014 | AS30: 0.001785197814 | AT30: 0.001926832568 | AU30: 0.001691852838 | AV30: 0.001777581232 | AW30: 0.001995215972 | AX30: 0.000165932711 | AY30: 0.001884970312 | BA30: 0.002694933526 | BB30: 0.07678950415 | BC30: 0.08845006767 | BD30: 0.3371554268 | BE30: 0.5515040444 | BF30: 0.6159171797
B31: =IF($B30>=Base!$G$3,"",$B30+1) -> 25 | C31: =IF($B31="","",INDEX(Base!$B:$B,MATCH('Guia de BTC'!$B31,Base!$F:$F,0))) -> EQTL3<XBSP> | D31: EQTL3 | E31: Equatorial | F31: Energia elétrica | G31: 33.71 | H31: =IFERROR((_xll.ECONOMATICA(C31,"Partic in ibovespa")/100),"") -> 0.01901 | I31: ON | J31: ON | K31: 0.9991365939 | M31: 0.9991365939 | N31: 39479541.37 | O31: 39479541.37 | P31: 39479541.37 | Q31: 39445454.49 | R31: 0.03010902316 | T31: 1187664.103 | U31: 3139293.489 | V31: 2024-08-21 | W31: 0.3783220993 | Y31: 252453.1215 | Z31: 4.704493634 | AB31: 34402.27 | AC31: 65785.034 | AD31: -31382.764 | AE31: 153335.2 | AF31: 0.2046677084 | AH31: 34402.27 | AI31: 34692.622 | AJ31: -0.008369272291 | AK31: 34456.499 | AL31: -0.001573839524 | AN31: 0.0034 | AP31: 0.0036 | AQ31: 0.003647108389 | AS31: 0.003939917848 | AT31: 0.004210835637 | AV31: 0.004912388753 | AW31: 0.00932187728 | AX31: 0.001002644659 | AY31: 0.00762432274 | BA31: -0.001185185184 | BB31: -0.01432748538 | BC31: -0.03599326719 | BD31: 0.03780351103 | BE31: 0.441635053 | BF31: 0.3896104326
B32: =IF($B31>=Base!$G$3,"",$B31+1) -> 26 | C32: =IF($B32="","",INDEX(Base!$B:$B,MATCH('Guia de BTC'!$B32,Base!$F:$F,0))) -> GGBR4<XBSP> | D32: GGBR4 | E32: Gerdau | F32: Siderurgia | G32: 18.42 | H32: =IFERROR((_xll.ECONOMATICA(C32,"Partic in ibovespa")/100),"") -> 0.01037 | I32: PN | J32: PN | K32: 0.02453280124 | L32: 0.8954028347 | M32: 0.5977588249 | N32: 37307999.34 | O32: 25475226.34 | P32: 25475226.34 | Q32: 22810589.88 | R32: 0.05052587983 | T32: 1152525.123 | U32: 1872221.135 | V32: 2023-11-01 | W32: 0.6155924112 | Y32: 204615.5437 | Z32: 5.632637198 | AB32: 62873.038 | AC32: 60668.167 | AD32: 2204.871 | AE32: 237794.6 | AF32: 0.009272165979 | AH32: 62873.038 | AI32: 61447.129 | AJ32: 0.02320546172 | AK32: 60429.548 | AL32: 0.04043535126 | AN32: 0.0003 | AP32: 0.0004 | AQ32: 0.0003744375759 | AR32: 0.0004 | AS32: 0.0004 | AT32: 0.0003821752061 | AU32: 0.0004 | AV32: 0.0004 | AW32: 0.0004019345657 | AX32: 0.0004 | AY32: 0.0004185101417 | BA32: -0.005399568034 | BB32: 0.00655737705 | BC32: -0.04562020667 | BD32: -0.07299928158 | BE32: 0.1901081804 | BF32: 0.2768747576
B33: =IF($B32>=Base!$G$3,"",$B32+1) -> 27 | C33: =IF($B33="","",INDEX(Base!$B:$B,MATCH('Guia de BTC'!$B33,Base!$F:$F,0))) -> ITSA4<XBSP> | D33: ITSA4 | E33: Itausa | F33: Bancos | G33: 11.1 | H33: =IFERROR((_xll.ECONOMATICA(C33,"Partic in ibovespa")/100),"") -> 0.02768 | I33: PN | J33: PN | K33: 0.3622057776 | L33: 0.8120316681 | M33: 0.6574475335 | N33: 114593052.6 | O33: 75231293.4 | P33: 75231293.4 | Q33: 61090192.67 | R33: 0.01810103951 | T33: 1105795.991 | U33: 1735766.002 | V33: 2024-03-18 | W33: 0.6370651283 | Y33: 257574.8116 | Z33: 4.293106086 | AB33: 100879.716 | AC33: 121125.505 | AD33: -20245.789 | AE33: 458298.2 | AF33: 0.04417601684 | AH33: 100879.716 | AI33: 99745.341 | AJ33: 0.01137271163 | AK33: 100278.702 | AL33: 0.005993436174 | AN33: 0.0006 | AO33: 0.0006 | AP33: 0.0004 | AQ33: 0.0006 | AR33: 0.0006 | AS33: 0.0005092958342 | AT33: 0.0006 | AU33: 0.0006 | AV33: 0.0005800332344 | AW33: 0.0009489301148 | AX33: 0.0009996514611 | AY33: 0.0008554148504 | BA33: -0.004484304932 | BB33: 0.014952676 | BC33: 0.127018069 | BD33: 0.3509348986 | BE33: 0.6059608422 | BF33: 0.5214937246
B34: =IF($B33>=Base!$G$3,"",$B33+1) -> 28 | C34: =IF($B34="","",INDEX(Base!$B:$B,MATCH('Guia de BTC'!$B34,Base!$F:$F,0))) -> NTCO3<XBSP> | D34: NTCO3 | E34: Grupo Natura | F34: Produtos de uso pessoal | G34: 14.24 | H34: =IFERROR((_xll.ECONOMATICA(C34,"Partic in ibovespa")/100),"") -> 0.00548 | I34: ON | J34: ON | K34: 0.6135399528 | M34: 0.6135399528 | N34: 19719167.52 | O34: 19719167.52 | P34: 19719167.52 | Q34: 12098497.11 | R34: 0.09050674025 | T34: 1094995.535 | U34: 1640275.416 | V34: 2024-04-03 | W34: 0.6675680953 | Y34: 110865.5885 | Z34: 9.876784586 | AB34: 78915.558 | AC34: 81092.436 | AD34: -2176.878 | AE34: 191433 | AF34: 0.01137148767 | AH34: 78915.558 | AI34: 81545.831 | AJ34: -0.03225514987 | AK34: 80607.718 | AL34: -0.02099253076 | AN34: 0.002 | AP34: 0.002 | AQ34: 0.002 | AS34: 0.00197149714 | AT34: 0.002 | AU34: 0.001 | AV34: 0.0019611571 | AW34: 0.002115771102 | AX34: 0.001599681389 | AY34: 0.002057042979 | BA34: -0.01111111111 | BB34: 0.05092250923 | BC34: -0.121759919 | BD34: -0.0399045328 | BE34: -0.008457555605 | BF34: -0.6896970104
B35: =IF($B34>=Base!$G$3,"",$B34+1) -> 29 | C35: =IF($B35="","",INDEX(Base!$B:$B,MATCH('Guia de BTC'!$B35,Base!$F:$F,0))) -> RADL3<XBSP> | D35: RADL3 | E35: RaiaDrogasil | F35: Medicamentos e outros produtos | G35: 27.37 | H35: =IFERROR((_xll.ECONOMATICA(C35,"Partic in ibovespa")/100),"") -> 0.01587 | I35: ON | J35: ON | K35: 0.7449155714 | M35: 0.7449155714 | N35: 46943007.08 | O35: 46943007.08 | P35: 46943007.08 | Q35: 34968576.94 | R35: 0.03087857587 | T35: 1079779.856 | U35: 2348049.408 | V35: 2024-08-07 | W35: 0.4598624936 | Y35: 171916.2544 | Z35: 6.280847961 | AB35: 39741.018 | AC35: 65615.299 | AD35: -25874.281 | AE35: 157330.1 | AF35: 0.1644585556 | AH35: 39741.018 | AI35: 39817.731 | AJ35: -0.001926604005 | AK35: 44435.503 | AL35: -0.1056471669 | AN35: 0.0094 | AO35: 0.0039 | AP35: 0.0094 | AQ35: 0.009541244564 | AR35: 0.0039 | AS35: 0.008531785844 | AT35: 0.009908154678 | AU35: 0.003997585783 | AV35: 0.008947165279 | AW35: 0.02499804825 | AX35: 0.009244319727 | AY35: 0.01982827866 | BA35: 0.01257861635 | BB35: -0.006894049347 | BC35: -0.06403595508 | BD35: 0.006034422569 | BE35: 0.2961586952 | BF35: 0.120393615
B36: =IF($B35>=Base!$G$3,"",$B35+1) -> 30 | C36: =IF($B36="","",INDEX(Base!$B:$B,MATCH('Guia de BTC'!$B36,Base!$F:$F,0))) -> BRFS3<XBSP> | D36: BRFS3 | E36: BRF SA | F36: Carnes e derivados | G36: 24.04 | H36: =IFERROR((_xll.ECONOMATICA(C36,"Partic in ibovespa")/100),"") -> 0.00887 | I36: ON | J36: ON | K36: 0.4841224096 | M36: 0.4841224096 | N36: 39871478.9 | O36: 39871478.9 | P36: 39871478.9 | Q36: 19302676.44 | R36: 0.05237911052 | T36: 1011057.022 | U36: 1652384.518 | V36: 2023-09-27 | W36: 0.6118775695 | Y36: 164208.3817 | Z36: 6.157158434 | AB36: 41001.194 | AC36: 40850.357 | AD36: 150.837 | AE36: 146161.3 | AF36: 0.00103199 | AH36: 41001.194 | AI36: 41921.714 | AJ36: -0.02195807166 | AK36: 43556.202 | AL36: -0.05866002734 | AN36: 0.0014 | AO36: 0.0013 | AP36: 0.001 | AQ36: 0.00177678948 | AR36: 0.0013 | AS36: 0.001302176625 | AT36: 0.001860828333 | AU36: 0.001049187912 | AV36: 0.001289416055 | AW36: 0.002047664567 | AX36: 0.001029362171 | AY36: 0.001590844491 | BA36: -0.03878448621 | BB36: -0.08349218452 | BC36: 0.7407675597 | BD36: 1.571122995 | BE36: 0.6199460916 | BF36: 0.03889369058
B37: =IF($B36>=Base!$G$3,"",$B36+1) -> 31 | C37: =IF($B37="","",INDEX(Base!$B:$B,MATCH('Guia de BTC'!$B37,Base!$F:$F,0))) -> RDOR3<XBSP> | D37: RDOR3 | E37: Rede D Or | F37: Serviços médico-hospitalares análises e diagnósticos | G37: 34.41 | H37: =IFERROR((_xll.ECONOMATICA(C37,"Partic in ibovespa")/100),"") -> 0.01785 | I37: ON | J37: ON | K37: 0.5002807522 | M37: 0.5002807522 | N37: 77205054.13 | O37: 77205054.13 | P37: 77205054.13 | Q37: 38624202.55 | R37: 0.02492390794 | T37: 962666.0689 | U37: 1217263.321 | V37: 2024-05-20 | W37: 0.7908445546 | Y37: 263306.8316 | Z37: 3.656061876 | AB37: 29144.668 | AC37: 21464.636 | AD37: 7680.032 | AE37: 107891.4 | AF37: 0.07118298585 | AH37: 29144.668 | AI37: 30876.468 | AJ37: -0.05608802147 | AK37: 27311.084 | AL37: 0.06713699097 | AN37: 0.0003 | AP37: 0.0003 | AQ37: 0.0003 | AR37: 0.0003 | AS37: 0.0002909106918 | AT37: 0.0002484062644 | AU37: 0.000240675977 | AV37: 0.0002860621957 | AW37: 0.0002152876905 | AX37: 0.0002018044261 | AY37: 0.0002589291044 | BA37: 0.009683098589 | BB37: 0.07766990291 | BC37: 0.2095940819 | BD37: 0.2440654027 | BE37: 0.09976942 | BF37: -0.4814734039
B38: =IF($B37>=Base!$G$3,"",$B37+1) -> 32 | C38: =IF($B38="","",INDEX(Base!$B:$B,MATCH('Guia de BTC'!$B38,Base!$F:$F,0))) -> IVVB11<XBSP> | D38: IVVB11 | E38: Ishares S&P 500 | F38: - | G38: 342.15 | H38: =IFERROR((_xll.ECONOMATICA(C38,"Partic in ibovespa")/100),"") ->  | T38: 930025.3461 | U38: 1048891.849 | V38: 2024-08-07 | W38: 0.8866742051 | Y38: 49109.14007 | Z38: 18.93792774 | AB38: 2703.444 | AC38: 2963.512 | AD38: -260.068 | AE38: 3644.69 | AF38: 0.07135531417 | AH38: 2703.444 | AI38: 2734.514 | AJ38: -0.01136216527 | AK38: 2826.636 | AL38: -0.0435825483 | AN38: 0.0262 | AO38: 0.0035 | AP38: 0.0247 | AQ38: 0.02495331172 | AR38: 0.0035 | AS38: 0.0247 | AT38: 0.02403919863 | AU38: 0.003553254768 | AV38: 0.02310834005 | AW38: 0.02300262471 | AX38: 0.001980440836 | AY38: 0.02300514474 | BA38: -0.008691873099 | BB38: -0.03578977033 | BC38: 0.3281704903 | BD38: 0.426219258 | BE38: 0.5257525084 | BF38: 0.3442951438
B39: =IF($B38>=Base!$G$3,"",$B38+1) -> 33 | C39: =IF($B39="","",INDEX(Base!$B:$B,MATCH('Guia de BTC'!$B39,Base!$F:$F,0))) -> JBSS3<XBSP> | D39: JBSS3 | E39: JBS | F39: Carnes e derivados | G39: 32.7 | H39: =IFERROR((_xll.ECONOMATICA(C39,"Partic in ibovespa")/100),"") -> 0.01693 | I39: ON | J39: =LEFT(I39,2) -> ON | K39: 0.515165249 | M39: 0.515165249 | N39: 72532405.3 | O39: 72532405.3 | P39: =IF(N39="","",IF(O39>1,O39,N39)) -> 72532405.3 | Q39: =IFERROR(IF(J39="on",P39*K39,IF(J39="pn",P39*L39,IF(J39="un",P39*M39,""))),"") -> 37366174.63 | R39: =IFERROR(T39/Q39,"") -> 0.02470527234 | T39: 923141.5206 | U39: 1153216.366 | V39: 2023-12-19 | W39: =IFERROR(T39/U39,"") -> 0.8004929065 | Y39: 261047.8448 | Z39: =IFERROR(T39/Y39,"") -> 3.536292442 | AB39: 26219.833 | AC39: 27426.712 | AD39: =IF(AB39="","",AB39-AC39) -> -1206.879 | AE39: 170776.9 | AF39: 0.007066992081 | AH39: 26219.833 | AI39: 26065.826 | AJ39: =IFERROR((AH39/AI39)-1,"") -> 0.00590838748 | AK39: 24417.105 | AL39: =IFERROR((AH39/AK39)-1,"") -> 0.07383053806 | AN39: 0.0003 | AP39: 0.0003 | AQ39: 0.0003 | AS39: 0.0004539894342 | AT39: 0.0003 | AV39: 0.000414387515 | AW39: 0.000363573104 | AX39: 0.000523766328 | AY39: 0.0004004255309 | BA39: -0.04189862291 | BB39: -0.06571428571 | BC39: 0.3853323291 | BD39: 0.8483464552 | BE39: 0.3661594723 | BF39: 0.2286752531
B40: =IF($B39>=Base!$G$3,"",$B39+1) -> 34 | C40: =IF($B40="","",INDEX(Base!$B:$B,MATCH('Guia de BTC'!$B40,Base!$F:$F,0))) -> CPLE6<XBSP> | D40: CPLE6 | E40: Copel | F40: Energia elétrica | G40: 10.78 | H40: =IFERROR((_xll.ECONOMATICA(C40,"Partic in ibovespa")/100),"") -> 0.0082 | I40: PNB | J40: PN | K40: 0.9999253246 | L40: 0.9999395529 | M40: 0.9999333499 | N40: 30752575.25 | O40: 18103234.44 | P40: 18103234.44 | Q40: 18102140.15 | R40: 0.04882907486 | T40: 883910.7564 | U40: 1249226.353 | V40: 2024-03-19 | W40: 0.7075665306 | Y40: 132304.4104 | Z40: 6.680886554 | AB40: 82706.077 | AC40: 85270.931 | AD40: -2564.854 | AE40: 242814.8 | AF40: 0.01056300522 | AH40: 82706.077 | AI40: 83525.938 | AJ40: -0.00981564553 | AK40: 77551.547 | AL40: 0.06646585657 | AN40: 0.0003 | AP40: 0.0003 | AQ40: 0.0003 | AR40: 0.0002 | AS40: 0.0003 | AT40: 0.0003 | AU40: 0.0002 | AV40: 0.0003 | AW40: 0.0002592064298 | AX40: 0.0002 | AY40: 0.0002614672343 | BA40: -0.001851851852 | BB40: 0.03355704698 | BC40: 0.04558039798 | BD40: 0.2933678786 | BE40: 0.7814230616 | BF40: 1.136250281
B41: =IF($B40>=Base!$G$3,"",$B40+1) -> 35 | C41: =IF($B41="","",INDEX(Base!$B:$B,MATCH('Guia de BTC'!$B41,Base!$F:$F,0))) -> ASAI3<XBSP> | D41: ASAI3 | E41: Assai | F41: Alimentos | G41: 8.74 | H41: =IFERROR((_xll.ECONOMATICA(C41,"Partic in ibovespa")/100),"") -> 0.00534 | I41: ON | J41: ON | K41: 0.998224136 | M41: 0.998224136 | N41: 11815020.42 | O41: 11815020.42 | P41: 11815020.42 | Q41: 11794038.55 | R41: 0.07261884761 | T41: 856469.4882 | U41: 1296995.968 | V41: 2024-09-04 | W41: 0.6603486125 | Y41: 171449.1664 | Z41: 4.995471873 | AB41: 93391.35 | AC41: 95708.31 | AD41: -2316.96 | AE41: 287127.9 | AF41: 0.008069435259 | AH41: 93391.35 | AI41: 91532.297 | AJ41: 0.02031035013 | AK41: 103374.548 | AL41: -0.09657307522 | AN41: 0.2113 | AO41: 0.001 | AP41: 0.1834 | AQ41: 0.2344722352 | AR41: 0.001 | AS41: 0.2010270745 | AT41: 0.2456321708 | AU41: 0.001 | AV41: 0.2378918687 | AW41: 0.2779488166 | AX41: 0.001 | AY41: 0.2675292125 | BA41: -0.009070294785 | BB41: -0.08672936259 | BC41: -0.3540280857 | BD41: -0.2871125612 | BE41: -0.5088012788 | BF41: -0.5323385611
B42: =IF($B41>=Base!$G$3,"",$B41+1) -> 36 | C42: =IF($B42="","",INDEX(Base!$B:$B,MATCH('Guia de BTC'!$B42,Base!$F:$F,0))) -> MULT3<XBSP> | D42: MULT3 | E42: Multiplan | F42: Exploração de imóveis | G42: 27.04 | H42: =IFERROR((_xll.ECONOMATICA(C42,"Partic in ibovespa")/100),"") -> 0.0039 | I42: ON | J42: ON | K42: 0.5293464409 | M42: 0.5293464409 | N42: 15621709.71 | O42: 15621709.71 | P42: 15621709.71 | Q42: 8269296.438 | R42: 0.1007054248 | T42: 832763.0108 | U42: 1057169.856 | V42: 2024-07-24 | W42: 0.7877286762 | Y42: 102019.2077 | Z42: 8.162806096 | AB42: 31251.299 | AC42: 26649.165 | AD42: 4602.134 | AE42: 104243.9 | AF42: 0.04414775349 | AH42: 31251.299 | AI42: 28480.157 | AJ42: 0.09730079789 | AK42: 25983.379 | AL42: 0.2027419144 | AN42: 0.0361 | AO42: 0.0394 | AP42: 0.038 | AQ42: 0.03810455458 | AR42: 0.0394 | AS42: 0.03560449332 | AT42: 0.03862213738 | AU42: 0.03456665522 | AV42: 0.03434302604 | AW42: 0.04581744596 | AX42: 0.03820717016 | AY42: 0.04362138193 | BA42: -0.00441826215 | BB42: 0.05460218409 | BC42: -0.03279681756 | BD42: 0.1253164725 | BE42: 0.2259350083 | BF42: 0.5032921967
B43: =IF($B42>=Base!$G$3,"",$B42+1) -> 37 | C43: =IF($B43="","",INDEX(Base!$B:$B,MATCH('Guia de BTC'!$B43,Base!$F:$F,0))) -> TIMS3<XBSP> | D43: TIMS3 | E43: Tim | F43: Telecomunicações | G43: 18.76 | H43: =IFERROR((_xll.ECONOMATICA(C43,"Partic in ibovespa")/100),"") -> 0.00686 | I43: ON | J43: ON | K43: 0.333564917 | M43: 0.333564917 | N43: 45361766.97 | O43: 45361766.97 | P43: 45361766.97 | Q43: 15131094.03 | R43: 0.05278213335 | T43: 798651.4229 | U43: 798651.4229 | V43: 2024-09-18 | W43: 1 | Y43: 93253.91126 | Z43: 8.564267301 | AB43: 43657.205 | AC43: 36448.751 | AD43: 7208.454 | AE43: 147198.5 | AF43: 0.04897097457 | AH43: 43657.205 | AI43: 39382.118 | AJ43: 0.1085540143 | AK43: 40753.295 | AL43: 0.07125583342 | AN43: 0.005 | AP43: 0.0043 | AQ43: 0.005 | AS43: 0.004312113041 | AT43: 0.00502172062 | AV43: 0.004751794596 | AW43: 0.00573898628 | AX43: 0.001164235456 | AY43: 0.005508807498 | BA43: 0.006437768239 | BB43: 0.05039193729 | BC43: 0.09083580625 | BD43: 0.3251996575 | BE43: 0.7624207018 | BF43: 0.8330245304
B44: =IF($B43>=Base!$G$3,"",$B43+1) -> 38 | C44: =IF($B44="","",INDEX(Base!$B:$B,MATCH('Guia de BTC'!$B44,Base!$F:$F,0))) -> CCRO3<XBSP> | D44: CCRO3 | E44: CCR SA | F44: Exploração de rodovias | G44: 13.04 | H44: =IFERROR((_xll.ECONOMATICA(C44,"Partic in ibovespa")/100),"") -> 0.00586 | I44: ON | J44: ON | K44: 0.4910499688 | M44: 0.4910499688 | N44: 26314498.97 | O44: 26314498.97 | P44: 26314498.97 | Q44: 12921733.9 | R44: 0.06142701699 | T44: 793743.5677 | U44: 1227974.141 | V44: 2024-03-27 | W44: 0.6463845952 | Y44: 84171.723 | Z44: 9.430050134 | AB44: 59600.089 | AC44: 67067.534 | AD44: -7467.445 | AE44: 113136.1 | AF44: 0.06600408711 | AH44: 59600.089 | AI44: 59029.589 | AJ44: 0.009664644624 | AK44: 57407.376 | AL44: 0.0381956667 | AN44: 0.0063 | AP44: 0.0063 | AQ44: 0.006266196168 | AS44: 0.005687846371 | AT44: 0.006216991172 | AV44: 0.005590316585 | AW44: 0.006263896674 | AX44: 0.0065 | AY44: 0.005787351008 | BA44: -0.008365019012 | BB44: -0.0158490566 | BC44: -0.06081104503 | BD44: 0.0590555963 | BE44: 0.0215090022 | BF44: 0.2209690758
B45: =IF($B44>=Base!$G$3,"",$B44+1) -> 39 | C45: =IF($B45="","",INDEX(Base!$B:$B,MATCH('Guia de BTC'!$B45,Base!$F:$F,0))) -> CXSE3<XBSP> | D45: CXSE3 | E45: Caixa Seguri | F45: Seguradoras | G45: 14.87 | H45: =IFERROR((_xll.ECONOMATICA(C45,"Partic in ibovespa")/100),"") -> 0.00349 | I45: ON | J45: ON | K45: 0.1725 | M45: 0.1725 | N45: 44610000 | O45: 44610000 | P45: 44610000 | Q45: 7695225 | R45: 0.09604146796 | T45: 739060.7053 | U45: 982221.0885 | V45: 2024-03-04 | W45: 0.7524382381 | Y45: 63185.31339 | Z45: 11.69671662 | AB45: 47917.922 | AC45: 41699.354 | AD45: 6218.568 | AE45: 55416.2 | AF45: 0.1122157059 | AH45: 47917.922 | AI45: 47752.932 | AJ45: 0.003455075806 | AK45: 49676.634 | AL45: -0.03540320385 | AN45: 0.0037 | AO45: 0.001 | AP45: 0.0036 | AQ45: 0.0037 | AR45: 0.001 | AS45: 0.003616498321 | AT45: 0.003780614742 | AU45: 0.001 | AV45: 0.003693449302 | AW45: 0.00501242314 | AX45: 0.001 | AY45: 0.005002945487 | BA45: -0.01196013289 | BB45: -0.09051987768 | BC45: 0.2174265894 | BD45: 0.4372035425 | BE45: 1.086695318 | BF45: 1.192291813
B46: =IF($B45>=Base!$G$3,"",$B45+1) -> 40 | C46: =IF($B46="","",INDEX(Base!$B:$B,MATCH('Guia de BTC'!$B46,Base!$F:$F,0))) -> CMIN3<XBSP> | D46: CMIN3 | E46: Csn Mineracao | F46: Minerais metálicos | G46: 6.33 | H46: =IFERROR((_xll.ECONOMATICA(C46,"Partic in ibovespa")/100),"") -> 0.00318 | I46: ON | J46: ON | K46: 0.2024595705 | M46: 0.2024595705 | N46: 34722194.84 | O46: 34722194.84 | P46: 34722194.84 | Q46: 7029840.654 | R46: 0.1044124039 | T46: 734002.5616 | U46: 795593.6089 | V46: 2024-01-04 | W46: 0.9225847888 | Y46: 90748.24183 | Z46: 8.088339199 | AB46: 122413.478 | AC46: 107436.185 | AD46: 14977.293 | AE46: 195204.8 | AF46: 0.07672604874 | AH46: 122413.478 | AI46: 125269.74 | AJ46: -0.0228008935 | AK46: 129524.508 | AL46: -0.0549010385 | AN46: 0.9628 | AO46: 0.4179 | AP46: 0.4417 | AQ46: 0.5414034234 | AR46: 0.4220507439 | AS46: 0.412096063 | AT46: 0.4152147545 | AU46: 0.2499536334 | AV46: 0.3420702813 | AW46: 0.2344124696 | AX46: 0.1874043984 | AY46: 0.1876371299 | BA46: -0.08260869565 | BB46: 0.1144366197 | BC46: -0.1537927255 | BD46: 0.5359640206 | BE46: 1.437144557 | BF46: 0.5907827133
B47: =IF($B46>=Base!$G$3,"",$B46+1) -> 41 | C47: =IF($B47="","",INDEX(Base!$B:$B,MATCH('Guia de BTC'!$B47,Base!$F:$F,0))) -> CSNA3<XBSP> | D47: CSNA3 | E47: Sid Nacional | F47: Siderurgia | G47: 11.89 | H47: =IFERROR((_xll.ECONOMATICA(C47,"Partic in ibovespa")/100),"") -> 0.00397 | I47: ON | J47: ON | K47: 0.5425638761 | M47: 0.5425638761 | N47: 15767257.03 | O47: 15767257.03 | P47: 15767257.03 | Q47: 8554744.09 | R47: 0.08172854034 | T47: 699166.7475 | U47: 1099840.908 | V47: 2024-01-08 | W47: 0.6356980745 | Y47: 74833.9323 | Z47: 9.342910708 | AB47: 59173.627 | AC47: 49795.975 | AD47: 9377.652 | AE47: 131226.1 | AF47: 0.07146178999 | AH47: 59173.627 | AI47: 58715.378 | AJ47: 0.007804582302 | AK47: 60980.851 | AL47: -0.0296359262 | AN47: 0.0014 | AO47: 0.001 | AP47: 0.0014 | AQ47: 0.0014 | AR47: 0.001 | AS47: 0.00134913008 | AT47: 0.00139108339 | AU47: 0.001 | AV47: 0.001388430173 | AW47: 0.001441582915 | AX47: 0.001 | AY47: 0.001256910969 | BA47: -0.01081530782 | BB47: 0.002529510961 | BC47: -0.3623552575 | BD47: 0.061049345 | BE47: 0.2926859674 | BF47: -0.4080453627
B48: =IF($B47>=Base!$G$3,"",$B47+1) -> 42 | C48: =IF($B48="","",INDEX(Base!$B:$B,MATCH('Guia de BTC'!$B48,Base!$F:$F,0))) -> SBSP3<XBSP> | D48: SBSP3 | E48: Sabesp | F48: Água e saneamento | G48: 96.07 | H48: =IFERROR((_xll.ECONOMATICA(C48,"Partic in ibovespa")/100),"") -> 0.02975 | I48: ON | J48: ON | K48: 0.9999980995 | L48: 0 | M48: 0.999998098 | N48: 65664793.12 | O48: 65664793.12 | P48: 65664793.12 | Q48: 65664668.32 | R48: 0.01019848947 | T48: 669680.4283 | U48: 1892306.578 | V48: 2024-07-04 | W48: 0.3538963697 | Y48: 353875.8867 | Z48: 1.892416108 | AB48: 7016.587 | AC48: 12674.097 | AD48: -5657.51 | AE48: 192754.1 | AF48: 0.02935091912 | AH48: 7016.587 | AI48: 7512.709 | AJ48: -0.06603769692 | AK48: 6973.378 | AL48: 0.006196279622 | AN48: 0.0007 | AO48: 0.0007 | AP48: 0.0007 | AQ48: 0.0007 | AR48: 0.0007 | AS48: 0.0007265099136 | AT48: 0.0006676346585 | AU48: 0.0004450159583 | AV48: 0.000550044092 | AW48: 0.0003193793913 | AX48: 0.0004103384421 | AY48: 0.0003042549985 | BA48: -0.001247530928 | BB48: 0.01414546606 | BC48: 0.2972755271 | BD48: 0.6142588159 | BE48: 1.134971635 | BF48: 1.910324086
B49: =IF($B48>=Base!$G$3,"",$B48+1) -> 43 | C49: =IF($B49="","",INDEX(Base!$B:$B,MATCH('Guia de BTC'!$B49,Base!$F:$F,0))) -> KLBN11<XBSP> | D49: KLBN11 | E49: Klabin S/A | F49: Papel e celulose | G49: 21.34 | H49: =IFERROR((_xll.ECONOMATICA(C49,"Partic in ibovespa")/100),"") -> 0.0074 | I49: UNT N2 | J49: UN | K49: 0.3874295867 | L49: 0.7874839867 | M49: 0.6392425607 | N49: 25944321.24 | O49: 0 | P49: 25944321.24 | Q49: 16584714.34 | R49: 0.03995026896 | T49: 662563.7987 | U49: 1231649.349 | V49: 2023-09-27 | W49: 0.5379484018 | Y49: 78375.71717 | Z49: 8.453687222 | AB49: 30777.923 | AC49: 31775.079 | AD49: -997.156 | AE49: 85158.4 | AF49: 0.0117094262 | AH49: 30777.923 | AI49: 30640.13 | AJ49: 0.004497141494 | AK49: 31101.119 | AL49: -0.01039178044 | AN49: 0.0025 | AP49: 0.0023 | AQ49: 0.0025 | AR49: 0.001 | AS49: 0.00189804161 | AT49: 0.0025 | AU49: 0.001011349403 | AV49: 0.001129224327 | AW49: 0.001109882389 | AX49: 0.001008934788 | AY49: 0.0005654533607 | BA49: -0.01020408163 | BB49: -0.01157943492 | BC49: 0.09604667886 | BD49: 0.07739907429 | BE49: 0.4496924978 | BF49: 0.2155032963
B50: =IF($B49>=Base!$G$3,"",$B49+1) -> 44 | C50: =IF($B50="","",INDEX(Base!$B:$B,MATCH('Guia de BTC'!$B50,Base!$F:$F,0))) -> CSAN3<XBSP> | D50: CSAN3 | E50: Cosan | F50: Exploração refino e distribuição | G50: 13.1 | H50: =IFERROR((_xll.ECONOMATICA(C50,"Partic in ibovespa")/100),"") -> 0.00692 | I50: ON | J50: ON | K50: 0.6243201493 | M50: 0.6243201493 | N50: 24373359.34 | O50: 24373359.34 | P50: 24373359.34 | Q50: 15216779.35 | R50: 0.04340986151 | T50: 660558.284 | U50: 885243.9047 | V50: 2024-02-28 | W50: 0.746187893 | Y50: 129333.3708 | Z50: 5.107407932 | AB50: 49841.271 | AC50: 38918.805 | AD50: 10922.466 | AE50: 165277.4 | AF50: 0.06608565962 | AH50: 49841.271 | AI50: 47261.479 | AJ50: 0.05458551138 | AK50: 47494.046 | AL50: 0.04942145801 | AN50: 0.0006 | AO50: 0.0006 | AP50: 0.0005 | AQ50: 0.0006 | AR50: 0.0006 | AS50: 0.0005198855473 | AT50: 0.0006 | AU50: 0.0006 | AV50: 0.0005262140218 | AW50: 0.0006 | AX50: 0.0006 | AY50: 0.0005890819066 | BA50: -0.0223880597 | BB50: -0.01946107784 | BC50: -0.2995335401 | BD50: -0.2681580862 | BE50: -0.2218131667 | BF50: -0.3803921035
B51: =IF($B50>=Base!$G$3,"",$B50+1) -> 45 | C51: =IF($B51="","",INDEX(Base!$B:$B,MATCH('Guia de BTC'!$B51,Base!$F:$F,0))) -> CYRE3<XBSP> | D51: CYRE3 | E51: Cyrela Realt | F51: Incorporações | G51: 22.34 | H51: =IFERROR((_xll.ECONOMATICA(C51,"Partic in ibovespa")/100),"") -> 0.00268 | I51: ON | J51: ON | K51: 0.6622023228 | M51: 0.6622023228 | N51: 8375735.14 | O51: 8375735.14 | P51: 8375735.14 | Q51: 5546431.264 | R51: 0.115986667 | T51: 643312.0764 | U51: 902632.3704 | V51: 2023-12-12 | W51: 0.7127066317 | Y51: 98675.74217 | Z51: 6.519455159 | AB51: 29458.6 | AC51: 28295.918 | AD51: 1162.682 | AE51: 110234.7 | AF51: 0.01054733219 | AH51: 29458.6 | AI51: 29515.051 | AJ51: -0.001912617396 | AK51: 29089.233 | AL51: 0.01269772221 | AN51: 0.0003 | AO51: 0.0003 | AP51: 0.0003 | AQ51: 0.0003 | AR51: 0.0003 | AS51: 0.0002603385081 | AT51: 0.0003 | AU51: 0.0003 | AV51: 0.0002342948871 | AW51: 0.0003218913255 | AX51: 0.0002888077859 | AY51: 0.0002778949321 | BA51: -0.004012483281 | BB51: 0.02383134739 | BC51: -0.0450965746 | BD51: 0.0696359729 | BE51: 0.5343913695 | BF51: 0.276097936
B52: =IF($B51>=Base!$G$3,"",$B51+1) -> 46 | C52: =IF($B52="","",INDEX(Base!$B:$B,MATCH('Guia de BTC'!$B52,Base!$F:$F,0))) -> SMFT3<XBSP> | D52: SMFT3 | E52: Smart Fit | F52: Atividades esportivas | G52: 23.16 | H52: =IFERROR((_xll.ECONOMATICA(C52,"Partic in ibovespa")/100),"") ->  | I52: ON | J52: ON | K52: 0.5502928125 | M52: 0.5502928125 | N52: 13577371.41 | O52: 13577371.41 | P52: 13577371.41 | Q52: 7471529.901 | R52: 0.08582231187 | T52: 641223.9693 | U52: 641223.9693 | V52: 2024-09-18 | W52: 1 | Y52: 50114.28939 | Z52: 12.7952322 | AB52: 28330.163 | AC52: 22249.429 | AD52: 6080.734 | AE52: 66670 | AF52: 0.09120644968 | AH52: 28330.163 | AI52: 27474.919 | AJ52: 0.03112817184 | AK52: 26554.728 | AL52: 0.06685946849 | AN52: 0.034 | AP52: 0.0011 | AQ52: 0.034 | AS52: 0.01198121341 | AT52: 0.034 | AV52: 0.01436961737 | AW52: 0.0227081561 | AX52: 0.005733900017 | AY52: 0.01324689907 | BA52: 0.01091226539 | BB52: 0.05034013605 | BC52: -0.106778769 | BD52: 0.1071227566 | BE52: 0.5396262605 | BF52: -0.1046928047
B53: =IF($B52>=Base!$G$3,"",$B52+1) -> 47 | C53: =IF($B53="","",INDEX(Base!$B:$B,MATCH('Guia de BTC'!$B53,Base!$F:$F,0))) -> AZZA3<XBSP> | D53: AZZA3 | E53: Azzas 2154 | F53: Tecidos vestuário e calçados | G53: 47.77 | H53: =IFERROR((_xll.ECONOMATICA(C53,"Partic in ibovespa")/100),"") -> 0.00276 | I53: ON | J53: ON | K53: 0.616642977 | M53: 0.616642977 | N53: 9864018.367 | O53: 9864018.367 | P53: 9864018.367 | Q53: 6082577.651 | R53: 0.1038461063 | T53: 631652.0056 | U53: 854179.8991 | V53: 2024-08-06 | W53: 0.7394835751 | Y53: 98995.10248 | Z53: 6.380638938 | AB53: 13099.062 | AC53: 13987.565 | AD53: -888.503 | AE53: 31754.7 | AF53: 0.02798020451 | AH53: 13099.062 | AI53: 12789.784 | AJ53: 0.02418164372 | AK53: 14061.908 | AL53: -0.06847193141 | AN53: 0.0331 | AO53: 0.001 | AP53: 0.0283 | AQ53: 0.03376106867 | AR53: 0.001 | AS53: 0.02905918099 | AT53: 0.03524776894 | AU53: 0.001 | AV53: 0.03329158553 | AW53: 0.04447160074 | AX53: 0.02658888934 | AY53: 0.0403948618 | BA53: 0.01336444633 | BB53: -0.02510204082 | BC53: -0.252201051 | BD53: -0.2992576029 | BE53: -0.4702170568 | BF53: -0.3836825684
B54: =IF($B53>=Base!$G$3,"",$B53+1) -> 48 | C54: =IF($B54="","",INDEX(Base!$B:$B,MATCH('Guia de BTC'!$B54,Base!$F:$F,0))) -> CRFB3<XBSP> | D54: CRFB3 | E54: Carrefour BR | F54: Alimentos | G54: 9.15 | H54: =IFERROR((_xll.ECONOMATICA(C54,"Partic in ibovespa")/100),"") -> 0.0022 | I54: ON | J54: ON | K54: 0.2525604363 | M54: 0.2525604363 | N54: 19290893.86 | O54: 19290893.86 | P54: 19290893.86 | Q54: 4872116.569 | R54: 0.1255449531 | T54: 611669.6461 | U54: 772445.8374 | V54: 2024-03-28 | W54: 0.7918608871 | Y54: 82361.26652 | Z54: 7.426666343 | AB54: 66713.489 | AC54: 54718.701 | AD54: 11994.788 | AE54: 166622.4 | AF54: 0.07198784797 | AH54: 66713.489 | AI54: 66697.629 | AJ54: 0.0002377895622 | AK54: 64199.213 | AL54: 0.03916365766 | AN54: 0.4118 | AO54: 0.0981 | AP54: 0.3516 | AQ54: 0.3052278134 | AR54: 0.0981 | AS54: 0.2841253231 | AT54: 0.237949933 | AU54: 0.09956783431 | AV54: 0.2259836812 | AW54: 0.1602386389 | AX54: 0.02186871921 | AY54: 0.1417093728 | BA54: 0.008820286657 | BB54: 0.02006688963 | BC54: -0.265060241 | BD54: -0.04388714734 | BE54: -0.5435058028 | BF54: -0.4675400612
B55: =IF($B54>=Base!$G$3,"",$B54+1) -> 49 | C55: =IF($B55="","",INDEX(Base!$B:$B,MATCH('Guia de BTC'!$B55,Base!$F:$F,0))) -> LREN3<XBSP> | D55: LREN3 | E55: Lojas Renner | F55: Tecidos vestuário e calçados | G55: 19 | H55: =IFERROR((_xll.ECONOMATICA(C55,"Partic in ibovespa")/100),"") -> 0.0082 | I55: ON | J55: ON | K55: 1 | M55: 1 | N55: 18166280 | O55: 18166280 | P55: 18166280 | Q55: 18166280 | R55: 0.0335511439 | T55: 609499.4745 | U55: 1631654.95 | V55: 2024-08-29 | W55: 0.3735467935 | Y55: 450885.1013 | Z55: 1.351784463 | AB55: 33113.332 | AC55: 109055.978 | AD55: -75942.646 | AE55: 410198.9 | AF55: 0.1851361522 | AH55: 33113.332 | AI55: 35778.787 | AJ55: -0.07449819358 | AK55: 29653.359 | AL55: 0.1166806432 | AN55: 0.0091 | AO55: 0.01 | AP55: 0.0061 | AQ55: 0.01251387625 | AR55: 0.018426147 | AS55: 0.009148695751 | AT55: 0.01622364881 | AU55: 0.01994288903 | AV55: 0.01246225002 | AW55: 0.03935632006 | AX55: 0.03059064616 | AY55: 0.03074061994 | BA55: -0.003670686943 | BB55: 0.1169900059 | BC55: 0.1150361245 | BD55: 0.2891937051 | BE55: -0.2197632255 | BF55: -0.3669060731
B56: =IF($B55>=Base!$G$3,"",$B55+1) -> 50 | C56: =IF($B56="","",INDEX(Base!$B:$B,MATCH('Guia de BTC'!$B56,Base!$F:$F,0))) -> SLCE3<XBSP> | D56: SLCE3 | E56: SLC Agricola | F56: Agricultura | G56: 17.23 | H56: =IFERROR((_xll.ECONOMATICA(C56,"Partic in ibovespa")/100),"") -> 0.00152 | I56: ON | J56: ON | K56: 0.438187234 | M56: 0.438187234 | N56: 7578452.263 | O56: 7578452.263 | P56: 7578452.263 | Q56: 3320781.035 | R56: 0.1822855814 | T56: 605330.5018 | U56: 615384.1942 | V56: 2024-03-18 | W56: 0.9836627386 | Y56: 35910.75009 | Z56: 16.85652626 | AB56: 34433.972 | AC56: 29032.331 | AD56: 5401.641 | AE56: 36176.2 | AF56: 0.1493147705 | AH56: 34433.972 | AI56: 34412.902 | AJ56: 0.000612270363 | AK56: 33786.811 | AL56: 0.01915424927 | AN56: 0.0019 | AP56: 0.0019 | AQ56: 0.0019 | AS56: 0.001850757296 | AT56: 0.0019 | AU56: 0.001 | AV56: 0.001818250417 | AW56: 0.00173128911 | AX56: 0.001 | AY56: 0.00166185191 | BA56: -0.00519630485 | BB56: -0.02434881087 | BC56: -0.04287211486 | BD56: -0.09221013889 | BE56: -0.08318067187 | BF56: 0.1190997874
B57: =IF($B56>=Base!$G$3,"",$B56+1) -> 51 | C57: =IF($B57="","",INDEX(Base!$B:$B,MATCH('Guia de BTC'!$B57,Base!$F:$F,0))) -> ENEV3<XBSP> | D57: ENEV3 | E57: Eneva | F57: Energia elétrica | G57: 14.01 | H57: =IFERROR((_xll.ECONOMATICA(C57,"Partic in ibovespa")/100),"") -> 0.01003 | I57: ON | J57: ON | K57: 0.9969229454 | M57: 0.9969229454 | N57: 22183742.22 | O57: 22183742.22 | P57: 22183742.22 | Q57: 22115481.63 | R57: 0.02707973871 | T57: 598881.4641 | U57: 1255680.141 | V57: 2024-08-01 | W57: 0.4769379117 | Y57: 164948.1927 | Z57: 3.630724618 | AB57: 43002.914 | AC57: 80227.635 | AD57: -37224.721 | AE57: 153993 | AF57: 0.2417299553 | AH57: 43002.914 | AI57: 42678.505 | AJ57: 0.007601226894 | AK57: 33882.432 | AL57: 0.2691802643 | AN57: 0.0003 | AP57: 0.0003 | AQ57: 0.0002621372128 | AS57: 0.0004501255555 | AT57: 0.0002499203257 | AV57: 0.0003680643947 | AW57: 0.0002918358227 | AY57: 0.0003371642102 | BA57: -0.008492569003 | BB57: 0.06702208682 | BC57: 0.0293901543 | BD57: 0.1714046823 | BE57: -0.06412825651 | BF57: -0.1534743202
B58: =IF($B57>=Base!$G$3,"",$B57+1) -> 52 | C58: =IF($B58="","",INDEX(Base!$B:$B,MATCH('Guia de BTC'!$B58,Base!$F:$F,0))) -> HAPV3<XBSP> | D58: HAPV3 | E58: Hapvida | F58: Serviços médico-hospitalares análises e diagnósticos | G58: 4.66 | H58: =IFERROR((_xll.ECONOMATICA(C58,"Partic in ibovespa")/100),"") -> 0.01009 | I58: ON | J58: ON | K58: 0.6339171468 | M58: 0.6339171468 | N58: 34923194.3 | O58: 34923194.3 | P58: 34923194.3 | Q58: 22138411.68 | R58: 0.02632426514 | T58: 582777.4189 | U58: 1225818.021 | V58: 2023-11-10 | W58: 0.4754191966 | Y58: 223826.3755 | Z58: 2.603703061 | AB58: 131277.332 | AC58: 125199.191 | AD58: 6078.141 | AE58: 1373625 | AF58: 0.004424891073 | AH58: 131277.332 | AI58: 132183.248 | AJ58: -0.0068534857 | AK58: 130443.382 | AL58: 0.006393195172 | AN58: 0.0005 | AO58: 0.0005 | AP58: 0.0005 | AQ58: 0.0003051706812 | AR58: 0.0005 | AS58: 0.0003780784941 | AT58: 0.0002858571105 | AU58: 0.0005 | AV58: 0.0003322698836 | AW58: 0.000474611985 | AX58: 0.0006003599979 | AY58: 0.0005354460776 | BA58: 0.01084598699 | BB58: 0.09905660378 | BC58: 0.04719101124 | BD58: 0.05429864253 | BE58: -0.3744966443 | BF58: -0.6940223395
B59: =IF($B58>=Base!$G$3,"",$B58+1) -> 53 | C59: =IF($B59="","",INDEX(Base!$B:$B,MATCH('Guia de BTC'!$B59,Base!$F:$F,0))) -> MRVE3<XBSP> | D59: MRVE3 | E59: MRV | F59: Incorporações | G59: 7.95 | H59: =IFERROR((_xll.ECONOMATICA(C59,"Partic in ibovespa")/100),"") -> 0.00135 | I59: ON | J59: ON | K59: 0.6702622733 | M59: 0.6702622733 | N59: 4474466.7 | O59: 4474466.7 | P59: 4474466.7 | Q59: 2999066.222 | R59: 0.1883473367 | T59: 564866.1354 | U59: 653752.8139 | V59: 2024-09-06 | W59: 0.8640362588 | Y59: 89563.67761 | Z59: 6.306866249 | AB59: 74209.314 | AC59: 70859.758 | AD59: 3349.556 | AE59: 252867 | AF59: 0.01324631526 | AH59: 74209.314 | AI59: 74764.671 | AJ59: -0.007428067195 | AK59: 78977.149 | AL59: -0.06036980393 | AN59: 0.0015 | AO59: 0.0014 | AP59: 0.0015 | AQ59: 0.0015 | AR59: 0.001442989894 | AS59: 0.001423222583 | AT59: 0.001562745071 | AU59: 0.0010432905 | AV59: 0.00122232217 | AW59: 0.001024663747 | AX59: 0.0009996652328 | AY59: 0.001125449478 | BA59: -0.01972872996 | BB59: 0.06425702811 | BC59: -0.2920747996 | BD59: -0.3092962641 | BE59: -0.3565590999 | BF59: -0.3907497709
B60: =IF($B59>=Base!$G$3,"",$B59+1) -> 54 | C60: =IF($B60="","",INDEX(Base!$B:$B,MATCH('Guia de BTC'!$B60,Base!$F:$F,0))) -> AURE3<XBSP> | D60: AURE3 | E60: Auren | F60: Energia elétrica | G60: 10.99 | H60: =IFERROR((_xll.ECONOMATICA(C60,"Partic in ibovespa")/100),"") -> 0.00145 | I60: ON | J60: ON | K60: 0.291727616 | M60: 0.291727616 | N60: 10990000 | O60: 10990000 | P60: 10990000 | Q60: 3206086.5 | R60: 0.174368057 | T60: 559039.0736 | U60: 662535.7636 | V60: 2024-05-17 | W60: 0.8437870139 | Y60: 50410.6877 | Z60: 11.08969346 | AB60: 49297.418 | AC60: 43080.498 | AD60: 6216.92 | AE60: 72819 | AF60: 0.08537497082 | AH60: 49297.418 | AI60: 48988.562 | AJ60: 0.00630465536 | AK60: 46356.961 | AL60: 0.06343075423 | AN60: 0.0105 | AP60: 0.0084 | AQ60: 0.01057185697 | AS60: 0.008804540497 | AT60: 0.0106228661 | AU60: 0.0105 | AV60: 0.008963265831 | AW60: 0.01074229096 | AX60: 0.0105 | AY60: 0.009598588367 | BA60: -0.007226738934 | BB60: -0.03511852502 | BC60: -0.1477766815 | BD60: -0.09475914261 | BE60: -0.02262453675
B61: =IF($B60>=Base!$G$3,"",$B60+1) -> 55 | C61: =IF($B61="","",INDEX(Base!$B:$B,MATCH('Guia de BTC'!$B61,Base!$F:$F,0))) -> ELET6<XBSP> | D61: ELET6 | E61: Eletrobras | F61: Energia elétrica | G61: 46.21 | H61: =IFERROR((_xll.ECONOMATICA(C61,"Partic in ibovespa")/100),"") -> 0.00563 | I61: PNB | J61: PN | K61: 0.975411696 | L61: 0.9599675622 | M61: 0.9735367353 | N61: 95266771.16 | O61: 12620074.34 | P61: 12620074.34 | Q61: 12114862 | R61: 0.04311006433 | T61: 522272.4801 | U61: 811290.6822 | V61: 2024-08-05 | W61: 0.6437550579 | Y61: 53330.63078 | Z61: 9.793105246 | AB61: 11342.896 | AC61: 16650.292 | AD61: -5307.396 | AE61: 26344.3 | AF61: 0.2014627832 | AH61: 11342.896 | AI61: 11289.653 | AJ61: 0.004716088262 | AK61: 11367.713 | AL61: -0.002183112821 | AN61: 0.0002 | AP61: 0.0002 | AQ61: 0.0002 | AS61: 0.000196286343 | AT61: 0.0002 | AV61: 0.0001977215397 | AW61: 0.0002796029658 | AY61: 0.0002963771435 | BA61: -0.004738315744 | BB61: 0.001517121804 | BC61: 0.02774784712 | BD61: 0.2537936603 | BE61: 0.1044612803 | BF61: 0.3656466281
B62: =IF($B61>=Base!$G$3,"",$B61+1) -> 56 | C62: =IF($B62="","",INDEX(Base!$B:$B,MATCH('Guia de BTC'!$B62,Base!$F:$F,0))) -> VAMO3<XBSP> | D62: VAMO3 | E62: Vamos | F62: Aluguel de carros | G62: 7.16 | H62: =IFERROR((_xll.ECONOMATICA(C62,"Partic in ibovespa")/100),"") -> 0.00157 | I62: ON | J62: ON | K62: 0.4393335434 | M62: 0.4393335434 | N62: 7809260.473 | O62: 7809260.473 | P62: 7809260.473 | Q62: 3430870.075 | R62: 0.1489706145 | T62: 511098.8234 | U62: 702026.9198 | V62: 2024-02-09 | W62: 0.7280330839 | Y62: 52010.41852 | Z62: 9.826854656 | AB62: 66652.508 | AC62: 63189.796 | AD62: 3462.712 | AE62: 189857.2 | AF62: 0.01823850768 | AH62: 66652.508 | AI62: 66145.42 | AJ62: 0.007666260189 | AK62: 67980.96 | AL62: -0.01954153045 | AN62: 0.0033 | AO62: 0.001 | AP62: 0.0024 | AQ62: 0.0033 | AR62: 0.001 | AS62: 0.002720866011 | AT62: 0.0033 | AU62: 0.001 | AV62: 0.002928732674 | AW62: 0.003530587451 | AX62: 0.001 | AY62: 0.003367427401 | BA62: -0.02849389416 | BB62: -0.05789473684 | BC62: -0.2889771599 | BD62: -0.2604875599 | BE62: -0.477539506 | BF62: -0.5199927925
B63: =IF($B62>=Base!$G$3,"",$B62+1) -> 57 | C63: =IF($B63="","",INDEX(Base!$B:$B,MATCH('Guia de BTC'!$B63,Base!$F:$F,0))) -> GMAT3<XBSP> | D63: GMAT3 | E63: Grupo Mateus | F63: Alimentos | G63: 7.4 | H63: =IFERROR((_xll.ECONOMATICA(C63,"Partic in ibovespa")/100),"") ->  | I63: ON | J63: ON | K63: 0.2093408653 | M63: 0.2093408653 | N63: 16324423.72 | O63: 16324423.72 | P63: 16324423.72 | Q63: 3417368.987 | R63: 0.1482148516 | T63: 506504.8372 | U63: 598587.3671 | V63: 2024-04-03 | W63: 0.8461669341 | Y63: 26921.39804 | Z63: 18.81421004 | AB63: 64520.771 | AC63: 59096.985 | AD63: 5423.786 | AE63: 64429.4 | AF63: 0.08418184866 | AH63: 64520.771 | AI63: 61646.244 | AJ63: 0.046629394 | AK63: 61477.167 | AL63: 0.04950787664 | AN63: 0.0005 | AP63: 0.0005 | AQ63: 0.0005 | AS63: 0.0005 | AT63: 0.0005 | AV63: 0.0005 | AW63: 0.0005 | AX63: 0.0005 | AY63: 0.0004978073818 | BA63: -0.002695417789 | BB63: -0.06091370558 | BC63: 0.04458457059 | BD63: 0.06384641374 | BE63: 0.0949076229 | BF63: 0.1177521933
B64: =IF($B63>=Base!$G$3,"",$B63+1) -> 58 | C64: =IF($B64="","",INDEX(Base!$B:$B,MATCH('Guia de BTC'!$B64,Base!$F:$F,0))) -> TOTS3<XBSP> | D64: TOTS3 | E64: Totvs | F64: Programas e serviços | G64: 29.63 | H64: =IFERROR((_xll.ECONOMATICA(C64,"Partic in ibovespa")/100),"") -> 0.00725 | I64: ON | J64: ON | K64: 0.875277319 | M64: 0.875277319 | N64: 17624884.87 | O64: 17624884.87 | P64: 17624884.87 | Q64: 15426661.98 | R64: 0.03219811765 | T64: 496709.4773 | U64: 850282.8314 | V64: 2024-06-14 | W64: 0.5841697126 | Y64: 71597.24857 | Z64: 6.937549797 | AB64: 16560.85 | AC64: 19472.222 | AD64: -2911.372 | AE64: 60154.6 | AF64: 0.04839816074 | AH64: 16560.85 | AI64: 19380.609 | AJ64: -0.1454938284 | AK64: 20466.458 | AL64: -0.190829698 | AN64: 0.0429 | AO64: 0.001 | AP64: 0.0404 | AQ64: 0.04312943963 | AR64: 0.004350155301 | AS64: 0.03988124054 | AT64: 0.04433306765 | AU64: 0.006437749061 | AV64: 0.03994984343 | AW64: 0.04631138503 | AX64: 0.03518300335 | AY64: 0.04266196205 | BA64: -0.01167444963 | BB64: -0.01134467801 | BC64: -0.1130241354 | BD64: 0.06281567095 | BE64: 0.02855456054 | BF64: -0.1867361212
B65: =IF($B64>=Base!$G$3,"",$B64+1) -> 59 | C65: =IF($B65="","",INDEX(Base!$B:$B,MATCH('Guia de BTC'!$B65,Base!$F:$F,0))) -> VBBR3<XBSP> | D65: VBBR3 | E65: Vibra | F65: Exploração refino e distribuição | G65: 24.66 | H65: =IFERROR((_xll.ECONOMATICA(C65,"Partic in ibovespa")/100),"") -> 0.01143 | I65: ON | J65: ON | K65: 0.9145599008 | M65: 0.9145599008 | N65: 27504531 | O65: 27504531 | P65: 27504531 | Q65: 25154541.14 | R65: 0.01961660123 | T65: 493446.6027 | U65: 1045491.943 | V65: 2024-04-18 | W65: 0.4719755195 | Y65: 211112.4774 | Z65: 2.337363517 | AB65: 19319.486 | AC65: 15641.566 | AD65: 3677.92 | AE65: 142750.5 | AF65: 0.02576467333 | AH65: 19319.486 | AI65: 18464.078 | AJ65: 0.04632822717 | AK65: 17335.005 | AL65: 0.1144782479 | AN65: 0.0002 | AO65: 0.0002 | AP65: 0.0002 | AQ65: 0.000249773011 | AR65: 0.0002 | AS65: 0.0003088527573 | AT65: 0.0002937475001 | AU65: 0.0002 | AV65: 0.0003191478138 | AW65: 0.0003996811804 | AX65: 0.0004996169971 | AY65: 0.000394894793 | BA65: -0.01122694467 | BB65: -0.04121306376 | BC65: 0.1367885711 | BD65: 0.3935459599 | BE65: 0.5769388843 | BF65: 0.134584481
B66: =IF($B65>=Base!$G$3,"",$B65+1) -> 60 | C66: =IF($B66="","",INDEX(Base!$B:$B,MATCH('Guia de BTC'!$B66,Base!$F:$F,0))) -> UGPA3<XBSP> | D66: UGPA3 | E66: Ultrapar | F66: Exploração refino e distribuição | G66: 22.38 | H66: =IFERROR((_xll.ECONOMATICA(C66,"Partic in ibovespa")/100),"") -> 0.01105 | I66: ON | J66: ON | K66: 0.9773137638 | M66: 0.9773137638 | N66: 24702352.93 | O66: 24702352.93 | P66: 24702352.93 | Q66: 24141949.52 | R66: 0.02018536322 | T66: 487314.0198 | U66: 1747865.226 | V66: 2024-03-07 | W66: 0.2788052605 | Y66: 128711.8919 | Z66: 3.786083886 | AB66: 20960.693 | AC66: 29804.151 | AD66: -8843.458 | AE66: 130103.6 | AF66: 0.0679724312 | AH66: 20960.693 | AI66: 21560.442 | AJ66: -0.02781710134 | AK66: 21063.794 | AL66: -0.004894702255 | AN66: 0.0004 | AO66: 0.0004 | AP66: 0.0004 | AQ66: 0.0004 | AR66: 0.0004 | AS66: 0.0004 | AT66: 0.0004 | AU66: 0.0004 | AV66: 0.000393096145 | AW66: 0.0003499404788 | AX66: 0.0003989996282 | AY66: 0.0003494267567 | BA66: -0.03116883117 | BB66: -0.04195205479 | BC66: -0.1348765763 | BD66: 0.1963704727 | BE66: 0.8381499846 | BF66: 0.7594667202
B67: =IF($B66>=Base!$G$3,"",$B66+1) -> 61 | C67: =IF($B67="","",INDEX(Base!$B:$B,MATCH('Guia de BTC'!$B67,Base!$F:$F,0))) -> RAIZ4<XBSP> | D67: RAIZ4 | E67: Raizen | F67: Agricultura | G67: 3.1 | H67: =IFERROR((_xll.ECONOMATICA(C67,"Partic in ibovespa")/100),"") -> 0.00168 | I67: PN | J67: PN | K67: 0 | L67: 0.8819423529 | M67: 0.1157694189 | N67: 32010956 | O67: 4130880.987 | P67: 4130880.987 | Q67: 3643198.897 | R67: 0.1329966371 | T67: 484533.2017 | U67: 665171.1415 | V67: 2023-12-06 | W67: 0.7284338893 | Y67: 43289.41883 | Z67: 11.19287842 | AB67: 156712.316 | AC67: 180562.05 | AD67: -23849.734 | AE67: 363369.1 | AF67: 0.06563500859 | AH67: 156712.316 | AI67: 152843.385 | AJ67: 0.02531304184 | AK67: 156380.001 | AL67: 0.002125047947 | AN67: 0.106 | AO67: 0.001 | AP67: 0.0948 | AQ67: 0.105238768 | AR67: 0.03149519184 | AS67: 0.09351875256 | AT67: 0.1064496715 | AU67: 0.002048743514 | AV67: 0.09634976709 | AW67: 0.1228262629 | AX67: 0.005174992986 | AY67: 0.1205892916 | BA67: -0.01587301587 | BB67: -0.03426791277 | BC67: -0.2245736867 | BD67: -0.1851749579 | BE67: -0.1859550438 | BF67: -0.5127936698
B68: =IF($B67>=Base!$G$3,"",$B67+1) -> 62 | C68: =IF($B68="","",INDEX(Base!$B:$B,MATCH('Guia de BTC'!$B68,Base!$F:$F,0))) -> BRKM5<XBSP> | D68: BRKM5 | E68: Braskem | F68: Petroquímicos | G68: 19.79 | H68: =IFERROR((_xll.ECONOMATICA(C68,"Partic in ibovespa")/100),"") -> 0.00238 | I68: PNA | J68: PN | K68: 0.02857444045 | L68: 0.76942704 | M68: 0.3496871921 | N68: 15787395.69 | O68: 6828318.47 | P68: 6828318.47 | Q68: 5253892.868 | R68: 0.08889400482 | T68: 467039.578 | U68: 708875.3317 | V68: 2024-03-18 | W68: 0.6588458606 | Y68: 62440.11226 | Z68: 7.479800421 | AB68: 25486.021 | AC68: 22063.412 | AD68: 3422.609 | AE68: 54787.7 | AF68: 0.06247039025 | AH68: 25486.021 | AI68: 25771.459 | AJ68: -0.0110757408 | AK68: 24066.338 | AL68: 0.05899040394 | AN68: 0.0067 | AO68: 0.001 | AP68: 0.0065 | AQ68: 0.007241283235 | AR68: 0.001653378216 | AS68: 0.006619270848 | AT68: 0.007106779961 | AU68: 0.001289022929 | AV68: 0.006377312655 | AW68: 0.006897625751 | AX68: 0.001320998633 | AY68: 0.006368904482 | BA68: 0.04764425622 | BB68: 0.09700665188 | BC68: -0.09469350412 | BD68: -0.1473502801 | BE68: -0.3111729899 | BF68: -0.6475790365
B69: =IF($B68>=Base!$G$3,"",$B68+1) -> 63 | C69: =IF($B69="","",INDEX(Base!$B:$B,MATCH('Guia de BTC'!$B69,Base!$F:$F,0))) -> IGTI11<XBSP> | D69: IGTI11 | E69: Iguatemi SA | F69: Exploração de imóveis | G69: 22.67 | H69: =IFERROR((_xll.ECONOMATICA(C69,"Partic in ibovespa")/100),"") -> 0.00217 | I69: UNT | J69: UN | K69: 0.2857519686 | L69: 0.9545358427 | M69: 0.5290548309 | N69: 3577589.1 | O69: 0 | P69: 3577589.1 | Q69: 1892740.796 | R69: 0.2447402299 | T69: 463229.8176 | U69: 584685.8885 | V69: 2024-08-14 | W69: 0.7922712463 | Y69: 66107.14683 | Z69: 7.00725776 | AB69: 20790.277 | AC69: 24314.956 | AD69: -3524.679 | AE69: 52728.7 | AF69: 0.0668455509 | AH69: 20790.277 | AI69: 20517.215 | AJ69: 0.01330892131 | AK69: 19653.732 | AL69: 0.05782845721 | AN69: 0.0012 | AP69: 0.0012 | AQ69: 0.0012 | AS69: 0.001131051185 | AT69: 0.0012 | AV69: 0.001119983184 | AW69: 0.0012 | AX69: 0.001 | AY69: 0.001171059478 | BA69: 0.01796138303 | BB69: 0.02625622454 | BC69: -0.04049269907 | BD69: 0.1219562588 | BE69: 0.2199177938
B70: =IF($B69>=Base!$G$3,"",$B69+1) -> 64 | C70: =IF($B70="","",INDEX(Base!$B:$B,MATCH('Guia de BTC'!$B70,Base!$F:$F,0))) -> ALOS3<XBSP> | D70: ALOS3 | E70: Allos | F70: Exploração de imóveis | G70: 23.14 | H70: =IFERROR((_xll.ECONOMATICA(C70,"Partic in ibovespa")/100),"") -> 0.00527 | I70: ON | J70: ON | K70: 0.9196862245 | M70: 0.9196862245 | N70: 12347633.12 | O70: 12347633.12 | P70: 12347633.12 | Q70: 11355948.09 | R70: 0.0399996903 | T70: 454234.4066 | U70: 558885.9845 | V70: 2024-04-16 | W70: 0.8127496828 | Y70: 109190.6556 | Z70: 4.160011716 | AB70: 19605.522 | AC70: 21351.201 | AD70: -1745.679 | AE70: 72840.2 | AF70: 0.02396587324 | AH70: 19605.522 | AI70: 19300.743 | AJ70: 0.01579105012 | AK70: 18981.652 | AL70: 0.0328670023 | AN70: 0.0036 | AP70: 0.0029 | AQ70: 0.0036 | AS70: 0.003203088811 | AT70: 0.002983778821 | AV70: 0.002460662575 | AW70: 0.001479489022 | AX70: 0.0009355966473 | AY70: 0.001476775748 | BA70: 0.006962576153 | BB70: 0.01446733889 | BC70: -0.07906466255 | BD70: 0.04179093351 | BE70: 0.3683981627 | BF70: 0.1091978782
B71: =IF($B70>=Base!$G$3,"",$B70+1) -> 65 | C71: =IF($B71="","",INDEX(Base!$B:$B,MATCH('Guia de BTC'!$B71,Base!$F:$F,0))) -> RAIL3<XBSP> | D71: RAIL3 | E71: Rumo S.A. | F71: Transporte ferroviário | G71: 20.65 | H71: =IFERROR((_xll.ECONOMATICA(C71,"Partic in ibovespa")/100),"") -> 0.01138 | I71: ON | J71: =LEFT(I71,2) -> ON | K71: 0.6966375224 | M71: 0.6966375224 | N71: 38200698.31 | O71: 38200698.31 | P71: =IF(N71="","",IF(O71>1,O71,N71)) -> 38200698.31 | Q71: =IFERROR(IF(J71="on",P71*K71,IF(J71="pn",P71*L71,IF(J71="un",P71*M71,""))),"") -> 26612039.82 | R71: =IFERROR(T71/Q71,"") -> 0.01686969133 | T71: 448936.8975 | U71: 1400697.669 | V71: 2024-07-16 | W71: =IFERROR(T71/U71,"") -> 0.3205094914 | Y71: 292161.9781 | Z71: =IFERROR(T71/Y71,"") -> 1.536602745 | AB71: 20369.252 | AC71: 45936.618 | AD71: =IF(AB71="","",AB71-AC71) -> -25567.366 | AE71: 224789.1 | AF71: 0.1137393495 | AH71: 20369.252 | AI71: 19911.926 | AJ71: =IFERROR((AH71/AI71)-1,"") -> 0.02296744172 | AK71: 22891.89 | AL71: =IFERROR((AH71/AK71)-1,"") -> -0.110197891 | AN71: 0.005 | AO71: 0.0044 | AP71: 0.0049 | AQ71: 0.005 | AR71: 0.0044 | AS71: 0.004815877023 | AT71: 0.004928708979 | AU71: 0.0044 | AV71: 0.004248230824 | AW71: 0.002984438471 | AX71: 0.00414010488 | AY71: 0.0024282381 | BA71: -0.01431980907 | BB71: -0.05491990847 | BC71: -0.09607478376 | BD71: -0.1261548563 | BE71: 0.05881261819 | BF71: 0.1887625228
B72: =IF($B71>=Base!$G$3,"",$B71+1) -> 66 | C72: =IF($B72="","",INDEX(Base!$B:$B,MATCH('Guia de BTC'!$B72,Base!$F:$F,0))) -> MGLU3<XBSP> | D72: MGLU3 | E72: Magaz Luiza | F72: Eletrodomésticos | G72: 11.52 | H72: =IFERROR((_xll.ECONOMATICA(C72,"Partic in ibovespa")/100),"") -> 0.00184 | I72: ON | J72: ON | K72: 0.4782820944 | M72: 0.4782820944 | N72: 8478089.361 | O72: 8478089.361 | P72: 8478089.361 | Q72: 4054918.336 | R72: 0.1084256235 | T72: 439657.0487 | U72: 1086006.059 | V72: 2023-09-19 | W72: 0.4048384862 | Y72: 218093.0178 | Z72: 2.015915288 | AB72: 35599.171 | AC72: 34665.557 | AD72: 933.614 | AE72: 478381.2 | AF72: =IFERROR(ABS(AD72/AE72),"") -> 0.001951610975 | AH72: 35599.171 | AI72: 36877.421 | AJ72: -0.03466213106 | AK72: 38872.967 | AL72: -0.08421780617 | AN72: 0.0166 | AO72: 0.0012 | AP72: 0.0129 | AQ72: 0.0166494978 | AR72: 0.0012 | AS72: 0.01468211088 | AT72: 0.01714469895 | AU72: 0.001204610839 | AV72: 0.01645060124 | AW72: 0.01806476632 | AX72: 0.002436534513 | AY72: 0.01530000995 | BA72: -0.0303030303 | BB72: -0.05263157895 | BC72: -0.4633155888 | BD72: -0.5506828185 | BE72: -0.7400810923 | BF72: -0.9300399319
B73: =IF($B72>=Base!$G$3,"",$B72+1) -> 67 | C73: =IF($B73="","",INDEX(Base!$B:$B,MATCH('Guia de BTC'!$B73,Base!$F:$F,0))) -> CURY3<XBSP> | D73: CURY3 | E73: Cury S/A | F73: Incorporações | G73: 25.52 | H73: =IFERROR((_xll.ECONOMATICA(C73,"Partic in ibovespa")/100),"") ->  | I73: ON | J73: ON | K73: 0.4560766933 | M73: 0.4560766933 | N73: 7397847.03 | O73: 7397847.03 | P73: 7397847.03 | Q73: 3373985.611 | R73: 0.1283479521 | T73: 433044.1437 | U73: 456281.5518 | V73: 2024-09-13 | W73: 0.9490722165 | Y73: 45796.92257 | Z73: 9.455747667 | AB73: 17745.611 | AC73: 17405.561 | AD73: 340.05 | AE73: 26533.8 | AF73: 0.01281572937 | AH73: 17745.611 | AI73: 18057.976 | AJ73: -0.01729789651 | AK73: 18961.365 | AL73: -0.06411743036 | AN73: 0.0114 | AP73: 0.0111 | AQ73: 0.01203528291 | AS73: 0.01122403227 | AT73: 0.01239598171 | AV73: 0.01156401952 | AW73: 0.01326877569 | AY73: 0.0126211037 | BA73: 0.0007843137246 | BB73: 0.07136859782 | BC73: 0.5165169439 | BD73: 0.7600018443 | BE73: 1.722122842 | BF73: 2.931702917
B74: =IF($B73>=Base!$G$3,"",$B73+1) -> 68 | C74: =IF($B74="","",INDEX(Base!$B:$B,MATCH('Guia de BTC'!$B74,Base!$F:$F,0))) -> HYPE3<XBSP> | D74: HYPE3 | E74: Hypera | F74: Medicamentos e outros produtos | G74: 28.96 | H74: =IFERROR((_xll.ECONOMATICA(C74,"Partic in ibovespa")/100),"") -> 0.00537 | I74: ON | J74: ON | K74: 0.6627762798 | M74: 0.6627762798 | N74: 18310177.75 | O74: 18310177.75 | P74: 18310177.75 | Q74: 12135551.49 | R74: 0.03519108226 | T74: 427063.1908 | U74: 950848.3689 | V74: 2024-07-05 | W74: 0.4491391107 | Y74: 94977.62317 | Z74: 4.49646113 | AB74: 14350.166 | AC74: 20377.518 | AD74: -6027.352 | AE74: 101277 | AF74: 0.05951353219 | AH74: 14350.166 | AI74: 14510.564 | AJ74: -0.01105387771 | AK74: 15470.429 | AL74: -0.0724131826 | AN74: 0.0046 | AO74: 0.001 | AP74: 0.0045 | AQ74: 0.0046 | AR74: 0.001 | AS74: 0.004031244024 | AT74: 0.0046 | AU74: 0.001 | AV74: 0.003654591401 | AW74: 0.0046 | AX74: 0.001 | AY74: 0.00393317955 | BA74: -0.01092896175 | BB74: 0.01471618781 | BC74: -0.1717599325 | BD74: -0.2164765311 | BE74: -0.2640146174 | BF74: -0.04024160241
B75: =IF($B74>=Base!$G$3,"",$B74+1) -> 69 | C75: =IF($B75="","",INDEX(Base!$B:$B,MATCH('Guia de BTC'!$B75,Base!$F:$F,0))) -> BRAP4<XBSP> | D75: BRAP4 | E75: Bradespar | F75: Minerais metálicos | G75: 18.55 | H75: =IFERROR((_xll.ECONOMATICA(C75,"Partic in ibovespa")/100),"") -> 0.00211 | I75: PN | J75: PN | K75: 0.2197189174 | L75: 0.983781689 | M75: 0.7155704116 | N75: 7142920.15 | O75: 4732234.85 | P75: 4732234.85 | Q75: 4655485.993 | R75: 0.08708551781 | T75: 405425.4084 | U75: 781022.93 | V75: 2024-05-02 | W75: 0.5190953976 | Y75: 62211.43987 | Z75: 6.51689479 | AB75: 21487.355 | AC75: 17472.262 | AD75: 4015.093 | AE75: 54985 | AF75: 0.07302160589 | AH75: 21487.355 | AI75: 21118.148 | AJ75: 0.01748292511 | AK75: 20586.89 | AL75: 0.04373972951 | AN75: 0.0018 | AP75: 0.0018 | AQ75: 0.00182887236 | AS75: 0.001798429093 | AT75: 0.001843807157 | AV75: 0.001728882129 | AW75: 0.001895984863 | AY75: 0.001683356827 | BA75: -0.01382243487 | BB75: -0.04725218285 | BC75: -0.2349278197 | BD75: -0.09217255336 | BE75: 0.04377978975 | BF75: 0.1558777255
B76: =IF($B75>=Base!$G$3,"",$B75+1) -> 70 | C76: =IF($B76="","",INDEX(Base!$B:$B,MATCH('Guia de BTC'!$B76,Base!$F:$F,0))) -> BBDC3<XBSP> | D76: BBDC3 | E76: Bradesco | F76: Bancos | G76: 13.62 | H76: =IFERROR((_xll.ECONOMATICA(C76,"Partic in ibovespa")/100),"") -> 0.00916 | I76: ON | J76: ON | K76: 0.2784882002 | L76: 0.9657546727 | M76: 0.621526041 | N76: 153061477.7 | O76: 72352967.58 | P76: 72352967.58 | Q76: 20149447.72 | R76: 0.01998790042 | T76: 402745.1546 | U76: 785528.1606 | V76: 2024-06-13 | W76: 0.5127061954 | Y76: 78803.26809 | Z76: 5.110767159 | AB76: 28847.486 | AC76: 32353.293 | AD76: -3505.807 | AE76: 151274.2 | AF76: 0.02317518123 | AH76: 28847.486 | AI76: 29447.018 | AJ76: -0.02035968464 | AK76: 27796.599 | AL76: 0.0378063158 | AN76: 0.0001 | AP76: 0.0001 | AQ76: 0.0001 | AS76: 0.0001 | AT76: 0.0001263180589 | AU76: 0.0005 | AV76: 0.0001289771889 | AW76: 0.0003612853803 | AX76: 0.0005 | AY76: 0.0003789567013 | BA76: -0.01161103048 | BB76: -0.03558852048 | BC76: -0.06824361514 | BD76: 0.1328845047 | BE76: 0.01688701251 | BF76: 0.05346184876
B77: =IF($B76>=Base!$G$3,"",$B76+1) -> 71 | C77: =IF($B77="","",INDEX(Base!$B:$B,MATCH('Guia de BTC'!$B77,Base!$F:$F,0))) -> TRPL4<XBSP> | D77: TRPL4 | E77: Tran Paulist | F77: Energia elétrica | G77: 24.67 | H77: =IFERROR((_xll.ECONOMATICA(C77,"Partic in ibovespa")/100),"") -> 0.00442 | I77: PN | J77: PN | K77: 0.1049900679 | L77: 0.9871690116 | M77: 0.6418161478 | N77: 18088588.38 | O77: 9891327.261 | P77: 9891327.261 | Q77: 9764411.756 | R77: 0.03945686856 | T77: 385273.1112 | U77: 2070275.959 | V77: 2024-07-19 | W77: 0.1860974667 | Y77: 49540.866 | Z77: 7.776874777 | AB77: 15521.919 | AC77: 14389.947 | AD77: 1131.972 | AE77: 109377.4 | AF77: 0.01034923119 | AH77: 15521.919 | AI77: 15626.553 | AJ77: -0.00669591048 | AK77: 15294.014 | AL77: 0.01490158176 | AN77: 0.0033 | AO77: 0.001 | AP77: 0.0029 | AQ77: 0.0034500449 | AR77: 0.001 | AS77: 0.002964909756 | AT77: 0.003474202109 | AU77: 0.001 | AV77: 0.002886835988 | AW77: 0.003710027024 | AX77: 0.001 | AY77: 0.003030859249 | BA77: 0.0008113590266 | BB77: -0.001618777822 | BC77: -0.06905660377 | BD77: 0.1226047243 | BE77: 0.2222555536 | BF77: 0.2047989462
B78: =IF($B77>=Base!$G$3,"",$B77+1) -> 72 | C78: =IF($B78="","",INDEX(Base!$B:$B,MATCH('Guia de BTC'!$B78,Base!$F:$F,0))) -> CSMG3<XBSP> | D78: CSMG3 | E78: Copasa | F78: Água e saneamento | G78: 25.61 | H78: =IFERROR((_xll.ECONOMATICA(C78,"Partic in ibovespa")/100),"") ->  | I78: ON | J78: ON | K78: 0.495623608 | M78: 0.495623608 | N78: 9710825.41 | O78: 9710825.41 | P78: 9710825.41 | Q78: 4812914.326 | R78: 0.0788447521 | T78: 379473.0369 | U78: 379473.0369 | V78: 2024-09-18 | W78: 1 | Y78: 31139.73039 | Z78: 12.18613752 | AB78: 15770.196 | AC78: 10871.487 | AD78: 4898.709 | AE78: 41240.5 | AF78: 0.1187839381 | AH78: 15770.196 | AI78: 15794.843 | AJ78: -0.001560446027 | AK78: 16004.962 | AL78: -0.01466832599 | AN78: 0.0006 | AP78: 0.0006 | AQ78: 0.0006 | AS78: 0.0002854466085 | AT78: 0.0006608426877 | AV78: 0.0004206639555 | AW78: 0.0007420332497 | AY78: 0.0004625667056 | BA78: 0.0009065294889 | BB78: 0.09458327888 | BC78: 0.3960931317 | BD78: 0.6436412206 | BE78: 1.463025979 | BF78: 1.4404639
B79: =IF($B78>=Base!$G$3,"",$B78+1) -> 73 | C79: =IF($B79="","",INDEX(Base!$B:$B,MATCH('Guia de BTC'!$B79,Base!$F:$F,0))) -> USIM5<XBSP> | D79: USIM5 | E79: Usiminas | F79: Siderurgia | G79: 6.26 | H79: =IFERROR((_xll.ECONOMATICA(C79,"Partic in ibovespa")/100),"") -> 0.00146 | I79: PNA | J79: PN | K79: 0.2283152977 | L79: 0.9405661391 | M79: 0.5396955856 | N79: 7593496.163 | O79: 3306186.09 | P79: 3306186.09 | Q79: 3109686.686 | R79: 0.1193954391 | T79: 371282.4072 | U79: 720374.763 | V79: 2024-03-18 | W79: 0.5154017413 | Y79: 86504.23613 | Z79: 4.292071971 | AB79: 60505.001 | AC79: 56533.948 | AD79: 3971.053 | AE79: 482258.5 | AF79: 0.008234283066 | AH79: 60505.001 | AI79: 63360.33 | AJ79: -0.04506493258 | AK79: 61443.217 | AL79: -0.01526964319 | AN79: 0.0012 | AP79: 0.0012 | AQ79: 0.0012 | AR79: 0.001146710933 | AS79: 0.001160321196 | AT79: 0.0012 | AU79: 0.001146710933 | AV79: 0.001074086413 | AW79: 0.001151301323 | AX79: 0.001146710933 | AY79: 0.001079434111 | BA79: 0.02791461412 | BB79: 0.004815409309 | BC79: -0.3029162754 | BD79: -0.04766061737 | BE79: -0.1124954229 | BF79: -0.4794117833
B80: =IF($B79>=Base!$G$3,"",$B79+1) -> 74 | C80: =IF($B80="","",INDEX(Base!$B:$B,MATCH('Guia de BTC'!$B80,Base!$F:$F,0))) -> RECV3<XBSP> | D80: RECV3 | E80: Petrorecsa | F80: Exploração refino e distribuição | G80: 18.77 | H80: =IFERROR((_xll.ECONOMATICA(C80,"Partic in ibovespa")/100),"") -> 0.00234 | I80: ON | J80: ON | K80: 0.9395032497 | M80: 0.9395032497 | N80: 5503825.329 | O80: 5503825.329 | P80: 5503825.329 | Q80: 5170861.782 | R80: 0.06998658067 | T80: 361890.9353 | U80: 877565.8837 | V80: 2024-04-04 | W80: 0.4123803602 | Y80: 37815.2777 | Z80: 9.569966355 | AB80: 18366.909 | AC80: 15316.175 | AD80: 3050.734 | AE80: 41392.8 | AF80: 0.0737020448 | AH80: 18366.909 | AI80: 17912.823 | AJ80: 0.02534977318 | AK80: 16694.986 | AL80: 0.1001452173 | AN80: 0.0075 | AO80: 0.001 | AP80: 0.0059 | AQ80: 0.0075 | AR80: 0.001 | AS80: 0.01137162137 | AT80: 0.007791776988 | AU80: 0.001 | AV80: 0.01077377225 | AW80: 0.008217645959 | AX80: 0.001 | AY80: 0.008480654648 | BA80: -0.003715498939 | BB80: -0.07990196079 | BC80: -0.0695691165 | BD80: -0.07292385029 | BE80: -0.1905333752 | BF80: 0.2630931185
B81: =IF($B80>=Base!$G$3,"",$B80+1) -> 75 | C81: =IF($B81="","",INDEX(Base!$B:$B,MATCH('Guia de BTC'!$B81,Base!$F:$F,0))) -> COGN3<XBSP> | D81: COGN3 | E81: Cogna ON | F81: Serviços educacionais | G81: 1.44 | H81: =IFERROR((_xll.ECONOMATICA(C81,"Partic in ibovespa")/100),"") -> 0.00122 | I81: ON | J81: ON | K81: 0.9977877181 | M81: 0.9977877181 | N81: 2695195.235 | O81: 2695195.235 | P81: 2695195.235 | Q81: 2689232.704 | R81: 0.1319552217 | T81: 354858.2977 | U81: 439455.5389 | V81: 2024-06-14 | W81: 0.8074953354 | Y81: 49678.28735 | Z81: 7.143126639 | AB81: 214915.39 | AC81: 237544.846 | AD81: -22629.456 | AE81: 848796 | AF81: 0.02666065344 | AH81: 214915.39 | AI81: 214691.223 | AJ81: 0.001044136769 | AK81: 218663.798 | AL81: -0.01714233464 | AN81: 0.0066 | AO81: 0.0071 | AP81: 0.007 | AQ81: 0.006949769209 | AR81: 0.0071 | AS81: 0.004748721771 | AT81: 0.006396529314 | AU81: 0.0071 | AV81: 0.004841190013 | AW81: 0.006609299593 | AX81: 0.00102306585 | AY81: 0.005776288087 | BA81: -0.03355704698 | BB81: 0.05109489051 | BC81: -0.5873925501 | BD81: -0.487544484 | BE81: -0.4375 | BF81: -0.5151515152
B82: =IF($B81>=Base!$G$3,"",$B81+1) -> 76 | C82: =IF($B82="","",INDEX(Base!$B:$B,MATCH('Guia de BTC'!$B82,Base!$F:$F,0))) -> CPFE3<XBSP> | D82: CPFE3 | E82: CPFL Energia | F82: Energia elétrica | G82: 33.75 | H82: =IFERROR((_xll.ECONOMATICA(C82,"Partic in ibovespa")/100),"") -> 0.00287 | I82: ON | J82: ON | K82: 0.1629262874 | M82: 0.1629262874 | N82: 38888587.35 | O82: 38888587.35 | P82: 38888587.35 | Q82: 6335973.158 | R82: 0.05268047751 | T82: 333782.0914 | U82: 528059.9934 | V82: 2024-06-05 | W82: 0.6320912313 | Y82: 55687.99635 | Z82: 5.993788847 | AB82: 9854.476 | AC82: 10467.871 | AD82: -613.395 | AE82: 30374.8 | AF82: 0.02019420704 | AH82: 9854.476 | AI82: 9659.218 | AJ82: 0.0202146799 | AK82: 9809.667 | AL82: 0.00456784109 | AN82: 0.002 | AP82: 0.0019 | AQ82: 0.002 | AS82: 0.001899534368 | AT82: 0.002 | AV82: 0.001807125254 | AW82: 0.001719070374 | AX82: 0.001 | AY82: 0.001501198206 | BA82: -0.007936507937 | BB82: -0.009973599297 | BC82: -0.04861601513 | BD82: 0.02540714407 | BE82: 0.1506817031 | BF82: 0.6226019015
B83: =IF($B82>=Base!$G$3,"",$B82+1) -> 77 | C83: =IF($B83="","",INDEX(Base!$B:$B,MATCH('Guia de BTC'!$B83,Base!$F:$F,0))) -> FLRY3<XBSP> | D83: FLRY3 | E83: Fleury | F83: Serviços médico-hospitalares análises e diagnósticos | G83: 16.61 | H83: =IFERROR((_xll.ECONOMATICA(C83,"Partic in ibovespa")/100),"") -> 0.00349 | I83: ON | J83: ON | K83: 0.8487358672 | M83: 0.8487358672 | N83: 9062245.565 | O83: 9062245.565 | P83: 9062245.565 | Q83: 7691452.849 | R83: 0.04313485654 | T83: 331769.7152 | U83: 396377.6278 | V83: 2023-12-12 | W83: 0.8370041393 | Y83: 51187.46091 | Z83: 6.481464587 | AB83: 20442.401 | AC83: 22308.126 | AD83: -1865.725 | AE83: 58430.7 | AF83: 0.03193056048 | AH83: 20442.401 | AI83: 20442.249 | AJ83: 7.435581085e-06 | AK83: 20047.315 | AL83: 0.01970767656 | AN83: 0.0006 | AO83: 0.0006 | AP83: 0.0006 | AQ83: 0.0006 | AR83: 0.0006 | AS83: 0.0005942789607 | AT83: 0.0006 | AU83: 0.0006 | AV83: 0.0005778411032 | AW83: 0.0006 | AX83: 0.0006 | AY83: 0.0005842456366 | BA83: 0.003019323671 | BB83: 0.04137931034 | BC83: -0.04997627304 | BD83: 0.1876335138 | BE83: 0.1180139329 | BF83: -0.1697073738
B84: =IF($B83>=Base!$G$3,"",$B83+1) -> 78 | C84: =IF($B84="","",INDEX(Base!$B:$B,MATCH('Guia de BTC'!$B84,Base!$F:$F,0))) -> EZTC3<XBSP> | D84: EZTC3 | E84: Eztec | F84: Incorporações | G84: 14.86 | H84: =IFERROR((_xll.ECONOMATICA(C84,"Partic in ibovespa")/100),"") -> 0.00066 | I84: ON | J84: ON | K84: 0.4404513556 | M84: 0.4404513556 | N84: 3241347.947 | O84: 3241347.947 | P84: 3241347.947 | Q84: 1427656.097 | R84: 0.2319943237 | T84: 331208.1108 | U84: 457278.2833 | V84: 2023-09-20 | W84: 0.7243031713 | Y84: 22611.73165 | Z84: 14.64762256 | AB84: 23347.314 | AC84: 24202.209 | AD84: -854.895 | AE84: 44084.5 | AF84: 0.01939219 | AH84: 23347.314 | AI84: 23440.408 | AJ84: -0.003971517902 | AK84: 23437.98 | AL84: -0.003868336776 | AN84: 0.0232 | AO84: 0.0235 | AP84: 0.0235 | AQ84: 0.02385601962 | AR84: 0.02300173503 | AS84: 0.02305966876 | AT84: 0.02432673214 | AU84: 0.006673580263 | AV84: 0.02254444659 | AW84: 0.01642298463 | AX84: 0.004643915832 | AY84: 0.01489610779 | BA84: -0.0006724949562 | BB84: 0.05464868701 | BC84: -0.1918708674 | BD84: -0.3009768688 | BE84: -0.2011590369 | BF84: -0.3743754144
B85: =IF($B84>=Base!$G$3,"",$B84+1) -> 79 | C85: =IF($B85="","",INDEX(Base!$B:$B,MATCH('Guia de BTC'!$B85,Base!$F:$F,0))) -> VIVA3<XBSP> | D85: VIVA3 | E85: Vivara S.A. | F85: Acessórios | G85: 28.69 | H85: =IFERROR((_xll.ECONOMATICA(C85,"Partic in ibovespa")/100),"") -> 0.00164 | I85: ON | J85: ON | K85: 0.5311060961 | M85: 0.5311060961 | N85: 6741450.107 | O85: 6741450.107 | P85: 6741450.107 | Q85: 3580425.249 | R85: 0.08979794368 | T85: 321514.8248 | U85: 411293.2095 | V85: 2024-08-16 | W85: 0.7817168322 | Y85: 86529.02239 | Z85: 3.715687707 | AB85: 11750.72 | AC85: 16820.814 | AD85: -5070.094 | AE85: 77739.2 | AF85: 0.06521927162 | AH85: 11750.72 | AI85: 11979.939 | AJ85: -0.01913356988 | AK85: 12658.268 | AL85: -0.07169606458 | AN85: 0.0015 | AO85: 0.0015 | AP85: 0.0011 | AQ85: 0.0015 | AR85: 0.0015 | AS85: 0.0008236514721 | AT85: 0.001777528735 | AU85: 0.00164756923 | AV85: 0.001181395555 | AW85: 0.001913868932 | AX85: 0.002137028269 | AY85: 0.001598205386 | BA85: 0.008790436006 | BB85: 0.08591975776 | BC85: -0.1485205438 | BD85: 0.06981553097 | BE85: 0.196078499 | BF85: -0.01588152517
B86: =IF($B85>=Base!$G$3,"",$B85+1) -> 80 | C86: =IF($B86="","",INDEX(Base!$B:$B,MATCH('Guia de BTC'!$B86,Base!$F:$F,0))) -> GGPS3<XBSP> | D86: GGPS3 | E86: Gps | F86: Serviços diversos | G86: 19.25 | H86: =IFERROR((_xll.ECONOMATICA(C86,"Partic in ibovespa")/100),"") ->  | I86: ON | J86: ON | K86: 0.5862062142 | M86: 0.5862062142 | N86: 12990953.57 | O86: 12990953.57 | P86: 12990953.57 | Q86: 7615377.712 | R86: 0.03989996419 | T86: 303853.298 | U86: 337095.3607 | V86: 2024-06-03 | W86: 0.9013867691 | Y86: 46492.16956 | Z86: 6.535580096 | AB86: 16722.586 | AC86: 10445.156 | AD86: 6277.43 | AE86: 50017.2 | AF86: 0.1255054261 | AH86: 16722.586 | AI86: 16070.64 | AJ86: 0.0405675194 | AK86: 15801.213 | AL86: 0.05831027023 | AN86: 0.0019 | AO86: 0.0018 | AP86: 0.0018 | AQ86: 0.0018800354 | AR86: 0.0018 | AS86: 0.001713351393 | AT86: 0.001884425111 | AU86: 0.0018 | AV86: 0.001693554216 | AW86: 0.001949142752 | AX86: 0.001861618711 | AY86: 0.001743219076 | BA86: 0.01102941176 | BB86: 0.06648199446 | BC86: 0.03761661552 | BD86: 0.07526515682 | BE86: 0.5240973508 | BF86: 0.1922408046
B87: =IF($B86>=Base!$G$3,"",$B86+1) -> 81 | C87: =IF($B87="","",INDEX(Base!$B:$B,MATCH('Guia de BTC'!$B87,Base!$F:$F,0))) -> ENGI11<XBSP> | D87: ENGI11 | E87: Energisa | F87: Energia elétrica | G87: 48.19 | H87: =IFERROR((_xll.ECONOMATICA(C87,"Partic in ibovespa")/100),"") -> 0.00712 | I87: UNT N2 | J87: UN | K87: 0.3690474238 | L87: 0.9304716369 | M87: 0.7129003349 | N87: 24519729.06 | O87: 0 | P87: 24519729.06 | Q87: 17480123.06 | R87: 0.01712194968 | T87: 299293.7874 | U87: 1106996.697 | V87: 2024-01-22 | W87: 0.270365565 | Y87: 129759.0683 | Z87: 2.306534653 | AB87: 6236.187 | AC87: 8607.159 | AD87: -2370.972 | AE87: 71672.2 | AF87: 0.03308077609 | AH87: 6236.187 | AI87: 6316.657 | AJ87: -0.01273933348 | AK87: 6239.523 | AL87: -0.000534656255 | AN87: 0.0003 | AP87: 0.0002 | AQ87: 0.0003746002514 | AS87: 0.0003321803833 | AT87: 0.0004355693108 | AV87: 0.0003774517558 | AW87: 0.0005850555041 | AY87: 0.0005840938101 | BA87: -0.003515301902 | BB87: 0.01860071866 | BC87: -0.06786016543 | BD87: -0.0008544943212 | BE87: 0.1938593987 | BF87: 0.3014994931
B88: =IF($B87>=Base!$G$3,"",$B87+1) -> 82 | C88: =IF($B88="","",INDEX(Base!$B:$B,MATCH('Guia de BTC'!$B88,Base!$F:$F,0))) -> AESB3<XBSP> | D88: AESB3 | E88: AES Brasil | F88: Energia elétrica | G88: 11.67 | H88: =IFERROR((_xll.ECONOMATICA(C88,"Partic in ibovespa")/100),"") ->  | I88: ON | J88: ON | K88: 0.5249598526 | M88: 0.5249598526 | N88: 7049259.871 | O88: 7049259.871 | P88: 7049259.871 | Q88: 3700578.422 | R88: 0.0786706048 | T88: 291126.7426 | U88: 635883.3786 | V88: 2024-06-18 | W88: 0.4578304015 | Y88: 41403.24822 | Z88: 7.031495236 | AB88: 25376.67 | AC88: 23731.725 | AD88: 1644.945 | AE88: 61860.9 | AF88: 0.02659102923 | AH88: 25376.67 | AI88: 27750.788 | AJ88: -0.08555137245 | AK88: 28826.063 | AL88: -0.1196623001 | AN88: 0.0021 | AO88: 0.0021 | AP88: 0.0021 | AQ88: 0.0021 | AR88: 0.0021 | AS88: 0.002067833881 | AT88: 0.0021 | AU88: 0.0021 | AV88: 0.001995418815 | AW88: 0.001989275921 | AX88: 0.0021 | AY88: 0.001914242327 | BA88: 0.001716738198 | BB88: 0.0192139738 | BC88: -0.04509878241 | BD88: 0.02121380215 | BE88: 0.2055243089 | BF88: -0.1211232416
B89: =IF($B88>=Base!$G$3,"",$B88+1) -> 83 | C89: =IF($B89="","",INDEX(Base!$B:$B,MATCH('Guia de BTC'!$B89,Base!$F:$F,0))) -> SANB11<XBSP> | D89: SANB11 | E89: Santander BR | F89: Bancos | G89: 30.4 | H89: =IFERROR((_xll.ECONOMATICA(C89,"Partic in ibovespa")/100),"") -> 0.00491 | I89: UNT | J89: UN | K89: 0.09345713471 | L89: 0.1045492304 | M89: 0.09890039265 | N89: 113342376.3 | O89: 0 | P89: 113342376.3 | Q89: 11209605.52 | R89: 0.02594646246 | T89: 290849.6087 | U89: 882008.6663 | V89: 2023-10-26 | W89: 0.329758221 | Y89: 56514.91309 | Z89: 5.146422295 | AB89: 9558.938 | AC89: 9859.841 | AD89: -300.903 | AE89: 59275.4 | AF89: 0.005076355453 | AH89: 9558.938 | AI89: 9603.689 | AJ89: -0.004659771886 | AK89: 9538.582 | AL89: 0.002134069823 | AN89: 0.0035 | AO89: 0.0035 | AP89: 0.0031 | AQ89: 0.0035 | AR89: 0.0035 | AS89: 0.003037899405 | AT89: 0.003579039497 | AU89: 0.003531319086 | AV89: 0.003098957555 | AW89: 0.003034268008 | AX89: 0.003314392526 | AY89: 0.002718121488 | BA89: -0.00848010437 | BB89: -0.03184713376 | BC89: -0.01824123497 | BD89: 0.2149130717 | BE89: 0.1598772291 | BF89: 0.06514696533
B90: =IF($B89>=Base!$G$3,"",$B89+1) -> 84 | C90: =IF($B90="","",INDEX(Base!$B:$B,MATCH('Guia de BTC'!$B90,Base!$F:$F,0))) -> PETZ3<XBSP> | D90: PETZ3 | E90: Petz | F90: Produtos diversos | G90: 4.67 | H90: =IFERROR((_xll.ECONOMATICA(C90,"Partic in ibovespa")/100),"") -> 0.00065 | I90: ON | J90: ON | K90: 0.6653271167 | M90: 0.6653271167 | N90: 2105812.684 | O90: 2105812.684 | P90: 2105812.684 | Q90: 1401054.282 | R90: 0.1983590287 | T90: 277911.7664 | U90: 420945.5588 | V90: 2023-09-21 | W90: 0.6602083348 | Y90: 94783.34074 | Z90: 2.932073973 | AB90: 58578.535 | AC90: 89839.156 | AD90: -31260.621 | AE90: 273708.3 | AF90: 0.114211447 | AH90: 58578.535 | AI90: 57497.371 | AJ90: 0.01880371191 | AK90: 51301.824 | AL90: 0.1418411751 | AN90: 0.2237 | AP90: 0.1474 | AQ90: 0.1950970684 | AS90: 0.167645077 | AT90: 0.1904608691 | AV90: 0.1685857514 | AW90: 0.2387493423 | AX90: 0.35 | AY90: 0.2042822049 | BA90: -0.01059322034 | BB90: -0.03909465021 | BC90: 0.1829757069 | BD90: -0.1519502645 | BE90: -0.5353756687 | BF90: -0.8240524066
B91: =IF($B90>=Base!$G$3,"",$B90+1) -> 85 | C91: =IF($B91="","",INDEX(Base!$B:$B,MATCH('Guia de BTC'!$B91,Base!$F:$F,0))) -> YDUQ3<XBSP> | D91: YDUQ3 | E91: Yduqs Part | F91: Serviços educacionais | G91: 10.82 | H91: =IFERROR((_xll.ECONOMATICA(C91,"Partic in ibovespa")/100),"") -> 0.00142 | I91: ON | J91: ON | K91: 0.938275399 | M91: 0.938275399 | N91: 3163335.2 | O91: 3163335.2 | P91: 3163335.2 | Q91: 2968079.597 | R91: 0.09229116543 | T91: 273927.5251 | U91: 551182.1408 | V91: 2024-05-14 | W91: 0.4969818592 | Y91: 54937.06291 | Z91: 4.986206225 | AB91: 25957.763 | AC91: 31012.676 | AD91: -5054.913 | AE91: 83871.4 | AF91: 0.06026980592 | AH91: 25957.763 | AI91: 26957.652 | AJ91: -0.03709110126 | AK91: 25012.825 | AL91: 0.03777813981 | AN91: 0.0327 | AO91: 0.001 | AP91: 0.0214 | AQ91: 0.03430341754 | AR91: 0.001 | AS91: 0.02931406401 | AT91: 0.03481361801 | AU91: 0.001 | AV91: 0.03286968284 | AW91: 0.03772953029 | AX91: 0.001 | AY91: 0.03422214637 | BA91: -0.02697841726 | BB91: 0.09847715736 | BC91: -0.5087600052 | BD91: -0.4807354699 | BE91: 0.03433665408 | BF91: -0.5403245625
B92: =IF($B91>=Base!$G$3,"",$B91+1) -> 86 | C92: =IF($B92="","",INDEX(Base!$B:$B,MATCH('Guia de BTC'!$B92,Base!$F:$F,0))) -> SIMH3<XBSP> | D92: SIMH3 | E92: Simpar | F92: Holdings diversificadas | G92: 5.87 | H92: =IFERROR((_xll.ECONOMATICA(C92,"Partic in ibovespa")/100),"") ->  | I92: ON | J92: ON | K92: 0.2600453466 | M92: 0.2600453466 | N92: 5060404.194 | O92: 5060404.194 | P92: 5060404.194 | Q92: 1315934.562 | R92: 0.2063510014 | T92: 271544.4147 | U92: 280061.5009 | V92: 2024-09-16 | W92: 0.9695885147 | Y92: 19303.5783 | Z92: 14.0670507 | AB92: 43418.143 | AC92: 39095.958 | AD92: 4322.185 | AE92: 77565.4 | AF92: 0.05572310592 | AH92: 43418.143 | AI92: 43437.596 | AJ92: -0.0004478378592 | AK92: 43294.906 | AL92: 0.002846454962 | AN92: 0.0139 | AP92: 0.014 | AQ92: 0.01383678498 | AS92: 0.01166274793 | AT92: 0.01395526912 | AV92: 0.008491269422 | AW92: 0.01334518804 | AX92: 0.0121 | AY92: 0.01031560519 | BA92: -0.02166666667 | BB92: -0.04862236629 | BC92: -0.3904465213 | BD92: -0.3654054054 | BE92: -0.4327534486 | BF92: -0.5447148106
B93: =IF($B92>=Base!$G$3,"",$B92+1) -> 87 | C93: =IF($B93="","",INDEX(Base!$B:$B,MATCH('Guia de BTC'!$B93,Base!$F:$F,0))) -> IRBR3<XBSP> | D93: IRBR3 | E93: Irbbrasil Re | F93: Resseguradoras | G93: 46.12 | H93: =IFERROR((_xll.ECONOMATICA(C93,"Partic in ibovespa")/100),"") -> 0.00171 | I93: ON | J93: ON | K93: 0.9948364642 | L93: 0 | M93: 0.9948364521 | N93: 3774593.948 | O93: 3774593.902 | P93: 3774593.902 | Q93: 3755103.652 | R93: 0.07076508073 | T93: 265730.2131 | U93: 721536.3638 | V93: 2023-09-29 | W93: 0.368283882 | Y93: 95208.44944 | Z93: 2.791036033 | AB93: 5615.336 | AC93: 11862.776 | AD93: -6247.44 | AE93: 39534.5 | AF93: 0.1580250161 | AH93: 5615.336 | AI93: 5769.088 | AJ93: -0.02665100619 | AK93: 5508.393 | AL93: 0.01941455521 | AN93: 0.002 | AP93: 0.0019 | AQ93: 0.002152504653 | AR93: 0.0023 | AS93: 0.001708935897 | AT93: 0.002265471309 | AU93: 0.0023 | AV93: 0.002030700815 | AW93: 0.003253811929 | AX93: 0.003050429929 | AY93: 0.0027800186 | BA93: -0.01008800172 | BB93: -0.04671351798 | BC93: 0.04108352144 | BD93: 0.1303921569 | BE93: 0.2811111111 | BF93: -0.7032175032
B94: =IF($B93>=Base!$G$3,"",$B93+1) -> 88 | C94: =IF($B94="","",INDEX(Base!$B:$B,MATCH('Guia de BTC'!$B94,Base!$F:$F,0))) -> DXCO3<XBSP> | D94: DXCO3 | E94: Dexco | F94: Madeira | G94: 7.95 | H94: =IFERROR((_xll.ECONOMATICA(C94,"Partic in ibovespa")/100),"") ->  | I94: ON | J94: ON | K94: 0.3677469363 | M94: 0.3677469363 | N94: 6426493.8 | O94: 6426493.8 | P94: 6426493.8 | Q94: 2363323.406 | R94: 0.1087594753 | T94: 257033.8136 | U94: 291270.7025 | V94: 2024-09-02 | W94: 0.8824568054 | Y94: 24879.82848 | Z94: 10.33101228 | AB94: 32058.611 | AC94: 36718 | AD94: -4659.389 | AE94: 74458.5 | AF94: 0.06257699255 | AH94: 32058.611 | AI94: 31447.046 | AJ94: 0.01944745462 | AK94: 31571.716 | AL94: 0.01542187317 | AN94: 0.0132 | AO94: 0.0136 | AP94: 0.0136 | AQ94: 0.0134470973 | AR94: 0.0136 | AS94: 0.01160528737 | AT94: 0.01355840034 | AU94: 0.0136 | AV94: 0.01206262918 | AW94: 0.013665709 | AX94: 0.0136 | AY94: 0.01313245923 | BA94: -0.01608910891 | BB94: -0.03166869671 | BC94: -0.006374934154 | BD94: 0.01605051676 | BE94: -0.06565848488 | BF94: -0.3933974799
B95: =IF($B94>=Base!$G$3,"",$B94+1) -> 89 | C95: =IF($B95="","",INDEX(Base!$B:$B,MATCH('Guia de BTC'!$B95,Base!$F:$F,0))) -> SMTO3<XBSP> | D95: SMTO3 | E95: Sao Martinho | F95: Açúcar e álcool | G95: 26.75 | H95: =IFERROR((_xll.ECONOMATICA(C95,"Partic in ibovespa")/100),"") -> 0.00173 | I95: ON | J95: ON | K95: 0.3702000478 | M95: 0.3702000478 | N95: 9002024.784 | O95: 9002024.784 | P95: 9002024.784 | Q95: 3332550.006 | R95: 0.07679148746 | T95: 255911.472 | U95: 503539.191 | V95: 2024-06-06 | W95: 0.5082255296 | Y95: 44975.415 | Z95: 5.690030253 | AB95: 9310.296 | AC95: 7691.709 | AD95: 1618.587 | AE95: 29393.1 | AF95: 0.05506690346 | AH95: 9310.296 | AI95: 8231.062 | AJ95: 0.131117224 | AK95: 7760.631 | AL95: 0.1996828608 | AN95: 0.0052 | AO95: 0.0052 | AP95: 0.0052 | AQ95: 0.0052 | AR95: 0.0052 | AS95: 0.004902331252 | AT95: 0.005427333813 | AU95: 0.0052 | AV95: 0.005166838415 | AW95: 0.006131408855 | AX95: 0.0052 | AY95: 0.00539715453 | BA95: 0.02569018405 | BB95: -0.03499278499 | BC95: -0.0609197485 | BD95: -0.3242218961 | BE95: 0.06337920454 | BF95: -0.02578684915
B96: =IF($B95>=Base!$G$3,"",$B95+1) -> 90 | C96: =IF($B96="","",INDEX(Base!$B:$B,MATCH('Guia de BTC'!$B96,Base!$F:$F,0))) -> BOVB11<XBSP> | D96: BOVB11 | E96: Etf Brad Bov | F96: - | G96: 135.89 | H96: =IFERROR((_xll.ECONOMATICA(C96,"Partic in ibovespa")/100),"") ->  | T96: 249523.2005 | U96: 358214.4896 | V96: 2024-02-19 | W96: 0.6965748391 | Y96: 5591.136341 | Z96: 44.62835195 | AB96: 1828.629 | AC96: 1837.866 | AD96: -9.237 | AE96: 393.486 | AF96: 0.0234747869 | AH96: 1828.629 | AI96: 1828.629 | AJ96: 0 | AK96: 1828.59 | AL96: 2.132790839e-05 | AN96: 0.0036 | AQ96: 0.0036 | AT96: 0.0036 | AV96: 0.0015 | AW96: 0.0036 | AX96: 0.0036 | AY96: 0.001500019642 | BA96: -0.007667591646 | BB96: -0.01528985507 | BC96: -0.0005148573118 | BD96: 0.1354445187 | BE96: 0.2370505234 | BF96: 0.2164533166
B97: =IF($B96>=Base!$G$3,"",$B96+1) -> 91 | C97: =IF($B97="","",INDEX(Base!$B:$B,MATCH('Guia de BTC'!$B97,Base!$F:$F,0))) -> AZUL4<XBSP> | D97: AZUL4 | E97: Azul | F97: Transporte aéreo | G97: 5.62 | H97: =IFERROR((_xll.ECONOMATICA(C97,"Partic in ibovespa")/100),"") -> 0.00084 | I97: PN | J97: PN | K97: 0.3299999471 | L97: 0.9735554134 | M97: 0.500848015 | N97: 1953469.451 | O97: 1883859.007 | P97: 1883859.007 | Q97: 1834041.134 | R97: 0.1356744592 | T97: 248832.5391 | U97: 595273.2345 | V97: 2024-03-19 | W97: 0.4180139887 | Y97: 207564.6236 | Z97: 1.1988196 | AB97: 43885.476 | AC97: 58429.821 | AD97: -14544.345 | AE97: 401234 | AF97: 0.03624903423 | AH97: 43885.476 | AI97: 45197.8 | AJ97: -0.02903513003 | AK97: 57083.307 | AL97: -0.2312029855 | AN97: 0.5164 | AO97: 0.001 | AP97: 0.314 | AQ97: 0.517057277 | AR97: 0.001 | AS97: 0.3168847652 | AT97: 0.520947991 | AU97: 0.001 | AV97: 0.3390698012 | AW97: 0.5044951615 | AX97: 0.02674769554 | AY97: 0.4269734328 | BA97: -0.1008 | BB97: 0.0426716141 | BC97: -0.6489693941 | BD97: -0.5968436155 | BE97: -0.6654761905 | BF97: -0.8383199079
B98: =IF($B97>=Base!$G$3,"",$B97+1) -> 92 | C98: =IF($B98="","",INDEX(Base!$B:$B,MATCH('Guia de BTC'!$B98,Base!$F:$F,0))) -> STBP3<XBSP> | D98: STBP3 | E98: Santos Brp | F98: Serviços de apoio e armazenagem | G98: 13.32 | H98: =IFERROR((_xll.ECONOMATICA(C98,"Partic in ibovespa")/100),"") -> 0.00516 | I98: ON | J98: ON | K98: 0.9902128709 | M98: 0.9902128709 | N98: 11507987.16 | O98: 11507987.16 | P98: 11507987.16 | Q98: 11395357 | R98: 0.02140879291 | T98: 243960.8382 | U98: 286593.1235 | V98: 2024-07-24 | W98: 0.8512445632 | Y98: 83655.02596 | Z98: 2.916272339 | AB98: 18579.984 | AC98: 16057.902 | AD98: 2522.082 | AE98: 98102.9 | AF98: 0.02570853665 | AH98: 18579.984 | AI98: 18433.224 | AJ98: 0.007961710876 | AK98: 18753.719 | AL98: -0.009264029177 | AN98: 0.0019 | AO98: 0.0018 | AP98: 0.0016 | AQ98: 0.0019 | AR98: 0.0018 | AS98: 0.001596332792 | AT98: 0.0019 | AU98: 0.0018 | AV98: 0.001730323686 | AW98: 0.00217542518 | AX98: 0.0018 | AY98: 0.001935031287 | BA98: -0.01769911504 | BB98: 0.02461538462 | BC98: 0.4781464259 | BD98: 0.5441068576 | BE98: 0.7301544312 | BF98: 1.212697407
B99: =IF($B98>=Base!$G$3,"",$B98+1) -> 93 | C99: =IF($B99="","",INDEX(Base!$B:$B,MATCH('Guia de BTC'!$B99,Base!$F:$F,0))) -> MRFG3<XBSP> | D99: MRFG3 | E99: Marfrig | F99: Carnes e derivados | G99: 13.9 | H99: =IFERROR((_xll.ECONOMATICA(C99,"Partic in ibovespa")/100),"") -> 0.0019 | I99: ON | J99: ON | K99: 0.3333552715 | M99: 0.3333552715 | N99: 12516854.06 | O99: 12516854.06 | P99: 12516854.06 | Q99: 4172559.284 | R99: 0.05794424901 | T99: 241775.8142 | U99: 531593.2067 | V99: 2023-09-28 | W99: 0.4548135889 | Y99: 75949.158 | Z99: 3.183390317 | AB99: 17496.653 | AC99: 17931.115 | AD99: -434.462 | AE99: 112064.6 | AF99: 0.003876888866 | AH99: 17496.653 | AI99: 17546.953 | AJ99: -0.002866594559 | AK99: 17137.356 | AL99: 0.02096571957 | AN99: 0.0038 | AP99: 0.0021 | AQ99: 0.003951111181 | AS99: 0.002584121587 | AT99: 0.004284112008 | AU99: 0.001 | AV99: 0.002376909912 | AW99: 0.005079599147 | AX99: 0.00100239787 | AY99: 0.003129584511 | BA99: -0.05442176871 | BB99: -0.04532967033 | BC99: 0.4329896907 | BD99: 0.9495091164 | BE99: 0.2852472001 | BF99: -0.1481895594
B100: =IF($B99>=Base!$G$3,"",$B99+1) -> 94 | C100: =IF($B100="","",INDEX(Base!$B:$B,MATCH('Guia de BTC'!$B100,Base!$F:$F,0))) -> AMBP3<XBSP> | D100: AMBP3 | E100: Ambipar | F100: Água e saneamento | G100: 69.83 | H100: =IFERROR((_xll.ECONOMATICA(C100,"Partic in ibovespa")/100),"") ->  | I100: ON | J100: ON | K100: 0.2456975622 | M100: 0.2456975622 | N100: 11344736.05 | O100: 11344736.05 | P100: 11344736.05 | Q100: 2787373.992 | R100: 0.08584651695 | T100: 239286.3487 | U100: 357993.8804 | V100: 2024-08-14 | W100: 0.6684090478 | Y100: 31393.35952 | Z100: 7.622196296 | AB100: 3495.365 | AC100: 4441.472 | AD100: -946.107 | AE100: 100388.8 | AF100: 0.009424427825 | AH100: 3495.365 | AI100: 3578.03 | AJ100: -0.0231034955 | AK100: 3544.151 | AL100: -0.01376521486 | AN100: 0.9462 | AO100: 0.001 | AP100: 0.0785 | AQ100: 0.7286248885 | AR100: 0.001 | AS100: 0.3276938302 | AT100: 0.6663754727 | AU100: 0.001 | AV100: 0.2597425468 | AW100: 0.7985151265 | AX100: 0.001933671994 | AY100: 0.4610551036 | BA100: 0.00489279033 | BB100: -0.02006735897 | BC100: 3.297230769 | BD100: 2.212051518 | BE100: 1.417442641 | BF100: 0.2449243729
B101: =IF($B100>=Base!$G$3,"",$B100+1) -> 95 | C101: =IF($B101="","",INDEX(Base!$B:$B,MATCH('Guia de BTC'!$B101,Base!$F:$F,0))) -> DIRR3<XBSP> | D101: DIRR3 | E101: Direcional | F101: Incorporações | G101: 32.8 | H101: =IFERROR((_xll.ECONOMATICA(C101,"Partic in ibovespa")/100),"") ->  | I101: ON | J101: ON | K101: 0.6330056138 | M101: 0.6330056138 | N101: 5682942.924 | O101: 5682942.924 | P101: 5682942.924 | Q101: 3597334.774 | R101: 0.06589592095 | T101: 237049.6879 | U101: 514029.8306 | V101: 2024-07-09 | W101: 0.4611593993 | Y101: 55227.53139 | Z101: 4.29223762 | AB101: 7341.502 | AC101: 6955.243 | AD101: 386.259 | AE101: 35208.9 | AF101: 0.01097049326 | AH101: 7341.502 | AI101: 6990.837 | AJ101: 0.0501606603 | AK101: 6334.25 | AL101: 0.1590167739 | AN101: 0.0167 | AO101: 0.0167 | AP101: 0.0157 | AQ101: 0.01796448371 | AR101: 0.0167 | AS101: 0.01437345956 | AT101: 0.01898288269 | AU101: 0.0167 | AV101: 0.01463304141 | AW101: 0.03336327916 | AX101: 0.05181414726 | AY101: 0.0256369493 | BA101: -0.0009137983543 | BB101: 0.1496570913 | BC101: 0.5728461596 | BD101: 0.8262439805 | BE101: 1.506145141 | BF101: 2.257497968
B102: =IF($B101>=Base!$G$3,"",$B101+1) -> 96 | C102: =IF($B102="","",INDEX(Base!$B:$B,MATCH('Guia de BTC'!$B102,Base!$F:$F,0))) -> PSSA3<XBSP> | D102: PSSA3 | E102: Porto Seguro | F102: Seguradoras | G102: 35.8 | H102: =IFERROR((_xll.ECONOMATICA(C102,"Partic in ibovespa")/100),"") ->  | I102: ON | J102: ON | K102: 0.282345552 | M102: 0.282345552 | N102: 22973072.37 | O102: 22973072.37 | P102: 22973072.37 | Q102: 6486344.797 | R102: 0.03125945972 | T102: 202759.6339 | U102: 426014.9015 | V102: 2024-03-27 | W102: 0.4759449334 | Y102: 43120.4647 | Z102: 4.702167181 | AB102: 5960.328 | AC102: 5326.971 | AD102: 633.357 | AE102: 31747.9 | AF102: 0.01994957147 | AH102: 5960.328 | AI102: 6027.346 | AJ102: -0.01111899002 | AK102: 5928.789 | AL102: 0.005319636101 | AN102: 0.0079 | AP102: 0.0079 | AQ102: 0.0070296589 | AS102: 0.0027180241 | AT102: 0.006627330487 | AV102: 0.004445625796 | AW102: 0.005738436229 | AY102: 0.004709259705 | BA102: 0.03110599078 | BB102: 0.05108631826 | BC102: 0.2746403166 | BD102: 0.3953387192 | BE102: 0.7133833338 | BF102: 0.5758630956
B103: =IF($B102>=Base!$G$3,"",$B102+1) -> 97 | C103: =IF($B103="","",INDEX(Base!$B:$B,MATCH('Guia de BTC'!$B103,Base!$F:$F,0))) -> MDIA3<XBSP> | D103: MDIA3 | E103: M.Diasbranco | F103: Alimentos diversos | G103: 26.77 | H103: =IFERROR((_xll.ECONOMATICA(C103,"Partic in ibovespa")/100),"") ->  | I103: ON | J103: =LEFT(I103,2) -> ON | K103: 0.1958282389 | M103: 0.1958282389 | N103: 8978255.112 | O103: 8978255.112 | P103: =IF(N103="","",IF(O103>1,O103,N103)) -> 8978255.112 | Q103: =IFERROR(IF(J103="on",P103*K103,IF(J103="pn",P103*L103,IF(J103="un",P103*M103,""))),"") -> 1758195.887 | R103: =IFERROR(T103/Q103,"") -> 0.1109213636 | T103: 195021.4853 | U103: 281755.9671 | V103: 2024-02-26 | W103: =IFERROR(T103/U103,"") -> 0.6921645256 | Y103: 19485.01804 | Z103: =IFERROR(T103/Y103,"") -> 10.00879162 | AB103: 7158.148 | AC103: 6620.3 | AD103: =IF(AB103="","",AB103-AC103) -> 537.848 | AE103: 15828 | AF103: 0.03398079353 | AH103: 7158.148 | AI103: 7017.473 | AJ103: =IFERROR((AH103/AI103)-1,"") -> 0.02004638992 | AK103: 6493.151 | AL103: =IFERROR((AH103/AK103)-1,"") -> 0.1024151448 | AN103: 0.002 | AP103: 0.0034 | AQ103: 0.002 | AS103: 0.002694890249 | AT103: 0.002 | AV103: 0.002602017353 | AW103: 0.002 | AX103: 0.002 | AY103: 0.002228497148 | BA103: 0.004126031507 | BB103: -0.01214939538 | BC103: -0.3030914016 | BD103: -0.2879549583 | BE103: -0.3538218416 | BF103: -0.045926284
B104: =IF($B103>=Base!$G$3,"",$B103+1) -> 98 | C104: =IF($B104="","",INDEX(Base!$B:$B,MATCH('Guia de BTC'!$B104,Base!$F:$F,0))) -> MOVI3<XBSP> | D104: MOVI3 | E104: Movida | F104: Aluguel de carros | G104: 7.11 | H104: =IFERROR((_xll.ECONOMATICA(C104,"Partic in ibovespa")/100),"") ->  | I104: ON | J104: ON | K104: 0.3362791486 | M104: 0.3362791486 | N104: 2544481.509 | O104: 2544481.509 | P104: 2544481.509 | Q104: 855656.0755 | R104: 0.2111194922 | T104: 180645.6762 | U104: 427411.0271 | V104: 2023-09-25 | W104: 0.4226509489 | Y104: 24803.60217 | Z104: 7.283041992 | AB104: 25339.186 | AC104: 27773.441 | AD104: -2434.255 | AE104: 109951.6 | AF104: 0.02213933222 | AH104: 25339.186 | AI104: 25361.292 | AJ104: -0.0008716432901 | AK104: 27169.807 | AL104: -0.06737703363 | AN104: 0.004 | AO104: 0.001 | AP104: 0.0034 | AQ104: 0.004364426129 | AR104: 0.001 | AS104: 0.003406701615 | AT104: 0.004745928177 | AU104: 0.001 | AV104: 0.003741784728 | AW104: 0.005950748939 | AX104: 0.001 | AY104: 0.004759443747 | BA104: -0.03133514986 | BB104: -0.004201680672 | BC104: -0.4020185029 | BD104: -0.4275362319 | BE104: -0.442731708 | BF104: -0.5649370359
B105: =IF($B104>=Base!$G$3,"",$B104+1) -> 99 | C105: =IF($B105="","",INDEX(Base!$B:$B,MATCH('Guia de BTC'!$B105,Base!$F:$F,0))) -> BEEF3<XBSP> | D105: BEEF3 | E105: Minerva | F105: Carnes e derivados | G105: 6.69 | H105: =IFERROR((_xll.ECONOMATICA(C105,"Partic in ibovespa")/100),"") -> 0.00079 | I105: ON | J105: ON | K105: 0.4303755578 | M105: 0.4303755578 | N105: 3925696.101 | O105: 3925696.101 | P105: 3925696.101 | Q105: 1689523.649 | R105: 0.1014803896 | T105: 171453.5181 | U105: 461459.6874 | V105: 2024-04-17 | W105: 0.3715460371 | Y105: 55484.67426 | Z105: 3.090105879 | AB105: 23527.344 | AC105: 36432.264 | AD105: -12904.92 | AE105: 156216.4 | AF105: 0.08260925229 | AH105: 23527.344 | AI105: 22584.582 | AJ105: 0.04174361075 | AK105: 20890.152 | AL105: 0.1262409196 | AN105: 0.0024 | AP105: 0.002 | AQ105: 0.00247210562 | AS105: 0.002253703114 | AT105: 0.002477405766 | AU105: 0.0025 | AV105: 0.001991565422 | AW105: 0.002313975764 | AX105: 0.001061335196 | AY105: 0.001448933387 | BA105: -0.03741007194 | BB105: -0.1068090788 | BC105: -0.1044176707 | BD105: -0.2265895954 | BE105: -0.4997129929 | BF105: -0.2128235625
B106: =IF($B105>=Base!$G$3,"",$B105+1) -> 100 | C106: =IF($B106="","",INDEX(Base!$B:$B,MATCH('Guia de BTC'!$B106,Base!$F:$F,0))) -> LWSA3<XBSP> | D106: LWSA3 | E106: Lwsa | F106: Programas e serviços | G106: 4.51 | H106: =IFERROR((_xll.ECONOMATICA(C106,"Partic in ibovespa")/100),"") -> 0.00086 | I106: ON | J106: ON | K106: 0.7047015479 | M106: 0.7047015479 | N106: 2623374.572 | O106: 2623374.572 | P106: 2623374.572 | Q106: 1848696.122 | R106: 0.09259283106 | T106: 171176.0077 | U106: 311247.5613 | V106: 2024-04-04 | W106: 0.549967386 | Y106: 25916.22056 | Z106: 6.604975724 | AB106: 36918.307 | AC106: 40738.056 | AD106: -3819.749 | AE106: 119743.8 | AF106: 0.03189934677 | AH106: 36918.307 | AI106: 35776.059 | AJ106: 0.03192772015 | AK106: 36763.071 | AL106: 0.004222606974 | AN106: 0.0007 | AO106: 0.001 | AP106: 0.0008 | AQ106: 0.0007 | AR106: 0.001 | AS106: 0.0007752518972 | AT106: 0.0006875430842 | AU106: 0.001 | AV106: 0.0007633779704 | AW106: 0.00113000366 | AX106: 0.001018712803 | AY106: 0.001028032967 | BA106: -0.01096491228 | BB106: -0.008791208791 | BC106: -0.2495840266 | BD106: -0.3145896657 | BE106: -0.4978347229 | BF106: -0.8123095127
B107: =IF($B106>=Base!$G$3,"",$B106+1) -> 101 | C107: =IF($B107="","",INDEX(Base!$B:$B,MATCH('Guia de BTC'!$B107,Base!$F:$F,0))) -> INTB3<XBSP> | D107: INTB3 | E107: Intelbras | F107: Computadores e equipamentos | G107: 22.57 | H107: =IFERROR((_xll.ECONOMATICA(C107,"Partic in ibovespa")/100),"") ->  | I107: ON | J107: ON | K107: 0.348847504 | M107: 0.348847504 | N107: 7394182.753 | O107: 7394182.753 | P107: 7394182.753 | Q107: 2579442.197 | R107: 0.06342257716 | T107: 163594.8718 | U107: 322495.029 | V107: 2023-10-13 | W107: 0.5072787394 | Y107: 16216.47017 | Z107: 10.08819244 | AB107: 7386.135 | AC107: 6302.237 | AD107: 1083.898 | AE107: 25224.8 | AF107: 0.04296953792 | AH107: 7386.135 | AI107: 7046.916 | AJ107: 0.04813722769 | AK107: 6578.198 | AL107: 0.1228204137 | AN107: 0.0006 | AP107: 0.0006 | AQ107: 0.0006205747962 | AS107: 0.0004710527406 | AT107: 0.0007255583826 | AV107: 0.0004859549934 | AW107: 0.0008519931166 | AX107: 0.001 | AY107: 0.0005638553261 | BA107: -0.01095530237 | BB107: 0.02404718693 | BC107: 0.04981403415 | BD107: 0.05657782758 | BE107: -0.161502928 | BF107: -0.2196104976
B108: =IF($B107>=Base!$G$3,"",$B107+1) -> 102 | C108: =IF($B108="","",INDEX(Base!$B:$B,MATCH('Guia de BTC'!$B108,Base!$F:$F,0))) -> TUPY3<XBSP> | D108: TUPY3 | E108: Tupy | F108: Material rodoviário | G108: 27.2 | H108: =IFERROR((_xll.ECONOMATICA(C108,"Partic in ibovespa")/100),"") ->  | I108: ON | J108: ON | K108: 0.9968007352 | M108: 0.9968007352 | N108: 3892700.8 | O108: 3892700.8 | P108: 3892700.8 | Q108: 3880247.019 | R108: 0.04118459806 | T108: 159806.4139 | U108: 237878.0035 | V108: 2024-01-05 | W108: 0.6717998785 | Y108: 11844.03404 | Z108: 13.49256624 | AB108: 5902.093 | AC108: 6173.175 | AD108: -271.082 | AE108: 9951.6 | AF108: 0.0272400418 | AH108: 5902.093 | AI108: 5918.523 | AJ108: -0.002776030439 | AK108: 5964.154 | AL108: -0.01040566692 | AN108: 0.0018 | AP108: 0.0018 | AQ108: 0.00151026686 | AS108: 0.001751266671 | AT108: 0.001422170694 | AV108: 0.001368091389 | AW108: 0.001363939986 | AY108: 0.001307560947 | BA108: 0.0007358351741 | BB108: -0.005847953215 | BC108: -0.04910055443 | BD108: 0.008703023959 | BE108: 0.09989699299 | BF108: 0.5025704908
B109: =IF($B108>=Base!$G$3,"",$B108+1) -> 103 | C109: =IF($B109="","",INDEX(Base!$B:$B,MATCH('Guia de BTC'!$B109,Base!$F:$F,0))) -> SAPR11<XBSP> | D109: SAPR11 | E109: Sanepar | F109: Água e saneamento | G109: 32.13 | H109: =IFERROR((_xll.ECONOMATICA(C109,"Partic in ibovespa")/100),"") ->  | I109: UNT N2 | J109: UN | K109: 0.3991729394 | L109: 0.9999841157 | M109: 0.7997136894 | N109: 9586080.302 | O109: 0 | P109: 9586080.302 | Q109: 7666119.645 | R109: 0.01888913282 | T109: 144806.3522 | U109: 237845.264 | V109: 2023-12-15 | W109: 0.60882588 | Y109: 35811.45409 | Z109: 4.043576444 | AB109: 4749.872 | AC109: 4578.614 | AD109: 171.258 | AE109: 22782.9 | AF109: 0.007516953505 | AH109: 4749.872 | AI109: 4885.018 | AJ109: -0.02766540471 | AK109: 4639.077 | AL109: 0.02388298362 | AN109: 0.0003 | AP109: 0.0003 | AQ109: 0.0003 | AS109: 0.0003357276072 | AT109: 0.0002825953897 | AV109: 0.0002773500989 | AW109: 0.0003349080941 | AX109: 0.0003 | AY109: 0.000367202728 | BA109: -0.006186204764 | BB109: 0.1210746685 | BC109: 0.1558759614 | BD109: 0.4381934916 | BE109: 1.15482957 | BF109: 1.130842336
B110: =IF($B109>=Base!$G$3,"",$B109+1) -> 104 | C110: =IF($B110="","",INDEX(Base!$B:$B,MATCH('Guia de BTC'!$B110,Base!$F:$F,0))) -> CVCB3<XBSP> | D110: CVCB3 | E110: Cvc Brasil | F110: Viagens e turismo | G110: 2.07 | H110: =IFERROR((_xll.ECONOMATICA(C110,"Partic in ibovespa")/100),"") -> 0.00049 | I110: ON | J110: ON | K110: 1 | M110: 1 | N110: 1087956.336 | O110: 1087956.336 | P110: 1087956.336 | Q110: 1087956.336 | R110: 0.1307297211 | T110: 142228.2283 | U110: 279328.5984 | V110: 2024-01-31 | W110: 0.5091788995 | Y110: 56034.07152 | Z110: 2.538245472 | AB110: 73613.407 | AC110: 75908.688 | AD110: -2295.281 | AE110: 259916.3 | AF110: 0.008830846699 | AH110: 73613.407 | AI110: 74904.522 | AJ110: -0.01723680982 | AK110: 78397.276 | AL110: -0.06102085741 | AN110: 0.0362 | AO110: 0.001 | AP110: 0.0296 | AQ110: 0.03709424521 | AR110: 0.002786761207 | AS110: 0.03506339075 | AT110: 0.03682280376 | AU110: 0.003992923543 | AV110: 0.03520581993 | AW110: 0.04199226038 | AX110: 0.002229712023 | AY110: 0.03743493618 | BA110: -0.00956937799 | BB110: 0.05076142132 | BC110: -0.4085714286 | BD110: -0.08810572687 | BE110: -0.7128987517 | BF110: -0.8986287953
B111: =IF($B110>=Base!$G$3,"",$B110+1) -> 105 | C111: =IF($B111="","",INDEX(Base!$B:$B,MATCH('Guia de BTC'!$B111,Base!$F:$F,0))) -> GOAU4<XBSP> | D111: GOAU4 | E111: Gerdau Met | F111: Siderurgia | G111: 10.64 | H111: =IFERROR((_xll.ECONOMATICA(C111,"Partic in ibovespa")/100),"") -> 0.00319 | I111: PN | J111: PN | K111: 0.204139048 | L111: 0.9909870691 | M111: 0.7127984264 | N111: 11046407.55 | O111: 7103206.576 | P111: 7103206.576 | Q111: 7039185.866 | R111: 0.01954783417 | T111: 137600.838 | U111: 534548.3635 | V111: 2023-11-21 | W111: 0.2574151329 | Y111: 63181.18465 | Z111: 2.177876828 | AB111: 13144.001 | AC111: 15635.447 | AD111: -2491.446 | AE111: 116689.3 | AF111: 0.02135110931 | AH111: 13144.001 | AI111: 12259.907 | AJ111: 0.0721126188 | AK111: 13073.998 | AL111: 0.005354368266 | AN111: 0.0089 | AP111: 0.01 | AQ111: 0.00960524718 | AS111: 0.01006955043 | AT111: 0.01009569681 | AV111: 0.009999283673 | AW111: 0.01118132928 | AX111: 0.0119 | AY111: 0.009727751196 | BA111: -0.007462686567 | BB111: 0.0142993327 | BC111: 0.009035377574 | BD111: 0.0271161296 | BE111: 0.3249279165 | BF111: 0.4310799445
B112: =IF($B111>=Base!$G$3,"",$B111+1) -> 106 | C112: =IF($B112="","",INDEX(Base!$B:$B,MATCH('Guia de BTC'!$B112,Base!$F:$F,0))) -> PCAR3<XBSP> | D112: PCAR3 | E112: P.Acucar-Cbd | F112: Alimentos | G112: 3.05 | H112: =IFERROR((_xll.ECONOMATICA(C112,"Partic in ibovespa")/100),"") -> 0.00052 | I112: ON | J112: ON | K112: 0.7180332575 | M112: 0.7180332575 | N112: 1494545.75 | O112: 1494545.75 | P112: 1494545.75 | Q112: 1073133.553 | R112: 0.1242547054 | T112: 133341.8936 | U112: 205641.7816 | V112: 2024-08-06 | W112: 0.6484182958 | Y112: 28077.99657 | Z112: 4.74898176 | AB112: 43262.936 | AC112: 43465.338 | AD112: -202.402 | AE112: 314386.5 | AF112: 0.0006437999087 | AH112: 43262.936 | AI112: 41399.031 | AJ112: 0.0450229137 | AK112: 41239.611 | AL112: 0.04906265968 | AN112: 0.045 | AO112: 0.001 | AP112: 0.0179 | AQ112: 0.04549113052 | AR112: 0.001 | AS112: 0.03962757201 | AT112: 0.04609211886 | AU112: 0.001 | AV112: 0.03884187581 | AW112: 0.05393710423 | AX112: 0.004075963873 | AY112: 0.05244129956 | BA112: -0.0192926045 | BB112: -0.02555910543 | BC112: -0.2487684729 | BD112: -0.2988505747 | BE112: -0.6536163102 | BF112: -0.7174439098
B113: =IF($B112>=Base!$G$3,"",$B112+1) -> 107 | C113: =IF($B113="","",INDEX(Base!$B:$B,MATCH('Guia de BTC'!$B113,Base!$F:$F,0))) -> HASH11<XBSP> | D113: HASH11 | E113: Hashdex Nci | F113: - | G113: 46.5 | H113: =IFERROR((_xll.ECONOMATICA(C113,"Partic in ibovespa")/100),"") ->  | T113: 124244.501 | U113: 214257.2494 | V113: 2024-08-07 | W113: 0.579884701 | Y113: 18171.91326 | Z113: 6.837172247 | AB113: 2815.237 | AC113: 3377.425 | AD113: -562.188 | AE113: 12314.495 | AF113: 0.04565254198 | AH113: 2815.237 | AI113: 2809.995 | AJ113: 0.001865483746 | AK113: 2898.562 | AL113: -0.02874701317 | AN113: 0.0045 | AP113: 0.001 | AQ113: 0.0045 | AS113: 0.001 | AT113: 0.00452803996 | AU113: 0.001 | AV113: 0.001 | AW113: 0.004794526342 | AX113: 0.001 | AY113: 0.001330137926 | BA113: -0.01252919941 | BB113: -0.03826266805 | BC113: 0.4069591528 | BD113: 1.197542533 | BE113: 1.491961415 | BF113: 0.003236245955
B114: =IF($B113>=Base!$G$3,"",$B113+1) -> 108 | C114: =IF($B114="","",INDEX(Base!$B:$B,MATCH('Guia de BTC'!$B114,Base!$F:$F,0))) -> ODPV3<XBSP> | D114: ODPV3 | E114: Odontoprev | F114: Serviços médico-hospitalares análises e diagnósticos | G114: 11.83 | H114: =IFERROR((_xll.ECONOMATICA(C114,"Partic in ibovespa")/100),"") ->  | I114: ON | J114: ON | K114: 0.4594111502 | M114: 0.4594111502 | N114: 6476056.24 | O114: 6476056.24 | P114: 6476056.24 | Q114: 2975172.446 | R114: 0.04120799879 | T114: 122600.9025 | U114: 231605.9695 | V114: 2024-02-07 | W114: 0.52935122 | Y114: 9981.140739 | Z114: 12.28325557 | AB114: 10589.973 | AC114: 11636.831 | AD114: -1046.858 | AE114: 19903 | AF114: 0.0525980003 | AH114: 10589.973 | AI114: 10548.154 | AJ114: 0.003964579963 | AK114: 11349.012 | AL114: -0.06688150475 | AN114: 0.0941 | AP114: 0.0941 | AQ114: 0.0941 | AS114: 0.07961301121 | AT114: 0.0941 | AV114: 0.09276175903 | AW114: 0.0983725662 | AY114: 0.09476610306 | BA114: -0.001687763714 | BB114: 0.05062166963 | BC114: 0.1252967588 | BD114: 0.2252759208 | BE114: 0.4976769051 | BF114: 0.07609744812
B115: =IF($B114>=Base!$G$3,"",$B114+1) -> 109 | C115: =IF($B115="","",INDEX(Base!$B:$B,MATCH('Guia de BTC'!$B115,Base!$F:$F,0))) -> LEVE3<XBSP> | D115: LEVE3 | E115: Metal Leve | F115: Automóveis e motocicletas | G115: 31.6 | H115: =IFERROR((_xll.ECONOMATICA(C115,"Partic in ibovespa")/100),"") ->  | I115: ON | J115: ON | K115: 0.3900418035 | M115: 0.3900418035 | N115: 4283032.4 | O115: 4283032.4 | P115: 4283032.4 | Q115: 1670561.682 | R115: 0.06776433762 | T115: 113204.5058 | U115: 279119.268 | V115: 2023-11-06 | W115: 0.4055775391 | Y115: 13452.43687 | Z115: 8.415167223 | AB115: 3623.751 | AC115: 2817.819 | AD115: 805.932 | AE115: 7909.9 | AF115: 0.1018890251 | AH115: 3623.751 | AI115: 3653.764 | AJ115: -0.008214268902 | AK115: 3726.5 | AL115: -0.02757252113 | AN115: 0.006 | AP115: 0.006 | AQ115: 0.006 | AS115: 0.00599998754 | AT115: 0.006 | AV115: 0.005999990602 | AW115: 0.006 | AX115: 0.001007004703 | AY115: 0.005721505872 | BA115: 0.006049028973 | BB115: -0.01434809732 | BC115: -0.05967575396 | BD115: -0.2125165629 | BE115: 0.9107574417 | BF115: 0.459715862
B116: =IF($B115>=Base!$G$3,"",$B115+1) -> 110 | C116: =IF($B116="","",INDEX(Base!$B:$B,MATCH('Guia de BTC'!$B116,Base!$F:$F,0))) -> BOVX11<XBSP> | D116: BOVX11 | E116: Trend Ibovx | F116: - | G116: 13.57 | H116: =IFERROR((_xll.ECONOMATICA(C116,"Partic in ibovespa")/100),"") ->  | T116: 109449.126 | U116: 132637.5638 | V116: 2023-11-27 | W116: 0.825174429 | Y116: 10590.3515 | Z116: 10.33479634 | AB116: 7980.291 | AC116: 9064.895 | AD116: -1084.604 | AE116: 12587.683 | AF116: 0.08616391118 | AH116: 7980.291 | AI116: 7968.908 | AJ116: 0.00142842658 | AK116: 7969.531 | AL116: 0.001350142185 | AN116: 0.0108 | AQ116: 0.0108 | AT116: 0.0108 | AW116: 0.01280772454 | AX116: 0.001 | BA116: -0.007315288954 | BB116: -0.01808972504 | BC116: 0 | BD116: 0.1374685666 | BE116: 0.2392694064 | BF116: 0.2214221422
B117: =IF($B116>=Base!$G$3,"",$B116+1) -> 111 | C117: =IF($B117="","",INDEX(Base!$B:$B,MATCH('Guia de BTC'!$B117,Base!$F:$F,0))) -> ALUP11<XBSP> | D117: ALUP11 | E117: Alupar | F117: Energia elétrica | G117: 31.67 | H117: =IFERROR((_xll.ECONOMATICA(C117,"Partic in ibovespa")/100),"") ->  | I117: UNT N2 | J117: UN | K117: 0.2346074278 | L117: 0.9940496067 | M117: 0.4783543075 | N117: 10229950.55 | O117: 0 | P117: 10229950.55 | Q117: 4893540.91 | R117: 0.0210986405 | T117: 103247.0605 | U117: 326062.7114 | V117: 2024-07-22 | W117: 0.316647862 | Y117: 32600.07743 | Z117: 3.167080221 | AB117: 3297.902 | AC117: 7019.685 | AD117: -3721.783 | AE117: 21203.6 | AF117: 0.1755259956 | AH117: 3297.902 | AI117: 3313.635 | AJ117: -0.004747958058 | AK117: 3434.123 | AL117: -0.03966689603 | AN117: 0.0036 | AP117: 0.0036 | AQ117: 0.0036 | AS117: 0.0036 | AT117: 0.003767060341 | AV117: 0.003645552315 | AW117: 0.003557516967 | AY117: 0.003643533447 | BA117: 0.007956715468 | BB117: -0.005026704366 | BC117: 0.08702047522 | BD117: 0.1583350819 | BE117: 0.3523196844 | BF117: 0.5730675377
B118: =IF($B117>=Base!$G$3,"",$B117+1) -> 112 | C118: =IF($B118="","",INDEX(Base!$B:$B,MATCH('Guia de BTC'!$B118,Base!$F:$F,0))) -> LIGT3<XBSP> | D118: LIGT3 | E118: Light S/A | F118: Energia elétrica | G118: 7.94 | H118: =IFERROR((_xll.ECONOMATICA(C118,"Partic in ibovespa")/100),"") ->  | I118: ON | J118: ON | K118: 0.9999847003 | M118: 0.9999847003 | N118: 2958089.273 | O118: 2958089.273 | P118: 2958089.273 | Q118: 2958044.015 | R118: 0.03405943479 | T118: 100749.3072 | U118: 124269.2076 | V118: 2024-02-07 | W118: 0.8107342857 | Y118: 15887.10648 | Z118: 6.341576886 | AB118: 13855.15 | AC118: 14956.252 | AD118: -1101.102 | AE118: 23041.2 | AF118: 0.04778839644 | AH118: 13855.15 | AI118: 13881.365 | AJ118: -0.00188850304 | AK118: 14866.607 | AL118: -0.06803549727 | AN118: 0.0559 | AO118: 0.0559 | AP118: 0.0559 | AQ118: 0.0559 | AR118: 0.0559 | AS118: 0.0559 | AT118: 0.0559 | AU118: 0.0559 | AV118: 0.05513136282 | AW118: 0.06393785121 | AX118: 0.0559 | AY118: 0.05407756516 | BA118: -0.03170731707 | BB118: 0.240625 | BC118: -0.0075 | BD118: 0.3689655172 | BE118: 0.4410163339 | BF118: -0.4203003961
B119: =IF($B118>=Base!$G$3,"",$B118+1) -> 113 | C119: =IF($B119="","",INDEX(Base!$B:$B,MATCH('Guia de BTC'!$B119,Base!$F:$F,0))) -> HBSA3<XBSP> | D119: HBSA3 | E119: Hidrovias | F119: Transporte hidroviário | G119: 3.46 | H119: =IFERROR((_xll.ECONOMATICA(C119,"Partic in ibovespa")/100),"") ->  | I119: ON | J119: ON | K119: 0.9993079616 | M119: 0.9993079616 | N119: 2630925.18 | O119: 2630925.18 | P119: 2630925.18 | Q119: 2629104.479 | R119: 0.03818345754 | T119: 100388.2992 | U119: 335470.9986 | V119: 2024-05-03 | W119: 0.2992458354 | Y119: 8294.270609 | Z119: 12.1033306 | AB119: 28553.678 | AC119: 30908.138 | AD119: -2354.46 | AE119: 69493.3 | AF119: 0.03388038847 | AH119: 28553.678 | AI119: 26604.976 | AJ119: 0.07324577177 | AK119: 26749.531 | AL119: 0.06744593017 | AN119: 0.0988 | AP119: 0.0865 | AQ119: 0.09053569866 | AS119: 0.07899830382 | AT119: 0.090275398 | AV119: 0.08566191617 | AW119: 0.1033725778 | AY119: 0.09402923777 | BA119: -0.002881844381 | BB119: -0.008595988539 | BC119: -0.1218274112 | BD119: -0.2461873638 | BE119: 0.4008097166 | BF119: -0.1839622641
B120: =IF($B119>=Base!$G$3,"",$B119+1) -> 114 | C120: =IF($B120="","",INDEX(Base!$B:$B,MATCH('Guia de BTC'!$B120,Base!$F:$F,0))) -> ECOR3<XBSP> | D120: ECOR3 | E120: Ecorodovias | F120: Exploração de rodovias | G120: 7.8 | H120: =IFERROR((_xll.ECONOMATICA(C120,"Partic in ibovespa")/100),"") ->  | I120: ON | J120: ON | K120: 0.4802533125 | M120: 0.4802533125 | N120: 5425843.8 | O120: 5425843.8 | P120: 5425843.8 | Q120: 2605779.458 | R120: 0.03686924253 | T120: 96073.11481 | U120: 263658.5793 | V120: 2024-03-18 | W120: 0.3643845577 | Y120: 20284.41178 | Z120: 4.736302725 | AB120: 12416.468 | AC120: 11923.591 | AD120: 492.877 | AE120: 77523.6 | AF120: 0.006357767183 | AH120: 12416.468 | AI120: 12264.784 | AJ120: 0.01236744161 | AK120: 12150.727 | AL120: 0.02187037862 | AN120: 0.0012 | AP120: 0.0016 | AQ120: 0.001107640642 | AS120: 0.0008942728723 | AT120: 0.0008110398586 | AV120: 0.0007457435025 | AW120: 0.0006494814682 | AY120: 0.0006677034828 | BA120: -0.01140684411 | BB120: -0.003831417625 | BC120: -0.1494718045 | BD120: 0.06652002845 | BE120: 0.4853975369 | BF120: -0.1586856275
B121: =IF($B120>=Base!$G$3,"",$B120+1) -> 115 | C121: =IF($B121="","",INDEX(Base!$B:$B,MATCH('Guia de BTC'!$B121,Base!$F:$F,0))) -> ONCO3<XBSP> | D121: ONCO3 | E121: Oncoclinicas | F121: Serviços médico-hospitalares análises e diagnósticos | G121: 5.59 | H121: =IFERROR((_xll.ECONOMATICA(C121,"Partic in ibovespa")/100),"") ->  | I121: ON | J121: ON | K121: 0.8794358805 | M121: 0.8794358805 | N121: 3536682.911 | O121: 3536682.911 | P121: 3536682.911 | Q121: 3110285.849 | R121: 0.03003301664 | T121: 93411.26668 | U121: 271002.4853 | V121: 2024-05-10 | W121: 0.3446878599 | Y121: 24817.99822 | Z121: 3.763851777 | AB121: 15803.934 | AC121: 13416.765 | AD121: 2387.169 | AE121: 118454.4 | AF121: 0.02015264102 | AH121: 15803.934 | AI121: 15797.568 | AJ121: 0.0004029734197 | AK121: 14551.49 | AL121: 0.08606981141 | AN121: 0.2766 | AP121: 0.2345 | AQ121: 0.2728038946 | AS121: 0.2232186542 | AT121: 0.2711942607 | AV121: 0.2255880704 | AW121: 0.2779840085 | AX121: 0.001 | AY121: 0.2492503482 | BA121: -0.001785714286 | BB121: -0.1606606607 | BC121: -0.57 | BD121: -0.5193465176 | BE121: -0.1755162242 | BF121: -0.6270847231
B122: =IF($B121>=Base!$G$3,"",$B121+1) -> 116 | C122: =IF($B122="","",INDEX(Base!$B:$B,MATCH('Guia de BTC'!$B122,Base!$F:$F,0))) -> TEND3<XBSP> | D122: TEND3 | E122: Tenda | F122: Incorporações | G122: 14.57 | H122: =IFERROR((_xll.ECONOMATICA(C122,"Partic in ibovespa")/100),"") ->  | I122: ON | J122: ON | K122: 0.9868891191 | M122: 0.9868891191 | N122: 1793479.58 | O122: 1793479.58 | P122: 1793479.58 | Q122: 1769965.483 | R122: 0.04929581932 | T122: 87251.89865 | U122: 161807.9679 | V122: 2023-11-16 | W122: 0.5392311627 | Y122: 29689.21057 | Z122: 2.93884199 | AB122: 6482.148 | AC122: 8190.4 | AD122: -1708.252 | AE122: 45406.6 | AF122: 0.03762122687 | AH122: 6482.148 | AI122: 7134.463 | AJ122: -0.09143154853 | AK122: 7368.965 | AL122: -0.1203448517 | AN122: 0.0005 | AP122: 0.0005 | AQ122: 0.0005 | AS122: 0.0004833751913 | AT122: 0.0004733393136 | AV122: 0.0004671491108 | AW122: 0.0003641458872 | AY122: 0.0003177013855 | BA122: -0.0006858710558 | BB122: 0.08731343284 | BC122: -0.01753202967 | BD122: 0.08488458675 | BE122: 0.995890411 | BF122: -0.2573904179
B123: =IF($B122>=Base!$G$3,"",$B122+1) -> 117 | C123: =IF($B123="","",INDEX(Base!$B:$B,MATCH('Guia de BTC'!$B123,Base!$F:$F,0))) -> AGRO3<XBSP> | D123: AGRO3 | E123: Brasilagro | F123: Agricultura | G123: 26.7 | H123: =IFERROR((_xll.ECONOMATICA(C123,"Partic in ibovespa")/100),"") ->  | I123: ON | J123: ON | K123: 0.621478892 | M123: 0.621478892 | N123: 2659732.702 | O123: 2659732.702 | P123: 2659732.702 | Q123: 1652967.732 | R123: 0.05242936334 | T123: 86664.04583 | U123: 109894.1308 | V123: 2024-05-13 | W123: 0.7886139617 | Y123: 6199.071304 | Z123: 13.98016599 | AB123: 3289.303 | AC123: 3493.313 | AD123: -204.01 | AE123: 3956.9 | AF123: 0.05155803786 | AH123: 3289.303 | AI123: 3266.783 | AJ123: 0.006893632053 | AK123: 3271.943 | AL123: 0.0053057159 | AN123: 0.0036 | AP123: 0.0034 | AQ123: 0.003583170147 | AS123: 0.003452823297 | AT123: 0.003567934576 | AV123: 0.003376470935 | AW123: 0.003520888913 | AX123: 0.00195181572 | AY123: 0.003324825215 | BA123: -0.004474272931 | BB123: 0.03049015824 | BC123: -0.0003743916132 | BD123: 0.06147321786 | BE123: 0.1004358888 | BF123: 0.3356643395
B124: =IF($B123>=Base!$G$3,"",$B123+1) -> 118 | C124: =IF($B124="","",INDEX(Base!$B:$B,MATCH('Guia de BTC'!$B124,Base!$F:$F,0))) -> ITUB3<XBSP> | D124: ITUB3 | E124: ItauUnibanco | F124: Bancos | G124: 31.99 | H124: =IFERROR((_xll.ECONOMATICA(C124,"Partic in ibovespa")/100),"") ->  | I124: ON | J124: ON | K124: 0.08119469955 | L124: 0.989074647 | M124: 0.5299283551 | N124: 336029259 | O124: 158615697.1 | P124: 158615697.1 | Q124: 12878753.87 | R124: 0.006485047864 | T124: 83519.33528 | U124: 106269.3109 | V124: 2024-01-11 | W124: 0.7859214913 | Y124: 18142.09252 | Z124: 4.603621946 | AB124: 2604.338 | AC124: 2707.241 | AD124: -102.903 | AE124: 7944.8 | AF124: 0.01295224549 | AH124: 2604.338 | AI124: 2696.341 | AJ124: -0.03412142604 | AK124: 2607.174 | AL124: -0.001087767828 | AN124: 0.0346 | AP124: 0.0141 | AQ124: 0.0346 | AS124: 0.02011342393 | AT124: 0.0346 | AV124: 0.02104746904 | AW124: 0.03638879911 | AX124: 0.001 | AY124: 0.02940146801 | BA124: -0.003426791277 | BB124: 0.006216904381 | BC124: 0.1778411702 | BD124: 0.4702271769 | BE124: 0.622934785 | BF124: 0.8137577252
B125: =IF($B124>=Base!$G$3,"",$B124+1) -> 119 | C125: =IF($B125="","",INDEX(Base!$B:$B,MATCH('Guia de BTC'!$B125,Base!$F:$F,0))) -> UNIP6<XBSP> | D125: UNIP6 | E125: Unipar | F125: Químicos diversos | G125: 48.45 | H125: =IFERROR((_xll.ECONOMATICA(C125,"Partic in ibovespa")/100),"") ->  | I125: PNB | J125: PN | K125: 0.2586110497 | L125: 0.7077527138 | M125: 0.550760192 | N125: 5452034.158 | O125: 3448750.496 | P125: 3448750.496 | Q125: 2440862.523 | R125: 0.03277642267 | T125: 80002.74174 | U125: 174466.4184 | V125: 2023-09-20 | W125: 0.4585566808 | Y125: 8946.383478 | Z125: 8.942467304 | AB125: 1654.49 | AC125: 1552.939 | AD125: 101.551 | AE125: 4588.7 | AF125: 0.02213066882 | AH125: 1654.49 | AI125: 1694.184 | AJ125: -0.02342956845 | AK125: 1783.403 | AL125: -0.07228483971 | AN125: 0.0034 | AP125: 0.0034 | AQ125: 0.0034 | AS125: 0.003120896725 | AT125: 0.0034 | AV125: 0.003049989154 | AW125: 0.003419915499 | AX125: 0.001000164843 | AY125: 0.003279162194 | BA125: 0.003729024238 | BB125: 0.02474619289 | BC125: -0.2890917342 | BD125: -0.3324871438 | BE125: -0.3947099736 | BF125: -0.112087037
B126: =IF($B125>=Base!$G$3,"",$B125+1) -> 120 | C126: =IF($B126="","",INDEX(Base!$B:$B,MATCH('Guia de BTC'!$B126,Base!$F:$F,0))) -> BPAN4<XBSP> | D126: BPAN4 | E126: Banco Pan | F126: Bancos | G126: 10.74 | H126: =IFERROR((_xll.ECONOMATICA(C126,"Partic in ibovespa")/100),"") ->  | I126: PN | J126: PN | K126: 3.041544602e-09 | L126: 0.5031049634 | M126: 0.2419728813 | N126: 13431119.35 | O126: 6368918.131 | P126: 6368918.131 | Q126: 3204234.323 | R126: 0.02425881562 | T126: 77730.92966 | U126: 178590.814 | V126: 2024-04-26 | W126: 0.4352459565 | Y126: 20606.53335 | Z126: 3.772149752 | AB126: 7574.152 | AC126: 10960.066 | AD126: -3385.914 | AE126: 32131.6 | AF126: 0.1053764518 | AH126: 7574.152 | AI126: 6498.046 | AJ126: 0.1656045525 | AK126: 6378.161 | AL126: 0.1875134541 | AN126: 0.0044 | AP126: 0.0044 | AQ126: 0.0044 | AS126: 0.0044 | AT126: 0.0044 | AV126: 0.00437595839 | AW126: 0.004721171466 | AY126: 0.003723494442 | BA126: -0.00278551532 | BB126: 0.08484848485 | BC126: 0.2430555556 | BD126: 0.2579372099 | BE126: 0.5351226091 | BF126: -0.2952573458
B127: =IF($B126>=Base!$G$3,"",$B126+1) -> 121 | C127: =IF($B127="","",INDEX(Base!$B:$B,MATCH('Guia de BTC'!$B127,Base!$F:$F,0))) -> GOLD11<XBSP> | D127: GOLD11 | E127: Trend Ouro | F127: - | G127: 14.61 | H127: =IFERROR((_xll.ECONOMATICA(C127,"Partic in ibovespa")/100),"") ->  | T127: 77290.58954 | U127: 120526.8388 | V127: 2024-04-17 | W127: 0.6412728508 | Y127: 11860.28318 | Z127: 6.516757514 | AB127: 5440.335 | AC127: 6157.134 | AD127: -716.799 | AE127: 14115.321 | AF127: 0.05078162941 | AH127: 5440.335 | AI127: 5600.138 | AJ127: -0.0285355468 | AK127: 5666.279 | AL127: -0.03987519852 | AN127: 0.01 | AP127: 0.001 | AQ127: 0.01 | AS127: 0.001 | AT127: 0.01 | AV127: 0.001 | AW127: 0.01 | AY127: 0.009575092441 | BA127: -0.01350438892 | BB127: -0.01417004049 | BC127: 0.3809073724 | BD127: 0.4742684157 | BE127: 0.5642398287 | BF127: 0.4757575758
B128: =IF($B127>=Base!$G$3,"",$B127+1) -> 122 | C128: =IF($B128="","",INDEX(Base!$B:$B,MATCH('Guia de BTC'!$B128,Base!$F:$F,0))) -> CEAB3<XBSP> | D128: CEAB3 | E128: Cea Modas | F128: Tecidos vestuário e calçados | G128: 10.79 | H128: =IFERROR((_xll.ECONOMATICA(C128,"Partic in ibovespa")/100),"") ->  | I128: ON | J128: ON | K128: 0.3292975348 | M128: 0.3292975348 | N128: 3290096.964 | O128: 3290096.964 | P128: 3290096.964 | Q128: 1083420.819 | R128: 0.07027582831 | T128: 76138.2955 | U128: 137908.0829 | V128: 2024-04-08 | W128: 0.5520945104 | Y128: 22319.70452 | Z128: 3.411259115 | AB128: 7421.429 | AC128: 6482.765 | AD128: 938.664 | AE128: 65946.9 | AF128: 0.01423363342 | AH128: 7421.429 | AI128: 7329.065 | AJ128: 0.01260242609 | AK128: 7030.844 | AL128: 0.05555307442 | AN128: 0.0123 | AP128: 0.0012 | AQ128: 0.0123 | AS128: 0.006122201984 | AT128: 0.0123 | AU128: 0.0123 | AV128: 0.006866873375 | AW128: 0.01241019807 | AX128: 0.002302148805 | AY128: 0.009115000418 | BA128: 0.009354536949 | BB128: 0.06096361849 | BC128: 0.3780332056 | BD128: 1.067049808 | BE128: 2.393081761 | BF128: 0.3158536585
B129: =IF($B128>=Base!$G$3,"",$B128+1) -> 123 | C129: =IF($B129="","",INDEX(Base!$B:$B,MATCH('Guia de BTC'!$B129,Base!$F:$F,0))) -> JHSF3<XBSP> | D129: JHSF3 | E129: JHSF Part | F129: Incorporações | G129: 4.56 | H129: =IFERROR((_xll.ECONOMATICA(C129,"Partic in ibovespa")/100),"") ->  | I129: ON | J129: ON | K129: 0.4311932111 | M129: 0.4311932111 | N129: 3082526.662 | O129: 3082526.662 | P129: 3082526.662 | Q129: 1329164.57 | R129: 0.0570618087 | T129: 75844.53441 | U129: 93551.63912 | V129: 2023-09-20 | W129: 0.8107237364 | Y129: 14540.00017 | Z129: 5.216267779 | AB129: 17067.453 | AC129: 19611.035 | AD129: -2543.582 | AE129: 65488.2 | AF129: 0.03884031016 | AH129: 17067.453 | AI129: 17022.096 | AJ129: 0.002664595476 | AK129: 16653.826 | AL129: 0.02483675523 | AN129: 0.002 | AP129: 0.0015 | AQ129: 0.001633316216 | AS129: 0.001445165757 | AT129: 0.001530009725 | AV129: 0.00145146682 | AW129: 0.001616813386 | AX129: 0.001 | AY129: 0.001504608843 | BA129: 0.008849557522 | BB129: 0.04347826087 | BC129: -0.1333176904 | BD129: 0.01335341544 | BE129: -0.2949226545 | BF129: -0.0855545205
B130: =IF($B129>=Base!$G$3,"",$B129+1) -> 124 | C130: =IF($B130="","",INDEX(Base!$B:$B,MATCH('Guia de BTC'!$B130,Base!$F:$F,0))) -> BHIA3<XBSP> | D130: BHIA3 | E130: Casas Bahia | F130: Eletrodomésticos | G130: 5.96 | H130: =IFERROR((_xll.ECONOMATICA(C130,"Partic in ibovespa")/100),"") ->  | I130: ON | J130: ON | K130: 0.9987477804 | M130: 0.9987477804 | N130: 566343.04 | O130: 566343.04 | P130: 566343.04 | Q130: 565633.8541 | R130: 0.1318287286 | T130: 74566.79187 | U130: 529765.0669 | V130: 2023-09-19 | W130: 0.1407544524 | Y130: 25852.92187 | Z130: 2.884269416 | AB130: 12130.36 | AC130: 13122.705 | AD130: -992.345 | AE130: 138386.3 | AF130: 0.007170832662 | AH130: 12130.36 | AI130: 11939.462 | AJ130: 0.01598882764 | AK130: 12473.074 | AL130: -0.02747630616 | AN130: 0.1012 | AP130: 0.0891 | AQ130: 0.1164633187 | AS130: 0.108504147 | AT130: 0.1390258023 | AV130: 0.1108125269 | AW130: 0.158076305 | AX130: 0.1703402677 | AY130: 0.1460662389 | BA130: -0.04025764895 | BB130: -0.1989247312 | BC130: -0.4762741652 | BD130: -0.6734246575 | BE130: -0.9238338658 | BF130: -0.971820331
B131: =IF($B130>=Base!$G$3,"",$B130+1) -> 125 | C131: =IF($B131="","",INDEX(Base!$B:$B,MATCH('Guia de BTC'!$B131,Base!$F:$F,0))) -> SBFG3<XBSP> | D131: SBFG3 | E131: Grupo Sbf | F131: Produtos diversos | G131: 17.73 | H131: =IFERROR((_xll.ECONOMATICA(C131,"Partic in ibovespa")/100),"") ->  | I131: ON | J131: ON | K131: 0.6025106018 | M131: 0.6025106018 | N131: 4321459.918 | O131: 4321459.918 | P131: 4321459.918 | Q131: 2603725.416 | R131: 0.02806414033 | T131: 73071.31545 | U131: 160535.1624 | V131: 2024-01-25 | W131: 0.455173274 | Y131: 30297.26135 | Z131: 2.41181256 | AB131: 4167.189 | AC131: 6323.419 | AD131: -2156.23 | AE131: 42305.8 | AF131: 0.05096771601 | AH131: 4167.189 | AI131: 4321.644 | AJ131: -0.03573987122 | AK131: 4255.064 | AL131: -0.02065186329 | AN131: 0.0009 | AP131: 0.0009 | AQ131: 0.000980920489 | AS131: 0.0009520310796 | AT131: 0.0009907010564 | AV131: 0.000980209559 | AW131: 0.000980596718 | AY131: 0.000870606182 | BA131: 0.004532577905 | BB131: 0.02544823597 | BC131: 0.5339715788 | BD131: 1.448093418 | BE131: -0.1771146705 | BF131: -0.4156404139
B132: =IF($B131>=Base!$G$3,"",$B131+1) -> 126 | C132: =IF($B132="","",INDEX(Base!$B:$B,MATCH('Guia de BTC'!$B132,Base!$F:$F,0))) -> POMO4<XBSP> | D132: POMO4 | E132: Marcopolo | F132: Material rodoviário | G132: 7.97 | H132: =IFERROR((_xll.ECONOMATICA(C132,"Partic in ibovespa")/100),"") ->  | I132: PN | J132: PN | K132: 0.4818721275 | L132: 0.9174715286 | M132: 0.7603133405 | N132: 8282917.144 | O132: 5745321.116 | P132: 5745321.116 | Q132: 5271168.547 | R132: 0.01292119779 | T132: 68109.81139 | U132: 241805.5602 | V132: 2024-08-23 | W132: 0.2816718165 | Y132: 77166.84122 | Z132: 0.8826305485 | AB132: 9313.761 | AC132: 13360.632 | AD132: -4046.871 | AE132: 174720.8 | AF132: 0.02316193035 | AH132: 9313.761 | AI132: 9425.712 | AJ132: -0.01187719294 | AK132: 9960.613 | AL132: -0.06494098305 | AN132: 0.0049 | AP132: 0.0044 | AQ132: 0.00541389555 | AS132: 0.00454986745 | AT132: 0.005596588144 | AV132: 0.005140134122 | AW132: 0.006353701857 | AY132: 0.005658785951 | BA132: 0.005044136191 | BB132: 0.0843537415 | BC132: 0.437442013 | BD132: 0.6917084527 | BE132: 3.386016675 | BF132: 3.293668916
B133: =IF($B132>=Base!$G$3,"",$B132+1) -> 127 | C133: =IF($B133="","",INDEX(Base!$B:$B,MATCH('Guia de BTC'!$B133,Base!$F:$F,0))) -> ALPA4<XBSP> | D133: ALPA4 | E133: Alpargatas | F133: Calçados | G133: 7.35 | H133: =IFERROR((_xll.ECONOMATICA(C133,"Partic in ibovespa")/100),"") -> 0.00055 | I133: PN | J133: PN | K133: 0.03357613875 | L133: 0.4845275425 | M133: 0.2603857047 | N133: 4985129.917 | O133: 2472751.055 | P133: 2472751.055 | Q133: 1198115.992 | R133: 0.0503319053 | T133: 60303.46065 | U133: 451743.3421 | V133: 2023-09-19 | W133: 0.1334905355 | Y133: 30957.58952 | Z133: 1.947937859 | AB133: 7893.401 | AC133: 18209.217 | AD133: -10315.816 | AE133: 65728.9 | AF133: 0.1569449055 | AH133: 7893.401 | AI133: 8015.074 | AJ133: -0.0151805211 | AK133: 8061.963 | AL133: -0.02090830732 | AN133: 0.0013 | AP133: 0.0014 | AQ133: 0.001371366429 | AR133: 0.0015 | AS133: 0.001375582645 | AT133: 0.001527711021 | AU133: 0.00105851106 | AV133: 0.00143331157 | AW133: 0.00225910657 | AX133: 0.001025944578 | AY133: 0.001953927848 | BA133: -0.01076716016 | BB133: -0.04545454545 | BC133: -0.273715415 | BD133: -0.1025641026 | BE133: -0.6508313539 | BF133: -0.8697755234
B134: =IF($B133>=Base!$G$3,"",$B133+1) -> 128 | C134: =IF($B134="","",INDEX(Base!$B:$B,MATCH('Guia de BTC'!$B134,Base!$F:$F,0))) -> SMAC11<XBSP> | D134: SMAC11 | E134: It Now Small | F134: - | G134: 54.14 | H134: =IFERROR((_xll.ECONOMATICA(C134,"Partic in ibovespa")/100),"") ->  | T134: 57320.86335 | U134: 60544.48967 | V134: 2024-08-27 | W134: 0.9467560741 | Y134: 788.1192044 | Z134: 72.73120999 | AB134: 1058.98 | AC134: 1071.525 | AD134: -12.545 | AE134: 786.531 | AF134: 0.01594978456 | AH134: 1058.98 | AI134: 1054.67 | AJ134: 0.004086586326 | AK134: 1054.845 | AL134: 0.003920007205 | AN134: 0.05 | AQ134: 0.05 | AT134: 0.05 | AV134: 0.05 | AW134: 0.04648493265 | AY134: 0.050022563 | BA134: -0.006605504587 | BB134: -0.003863845445 | BC134: -0.09084802687 | BD134: -0.02150731972 | BE134: -0.02009049774 | BF134: -0.2068561383
B135: =IF($B134>=Base!$G$3,"",$B134+1) -> 129 | C135: =IF($B135="","",INDEX(Base!$B:$B,MATCH('Guia de BTC'!$B135,Base!$F:$F,0))) -> MILS3<XBSP> | D135: MILS3 | E135: Mills | F135: Máq. e equip. industriais | G135: 11.28 | H135: =IFERROR((_xll.ECONOMATICA(C135,"Partic in ibovespa")/100),"") ->  | I135: ON | J135: =LEFT(I135,2) -> ON | K135: 0.7215701385 | M135: 0.7215701385 | N135: 2644720.08 | O135: 2644720.08 | P135: =IF(N135="","",IF(O135>1,O135,N135)) -> 2644720.08 | Q135: =IFERROR(IF(J135="on",P135*K135,IF(J135="pn",P135*L135,IF(J135="un",P135*M135,""))),"") -> 1908351.034 | R135: =IFERROR(T135/Q135,"") -> 0.02887043057 | T135: 55094.91604 | U135: 84179.25329 | V135: 2024-04-25 | W135: =IFERROR(T135/U135,"") -> 0.654495186 | Y135: 9240.442304 | Z135: =IFERROR(T135/Y135,"") -> 5.962367842 | AB135: 4976.316 | AC135: 3795.15 | AD135: =IF(AB135="","",AB135-AC135) -> 1181.166 | AE135: 15224.2 | AF135: 0.07758476636 | AH135: 4976.316 | AI135: 5009.43 | AJ135: =IFERROR((AH135/AI135)-1,"") -> -0.006610332912 | AK135: 5136.518 | AL135: =IFERROR((AH135/AK135)-1,"") -> -0.03118883259 | AN135: 0.0006 | AP135: 0.0006 | AQ135: 0.0006 | AS135: 0.0005756655759 | AT135: 0.0006 | AV135: 0.0005860051496 | AW135: 0.0006 | AY135: 0.0005909154904 | BA135: 0 | BB135: 0.02452316076 | BC135: -0.1408364563 | BD135: -0.07111743602 | BE135: 0.08542475482 | BF135: 0.9058965305
B136: =IF($B135>=Base!$G$3,"",$B135+1) -> 130 | C136: =IF($B136="","",INDEX(Base!$B:$B,MATCH('Guia de BTC'!$B136,Base!$F:$F,0))) -> MYPK3<XBSP> | D136: MYPK3 | E136: Iochp-Maxion | F136: Automóveis e motocicletas | G136: 11.77 | H136: =IFERROR((_xll.ECONOMATICA(C136,"Partic in ibovespa")/100),"") ->  | I136: ON | J136: ON | K136: 0.8471481135 | M136: 0.8471481135 | N136: 1762792.9 | O136: 1762792.9 | P136: 1762792.9 | Q136: 1493346.68 | R136: 0.03617308624 | T136: 54018.95824 | U136: 106799.3066 | V136: 2024-01-04 | W136: 0.5057987729 | Y136: 10423.23491 | Z136: 5.182552124 | AB136: 4675.536 | AC136: 3450.073 | AD136: 1225.463 | AE136: 25265 | AF136: =IFERROR(ABS(AD136/AE136),"") -> 0.04850437364 | AH136: 4675.536 | AI136: 4902.45 | AJ136: -0.04628583667 | AK136: 4609.88 | AL136: 0.01424245317 | AN136: 0.0027 | AP136: 0.0025 | AQ136: 0.0027 | AS136: 0.002258632731 | AT136: 0.0027 | AV136: 0.002321346625 | AW136: 0.002821258301 | AX136: 0.001 | AY136: 0.002566548142 | BA136: -0.02807597027 | BB136: 0.0172860847 | BC136: -0.07079366385 | BD136: -0.1874172542 | BE136: -0.01633669132 | BF136: -0.1424207997
B137: =IF($B136>=Base!$G$3,"",$B136+1) -> 131 | C137: =IF($B137="","",INDEX(Base!$B:$B,MATCH('Guia de BTC'!$B137,Base!$F:$F,0))) -> CMIG3<XBSP> | D137: CMIG3 | E137: Cemig | F137: Energia elétrica | G137: 14.63 | H137: =IFERROR((_xll.ECONOMATICA(C137,"Partic in ibovespa")/100),"") ->  | I137: ON | J137: ON | K137: 0.4902798684 | L137: 0.9755702115 | M137: 0.8133532129 | N137: 36289920.32 | O137: 13994853.18 | P137: 13994853.18 | Q137: 6861394.775 | R137: 0.007237366655 | T137: 49658.42975 | U137: 169681.0088 | V137: 2023-09-19 | W137: 0.2926575585 | Y137: 3019.953565 | Z137: 16.44344149 | AB137: 3438.353 | AC137: 3489.818 | AD137: -51.465 | AE137: 4115.7 | AF137: 0.01250455573 | AH137: 3438.353 | AI137: 3224.262 | AJ137: 0.06640000099 | AK137: 3523.297 | AL137: -0.02410923632 | AN137: 0.0155 | AP137: 0.0155 | AQ137: 0.0155 | AS137: 0.01199913398 | AT137: 0.0155 | AV137: 0.01531794697 | AW137: 0.0155 | AY137: 0.01548225338 | BA137: -0.008807588075 | BB137: 0.01809324983 | BC137: 0.3556225031 | BD137: 0.07754789021 | BE137: 0.3389142288 | BF137: 0.9849092212
B138: =IF($B137>=Base!$G$3,"",$B137+1) -> 132 | C138: =IF($B138="","",INDEX(Base!$B:$B,MATCH('Guia de BTC'!$B138,Base!$F:$F,0))) -> OIBR3<XBSP> | D138: OIBR3 | E138: Oi | F138: Telecomunicações | G138: 5.15 | H138: =IFERROR((_xll.ECONOMATICA(C138,"Partic in ibovespa")/100),"") ->  | I138: ON | J138: ON | K138: 0.8999738756 | L138: 0.9883913491 | M138: 0.9020859097 | N138: 349814.681 | O138: 331932.951 | P138: 331932.951 | Q138: 298730.9843 | R138: 0.1628082349 | T138: 48635.86427 | U138: 112057.7781 | V138: 2024-02-27 | W138: 0.434024885 | Y138: 4591.460696 | Z138: 10.59267791 | AB138: 9916.104 | AC138: 10494.321 | AD138: -578.217 | AE138: 19153.5 | AF138: 0.03018858172 | AH138: 9916.104 | AI138: 10165.165 | AJ138: -0.02450142226 | AK138: 10399.191 | AL138: -0.04645428668 | AN138: 0.0384 | AP138: 0.0382 | AQ138: 0.03826527127 | AS138: 0.03725746121 | AT138: 0.03823269781 | AV138: 0.037902907 | AW138: 0.03479511533 | AY138: 0.03441502871 | BA138: -0.005791505791 | BB138: 0.04040404041 | BC138: -0.1878386754 | BD138: -0.2124496247 | BE138: -0.9019276891 | BF138: -0.9458559117
B139: =IF($B138>=Base!$G$3,"",$B138+1) -> 133 | C139: =IF($B139="","",INDEX(Base!$B:$B,MATCH('Guia de BTC'!$B139,Base!$F:$F,0))) -> BRSR6<XBSP> | D139: BRSR6 | E139: Banrisul | F139: Bancos | G139: 12.1 | H139: =IFERROR((_xll.ECONOMATICA(C139,"Partic in ibovespa")/100),"") ->  | I139: PNB | J139: PN | K139: 0.01867300597 | L139: 0.996314132 | M139: 0.5061128277 | N139: 5150614.153 | O139: 2450569.831 | P139: 2450569.831 | Q139: 2441537.355 | R139: 0.0166252393 | T139: 40591.14278 | U139: 146643.5773 | V139: 2023-11-01 | W139: 0.2768013678 | Y139: 15788.7417 | Z139: 2.570891561 | AB139: 3240.902 | AC139: 5791.829 | AD139: -2550.927 | AE139: 22655.5 | AF139: 0.1125963673 | AH139: 3240.902 | AI139: 2919.815 | AJ139: 0.1099682685 | AK139: 3323.114 | AL139: -0.02473944619 | AN139: 0.0024 | AP139: 0.0023 | AQ139: 0.0024 | AS139: 0.002304766335 | AT139: 0.0024 | AU139: 0.001 | AV139: 0.002279885411 | AW139: 0.003473750575 | AX139: 0.001 | AY139: 0.003109761055 | BA139: -0.001650165015 | BB139: -0.02710108758 | BC139: -0.05298382773 | BD139: 0.03205435917 | BE139: 0.2007751107 | BF139: 0.2686159582
B140: =IF($B139>=Base!$G$3,"",$B139+1) -> 134 | C140: =IF($B140="","",INDEX(Base!$B:$B,MATCH('Guia de BTC'!$B140,Base!$F:$F,0))) -> LJQQ3<XBSP> | D140: LJQQ3 | E140: Quero-Quero | F140: Produtos diversos | G140: 3.96 | H140: =IFERROR((_xll.ECONOMATICA(C140,"Partic in ibovespa")/100),"") ->  | I140: ON | J140: ON | K140: 0.9618104041 | M140: 0.9618104041 | N140: 772489.08 | O140: 772489.08 | P140: 772489.08 | Q140: 742988.0342 | R140: 0.05424495957 | T140: 40303.35588 | U140: 79249.55769 | V140: 2024-04-30 | W140: 0.508562534 | Y140: 11496.85674 | Z140: 3.505597816 | AB140: 9707.283 | AC140: 8296.734 | AD140: 1410.549 | AE140: 65871.9 | AF140: 0.02141351623 | AH140: 9707.283 | AI140: 9948.28 | AJ140: -0.02422499166 | AK140: 7039.885 | AL140: 0.3788979507 | AN140: 0.0004 | AP140: 0.0004 | AQ140: 0.0004 | AS140: 0.0003822897663 | AT140: 0.0004 | AV140: 0.0003884799777 | AW140: 0.0004 | AY140: 0.0003859224811 | BA140: -0.01 | BB140: -0.06823529412 | BC140: -0.3432246541 | BD140: -0.07934170262 | BE140: -0.3249510356 | BF140: -0.7682690343
B141: =IF($B140>=Base!$G$3,"",$B140+1) -> 135 | C141: =IF($B141="","",INDEX(Base!$B:$B,MATCH('Guia de BTC'!$B141,Base!$F:$F,0))) -> NEOE3<XBSP> | D141: NEOE3 | E141: Neoenergia | F141: Energia elétrica | G141: 19.75 | H141: =IFERROR((_xll.ECONOMATICA(C141,"Partic in ibovespa")/100),"") ->  | I141: ON | J141: ON | K141: 0.1606829504 | M141: 0.1606829504 | N141: 23947189.02 | O141: 23947189.02 | P141: 23947189.02 | Q141: 3847904.986 | R141: 0.0102260357 | T141: 39348.81376 | U141: 231161.3528 | V141: 2024-03-21 | W141: 0.1702222853 | Y141: 16636.10313 | Z141: 2.36526628 | AB141: 1988.967 | AC141: 1918.666 | AD141: 70.301 | AE141: 20825.7 | AF141: 0.003375684851 | AH141: 1988.967 | AI141: 2043.056 | AJ141: -0.02647455576 | AK141: 2002.76 | AL141: -0.006886995946 | AN141: 0.0014 | AP141: 0.0014 | AQ141: 0.0014 | AS141: 0.0008833018407 | AT141: 0.001395932781 | AV141: 0.0009988807366 | AW141: 0.001106278326 | AY141: 0.0009974937548 | BA141: 0.000506585613 | BB141: -0.007537688441 | BC141: -0.03499039082 | BD141: 0.08271845741 | BE141: 0.3533562169 | BF141: 0.4572875164
B142: =IF($B141>=Base!$G$3,"",$B141+1) -> 136 | C142: =IF($B142="","",INDEX(Base!$B:$B,MATCH('Guia de BTC'!$B142,Base!$F:$F,0))) -> GOLL4<XBSP> | D142: GOLL4 | E142: Gol | F142: Transporte aéreo | G142: 1.14 | H142: =IFERROR((_xll.ECONOMATICA(C142,"Partic in ibovespa")/100),"") ->  | I142: PN | J142: PN | K142: 0 | L142: 0.5224505543 | M142: 0.05524156939 | N142: 477075.7625 | O142: 383801.5257 | P142: 383801.5257 | Q142: 200517.3198 | R142: 0.1930509406 | T142: 38710.0572 | U142: 221502.8837 | V142: 2024-01-17 | W142: 0.1747609627 | Y142: 5466.899435 | Z142: 7.080806527 | AB142: 35978.07 | AC142: 30803.399 | AD142: 5174.671 | AE142: 74007.4 | AF142: 0.06992099439 | AH142: 35978.07 | AI142: 35441.687 | AJ142: 0.01513424008 | AK142: 35318.223 | AL142: 0.01868290486 | AN142: 0.1067 | AP142: 0.1109 | AQ142: 0.1158434509 | AS142: 0.1075450821 | AT142: 0.1164252564 | AV142: 0.1092297612 | AW142: 0.1239509175 | AY142: 0.111498382 | BA142: 0.02702702703 | BB142: 0.05555555555 | BC142: -0.872909699 | BD142: -0.8298507463 | BE142: -0.88834476 | BF142: -0.9404077365
B143: =IF($B142>=Base!$G$3,"",$B142+1) -> 137 | C143: =IF($B143="","",INDEX(Base!$B:$B,MATCH('Guia de BTC'!$B143,Base!$F:$F,0))) -> POSI3<XBSP> | D143: POSI3 | E143: Positivo Tec | F143: Computadores e equipamentos | G143: 6.05 | H143: =IFERROR((_xll.ECONOMATICA(C143,"Partic in ibovespa")/100),"") ->  | I143: ON | J143: ON | K143: 0.5110176487 | M143: 0.5110176487 | N143: 847453.75 | O143: 847453.75 | P143: 847453.75 | Q143: 433063.8227 | R143: 0.08699141753 | T143: 37672.83582 | U143: 43604.5001 | V143: 2024-07-02 | W143: 0.8639666946 | Y143: 11889.109 | Z143: 3.168684535 | AB143: 5913.381 | AC143: 4422.01 | AD143: 1491.371 | AE143: 37148.7 | AF143: 0.04014598088 | AH143: 5913.381 | AI143: 5889.674 | AJ143: 0.004025180341 | AK143: 5866.273 | AL143: 0.008030311579 | AN143: 0.0029 | AP143: 0.0028 | AQ143: 0.002821572868 | AS143: 0.002349392261 | AT143: 0.002827728583 | AV143: 0.002459784627 | AW143: 0.002119071982 | AY143: 0.002077257654 | BA143: -0.0162601626 | BB143: -0.07350689127 | BC143: -0.08934937179 | BD143: -0.1593994201 | BE143: -0.4848388067 | BF143: -0.4158265442
B144: =IF($B143>=Base!$G$3,"",$B143+1) -> 138 | C144: =IF($B144="","",INDEX(Base!$B:$B,MATCH('Guia de BTC'!$B144,Base!$F:$F,0))) -> CPLE3<XBSP> | D144: CPLE3 | E144: Copel | F144: Energia elétrica | G144: 9.7 | H144: =IFERROR((_xll.ECONOMATICA(C144,"Partic in ibovespa")/100),"") ->  | I144: ON | J144: ON | K144: 0.9999253246 | L144: 0.9999395529 | M144: 0.9999333499 | N144: 30752575.25 | O144: 12613368.81 | P144: 12613368.81 | Q144: 12612426.9 | R144: 0.002937757647 | T144: 37052.25357 | U144: 74669.02294 | V144: 2024-08-07 | W144: 0.4962198796 | Y144: 49071.17091 | Z144: 0.755071723 | AB144: 3916.861 | AC144: 5012.832 | AD144: -1095.971 | AE144: 132171.1 | AF144: 0.008292062334 | AH144: 3916.861 | AI144: 4421.959 | AJ144: -0.1142249397 | AK144: 4298.9 | AL144: -0.088869013 | AN144: 0.0001 | AP144: 0.0001 | AQ144: 0.0001346106069 | AS144: 0.0001 | AT144: 0.000175575014 | AV144: 0.0001964649903 | AW144: 0.0002156861222 | AY144: 0.0002273132115 | BA144: 0.001031991744 | BB144: 0.03411513859 | BC144: 0.02707241885 | BD144: 0.2279571453 | BE144: 0.7034674496 | BF144: 1.054566074
B145: =IF($B144>=Base!$G$3,"",$B144+1) -> 139 | C145: =IF($B145="","",INDEX(Base!$B:$B,MATCH('Guia de BTC'!$B145,Base!$F:$F,0))) -> SRNA3<XBSP> | D145: SRNA3 | E145: Serena | F145: Energia elétrica | G145: 8.99 | H145: =IFERROR((_xll.ECONOMATICA(C145,"Partic in ibovespa")/100),"") ->  | I145: ON | J145: ON | K145: 0.6706702007 | M145: 0.6706702007 | N145: 5598022.171 | O145: 5598022.171 | P145: 5598022.171 | Q145: 3754426.653 | R145: 0.0098583426 | T145: 37012.42421 | U145: 158202.1245 | V145: 2024-03-19 | W145: 0.233956556 | Y145: 22444.85752 | Z145: 1.649038056 | AB145: 4241.676 | AC145: 3319.842 | AD145: 921.834 | AE145: 32781.7 | AF145: 0.02812038424 | AH145: 4241.676 | AI145: 4060.696 | AJ145: 0.04456871433 | AK145: 4169.732 | AL145: 0.01725386668 | AN145: 0.007 | AP145: 0.0066 | AQ145: 0.007 | AS145: 0.005148007188 | AT145: 0.007 | AV145: 0.005413616854 | AW145: 0.006974510739 | AY145: 0.00518134128 | BA145: -0.002219755825 | BB145: 0.1098765432 | BC145: -0.1194906954 | BD145: -0.1518867925 | BE145: -0.133911368 | BF145: -0.4340610682
B146: =IF($B145>=Base!$G$3,"",$B145+1) -> 140 | C146: =IF($B146="","",INDEX(Base!$B:$B,MATCH('Guia de BTC'!$B146,Base!$F:$F,0))) -> FESA4<XBSP> | D146: FESA4 | E146: Ferbasa | F146: Siderurgia | G146: 7.97 | H146: =IFERROR((_xll.ECONOMATICA(C146,"Partic in ibovespa")/100),"") ->  | I146: PN | J146: PN | K146: 0.01063879076 | L146: 0.6817541525 | M146: 0.4580490319 | N146: 3322050.796 | O146: 1775610.796 | P146: 1775610.796 | Q146: 1210530.033 | R146: 0.03041844422 | T146: 36822.4403 | U146: 66988.97632 | V146: 2023-11-10 | W146: 0.5496791013 | Y146: 4630.820696 | Z146: 7.951601394 | AB146: 4537.416 | AC146: 4854.21 | AD146: -316.794 | AE146: 11013 | AF146: 0.028765459 | AH146: 4537.416 | AI146: 4561.32 | AJ146: -0.005240588251 | AK146: 4682.875 | AL146: -0.03106190108 | AN146: 0.0024 | AP146: 0.0015 | AQ146: 0.0024 | AS146: 0.00147010497 | AT146: 0.0024 | AV146: 0.001642251532 | AW146: 0.002328516762 | AY146: 0.001648661831 | BA146: 0.007585335019 | BB146: -0.01536628548 | BC146: -0.3048184399 | BD146: -0.3338943763 | BE146: -0.3242406269 | BF146: -0.2866534862
B147: =IF($B146>=Base!$G$3,"",$B146+1) -> 141 | C147: =IF($B147="","",INDEX(Base!$B:$B,MATCH('Guia de BTC'!$B147,Base!$F:$F,0))) -> TTEN3<XBSP> | D147: TTEN3 | E147: 3tentos | F147: Agricultura | G147: 11.94 | H147: =IFERROR((_xll.ECONOMATICA(C147,"Partic in ibovespa")/100),"") ->  | I147: ON | J147: ON | K147: 0.2251910814 | M147: 0.2251910814 | N147: 5941200.72 | O147: 5941200.72 | P147: 5941200.72 | Q147: 1337905.415 | R147: 0.02683000218 | T147: 35896.0052 | U147: 83696.93172 | V147: 2024-06-25 | W147: 0.4288807781 | Y147: 12954.70969 | Z147: 2.77088457 | AB147: 2964.334 | AC147: 5343.042 | AD147: -2378.708 | AE147: 25116.2 | AF147: 0.09470811667 | AH147: 2964.334 | AI147: 3307.032 | AJ147: -0.1036270589 | AK147: 3624.93 | AL147: -0.1822368984 | AN147: 0.0075 | AP147: 0.0075 | AQ147: 0.0075 | AS147: 0.006815099119 | AT147: 0.0075 | AU147: 0.001 | AV147: 0.006686760792 | AW147: 0.007447687951 | AX147: 0.001 | AY147: 0.00553121141 | BA147: -0.04096385542 | BB147: -0.002506265664 | BC147: 0.003646275456 | BD147: -0.1417683838 | BE147: 0.1902644802 | BF147: 0.2148407301
B148: =IF($B147>=Base!$G$3,"",$B147+1) -> 142 | C148: =IF($B148="","",INDEX(Base!$B:$B,MATCH('Guia de BTC'!$B148,Base!$F:$F,0))) -> MLAS3<XBSP> | D148: MLAS3 | E148: Multilaser | F148: Computadores e equipamentos | G148: 1.76 | H148: =IFERROR((_xll.ECONOMATICA(C148,"Partic in ibovespa")/100),"") ->  | I148: ON | J148: ON | K148: 0.4729900757 | M148: 0.4729900757 | N148: 1423598.246 | O148: 1423598.246 | P148: 1423598.246 | Q148: 673347.8423 | R148: 0.05293191147 | T148: 35641.58838 | U148: 66058.46376 | V148: 2023-09-19 | W148: 0.5395461286 | Y148: 5631.231435 | Z148: 6.329270745 | AB148: 19216.86 | AC148: 20937.764 | AD148: -1720.904 | AE148: 91736.6 | AF148: 0.01875918663 | AH148: 19216.86 | AI148: 19379.51 | AJ148: -0.008392885063 | AK148: 19398.549 | AL148: -0.009366112898 | AN148: 0.0041 | AP148: 0.0041 | AQ148: 0.0041 | AS148: 0.00404686113 | AT148: 0.004037899065 | AV148: 0.003940305384 | AW148: 0.003980981906 | AY148: 0.003745778564 | BA148: -0.01675977654 | BB148: -0.05376344086 | BC148: -0.1578947368 | BD148: -0.4358974359 | BE148: -0.6996587031 | BF148: -0.7596678195
B149: =IF($B148>=Base!$G$3,"",$B148+1) -> 143 | C149: =IF($B149="","",INDEX(Base!$B:$B,MATCH('Guia de BTC'!$B149,Base!$F:$F,0))) -> CBAV3<XBSP> | D149: CBAV3 | E149: Cba | F149: Minerais metálicos | G149: 4.96 | H149: =IFERROR((_xll.ECONOMATICA(C149,"Partic in ibovespa")/100),"") ->  | I149: ON | J149: ON | K149: 0.3140068351 | M149: 0.3140068351 | N149: 3229322.08 | O149: 3229322.08 | P149: 3229322.08 | Q149: 1014029.206 | R149: 0.0349299603 | T149: 35419.9999 | U149: 130587.0799 | V149: 2023-11-13 | W149: 0.2712366332 | Y149: 17163.65722 | Z149: 2.063662741 | AB149: 7254.088 | AC149: 6314.755 | AD149: 939.333 | AE149: 88438.8 | AF149: 0.01062127709 | AH149: 7254.088 | AI149: 6956.823 | AJ149: 0.04272999327 | AK149: 6805.095 | AL149: 0.06597894666 | AN149: 0.0054 | AO149: 0.001 | AP149: 0.001 | AQ149: 0.005944082533 | AR149: 0.001 | AS149: 0.002261966857 | AT149: 0.006414310557 | AU149: 0.001 | AV149: 0.003626401356 | AW149: 0.00690180563 | AX149: 0.001 | AY149: 0.003962831254 | BA149: -0.006012024048 | BB149: -0.004016064258 | BC149: -0.02745098039 | BD149: 0.04538372921 | BE149: -0.5927410379 | BF149: -0.6044156233
B150: =IF($B149>=Base!$G$3,"",$B149+1) -> 144 | C150: =IF($B150="","",INDEX(Base!$B:$B,MATCH('Guia de BTC'!$B150,Base!$F:$F,0))) -> ZAMP3<XBSP> | D150: ZAMP3 | E150: Zamp S.A. | F150: Restaurante e similares | G150: 3.11 | H150: =IFERROR((_xll.ECONOMATICA(C150,"Partic in ibovespa")/100),"") ->  | I150: ON | J150: ON | K150: 0.3407617028 | M150: 0.3407617028 | N150: 856355.4396 | O150: 856355.4396 | P150: 856355.4396 | Q150: 291813.1378 | R150: 0.1200835943 | T150: 35041.97044 | U150: 96620.53615 | V150: 2023-11-29 | W150: 0.362676216 | Y150: 1999.302 | Z150: 17.52710218 | AB150: 11270.868 | AC150: 9305.873 | AD150: 1964.995 | AE150: 12442.4 | AF150: 0.1579273291 | AH150: 11270.868 | AI150: 10872.717 | AJ150: 0.03661927373 | AK150: 10948.554 | AL150: 0.02943895605 | AN150: 0.0044 | AP150: 0.0042 | AQ150: 0.004446086394 | AS150: 0.004240540116 | AT150: 0.004465900127 | AV150: 0.004349284496 | AW150: 0.005351232459 | AY150: 0.005357670609 | BA150: 0.00974025974 | BB150: 0.01967213115 | BC150: -0.4502872506 | BD150: -0.467115192 | BE150: -0.6131651023 | BF150: -0.6479367785
B151: =IF($B150>=Base!$G$3,"",$B150+1) -> 145 | C151: =IF($B151="","",INDEX(Base!$B:$B,MATCH('Guia de BTC'!$B151,Base!$F:$F,0))) -> CLSA3<XBSP> | D151: CLSA3 | E151: Clearsale | F151: Serviços financeiros diversos | G151: 8.19 | H151: =IFERROR((_xll.ECONOMATICA(C151,"Partic in ibovespa")/100),"") ->  | I151: ON | J151: ON | K151: 0.2959128819 | M151: 0.2959128819 | N151: 1539114.431 | O151: 1539114.431 | P151: 1539114.431 | Q151: 455443.787 | R151: 0.07468663513 | T151: 34015.56394 | U151: 60975.5541 | V151: 2024-05-20 | W151: 0.5578557578 | Y151: 15785.18043 | Z151: 2.154904981 | AB151: 4165.534 | AC151: 3510.107 | AD151: 655.427 | AE151: 33148.1 | AF151: 0.01977268682 | AH151: 4165.534 | AI151: 3906.688 | AJ151: 0.06625714672 | AK151: 3543.103 | AL151: 0.1756739784 | AN151: 0.038 | AP151: 0.0311 | AQ151: 0.03490166709 | AS151: 0.02341061603 | AT151: 0.03031344029 | AV151: 0.02449834695 | AW151: 0.02817275468 | AX151: 0.19 | AY151: 0.02516578252 | BA151: 0.02631578947 | BB151: -0.04434072345 | BC151: 1.184 | BD151: 0.5365853659 | BE151: 0.6445783133 | BF151: -0.6909433962
B152: =IF($B151>=Base!$G$3,"",$B151+1) -> 146 | C152: =IF($B152="","",INDEX(Base!$B:$B,MATCH('Guia de BTC'!$B152,Base!$F:$F,0))) -> CASH3<XBSP> | D152: CASH3 | E152: Meliuz | F152: Programas e serviços | G152: 4.19 | H152: =IFERROR((_xll.ECONOMATICA(C152,"Partic in ibovespa")/100),"") ->  | I152: ON | J152: ON | K152: 0.7526696833 | M152: 0.7526696833 | N152: 364760.7936 | O152: 364760.7936 | P152: 364760.7936 | Q152: 274544.391 | R152: 0.1205067661 | T152: 33084.45671 | U152: 108258.2082 | V152: 2023-09-27 | W152: 0.3056069121 | Y152: 9885.339522 | Z152: 3.346820475 | AB152: 5753.507 | AC152: 5544.577 | AD152: 208.93 | AE152: 25108.7 | AF152: 0.008321020204 | AH152: 5753.507 | AI152: 5816.34 | AJ152: -0.01080284165 | AK152: 5918.557 | AL152: -0.02788686499 | AN152: 0.0011 | AP152: 0.0011 | AQ152: 0.0011 | AS152: 0.000948582944 | AT152: 0.0011 | AV152: 0.0007994457532 | AW152: 0.001363129399 | AY152: 0.001114173223 | BA152: -0.04555808656 | BB152: -0.01410933099 | BC152: 0.2466748133 | BD152: 0.6037321628 | BE152: -0.2007205834 | BF152: -0.8606038711
B153: =IF($B152>=Base!$G$3,"",$B152+1) -> 147 | C153: =IF($B153="","",INDEX(Base!$B:$B,MATCH('Guia de BTC'!$B153,Base!$F:$F,0))) -> VVEO3<XBSP> | D153: VVEO3 | E153: Viveo | F153: Medicamentos e outros produtos | G153: 2.35 | H153: =IFERROR((_xll.ECONOMATICA(C153,"Partic in ibovespa")/100),"") ->  | I153: ON | J153: ON | K153: 0.5522980026 | M153: 0.5522980026 | N153: 748461.8588 | O153: 748461.8588 | P153: 748461.8588 | Q153: 413373.9896 | R153: 0.07770454972 | T153: 32121.03973 | U153: 55951.65539 | V153: 2024-04-04 | W153: 0.5740856013 | Y153: 6310.634478 | Z153: 5.089985776 | AB153: 15750.439 | AC153: 19575.49 | AD153: -3825.051 | AE153: 78572.6 | AF153: 0.04868174147 | AH153: 15750.439 | AI153: 15280.998 | AJ153: 0.03072057205 | AK153: 15700.239 | AL153: 0.003197403555 | AN153: 0.031 | AP153: 0.0304 | AQ153: 0.031 | AS153: 0.02667097704 | AT153: 0.031 | AV153: 0.02735527323 | AW153: 0.03250011662 | AY153: 0.03026976522 | BA153: -0.0329218107 | BB153: 0.2368421053 | BC153: -0.8268509957 | BD153: -0.8648333179 | BE153: -0.8574423536 | BF153: -0.8984165385
B154: =IF($B153>=Base!$G$3,"",$B153+1) -> 148 | C154: =IF($B154="","",INDEX(Base!$B:$B,MATCH('Guia de BTC'!$B154,Base!$F:$F,0))) -> TASA4<XBSP> | D154: TASA4 | E154: Taurus Armas | F154: Armas e munições | G154: 10.97 | H154: =IFERROR((_xll.ECONOMATICA(C154,"Partic in ibovespa")/100),"") ->  | I154: PN | J154: PN | K154: 0.172023253 | L154: 0.8448065149 | M154: 0.598051909 | N154: 1392461.715 | O154: 875989.8234 | P154: 875989.8234 | Q154: 740041.9098 | R154: 0.04334579514 | T154: 32077.70502 | U154: 45482.72747 | V154: 2024-05-24 | W154: 0.7052722386 | Y154: 3471.154913 | Z154: 9.241219659 | AB154: 2876.168 | AC154: 2571.372 | AD154: 304.796 | AE154: 5161.8 | AF154: 0.05904839397 | AH154: 2876.168 | AI154: 2861.181 | AJ154: 0.005238046807 | AK154: 2827.65 | AL154: 0.01715841777 | AN154: 0.0015 | AP154: 0.0015 | AQ154: 0.0015 | AS154: 0.001484979128 | AT154: 0.0015 | AV154: 0.001470893915 | AW154: 0.001620081125 | AY154: 0.001515926786 | BA154: -0.003633060853 | BB154: -0.0274822695 | BC154: -0.2599723829 | BD154: -0.3215669614 | BE154: -0.2345911595 | BF154: -0.3964219368
B155: =IF($B154>=Base!$G$3,"",$B154+1) -> 149 | C155: =IF($B155="","",INDEX(Base!$B:$B,MATCH('Guia de BTC'!$B155,Base!$F:$F,0))) -> NASD11<XBSP> | D155: NASD11 | E155: Trend Nasdaq | F155: - | G155: 14.83 | H155: =IFERROR((_xll.ECONOMATICA(C155,"Partic in ibovespa")/100),"") ->  | T155: 31636.57659 | U155: 70494.25686 | V155: 2024-05-23 | W155: 0.4487823264 | Y155: 12886.66819 | Z155: 2.45498496 | AB155: 2127.879 | AC155: 2298.857 | AD155: -170.978 | AE155: 33988.49 | AF155: 0.005030467667 | AH155: 2127.879 | AI155: 2128.459 | AJ155: -0.0002724976145 | AK155: 1983.835 | AL155: 0.07260886112 | AN155: 0.0209 | AP155: 0.0209 | AQ155: 0.0209 | AS155: 0.0209 | AT155: 0.02041826761 | AV155: 0.0209 | AW155: 0.02009874044 | AX155: 0.02 | AY155: 0.0173199277 | BA155: -0.003360215054 | BB155: -0.03638726446 | BC155: 0.2974628172 | BD155: 0.4412050534 | BE155: 0.7045977011 | BF155: 0.3135518158
B156: =IF($B155>=Base!$G$3,"",$B155+1) -> 150 | C156: =IF($B156="","",INDEX(Base!$B:$B,MATCH('Guia de BTC'!$B156,Base!$F:$F,0))) -> ORVR3<XBSP> | D156: ORVR3 | E156: Orizon | F156: Água e saneamento | G156: 46.84 | H156: =IFERROR((_xll.ECONOMATICA(C156,"Partic in ibovespa")/100),"") ->  | I156: ON | J156: ON | K156: 0.5601880409 | M156: 0.5601880409 | N156: 3885424.84 | O156: 3885424.84 | P156: 3885424.84 | Q156: 2176568.529 | R156: 0.01451209507 | T156: 31586.56943 | U156: 84767.79585 | V156: 2024-04-24 | W156: 0.3726246402 | Y156: 23285.83017 | Z156: 1.356471691 | AB156: 668.83 | AC156: 607.435 | AD156: 61.395 | AE156: 8415.3 | AF156: 0.007295640084 | AH156: 668.83 | AI156: 668.443 | AJ156: 0.0005789573681 | AK156: 651.544 | AL156: 0.02653082524 | AN156: 0.0255 | AP156: 0.0255 | AQ156: 0.0255 | AS156: 0.0255 | AT156: 0.02557341051 | AV156: 0.02592358641 | AW156: 0.02788480865 | AX156: 0.0297 | AY156: 0.02801358211 | BA156: -0.02416666667 | BB156: 0.01231899719 | BC156: 0.2115882049 | BD156: 0.2293963255 | BE156: 0.1751128951 | BF156: 0.5639398998
B157: =IF($B156>=Base!$G$3,"",$B156+1) -> 151 | C157: =IF($B157="","",INDEX(Base!$B:$B,MATCH('Guia de BTC'!$B157,Base!$F:$F,0))) -> ANIM3<XBSP> | D157: ANIM3 | E157: Anima | F157: Serviços educacionais | G157: 3.17 | H157: =IFERROR((_xll.ECONOMATICA(C157,"Partic in ibovespa")/100),"") ->  | I157: ON | J157: ON | K157: 0.6364447707 | M157: 0.6364447707 | N157: 1196320.756 | O157: 1196320.756 | P157: 1196320.756 | Q157: 761392.0891 | R157: 0.0411420927 | T157: 31325.26391 | U157: 102722.0211 | V157: 2024-03-04 | W157: 0.3049517872 | Y157: 19369.51648 | Z157: 1.617245528 | AB157: 9617.607 | AC157: 10014.224 | AD157: -396.617 | AE157: 134358.9 | AF157: 0.002951922054 | AH157: 9617.607 | AI157: 10559.524 | AJ157: -0.0892007064 | AK157: 9748.132 | AL157: -0.01338974482 | AN157: 0.0013 | AP157: 0.0013 | AQ157: 0.0013 | AS157: 0.001297528578 | AT157: 0.0013 | AV157: 0.001298978685 | AW157: 0.0008515412813 | AY157: 0.0004376243074 | BA157: -0.003144654089 | BB157: -0.03353658537 | BC157: -0.1903921648 | BD157: 0.05890057044 | BE157: -0.2835613204 | BF157: -0.6187063416
B158: =IF($B157>=Base!$G$3,"",$B157+1) -> 152 | C158: =IF($B158="","",INDEX(Base!$B:$B,MATCH('Guia de BTC'!$B158,Base!$F:$F,0))) -> XINA11<XBSP> | D158: XINA11 | E158: Trend China | F158: - | G158: 5.71 | H158: =IFERROR((_xll.ECONOMATICA(C158,"Partic in ibovespa")/100),"") ->  | T158: 30738.41026 | U158: 45075.89893 | V158: 2024-05-17 | W158: 0.6819256186 | Y158: 1362.578675 | Z158: 22.55899848 | AB158: 5500.635 | AC158: 5471.244 | AD158: 29.391 | AE158: 6239.484 | AF158: 0.004710485675 | AH158: 5500.635 | AI158: 5590.629 | AJ158: -0.01609729424 | AK158: 5560.866 | AL158: -0.01083122665 | AN158: 0.005 | AQ158: 0.005 | AT158: 0.005 | AW158: 0.00500057823 | AY158: 0.005 | BA158: -0.008680555556 | BB158: -0.04033613445 | BC158: 0.1488933602 | BD158: 0.07330827068 | BE158: -0.04194630872 | BF158: -0.3562570462
B159: =IF($B158>=Base!$G$3,"",$B158+1) -> 153 | C159: =IF($B159="","",INDEX(Base!$B:$B,MATCH('Guia de BTC'!$B159,Base!$F:$F,0))) -> EVEN3<XBSP> | D159: EVEN3 | E159: Even | F159: Incorporações | G159: 6.65 | H159: =IFERROR((_xll.ECONOMATICA(C159,"Partic in ibovespa")/100),"") ->  | I159: ON | J159: ON | K159: 0.97152347 | M159: 0.97152347 | N159: 1322332.789 | O159: 1322332.789 | P159: 1322332.789 | Q159: 1284677.34 | R159: 0.02358193634 | T159: 30295.17925 | U159: 39634.08985 | V159: 2023-12-07 | W159: 0.7643717659 | Y159: 4047.484565 | Z159: 7.484940032 | AB159: 4654.703 | AC159: 5455.645 | AD159: -800.942 | AE159: 12517.3 | AF159: 0.06398680227 | AH159: 4654.703 | AI159: 4616.164 | AJ159: 0.008348706848 | AK159: 4659.831 | AL159: -0.001100469094 | AN159: 0.012 | AP159: 0.012 | AQ159: 0.01201144388 | AS159: 0.01095296769 | AT159: 0.01229717993 | AV159: 0.01174630705 | AW159: 0.01212921838 | AY159: 0.01026361196 | BA159: -0.00299850075 | BB159: 0.04724409449 | BC159: -0.1338894211 | BD159: 0.08577855881 | BE159: 0.1790972628 | BF159: 0.0002378719055
B160: =IF($B159>=Base!$G$3,"",$B159+1) -> 154 | C160: =IF($B160="","",INDEX(Base!$B:$B,MATCH('Guia de BTC'!$B160,Base!$F:$F,0))) -> ARML3<XBSP> | D160: ARML3 | E160: Armac | F160: Máq. e equip. industriais | G160: 9.01 | H160: =IFERROR((_xll.ECONOMATICA(C160,"Partic in ibovespa")/100),"") ->  | I160: ON | J160: ON | K160: 0.488398424 | M160: 0.488398424 | N160: 3118637.499 | O160: 3118637.499 | P160: 3118637.499 | Q160: 1523137.64 | R160: 0.01878082404 | T160: 28605.78 | U160: 54917.08043 | V160: 2023-12-08 | W160: 0.5208904001 | Y160: 5553.322217 | Z160: 5.151111151 | AB160: 3203.124 | AC160: 3103.88 | AD160: 99.244 | AE160: 18042 | AF160: 0.005500720541 | AH160: 3203.124 | AI160: 3193.508 | AJ160: 0.003011108787 | AK160: 3260.899 | AL160: -0.01771750674 | AN160: 0.0092 | AP160: 0.0091 | AQ160: 0.009139455387 | AS160: 0.0091 | AT160: 0.009117582273 | AV160: 0.0091 | AW160: 0.00907520857 | AY160: 0.009046353385 | BA160: 0.001111111111 | BB160: 0.04161849711 | BC160: -0.4574725586 | BD160: -0.2492538314 | BE160: -0.3942869811 | BF160: -0.5215863045
B161: =IF($B160>=Base!$G$3,"",$B160+1) -> 155 | C161: =IF($B161="","",INDEX(Base!$B:$B,MATCH('Guia de BTC'!$B161,Base!$F:$F,0))) -> AMER3<XBSP> | D161: AMER3 | E161: Americanas | F161: Produtos diversos | G161: 6.52 | H161: =IFERROR((_xll.ECONOMATICA(C161,"Partic in ibovespa")/100),"") ->  | I161: ON | J161: ON | K161: 0.5076009877 | M161: 0.5076009877 | N161: 1285642.496 | O161: 1285642.496 | P161: 1285642.496 | Q161: 652593.4007 | R161: 0.04316676176 | T161: 28170.34385 | U161: 214164.7982 | V161: 2024-08-15 | W161: 0.131535827 | Y161: 58606.46374 | Z161: 0.4806695722 | AB161: 4203.322 | AC161: 424298.886 | AD161: -420095.564 | AE161: 29564.226 | AF161: 14.20959115 | AH161: 4203.322 | AI161: 3713.647 | AJ161: 0.1318582515 | AK161: 2432.983 | AL161: 0.7276413358 | AN161: 0.3146 | AO161: 0.4107 | AQ161: 0.3909469412 | AR161: 0.4107 | AS161: 0.5 | AT161: 0.4436758279 | AU161: 0.4107 | AV161: 0.5 | AW161: 0.9600904427 | AX161: 0.9265821507 | AY161: 0.8858146082 | BA161: -0.009118541034 | BB161: 0.129982669 | BC161: -0.9283516483 | BD161: -0.9185 | BE161: -0.9960508783 | BF161: -0.9981815404
B162: =IF($B161>=Base!$G$3,"",$B161+1) -> 156 | C162: =IF($B162="","",INDEX(Base!$B:$B,MATCH('Guia de BTC'!$B162,Base!$F:$F,0))) -> KEPL3<XBSP> | D162: KEPL3 | E162: Kepler Weber | F162: Máq. e equip. industriais | G162: 10.92 | H162: =IFERROR((_xll.ECONOMATICA(C162,"Partic in ibovespa")/100),"") ->  | I162: ON | J162: ON | K162: 0.9804600798 | M162: 0.9804600798 | N162: 1930437.6 | O162: 1930437.6 | P162: 1930437.6 | Q162: 1892717.003 | R162: 0.01487965053 | T162: 28162.96756 | U162: 34976.50889 | V162: 2023-11-27 | W162: 0.8051966435 | Y162: 8791.651913 | Z162: 3.203376093 | AB162: 2534.642 | AC162: 2310.511 | AD162: 224.131 | AE162: 25636.1 | AF162: 0.00874278849 | AH162: 2534.642 | AI162: 2538.459 | AJ162: -0.00150366817 | AK162: 2366.293 | AL162: 0.07114461311 | AN162: 0.0075 | AP162: 0.007 | AQ162: 0.0075 | AS162: 0.006993655391 | AT162: 0.0075 | AV162: 0.006880845936 | AW162: 0.006704199967 | AY162: 0.005754149238 | BA162: -0.001828153565 | BB162: -0.02238137869 | BC162: 0.06610651588 | BD162: -0.01558112764 | BE162: 0.2559437903 | BF162: 1.318932306
B163: =IF($B162>=Base!$G$3,"",$B162+1) -> 157 | C163: =IF($B163="","",INDEX(Base!$B:$B,MATCH('Guia de BTC'!$B163,Base!$F:$F,0))) -> RAPT4<XBSP> | D163: RAPT4 | E163: Randon Part | F163: Material rodoviário | G163: 11.15 | H163: =IFERROR((_xll.ECONOMATICA(C163,"Partic in ibovespa")/100),"") ->  | I163: PN | J163: PN | K163: 0.1828852046 | L163: 0.8300642437 | M163: 0.6010954745 | N163: 3380839.7 | O163: 2361324.7 | P163: 2361324.7 | Q163: 1960051.201 | R163: 0.01411265422 | T163: 27661.52485 | U163: 147447.8443 | V163: 2023-10-09 | W163: 0.1876020975 | Y163: 30108.99065 | Z163: 0.9187131236 | AB163: 2507.589 | AC163: 3836.373 | AD163: -1328.784 | AE163: 50388 | AF163: 0.02637104072 | AH163: 2507.589 | AI163: 2563.154 | AJ163: -0.0216783697 | AK163: 3381.128 | AL163: -0.2583572701 | AN163: 0.0015 | AP163: 0.0014 | AQ163: 0.0015 | AR163: 0.0015 | AS163: 0.001059897599 | AT163: 0.001556342296 | AU163: 0.0015 | AV163: 0.001308235997 | AW163: 0.001504549714 | AX163: 0.00142955192 | AY163: 0.00118963522 | BA163: 0.001796945193 | BB163: 0.01271571299 | BC163: -0.1173973502 | BD163: -0.02175501737 | BE163: 0.313475734 | BF163: 0.122871159
B164: =IF($B163>=Base!$G$3,"",$B163+1) -> 158 | C164: =IF($B164="","",INDEX(Base!$B:$B,MATCH('Guia de BTC'!$B164,Base!$F:$F,0))) -> LOGG3<XBSP> | D164: LOGG3 | E164: Log Com Prop | F164: Exploração de imóveis | G164: 22.85 | H164: =IFERROR((_xll.ECONOMATICA(C164,"Partic in ibovespa")/100),"") ->  | I164: ON | J164: ON | K164: 0.5241290084 | M164: 0.5241290084 | N164: 2117258.15 | O164: 2117258.15 | P164: 2117258.15 | Q164: 1109716.415 | R164: 0.02411339837 | T164: 26759.03399 | U164: 47437.26152 | V164: 2024-07-04 | W164: 0.5640931439 | Y164: 7720.178652 | Z164: 3.466115902 | AB164: 1136.56 | AC164: 1427.459 | AD164: -290.899 | AE164: 8460.3 | AF164: 0.0343840053 | AH164: 1136.56 | AI164: 1151.641 | AJ164: -0.01309522672 | AK164: 1319.515 | AL164: -0.1386532173 | AN164: 0.01 | AP164: 0.01 | AQ164: 0.01 | AS164: 0.01 | AT164: 0.006919166168 | AV164: 0.006195621445 | AW164: 0.004200840175 | AY164: 0.002549036817 | BA164: -0.009965337954 | BB164: -0.0235042735 | BC164: 0.03604643065 | BD164: 0.1723006759 | BE164: -0.07857511758 | BF164: -0.07632214838
B165: =IF($B164>=Base!$G$3,"",$B164+1) -> 159 | C165: =IF($B165="","",INDEX(Base!$B:$B,MATCH('Guia de BTC'!$B165,Base!$F:$F,0))) -> DASA3<XBSP> | D165: DASA3 | E165: Dasa | F165: Serviços médico-hospitalares análises e diagnósticos | G165: 3.06 | H165: =IFERROR((_xll.ECONOMATICA(C165,"Partic in ibovespa")/100),"") ->  | I165: ON | J165: ON | K165: 0.1944236002 | M165: 0.1944236002 | N165: 2303567.523 | O165: 2303567.523 | P165: 2303567.523 | Q165: 447867.891 | R165: 0.05951872696 | T165: 26656.52672 | U165: 54357.14724 | V165: 2023-09-19 | W165: 0.4903959842 | Y165: 2842.432348 | Z165: 9.378069012 | AB165: 8501.166 | AC165: 8753.933 | AD165: -252.767 | AE165: 26922.4 | AF165: 0.009388724631 | AH165: 8501.166 | AI165: 8026.422 | AJ165: 0.0591476501 | AK165: 7091.806 | AL165: 0.1987307605 | AN165: 0.0398 | AO165: 0.3501 | AP165: 0.0286 | AQ165: 0.03453074871 | AR165: 0.3501 | AS165: 0.03123805735 | AT165: 0.03375590017 | AU165: 0.3501 | AV165: 0.03112361078 | AW165: 0.03234101879 | AX165: 0.3501 | AY165: 0.03064912731 | BA165: -0.0129032258 | BB165: 0.02341137124 | BC165: -0.6819126819 | BD165: -0.7327510917 | BE165: -0.8504204679 | BF165: -0.9321828383
B166: =IF($B165>=Base!$G$3,"",$B165+1) -> 160 | C166: =IF($B166="","",INDEX(Base!$B:$B,MATCH('Guia de BTC'!$B166,Base!$F:$F,0))) -> AERI3<XBSP> | D166: AERI3 | E166: Aeris | F166: Máq. e equip. industriais | G166: 8.14 | H166: =IFERROR((_xll.ECONOMATICA(C166,"Partic in ibovespa")/100),"") ->  | I166: ON | J166: ON | K166: 0.5708463637 | M166: 0.5708463637 | N166: 498452.4197 | O166: 498452.4197 | P166: 498452.4197 | Q166: 284539.7513 | R166: 0.08271486111 | T166: 23535.66601 | U166: 33772.67479 | V166: 2023-10-04 | W166: 0.6968848679 | Y166: 4286.445652 | Z166: 5.490718399 | AB166: 2449.811 | AC166: 1986.021 | AD166: 463.79 | AE166: 6405.8 | AF166: 0.07240157357 | AH166: 2449.811 | AI166: 2425.209 | AJ166: 0.01014428035 | AK166: 2421.685 | AL166: 0.01161422728 | AN166: 0.0189 | AO166: 0.0189 | AP166: 0.0189 | AQ166: 0.0189 | AR166: 0.0189 | AS166: 0.01889338698 | AT166: 0.0189 | AU166: 0.0189 | AV166: 0.01889421599 | AW166: 0.01704033268 | AX166: 0.0189 | AY166: 0.01663955842 | BA166: -0.00731707317 | BB166: -0.3272727273 | BC166: -0.5477777778 | BD166: -0.5576086957 | BE166: -0.8260683761 | BF166: -0.9578952291
B167: =IF($B166>=Base!$G$3,"",$B166+1) -> 161 | C167: =IF($B167="","",INDEX(Base!$B:$B,MATCH('Guia de BTC'!$B167,Base!$F:$F,0))) -> GFSA3<XBSP> | D167: GFSA3 | E167: Gafisa | F167: Incorporações | G167: 2.52 | H167: =IFERROR((_xll.ECONOMATICA(C167,"Partic in ibovespa")/100),"") ->  | I167: ON | J167: =LEFT(I167,2) -> ON | K167: 0.9981554122 | M167: 0.9981554122 | N167: 225395.1403 | O167: 225395.1403 | P167: =IF(N167="","",IF(O167>1,O167,N167)) -> 225395.1403 | Q167: =IFERROR(IF(J167="on",P167*K167,IF(J167="pn",P167*L167,IF(J167="un",P167*M167,""))),"") -> 224979.3792 | R167: =IFERROR(T167/Q167,"") -> 0.1038825273 | T167: 23371.42651 | U167: 98208.11551 | V167: 2024-02-07 | W167: =IFERROR(T167/U167,"") -> 0.2379785661 | Y167: 9567.16 | Z167: =IFERROR(T167/Y167,"") -> 2.442880281 | AB167: 8943.337 | AC167: 8140.279 | AD167: =IF(AB167="","",AB167-AC167) -> 803.058 | AE167: 75929.1 | AF167: 0.01057641932 | AH167: 8943.337 | AI167: 9489.679 | AJ167: =IFERROR((AH167/AI167)-1,"") -> -0.0575722319 | AK167: 9887.558 | AL167: =IFERROR((AH167/AK167)-1,"") -> -0.09549587471 | AN167: 0.0781 | AP167: 0.0793 | AQ167: 0.07904180748 | AS167: 0.07162709998 | AT167: 0.07307388314 | AV167: 0.05857514843 | AW167: 0.04913584818 | AY167: 0.04169717989 | BA167: -0.007874015748 | BB167: -0.04182509506 | BC167: -0.7160394447 | BD167: -0.302153541 | BE167: -0.7226003998 | BF167: -0.886813541
B168: =IF($B167>=Base!$G$3,"",$B167+1) -> 162 | C168: =IF($B168="","",INDEX(Base!$B:$B,MATCH('Guia de BTC'!$B168,Base!$F:$F,0))) -> AZEV4<XBSP> | D168: AZEV4 | E168: Azevedo | F168: Construção pesada | G168: 1.33 | H168: =IFERROR((_xll.ECONOMATICA(C168,"Partic in ibovespa")/100),"") ->  | I168: PN | J168: PN | K168: 0.6391916932 | L168: 0.90654471 | M168: 0.8153350948 | N168: 248932.1127 | O168: 164006.9311 | P168: 164006.9311 | Q168: 148679.6158 | R168: 0.1502700681 | T168: 22342.09598 | U168: 22368.4012 | V168: 2024-09-17 | W168: 0.9988240009 | Y168: 7123.522522 | Z168: 3.136383146 | AB168: 16167.342 | AC168: 11000.853 | AD168: 5166.489 | AE168: 70910.7 | AF168: 0.07285908897 | AH168: 16167.342 | AI168: 16121.063 | AJ168: 0.002870716404 | AK168: 15886.777 | AL168: 0.0176602844 | AN168: 0.0375 | AP168: 0.0329 | AQ168: 0.0368129513 | AS168: 0.03152625963 | AT168: 0.03670677991 | AV168: 0.03216923656 | AW168: 0.03484743296 | AX168: 0.001 | AY168: 0.03337301311 | BA168: 0.01526717557 | BB168: -0.1133333333 | BC168: -0.3214285714 | BD168: -0.3755868545 | BE168: -0.3605769231 | BF168: -0.7302196382
B169: =IF($B168>=Base!$G$3,"",$B168+1) -> 163 | C169: =IF($B169="","",INDEX(Base!$B:$B,MATCH('Guia de BTC'!$B169,Base!$F:$F,0))) -> GUAR3<XBSP> | D169: GUAR3 | E169: Guararapes | F169: Tecidos vestuário e calçados | G169: 8.92 | H169: =IFERROR((_xll.ECONOMATICA(C169,"Partic in ibovespa")/100),"") ->  | I169: ON | J169: ON | K169: 0.1641483574 | M169: 0.1641483574 | N169: 4452841.165 | O169: 4452841.165 | P169: 4452841.165 | Q169: 730926.5628 | R169: 0.03034270846 | T169: 22178.2916 | U169: 50706.88692 | V169: 2023-09-21 | W169: 0.4373822364 | Y169: 9028.284 | Z169: 2.456534553 | AB169: 2501.939 | AC169: 3724.954 | AD169: -1223.015 | AE169: 33149.5 | AF169: 0.03689391997 | AH169: 2501.939 | AI169: 2525.405 | AJ169: -0.009291974951 | AK169: 2487.886 | AL169: 0.005648570714 | AN169: 0.0118 | AP169: 0.005 | AQ169: 0.0118 | AS169: 0.004550790077 | AT169: 0.01182744882 | AV169: 0.00540939767 | AW169: 0.01288002762 | AY169: 0.004713413453 | BA169: -0.002237136466 | BB169: 0.03002309469 | BC169: 0.3868761518 | BD169: 0.5451737705 | BE169: -0.01403128104 | BF169: -0.3300215979
B170: =IF($B169>=Base!$G$3,"",$B169+1) -> 164 | C170: =IF($B170="","",INDEX(Base!$B:$B,MATCH('Guia de BTC'!$B170,Base!$F:$F,0))) -> AURA33<XBSP> | D170: AURA33 | E170: Aura 360 | F170: Minerais metálicos | G170: 21.13 | H170: =IFERROR((_xll.ECONOMATICA(C170,"Partic in ibovespa")/100),"") ->  | I170: ON | J170: ON | K170: 0.405223007 | M170: 0.405223007 | N170: 4589343.768 | O170: 4589343.768 | P170: 4589343.768 | Q170: 1859707.681 | R170: 0.01138237035 | T170: 21167.88157 | U170: 21167.88157 | V170: 2024-09-18 | W170: 1 | Y170: 6359.746418 | Z170: 3.328415974 | AB170: 1057.71 | AC170: 308.229 | AD170: 749.481 | AE170: 4750.039 | AF170: 0.1577841782 | AH170: 1057.71 | AI170: 621.663 | AJ170: 0.7014202229 | AK170: 538.187 | AL170: 0.9653206042 | AP170: 0.0235 | AQ170: 0.1189 | AS170: 0.03540121112 | AT170: 0.1033246463 | AV170: 0.03930504321 | AW170: 0.1059368565 | AY170: 0.05432364322 | BA170: -0.01720930233 | BB170: 0.160989011 | BC170: 0.8771722381 | BD170: 1.141110005 | BE170: 1.250324785 | BF170: 0.3599046684
B171: =IF($B170>=Base!$G$3,"",$B170+1) -> 165 | C171: =IF($B171="","",INDEX(Base!$B:$B,MATCH('Guia de BTC'!$B171,Base!$F:$F,0))) -> QUAL3<XBSP> | D171: QUAL3 | E171: Qualicorp | F171: Serviços médico-hospitalares análises e diagnósticos | G171: 2.12 | H171: =IFERROR((_xll.ECONOMATICA(C171,"Partic in ibovespa")/100),"") ->  | I171: ON | J171: ON | K171: 0.9804692492 | M171: 0.9804692492 | N171: 592006.4214 | O171: 592006.4214 | P171: 592006.4214 | Q171: 580444.0916 | R171: 0.03640125891 | T171: 21128.89566 | U171: 77442.74979 | V171: 2023-09-26 | W171: 0.2728324565 | Y171: 9802.059348 | Z171: 2.155556798 | AB171: 10294.253 | AC171: 11278.593 | AD171: -984.34 | AE171: 62420.2 | AF171: 0.01576957459 | AH171: 10294.253 | AI171: 10299.064 | AJ171: -0.0004671298285 | AK171: 10293.685 | AL171: 5.517946197e-05 | AN171: 0.0015 | AP171: 0.0015 | AQ171: 0.001537737426 | AS171: 0.0006304389304 | AT171: 0.00178278349 | AV171: 0.001241678509 | AW171: 0.001872125222 | AY171: 0.001548421788 | BA171: -0.02304147465 | BB171: -0.06607929515 | BC171: -0.3764705882 | BD171: -0.298013245 | BE171: -0.7445486554 | BF171: -0.9015399676
B172: =IF($B171>=Base!$G$3,"",$B171+1) -> 166 | C172: =IF($B172="","",INDEX(Base!$B:$B,MATCH('Guia de BTC'!$B172,Base!$F:$F,0))) -> GRND3<XBSP> | D172: GRND3 | E172: Grendene | F172: Calçados | G172: 6.07 | H172: =IFERROR((_xll.ECONOMATICA(C172,"Partic in ibovespa")/100),"") ->  | I172: ON | J172: ON | K172: 0.2971779795 | M172: 0.2971779795 | N172: 5476111.2 | O172: 5476111.2 | P172: 5476111.2 | Q172: 1627379.662 | R172: 0.01276267213 | T172: 20769.71306 | U172: 104132.432 | V172: 2024-03-15 | W172: 0.1994547968 | Y172: 4317.576783 | Z172: 4.810502304 | AB172: 3395.582 | AC172: 7893.165 | AD172: -4497.583 | AE172: 19860.9 | AF172: 0.2264541385 | AH172: 3395.582 | AI172: 3315.799 | AJ172: 0.02406147055 | AK172: 3479.267 | AL172: -0.02405248002 | AN172: 0.0016 | AO172: 0.0016 | AP172: 0.0016 | AQ172: 0.0016 | AR172: 0.0016 | AS172: 0.001589760904 | AT172: 0.0016 | AU172: 0.0016 | AV172: 0.001593398914 | AW172: 0.0016 | AX172: 0.0016 | AY172: 0.001512110015 | BA172: -0.008169934641 | BB172: 0.01166666667 | BC172: -0.1046801582 | BD172: -0.08658834734 | BE172: 0.05009990893 | BF172: -0.1941292139
B173: =IF($B172>=Base!$G$3,"",$B172+1) -> 167 | C173: =IF($B173="","",INDEX(Base!$B:$B,MATCH('Guia de BTC'!$B173,Base!$F:$F,0))) -> PNVL3<XBSP> | D173: PNVL3 | E173: Dimed | F173: Medicamentos e outros produtos | G173: 10.38 | H173: =IFERROR((_xll.ECONOMATICA(C173,"Partic in ibovespa")/100),"") ->  | I173: ON | J173: ON | K173: 0.4760424335 | M173: 0.4760424335 | N173: 1550333.352 | O173: 1550333.352 | P173: 1550333.352 | Q173: 738024.4614 | R173: 0.02702087613 | T173: 19942.06755 | U173: 22827.88297 | V173: 2024-09-10 | W173: 0.8735837474 | Y173: 3751.187522 | Z173: 5.316201186 | AB173: 1949.061 | AC173: 1446.905 | AD173: 502.156 | AE173: 7228.9 | AF173: 0.06946506384 | AH173: 1949.061 | AI173: 1941.152 | AJ173: 0.004074384695 | AK173: 1966.509 | AL173: -0.008872575717 | AN173: 0.0014 | AP173: 0.0013 | AQ173: 0.001372822663 | AS173: 0.001243956532 | AT173: 0.001250565751 | AV173: 0.001233914203 | AW173: 0.001051296571 | AX173: 0.001 | AY173: 0.001017819187 | BA173: 0.002898550725 | BB173: 0.03078450844 | BC173: -0.2121397866 | BD173: -0.1247845395 | BE173: -0.07910114698 | BF173: -0.3278040474
B174: =IF($B173>=Base!$G$3,"",$B173+1) -> 168 | C174: =IF($B174="","",INDEX(Base!$B:$B,MATCH('Guia de BTC'!$B174,Base!$F:$F,0))) -> SOJA3<XBSP> | D174: SOJA3 | E174: Boa Safra | F174: Agricultura | G174: 12.75 | H174: =IFERROR((_xll.ECONOMATICA(C174,"Partic in ibovespa")/100),"") ->  | I174: ON | J174: ON | K174: 0.3416543932 | M174: 0.3416543932 | N174: 1718780.886 | O174: 1718780.886 | P174: 1718780.886 | Q174: 587229.0407 | R174: 0.03390535002 | T174: 19910.20617 | U174: 38475.6623 | V174: 2024-04-18 | W174: 0.5174753332 | Y174: 10805.73609 | Z174: 1.84255899 | AB174: 1542.821 | AC174: 364.571 | AD174: 1178.25 | AE174: 10661.9 | AF174: 0.1105103218 | AH174: 1542.821 | AI174: 1535.401 | AJ174: 0.00483261376 | AK174: 1455.251 | AL174: 0.06017518627 | AN174: 0.0196 | AP174: 0.0196 | AQ174: 0.0196321584 | AS174: 0.01714337047 | AT174: 0.01973270938 | AV174: 0.01793286218 | AW174: 0.01989506069 | AY174: 0.02078889883 | BA174: -0.009324009324 | BB174: -0.007782101167 | BC174: -0.2144177449 | BD174: -0.02773371059 | BE174: -0.0009254176084 | BF174: -0.001495638392
B175: =IF($B174>=Base!$G$3,"",$B174+1) -> 169 | C175: =IF($B175="","",INDEX(Base!$B:$B,MATCH('Guia de BTC'!$B175,Base!$F:$F,0))) -> RANI3<XBSP> | D175: RANI3 | E175: Irani | F175: Embalagens | G175: 7.72 | H175: =IFERROR((_xll.ECONOMATICA(C175,"Partic in ibovespa")/100),"") ->  | I175: ON | J175: =LEFT(I175,2) -> ON | K175: 0.4427298122 | M175: 0.4427298122 | N175: 1846963.68 | O175: 1846963.68 | P175: =IF(N175="","",IF(O175>1,O175,N175)) -> 1846963.68 | Q175: =IFERROR(IF(J175="on",P175*K175,IF(J175="pn",P175*L175,IF(J175="un",P175*M175,""))),"") -> 817705.8832 | R175: =IFERROR(T175/Q175,"") -> 0.02382071372 | T175: 19478.33775 | U175: 21577.19644 | V175: 2024-02-26 | W175: 0.9027279241 | Y175: 10726.63809 | Z175: 1.815884678 | AB175: 2493.884 | AC175: 1880.635 | AD175: 613.249 | AE175: 17351.7 | AF175: 0.03534230075 | AH175: 2493.884 | AI175: 2498.952 | AJ175: -0.002028050159 | AK175: 2480.849 | AL175: 0.005254249654 | AN175: 0.004 | AP175: 0.0024 | AQ175: 0.003841697305 | AS175: 0.003036200078 | AT175: 0.003675060891 | AV175: 0.003192365363 | AW175: 0.003390516088 | AY175: 0.003082982455 | BA175: -0.005154639175 | BB175: -0.0337922403 | BC175: -0.2540891707 | BD175: -0.342685125 | BE175: 0.1364645642 | BF175: 0.5653232803
B176: =IF($B175>=Base!$G$3,"",$B175+1) -> 170 | C176: =IF($B176="","",INDEX(Base!$B:$B,MATCH('Guia de BTC'!$B176,Base!$F:$F,0))) -> PGMN3<XBSP> | D176: PGMN3 | E176: Pague Menos | F176: Medicamentos e outros produtos | G176: 2.87 | H176: =IFERROR((_xll.ECONOMATICA(C176,"Partic in ibovespa")/100),"") ->  | I176: ON | J176: ON | K176: 0.3099674255 | M176: 0.3099674255 | N176: 1668357.955 | O176: 1668357.955 | P176: 1668357.955 | Q176: 517136.6201 | R176: 0.03694997661 | T176: 19108.18602 | U176: 26868.79745 | V176: 2024-04-22 | W176: 0.7111664024 | Y176: 2387.078087 | Z176: 8.004843295 | AB176: 6190.735 | AC176: 5878.962 | AD176: 311.773 | AE176: 18959.2 | AF176: 0.01644441749 | AH176: 6190.735 | AI176: 6085.037 | AJ176: 0.01737014911 | AK176: 6025.232 | AL176: 0.02746831989 | AN176: 0.0606 | AP176: 0.0369 | AQ176: 0.0616550215 | AS176: 0.038427733 | AT176: 0.06174690758 | AV176: 0.05205994184 | AW176: 0.06603397973 | AY176: 0.05771370349 | BA176: -0.003472222223 | BB176: -0.06818181818 | BC176: -0.2028676968 | BD176: -0.1445409429 | BE176: -0.3408314612 | BF176: -0.743155029
B177: =IF($B176>=Base!$G$3,"",$B176+1) -> 171 | C177: =IF($B177="","",INDEX(Base!$B:$B,MATCH('Guia de BTC'!$B177,Base!$F:$F,0))) -> FRAS3<XBSP> | D177: FRAS3 | E177: Fras-Le | F177: Material rodoviário | G177: 20.66 | H177: =IFERROR((_xll.ECONOMATICA(C177,"Partic in ibovespa")/100),"") ->  | I177: ON | J177: ON | K177: 0.3315215368 | M177: 0.3315215368 | N177: 5516550.56 | O177: 5516550.56 | P177: 5516550.56 | Q177: 1828855.32 | R177: 0.01029542297 | T177: 18828.83907 | U177: 29876.77079 | V177: 2024-06-20 | W177: 0.6302166724 | Y177: 11752.45235 | Z177: 1.60212001 | AB177: 969.802 | AC177: 969.961 | AD177: -0.159 | AE177: 11414.7 | AF177: 1.392940682e-05 | AH177: 969.802 | AI177: 951.121 | AJ177: 0.01964103411 | AK177: 1017.791 | AL177: -0.04715015165 | AN177: 0.0332 | AP177: 0.0332 | AQ177: 0.0332 | AS177: 0.0332 | AT177: 0.0332 | AV177: 0.0332 | AW177: 0.0332 | AY177: 0.0329968275 | BA177: 0.0009689922481 | BB177: 0.04660587639 | BC177: 0.239111691 | BD177: 0.4457176504 | BE177: 0.7776866166 | BF177: 0.5240385421
B178: =IF($B177>=Base!$G$3,"",$B177+1) -> 172 | C178: =IF($B178="","",INDEX(Base!$B:$B,MATCH('Guia de BTC'!$B178,Base!$F:$F,0))) -> JALL3<XBSP> | D178: JALL3 | E178: Jallesmachad | F178: Açúcar e álcool | G178: 6.71 | H178: =IFERROR((_xll.ECONOMATICA(C178,"Partic in ibovespa")/100),"") ->  | I178: ON | J178: ON | K178: 0.3170108918 | M178: 0.3170108918 | N178: 2023384.825 | O178: 2023384.825 | P178: =IF(N178="","",IF(O178>1,O178,N178)) -> 2023384.825 | Q178: =IFERROR(IF(J178="on",P178*K178,IF(J178="pn",P178*L178,IF(J178="un",P178*M178,""))),"") -> 641435.0279 | R178: =IFERROR(T178/Q178,"") -> 0.02887310188 | T178: 18520.21891 | U178: 41402.74484 | V178: 2024-07-03 | W178: 0.4473186254 | Y178: 3450.058565 | Z178: 5.368088269 | AB178: 2764.115 | AC178: 3417.397 | AD178: -653.282 | AE178: 12137.9 | AF178: 0.05382166602 | AH178: 2764.115 | AI178: 2798.826 | AJ178: -0.01240198569 | AK178: 2821.093 | AL178: -0.02019713636 | AN178: 0.0178 | AP178: 0.0178 | AQ178: 0.0178 | AS178: 0.0178 | AT178: 0.0178 | AV178: 0.0178 | AW178: 0.01791922259 | AY178: 0.01723339318 | BA178: -0.004451038575 | BB178: -0.001488095238 | BC178: -0.1357629612 | BD178: -0.2537865216 | BE178: -0.004322767943 | BF178: -0.2526655884
B179: =IF($B178>=Base!$G$3,"",$B178+1) -> 173 | C179: =IF($B179="","",INDEX(Base!$B:$B,MATCH('Guia de BTC'!$B179,Base!$F:$F,0))) -> ABCB4<XBSP> | D179: ABCB4 | E179: Abc Brasil | F179: Bancos | G179: 23.05 | H179: =IFERROR((_xll.ECONOMATICA(C179,"Partic in ibovespa")/100),"") ->  | I179: PN | J179: PN | K179: 0 | L179: 0.607138092 | M179: 0.3019975156 | N179: 5534191.156 | O179: 2699923.879 | P179: 2699923.879 | Q179: 1639226.632 | R179: 0.009820169086 | T179: 16097.4827 | U179: 180556.2098 | V179: 2024-06-26 | W179: 0.08915496574 | Y179: 16656.73048 | Z179: 0.9664251169 | AB179: 690.355 | AC179: 2640.51 | AD179: -1950.155 | AE179: 14311.5 | AF179: 0.1362648919 | AH179: 690.355 | AI179: 667.195 | AJ179: 0.03471249035 | AK179: 688.723 | AL179: 0.002369602874 | AN179: 0.0002 | AP179: 0.0004 | AQ179: 0.0003651308594 | AS179: 0.0004005615088 | AT179: 0.0003755832396 | AV179: 0.000573989609 | AW179: 0.000451744972 | AX179: 0.001 | AY179: 0.0005337732007 | BA179: -0.006037084952 | BB179: -0.008602150538 | BC179: -0.009552904065 | BD179: 0.2050920934 | BE179: 0.320512796 | BF179: 0.9381983984
B180: =IF($B179>=Base!$G$3,"",$B179+1) -> 174 | C180: =IF($B180="","",INDEX(Base!$B:$B,MATCH('Guia de BTC'!$B180,Base!$F:$F,0))) -> USIM3<XBSP> | D180: USIM3 | E180: Usiminas | F180: Siderurgia | G180: 6.1 | H180: =IFERROR((_xll.ECONOMATICA(C180,"Partic in ibovespa")/100),"") ->  | I180: ON | J180: ON | K180: 0.2283152977 | L180: 0.9405661391 | M180: 0.5396955856 | N180: 7593496.163 | O180: 4286677.571 | P180: 4286677.571 | Q180: 978714.0656 | R180: 0.01612763798 | T180: 15784.34614 | U180: 34095.26465 | V180: 2024-03-12 | W180: 0.4629483391 | Y180: 2201.779652 | Z180: 7.168903629 | AB180: 2557.302 | AC180: 2868.161 | AD180: -310.859 | AE180: 14134.5 | AF180: 0.02199292511 | AH180: 2557.302 | AI180: 2493.344 | AJ180: 0.02565149454 | AK180: 2559.559 | AL180: -0.0008817925275 | AN180: 0.0398 | AP180: 0.0398 | AQ180: 0.0398 | AS180: 0.0398 | AT180: 0.0398 | AV180: 0.0398 | AW180: 0.0398 | AY180: 0.03955807972 | BA180: 0.02006688963 | BB180: 0.001642036124 | BC180: -0.3148919777 | BD180: -0.1084874391 | BE180: -0.1688994388 | BF180: -0.4903238002
B181: =IF($B180>=Base!$G$3,"",$B180+1) -> 175 | C181: =IF($B181="","",INDEX(Base!$B:$B,MATCH('Guia de BTC'!$B181,Base!$F:$F,0))) -> SEQL3<XBSP> | D181: SEQL3 | E181: Sequoia Log | F181: Serviços diversos | G181: 4.97 | H181: =IFERROR((_xll.ECONOMATICA(C181,"Partic in ibovespa")/100),"") ->  | I181: ON | J181: ON | K181: 0.9719485491 | M181: 0.9719485491 | N181: 111415.7901 | O181: 111415.7901 | P181: 111415.7901 | Q181: 108290.4155 | R181: 0.1375831653 | T181: 14898.93814 | U181: 20848.24928 | V181: 2024-04-22 | W181: 0.7146373751 | Y181: 5270.957957 | Z181: 2.826609179 | AB181: 2609.856 | AC181: 2204.203 | AD181: 405.653 | AE181: 33471.8 | AF181: 0.01211924665 | AH181: 2609.856 | AI181: 2428.823 | AJ181: 0.07453527902 | AK181: 2223.815 | AL181: 0.1735940265 | AN181: 0.1322 | AP181: 0.1322 | AQ181: 0.1319411901 | AS181: 0.131090412 | AT181: 0.1318260981 | AU181: 0.131 | AV181: 0.1310539315 | AW181: 0.134679191 | AX181: 0.1335279357 | AY181: 0.1329679306 | BA181: -0.009960159362 | BB181: -0.2222222222 | BC181: -0.3460526316 | BD181: -0.512745098 | BE181: -0.9621966991 | BF181: -0.9848073947
B182: =IF($B181>=Base!$G$3,"",$B181+1) -> 176 | C182: =IF($B182="","",INDEX(Base!$B:$B,MATCH('Guia de BTC'!$B182,Base!$F:$F,0))) -> TRIS3<XBSP> | D182: TRIS3 | E182: Trisul | F182: Incorporações | G182: 5.23 | H182: =IFERROR((_xll.ECONOMATICA(C182,"Partic in ibovespa")/100),"") ->  | I182: ON | J182: ON | K182: 0.383114587 | M182: 0.383114587 | N182: 952450.99 | O182: 952450.99 | P182: 952450.99 | Q182: 364897.8677 | R182: 0.03686313871 | T182: 13451.28071 | U182: 24299.31034 | V182: 2023-11-06 | W182: 0.5535663573 | Y182: 1957.209044 | Z182: 6.872684732 | AB182: 2840.783 | AC182: 3150.533 | AD182: -309.75 | AE182: 10132.3 | AF182: 0.0305705516 | AH182: 2840.783 | AI182: 2700.27 | AJ182: 0.05203664819 | AK182: 2712.552 | AL182: 0.04727319513 | AN182: 0.0099 | AP182: 0.0099 | AQ182: 0.0099 | AS182: 0.009866081768 | AT182: 0.0099 | AV182: 0.009820929446 | AW182: 0.009827802991 | AY182: 0.008263120536 | BA182: 0.021484375 | BB182: 0.132034632 | BC182: -0.05862527801 | BD182: -0.06507305007 | BE182: 0.1758505143 | BF182: -0.21054552
B183: =IF($B182>=Base!$G$3,"",$B182+1) -> 177 | C183: =IF($B183="","",INDEX(Base!$B:$B,MATCH('Guia de BTC'!$B183,Base!$F:$F,0))) -> ITSA3<XBSP> | D183: ITSA3 | E183: Itausa | F183: Bancos | G183: 11.09 | H183: =IFERROR((_xll.ECONOMATICA(C183,"Partic in ibovespa")/100),"") ->  | I183: ON | J183: ON | K183: 0.3622057776 | L183: 0.8120316681 | M183: 0.6574475335 | N183: 114593052.6 | O183: 39361759.18 | P183: 39361759.18 | Q183: 14257056.59 | R183: 0.0008965717592 | T183: 12782.47431 | U183: 13209.10652 | V183: 2024-09-17 | W183: 0.9677016603 | Y183: 1392.002652 | Z183: 9.182794508 | AB183: 1154.897 | AC183: 945.339 | AD183: 209.558 | AE183: 3401.8 | AF183: 0.06160209301 | AH183: 1154.897 | AI183: 1194.776 | AJ183: -0.03337780471 | AK183: 1114.735 | AL183: 0.03602829372 | AN183: 0.0091 | AP183: 0.0021 | AQ183: 0.0091 | AS183: 0.004164851378 | AT183: 0.009238257747 | AU183: 0.001 | AV183: 0.004095305308 | AW183: 0.009344110846 | AX183: 0.001 | AY183: 0.004277478475 | BA183: -0.005381165919 | BB183: 0.01776075106 | BC183: 0.1290382053 | BD183: 0.3375070474 | BE183: 0.5812537903 | BF183: 0.5010257935
B184: =IF($B183>=Base!$G$3,"",$B183+1) -> 178 | C184: =IF($B184="","",INDEX(Base!$B:$B,MATCH('Guia de BTC'!$B184,Base!$F:$F,0))) -> UTEC11<XBSP> | D184: UTEC11 | E184: Trend Us Tec | F184: - | G184: 18.24 | H184: =IFERROR((_xll.ECONOMATICA(C184,"Partic in ibovespa")/100),"") ->  | T184: 12166.29687 | U184: 23075.85296 | V184: 2023-10-30 | W184: 0.5272306463 | Y184: 2152.870669 | Z184: 5.65119728 | AB184: 962.737 | AC184: 990.517 | AD184: -27.78 | AE184: 1995.132 | AF184: 0.01392389075 | AH184: 962.737 | AI184: 963.737 | AJ184: -0.001037627486 | AK184: 963.73 | AL184: -0.001030371577 | AQ184: 0.03 | AT184: 0.03441444147 | AV184: 0.08 | AW184: 0.04351369028 | AY184: 0.03739885186 | BA184: -0.009234111896 | BB184: -0.04801670146 | BC184: 0.3019271949 | BD184: 0.4841334418 | BE184: 0.7640232108
B185: =IF($B184>=Base!$G$3,"",$B184+1) -> 179 | C185: =IF($B185="","",INDEX(Base!$B:$B,MATCH('Guia de BTC'!$B185,Base!$F:$F,0))) -> VULC3<XBSP> | D185: VULC3 | E185: Vulcabras | F185: Calçados | G185: 18 | H185: =IFERROR((_xll.ECONOMATICA(C185,"Partic in ibovespa")/100),"") ->  | I185: ON | J185: ON | K185: 0.3508321733 | M185: 0.3508321733 | N185: 4908006 | O185: 4908006 | P185: =IF(N185="","",IF(O185>1,O185,N185)) -> 4908006 | Q185: =IFERROR(IF(J185="on",P185*K185,IF(J185="pn",P185*L185,IF(J185="un",P185*M185,""))),"") -> 1721886.412 | R185: =IFERROR(T185/Q185,"") -> 0.007055174521 | T185: 12148.20914 | U185: 121076.7406 | V185: 2024-02-02 | W185: 0.1003347883 | Y185: 13451.623 | Z185: 0.9031035987 | AB185: 679.496 | AC185: 1576.449 | AD185: -896.953 | AE185: 18914.4 | AF185: 0.04742169987 | AH185: 679.496 | AI185: 668.32 | AJ185: 0.01672252813 | AK185: 713.446 | AL185: -0.04758594203 | AN185: 0.0018 | AP185: 0.0018 | AQ185: 0.0018 | AS185: 0.0018 | AT185: 0.001939304845 | AV185: 0.001852372928 | AW185: 0.0007993038197 | AY185: 0.0009895036652 | BA185: -0.002770083101 | BB185: 0.01867572156 | BC185: 0.0241580409 | BD185: -0.008111276036 | BE185: 0.5959175958 | BF185: 1.579296664
B186: =IF($B185>=Base!$G$3,"",$B185+1) -> 180 | C186: =IF($B186="","",INDEX(Base!$B:$B,MATCH('Guia de BTC'!$B186,Base!$F:$F,0))) -> ROMI3<XBSP> | D186: ROMI3 | E186: Romi | F186: Máq. e equip. industriais | G186: 11.61 | H186: =IFERROR((_xll.ECONOMATICA(C186,"Partic in ibovespa")/100),"") ->  | I186: ON | J186: ON | K186: 0.5353852074 | M186: 0.5353852074 | N186: 1081712.373 | O186: 1081712.373 | P186: 1081712.373 | Q186: 579132.803 | R186: 0.02039725513 | T186: 11812.71954 | U186: 24739.82337 | V186: 2023-10-26 | W186: 0.4774779255 | Y186: 2474.615435 | Z186: 4.773557691 | AB186: 1074.706 | AC186: 1267.637 | AD186: -192.931 | AE186: 2953 | AF186: 0.06533389773 | AH186: 1074.706 | AI186: 998.066 | AJ186: 0.07678850898 | AK186: 1019.998 | AL186: 0.05363539929 | AN186: 0.0013 | AP186: 0.0013 | AQ186: 0.0013 | AS186: 0.0013 | AT186: 0.0013 | AU186: 0.0013 | AV186: 0.0013 | AW186: 0.001271436741 | AX186: 0.0013 | AY186: 0.001258535009 | BA186: 0.05067873303 | BB186: 0.05545454545 | BC186: -0.06228918054 | BD186: -0.0590847732 | BE186: 0.2289975206 | BF186: -0.1654582769
B187: =IF($B186>=Base!$G$3,"",$B186+1) -> 181 | C187: =IF($B187="","",INDEX(Base!$B:$B,MATCH('Guia de BTC'!$B187,Base!$F:$F,0))) -> PLPL3<XBSP> | D187: PLPL3 | E187: Planoeplano | F187: Incorporações | G187: 13.07 | H187: =IFERROR((_xll.ECONOMATICA(C187,"Partic in ibovespa")/100),"") ->  | I187: ON | J187: ON | K187: 0.2674814788 | M187: 0.2674814788 | N187: 2591205.92 | O187: 2591205.92 | P187: 2591205.92 | Q187: 693099.5913 | R187: 0.01703645476 | T187: 11807.95983 | U187: 25236.94433 | V187: 2023-10-30 | W187: 0.4678838958 | Y187: 8848.877522 | Z187: 1.334401996 | AB187: 959.641 | AC187: 718.313 | AD187: 241.328 | AE187: 21769.3 | AF187: 0.01108570326 | AH187: 959.641 | AI187: 970.845 | AJ187: -0.01154046217 | AK187: 950.802 | AL187: 0.009296362439 | AN187: 0.0928 | AP187: 0.0864 | AQ187: 0.0928 | AS187: 0.07633579604 | AT187: 0.09188623955 | AV187: 0.07717070622 | AW187: 0.08976587966 | AY187: 0.07545571173 | BA187: 0.00153256705 | BB187: 0.08645054032 | BC187: 0.1691530103 | BD187: 0.3835569565 | BE187: 3.017946927 | BF187: 2.905752438
B188: =IF($B187>=Base!$G$3,"",$B187+1) -> 182 | C188: =IF($B188="","",INDEX(Base!$B:$B,MATCH('Guia de BTC'!$B188,Base!$F:$F,0))) -> VLID3<XBSP> | D188: VLID3 | E188: Valid | F188: Serviços diversos | G188: 23.84 | H188: =IFERROR((_xll.ECONOMATICA(C188,"Partic in ibovespa")/100),"") ->  | I188: ON | J188: ON | K188: 0.9493970988 | M188: 0.9493970988 | N188: 1913853.673 | O188: 1913853.673 | P188: 1913853.673 | Q188: 1817007.124 | R188: 0.006451919926 | T188: 11723.18447 | U188: 12212.37772 | V188: 2024-09-03 | W188: 0.9599428333 | Y188: 9888.064609 | Z188: 1.185589388 | AB188: 512.576 | AC188: 446.196 | AD188: 66.38 | AE188: 12064.3 | AF188: 0.00550218413 | AH188: 512.576 | AI188: 536.485 | AJ188: -0.04456601769 | AK188: 460.447 | AL188: 0.1132138987 | AN188: 0.0002 | AP188: 0.0004 | AQ188: 0.0002 | AS188: 0.000385762115 | AT188: 0.0002 | AV188: 0.0005949431533 | AW188: 0.0003488813587 | AY188: 0.0004954770576 | BA188: -0.002927645337 | BB188: 0.04791208791 | BC188: 0.2343572637 | BD188: 0.4172328025 | BE188: 1.712779507 | BF188: 2.536767107
B189: =IF($B188>=Base!$G$3,"",$B188+1) -> 183 | C189: =IF($B189="","",INDEX(Base!$B:$B,MATCH('Guia de BTC'!$B189,Base!$F:$F,0))) -> BLAU3<XBSP> | D189: BLAU3 | E189: Blau | F189: Medicamentos e outros produtos | G189: 13.98 | H189: =IFERROR((_xll.ECONOMATICA(C189,"Partic in ibovespa")/100),"") ->  | I189: ON | J189: ON | K189: 0.1654500657 | M189: 0.1654500657 | N189: 2483976.731 | O189: 2483976.731 | P189: 2483976.731 | Q189: 410974.1134 | R189: 0.02633614752 | T189: 10823.47488 | U189: 108666.6592 | V189: 2023-11-10 | W189: 0.09960253641 | Y189: 5130.103478 | Z189: 2.109796601 | AB189: 783.319 | AC189: 798.828 | AD189: -15.509 | AE189: 4821.3 | AF189: 0.003216767262 | AH189: 783.319 | AI189: 756.303 | AJ189: 0.03572113293 | AK189: 747.171 | AL189: 0.04837982202 | AN189: 0.0283 | AP189: 0.0093 | AQ189: 0.02842692401 | AS189: 0.009728667111 | AT189: 0.02862047453 | AV189: 0.0233443964 | AW189: 0.02963347698 | AY189: 0.02136716176 | BA189: -0.03851444292 | BB189: 0.0007158196131 | BC189: -0.1254489219 | BD189: -0.1380550636 | BE189: -0.5171110318 | BF189: -0.6835131907
B190: =IF($B189>=Base!$G$3,"",$B189+1) -> 184 | C190: =IF($B190="","",INDEX(Base!$B:$B,MATCH('Guia de BTC'!$B190,Base!$F:$F,0))) -> PTBL3<XBSP> | D190: PTBL3 | E190: Portobello | F190: Produtos para construção | G190: 4.9 | H190: =IFERROR((_xll.ECONOMATICA(C190,"Partic in ibovespa")/100),"") ->  | I190: ON | J190: ON | K190: 0.3875349797 | M190: 0.3875349797 | N190: 690836.3 | O190: 690836.3 | P190: 690836.3 | Q190: 267723.2315 | R190: 0.0395156854 | T190: 10579.26699 | U190: 26599.4239 | V190: 2023-10-09 | W190: 0.397725418 | Y190: 2119.243696 | Z190: 4.992001161 | AB190: 2135.233 | AC190: 2716.816 | AD190: -581.583 | AE190: 12566.9 | AF190: 0.04627895503 | AH190: 2135.233 | AI190: 2145.962 | AJ190: -0.004999622547 | AK190: 2133.893 | AL190: 0.0006279602586 | AN190: 0.0193 | AP190: 0.0193 | AQ190: 0.0193 | AS190: 0.0193 | AT190: 0.0193 | AV190: 0.0193 | AW190: 0.01929049312 | AY190: 0.01781754736 | BA190: -0.01606425703 | BB190: 0.002044989775 | BC190: -0.3431635389 | BD190: -0.177852349 | BE190: -0.5537187479 | BF190: -0.5084230746
B191: =IF($B190>=Base!$G$3,"",$B190+1) -> 185 | C191: =IF($B191="","",INDEX(Base!$B:$B,MATCH('Guia de BTC'!$B191,Base!$F:$F,0))) -> BRAP3<XBSP> | D191: BRAP3 | E191: Bradespar | F191: Minerais metálicos | G191: 17.47 | H191: =IFERROR((_xll.ECONOMATICA(C191,"Partic in ibovespa")/100),"") ->  | I191: ON | J191: ON | K191: 0.2197189174 | L191: 0.983781689 | M191: 0.7155704116 | N191: 7142920.15 | O191: 2410685.3 | P191: 2410685.3 | Q191: 529673.1643 | R191: 0.01916302247 | T191: 10150.13875 | U191: 19878.69846 | V191: 2024-08-30 | W191: 0.5106037888 | Y191: 2871.647609 | Z191: 3.534604566 | AB191: 572.502 | AC191: 513.886 | AD191: 58.616 | AE191: 1425.8 | AF191: 0.04111095525 | AH191: 572.502 | AI191: 563.253 | AJ191: 0.01642068484 | AK191: 562.638 | AL191: 0.01753169889 | AN191: 0.012 | AP191: 0.0113 | AQ191: 0.01214500288 | AS191: 0.01006659464 | AT191: 0.01421837309 | AV191: 0.01040330052 | AW191: 0.01656338159 | AX191: 0.001 | AY191: 0.01489939387 | BA191: -0.01632882883 | BB191: -0.02402234637 | BC191: -0.2112507446 | BD191: -0.07972484348 | BE191: 0.04592904152 | BF191: 0.2184868088
B192: =IF($B191>=Base!$G$3,"",$B191+1) -> 186 | C192: =IF($B192="","",INDEX(Base!$B:$B,MATCH('Guia de BTC'!$B192,Base!$F:$F,0))) -> MTRE3<XBSP> | D192: MTRE3 | E192: Mitre Realty | F192: Incorporações | G192: 3.98 | H192: =IFERROR((_xll.ECONOMATICA(C192,"Partic in ibovespa")/100),"") ->  | I192: ON | J192: ON | K192: 0.5406383013 | M192: 0.5406383013 | N192: 420983.7836 | O192: 420983.7836 | P192: 420983.7836 | Q192: 227599.9576 | R192: 0.04180280304 | T192: 9514.3162 | U192: 37966.97869 | V192: 2024-03-19 | W192: 0.2505945042 | Y192: 2583.649261 | Z192: 3.682510759 | AB192: 2496.598 | AC192: 2912.859 | AD192: -416.261 | AE192: 14869.3 | AF192: 0.02799466014 | AH192: 2496.598 | AI192: 2676.435 | AJ192: -0.0671927396 | AK192: 2862.596 | AL192: -0.1278552754 | AN192: 0.0103 | AP192: 0.0103 | AQ192: 0.0103 | AS192: 0.0103 | AT192: 0.0103 | AV192: 0.0103 | AW192: 0.0103 | AY192: 0.01007311314 | BA192: 0.02577319587 | BB192: 0.06989247312 | BC192: -0.330423079 | BD192: -0.2113587316 | BE192: -0.025179462 | BF192: -0.3868903083
B193: =IF($B192>=Base!$G$3,"",$B192+1) -> 187 | C193: =IF($B193="","",INDEX(Base!$B:$B,MATCH('Guia de BTC'!$B193,Base!$F:$F,0))) -> MATD3<XBSP> | D193: MATD3 | E193: Mater Dei | F193: Serviços médico-hospitalares análises e diagnósticos | G193: 4.9 | H193: =IFERROR((_xll.ECONOMATICA(C193,"Partic in ibovespa")/100),"") ->  | I193: ON | J193: ON | K193: 0.2767977991 | M193: 0.2767977991 | N193: 1860074.236 | O193: 1860074.236 | P193: 1860074.236 | Q193: 514864.4548 | R193: 0.01827577705 | T193: 9409.54799 | U193: 32817.98362 | V193: 2023-12-04 | W193: 0.2867192604 | Y193: 3332.23213 | Z193: 2.823797269 | AB193: 1995.871 | AC193: 1234.323 | AD193: 761.548 | AE193: 13031.7 | AF193: 0.05843811629 | AH193: 1995.871 | AI193: 2043.872 | AJ193: -0.02348532589 | AK193: 2155.721 | AL193: -0.07415152517 | AN193: 0.1024 | AP193: 0.0567 | AQ193: 0.1024 | AS193: 0.0567 | AT193: 0.1024 | AV193: 0.0567 | AW193: 0.1023242399 | AY193: 0.1012674475 | BA193: 0.01871101871 | BB193: 0.05150214592 | BC193: -0.4053361188 | BD193: -0.4482840658 | BE193: -0.3978612942 | BF193: -0.7336717402
B194: =IF($B193>=Base!$G$3,"",$B193+1) -> 188 | C194: =IF($B194="","",INDEX(Base!$B:$B,MATCH('Guia de BTC'!$B194,Base!$F:$F,0))) -> ETER3<XBSP> | D194: ETER3 | E194: Eternit | F194: Produtos para construção | G194: 5.91 | H194: =IFERROR((_xll.ECONOMATICA(C194,"Partic in ibovespa")/100),"") ->  | I194: ON | J194: ON | K194: 0.9970456277 | M194: 0.9970456277 | N194: 364357.41 | O194: 364357.41 | P194: 364357.41 | Q194: 363280.9626 | R194: 0.02457002254 | T194: 8925.82144 | U194: 21617.15584 | V194: 2023-10-09 | W194: 0.4129045239 | Y194: 1340.883609 | Z194: 6.656671304 | AB194: 1519.583 | AC194: 1638.624 | AD194: -119.041 | AE194: 17103.7 | AF194: 0.006959956033 | AH194: 1519.583 | AI194: 1552.333 | AJ194: -0.02109727745 | AK194: 1594.669 | AL194: -0.04708563344 | AN194: 0.0075 | AQ194: 0.0075 | AT194: 0.0075 | AV194: 0.0075 | AW194: 0.0075 | AX194: 0.0075 | AY194: 0.0075 | BA194: 0.01721170396 | BB194: 0.008532423209 | BC194: -0.2842004892 | BD194: -0.2671275614 | BE194: -0.4945166856 | BF194: -0.5859519821
B195: =IF($B194>=Base!$G$3,"",$B194+1) -> 189 | C195: =IF($B195="","",INDEX(Base!$B:$B,MATCH('Guia de BTC'!$B195,Base!$F:$F,0))) -> SAPR4<XBSP> | D195: SAPR4 | E195: Sanepar | F195: Água e saneamento | G195: 6.5 | H195: =IFERROR((_xll.ECONOMATICA(C195,"Partic in ibovespa")/100),"") ->  | I195: PN | J195: PN | K195: 0.3991729394 | L195: 0.9999841157 | M195: 0.7997136894 | N195: 9586080.302 | O195: 6548556.69 | P195: 6548556.69 | Q195: 6548452.67 | R195: 0.001344342649 | T195: 8803.36421 | U195: 25333.8371 | V195: 2024-05-06 | W195: 0.3474943087 | Y195: 8969.65613 | Z195: 0.9814606137 | AB195: 1422.578 | AC195: 1191.513 | AD195: 231.065 | AE195: 24879.2 | AF195: 0.009287477089 | AH195: 1422.578 | AI195: 1663.608 | AJ195: -0.1448838909 | AK195: 1433.468 | AL195: -0.007596960658 | AN195: 0.0693 | AP195: 0.001 | AQ195: 0.0693 | AS195: 0.01266307099 | AT195: 0.06928194278 | AV195: 0.03143451153 | AW195: 0.06902616357 | AY195: 0.02758580741 | BA195: -0.009146341463 | BB195: 0.1111111111 | BC195: 0.1592418327 | BD195: 0.4558495511 | BE195: 1.117048498 | BF195: 1.139595195
B196: =IF($B195>=Base!$G$3,"",$B195+1) -> 190 | C196: =IF($B196="","",INDEX(Base!$B:$B,MATCH('Guia de BTC'!$B196,Base!$F:$F,0))) -> USAL11<XBSP> | D196: USAL11 | E196: Trend Us Lrg | F196: - | G196: 13.03 | H196: =IFERROR((_xll.ECONOMATICA(C196,"Partic in ibovespa")/100),"") ->  | T196: 8580.6512 | U196: 58598.24775 | V196: 2024-03-18 | W196: 0.1464318735 | Y196: 2486.728036 | Z196: 3.450578863 | AB196: 691.892 | AC196: 1244.494 | AD196: -552.602 | AE196: 5073.472 | AF196: 0.1089198876 | AH196: 691.892 | AI196: 692.388 | AJ196: -0.0007163613465 | AK196: 630.53 | AL196: 0.09731812919 | AN196: 0.08 | AQ196: 0.00250066734 | AT196: 0.00250066734 | AV196: 0.08 | AW196: 0.009354422362 | AY196: 0.02572241054 | BA196: -0.008371385084 | BB196: -0.0355292376 | BC196: 0.3282364934 | BD196: 0.4334433443 | BE196: 0.5365566038
B197: =IF($B196>=Base!$G$3,"",$B196+1) -> 191 | C197: =IF($B197="","",INDEX(Base!$B:$B,MATCH('Guia de BTC'!$B197,Base!$F:$F,0))) -> SANB4<XBSP> | D197: SANB4 | E197: Santander BR | F197: Bancos | G197: 15.83 | H197: =IFERROR((_xll.ECONOMATICA(C197,"Partic in ibovespa")/100),"") ->  | I197: PN | J197: PN | K197: 0.09345713471 | L197: 0.1045492304 | M197: 0.09890039265 | N197: 113342376.3 | O197: 57946759.78 | P197: 57946759.78 | Q197: 6058289.139 | R197: 0.001403009483 | T197: 8499.83711 | U197: 57167.49242 | V197: 2023-11-09 | W197: 0.1486830496 | Y197: 1549.061044 | Z197: 5.487089838 | AB197: 523.337 | AC197: 434.893 | AD197: 88.444 | AE197: 2271.7 | AF197: 0.0389329577 | AH197: 523.337 | AI197: 525.059 | AJ197: -0.003279631432 | AK197: 527.407 | AL197: -0.007717000343 | AN197: 0.0135 | AQ197: 0.0135 | AS197: 0.0135 | AT197: 0.01347249683 | AV197: 0.01246532567 | AW197: 0.01179223073 | AY197: 0.01031810175 | BA197: -0.010625 | BB197: -0.03475609756 | BC197: -0.02914245218 | BD197: 0.1908528106 | BE197: 0.1340761307 | BF197: 0.04049412062
B198: =IF($B197>=Base!$G$3,"",$B197+1) -> 192 | C198: =IF($B198="","",INDEX(Base!$B:$B,MATCH('Guia de BTC'!$B198,Base!$F:$F,0))) -> LAVV3<XBSP> | D198: LAVV3 | E198: Lavvi | F198: Incorporações | G198: 8.74 | H198: =IFERROR((_xll.ECONOMATICA(C198,"Partic in ibovespa")/100),"") ->  | I198: ON | J198: ON | K198: 0.3706135222 | M198: 0.3706135222 | N198: 1708096.237 | O198: 1708096.237 | P198: 1708096.237 | Q198: 633043.5625 | R198: 0.01341936744 | T198: 8495.04417 | U198: 17316.25407 | V198: 2024-06-25 | W198: 0.4905820933 | Y198: 6566.90287 | Z198: 1.293615017 | AB198: 988.56 | AC198: 1591.132 | AD198: -602.572 | AE198: 10447.2 | AF198: 0.0576778467 | AH198: 988.56 | AI198: 1028.645 | AJ198: -0.03896874043 | AK198: 1033.872 | AL198: -0.04382747574 | AN198: 0.0255 | AP198: 0.0255 | AQ198: 0.0255 | AS198: 0.02457628632 | AT198: 0.0255 | AV198: 0.02476391121 | AW198: 0.0255 | AY198: 0.0227326429 | BA198: 0.01746216531 | BB198: 0.05301204819 | BC198: 0.02214560562 | BD198: 0.18574287 | BE198: 0.8294288152 | BF198: 0.8216587363
B199: =IF($B198>=Base!$G$3,"",$B198+1) -> 193 | C199: =IF($B199="","",INDEX(Base!$B:$B,MATCH('Guia de BTC'!$B199,Base!$F:$F,0))) -> BRBI11<XBSP> | D199: BRBI11 | E199: BR Partners | F199: Bancos | G199: 15.56 | H199: =IFERROR((_xll.ECONOMATICA(C199,"Partic in ibovespa")/100),"") ->  | I199: UNT N2 | J199: UN | K199: 0.2355470249 | L199: 0.8255448086 | M199: 0.4499046647 | N199: 1633733.154 | O199: 0 | P199: 1633733.154 | Q199: 735024.1669 | R199: 0.01093917167 | T199: 8040.55554 | U199: 63822.33741 | V199: 2023-09-27 | W199: 0.1259834075 | Y199: 4601.499087 | Z199: 1.747377406 | AB199: 529.943 | AC199: 489.328 | AD199: 40.615 | AE199: 5724.6 | AF199: 0.007094818852 | AH199: 529.943 | AI199: 530.24 | AJ199: -0.0005601237176 | AK199: 539.158 | AL199: -0.01709146484 | AN199: 0.1089 | AQ199: 0.1028493553 | AT199: 0.1018017671 | AU199: 0.2 | AW199: 0.09971665084 | AX199: 0.2 | AY199: 0.05234845253 | BA199: -0.004478566859 | BB199: -0.008917197452 | BC199: 0.06996050493 | BD199: 0.2345759279 | BE199: 0.2899459827 | BF199: -0.04095318732
B200: =IF($B199>=Base!$G$3,"",$B199+1) -> 194 | C200: =IF($B200="","",INDEX(Base!$B:$B,MATCH('Guia de BTC'!$B200,Base!$F:$F,0))) -> HBOR3<XBSP> | D200: HBOR3 | E200: Helbor | F200: Incorporações | G200: 2 | H200: =IFERROR((_xll.ECONOMATICA(C200,"Partic in ibovespa")/100),"") ->  | I200: ON | J200: ON | K200: 0.4900631502 | M200: 0.4900631502 | N200: 265388 | O200: 265388 | P200: 265388 | Q200: 130056.8793 | R200: 0.05716481373 | T200: 7434.67728 | U200: 11080.34808 | V200: 2023-09-27 | W200: 0.6709786756 | Y200: 954.7161739 | Z200: 7.787316779 | AB200: 3583.192 | AC200: 3226.46 | AD200: 356.732 | AE200: 8588.3 | AF200: =IFERROR(ABS(AD200/AE200),"") -> 0.04153697472 | AH200: 3583.192 | AI200: 3636.981 | AJ200: -0.01478946412 | AK200: 3857.015 | AL200: -0.07099350145 | AN200: 0.0198 | AP200: 0.0198 | AQ200: 0.0198 | AS200: 0.0198 | AT200: 0.0198 | AV200: 0.0198 | AW200: 0.01900354256 | AY200: 0.01709639926 | BA200: -0.01477832512 | BB200: -0.03381642512 | BC200: -0.4139616824 | BD200: -0.266413028 | BE200: -0.2449026936 | BF200: -0.6469264259
... 250 more rows

Sheet Lâmina Gera
F1: Lâmina Geral de BTC
C3: Data Base: | D3: ='Lâmina Empréstimo BTC'!$D$3 -> 2024-09-18 | F3: ← Não Modificar
K4: =IF(OR($O$20="Volume Médio",O20="Valor Alugado"),'Guia de BTC'!D3,"") -> 
C5: Taxa Média Basket Ibovespa
C6: 1d | D6: =IFERROR(SUMPRODUCT('Guia de BTC'!$H:$H,'Guia de BTC'!AN:AN),"") -> 0.009016675 | E6: =IFERROR(SUMPRODUCT('Guia de BTC'!$H:$H,'Guia de BTC'!AP:AP),"") -> 0.006559567
C7: 3d | D7: =IFERROR(SUMPRODUCT('Guia de BTC'!$H:$H,'Guia de BTC'!AQ:AQ),"") -> 0.008159995805 | E7: =IFERROR(SUMPRODUCT('Guia de BTC'!$H:$H,'Guia de BTC'!AS:AS),"") -> 0.006518042133
C8: 15d | D8: =IFERROR(SUMPRODUCT('Guia de BTC'!$H:$H,'Guia de BTC'!AW:AW),"") -> 0.008440233638 | E8: =IFERROR(SUMPRODUCT('Guia de BTC'!$H:$H,'Guia de BTC'!AY:AY),"") -> 0.007096228529
C9: % Float Ibov | D9: =IFERROR(SUMPRODUCT('Guia de BTC'!$H:$H,'Guia de BTC'!$R:$R),"") -> 0.04277764894
C10: Dias de Giro | D10: =IFERROR(SUMPRODUCT('Guia de BTC'!$H:$H,'Guia de BTC'!$Z:$Z),"") -> 6.561264381
C12: Retorno Ibovespa
C13: =IFERROR(N21,"") -> Retorno setembro-24 | D13: =IFERROR(_xll.ECONOMATICA("ibov","return","in the month",'Guia de BTC'!$D$2,,,,"decimal","false","false"),"") -> -0.01659009907 | E13: =IF(D13>0,"p","q") -> q
C14: =IFERROR(O21,"") -> Retorno 2024 | D14: =IFERROR(_xll.ECONOMATICA("ibov","return","in the year",'Guia de BTC'!$D$2,,,,"decimal","false","false"),"") -> -0.003260790829 | E14: =IF(D14>0,"p","q") -> q
C15: 12m | D15: =IFERROR(_xll.ECONOMATICA("ibov","return",C15,'Guia de BTC'!$D$2,,,,"decimal","false","false"),"") -> 0.1306933295 | E15: =IF(D15>0,"p","q") -> p
B20: ="20 Mairores em "&O20 -> 20 Mairores em Taxa Média De Aluguel | N20: Selecione o Atributo Para Ser o Rankig → | O20: Taxa Média De Aluguel
B21: Nº | C21: Ticker | D21: Preço R$ | E21: % IBOV | F21: Valor de Mercado Free Float R$ | G21: % Float Alugado | H21: Valor Alugado R$ | I21: Volume Médio R$ | J21: Dias de Giro | K21: ▲ 1M Aluguel vs à Vista Qdade ações | L21: ▲ de 1 dia Qdade Ações | M21: Taxa Média De Aluguel | N21: ="Retorno "&TEXT('Guia de BTC'!D2,"mmmm-aa") -> Retorno setembro-24 | O21: ="Retorno "&TEXT('Guia de BTC'!D2,"aaa") -> Retorno 2024 | P21: Retorno 12M
B22: 1 | C22: ='Base Resumo'!G5 -> CMIN3 | D22: =IFERROR(INDEX('Guia de BTC'!G:G,MATCH('Lâmina Gera'!$C22&"<xbsp>",'Guia de BTC'!$C:$C,0)),"") -> 6.33 | E22: =IFERROR(INDEX('Guia de BTC'!H:H,MATCH('Lâmina Gera'!$C22&"<xbsp>",'Guia de BTC'!$C:$C,0)),"") -> 0.00318 | F22: =IFERROR(INDEX('Guia de BTC'!Q:Q,MATCH('Lâmina Gera'!$C22&"<xbsp>",'Guia de BTC'!$C:$C,0)),"") -> 7029840.654 | G22: =IFERROR(INDEX('Guia de BTC'!R:R,MATCH('Lâmina Gera'!$C22&"<xbsp>",'Guia de BTC'!$C:$C,0)),"") -> 0.1044124039 | H22: =IFERROR(INDEX('Guia de BTC'!T:T,MATCH('Lâmina Gera'!$C22&"<xbsp>",'Guia de BTC'!$C:$C,0)),"") -> 734002.5616 | I22: =IFERROR(INDEX('Guia de BTC'!Y:Y,MATCH('Lâmina Gera'!$C22&"<xbsp>",'Guia de BTC'!$C:$C,0)),"") -> 90748.24183 | J22: =IFERROR(INDEX('Guia de BTC'!Z:Z,MATCH('Lâmina Gera'!$C22&"<xbsp>",'Guia de BTC'!$C:$C,0)),"") -> 8.088339199 | K22: =IFERROR(INDEX('Guia de BTC'!AF:AF,MATCH('Lâmina Gera'!$C22&"<xbsp>",'Guia de BTC'!$C:$C,0)),"") -> 0.07672604874 | L22: =IFERROR(INDEX('Guia de BTC'!AJ:AJ,MATCH('Lâmina Gera'!$C22&"<xbsp>",'Guia de BTC'!$C:$C,0)),"") -> -0.0228008935 | M22: =IFERROR(INDEX('Guia de BTC'!AN:AN,MATCH('Lâmina Gera'!$C22&"<xbsp>",'Guia de BTC'!$C:$C,0)),"") -> 0.9628 | N22: =IFERROR(INDEX('Guia de BTC'!BB:BB,MATCH('Lâmina Gera'!$C22&"<xbsp>",'Guia de BTC'!$C:$C,0)),"") -> 0.1144366197 | O22: =IFERROR(INDEX('Guia de BTC'!BC:BC,MATCH('Lâmina Gera'!$C22&"<xbsp>",'Guia de BTC'!$C:$C,0)),"") -> -0.1537927255 | P22: =IFERROR(INDEX('Guia de BTC'!BD:BD,MATCH('Lâmina Gera'!$C22&"<xbsp>",'Guia de BTC'!$C:$C,0)),"") -> 0.5359640206
B23: =B22+1 -> 2 | C23: ='Base Resumo'!G6 -> AMBP3 | D23: =IFERROR(INDEX('Guia de BTC'!G:G,MATCH('Lâmina Gera'!$C23&"<xbsp>",'Guia de BTC'!$C:$C,0)),"") -> 69.83 | E23: =IFERROR(INDEX('Guia de BTC'!H:H,MATCH('Lâmina Gera'!$C23&"<xbsp>",'Guia de BTC'!$C:$C,0)),"") ->  | F23: =IFERROR(INDEX('Guia de BTC'!Q:Q,MATCH('Lâmina Gera'!$C23&"<xbsp>",'Guia de BTC'!$C:$C,0)),"") -> 2787373.992 | G23: =IFERROR(INDEX('Guia de BTC'!R:R,MATCH('Lâmina Gera'!$C23&"<xbsp>",'Guia de BTC'!$C:$C,0)),"") -> 0.08584651695 | H23: =IFERROR(INDEX('Guia de BTC'!T:T,MATCH('Lâmina Gera'!$C23&"<xbsp>",'Guia de BTC'!$C:$C,0)),"") -> 239286.3487 | I23: =IFERROR(INDEX('Guia de BTC'!Y:Y,MATCH('Lâmina Gera'!$C23&"<xbsp>",'Guia de BTC'!$C:$C,0)),"") -> 31393.35952 | J23: =IFERROR(INDEX('Guia de BTC'!Z:Z,MATCH('Lâmina Gera'!$C23&"<xbsp>",'Guia de BTC'!$C:$C,0)),"") -> 7.622196296 | K23: =IFERROR(INDEX('Guia de BTC'!AF:AF,MATCH('Lâmina Gera'!$C23&"<xbsp>",'Guia de BTC'!$C:$C,0)),"") -> 0.009424427825 | L23: =IFERROR(INDEX('Guia de BTC'!AJ:AJ,MATCH('Lâmina Gera'!$C23&"<xbsp>",'Guia de BTC'!$C:$C,0)),"") -> -0.0231034955 | M23: =IFERROR(INDEX('Guia de BTC'!AN:AN,MATCH('Lâmina Gera'!$C23&"<xbsp>",'Guia de BTC'!$C:$C,0)),"") -> 0.9462 | N23: =IFERROR(INDEX('Guia de BTC'!BB:BB,MATCH('Lâmina Gera'!$C23&"<xbsp>",'Guia de BTC'!$C:$C,0)),"") -> -0.02006735897 | O23: =IFERROR(INDEX('Guia de BTC'!BC:BC,MATCH('Lâmina Gera'!$C23&"<xbsp>",'Guia de BTC'!$C:$C,0)),"") -> 3.297230769 | P23: =IFERROR(INDEX('Guia de BTC'!BD:BD,MATCH('Lâmina Gera'!$C23&"<xbsp>",'Guia de BTC'!$C:$C,0)),"") -> 2.212051518
B24: 3 | C24: ='Base Resumo'!G7 -> AZUL4 | D24: =IFERROR(INDEX('Guia de BTC'!G:G,MATCH('Lâmina Gera'!$C24&"<xbsp>",'Guia de BTC'!$C:$C,0)),"") -> 5.62 | E24: =IFERROR(INDEX('Guia de BTC'!H:H,MATCH('Lâmina Gera'!$C24&"<xbsp>",'Guia de BTC'!$C:$C,0)),"") -> 0.00084 | F24: =IFERROR(INDEX('Guia de BTC'!Q:Q,MATCH('Lâmina Gera'!$C24&"<xbsp>",'Guia de BTC'!$C:$C,0)),"") -> 1834041.134 | G24: =IFERROR(INDEX('Guia de BTC'!R:R,MATCH('Lâmina Gera'!$C24&"<xbsp>",'Guia de BTC'!$C:$C,0)),"") -> 0.1356744592 | H24: =IFERROR(INDEX('Guia de BTC'!T:T,MATCH('Lâmina Gera'!$C24&"<xbsp>",'Guia de BTC'!$C:$C,0)),"") -> 248832.5391 | I24: =IFERROR(INDEX('Guia de BTC'!Y:Y,MATCH('Lâmina Gera'!$C24&"<xbsp>",'Guia de BTC'!$C:$C,0)),"") -> 207564.6236 | J24: =IFERROR(INDEX('Guia de BTC'!Z:Z,MATCH('Lâmina Gera'!$C24&"<xbsp>",'Guia de BTC'!$C:$C,0)),"") -> 1.1988196 | K24: =IFERROR(INDEX('Guia de BTC'!AF:AF,MATCH('Lâmina Gera'!$C24&"<xbsp>",'Guia de BTC'!$C:$C,0)),"") -> 0.03624903423 | L24: =IFERROR(INDEX('Guia de BTC'!AJ:AJ,MATCH('Lâmina Gera'!$C24&"<xbsp>",'Guia de BTC'!$C:$C,0)),"") -> -0.02903513003 | M24: =IFERROR(INDEX('Guia de BTC'!AN:AN,MATCH('Lâmina Gera'!$C24&"<xbsp>",'Guia de BTC'!$C:$C,0)),"") -> 0.5164 | N24: =IFERROR(INDEX('Guia de BTC'!BB:BB,MATCH('Lâmina Gera'!$C24&"<xbsp>",'Guia de BTC'!$C:$C,0)),"") -> 0.0426716141 | O24: =IFERROR(INDEX('Guia de BTC'!BC:BC,MATCH('Lâmina Gera'!$C24&"<xbsp>",'Guia de BTC'!$C:$C,0)),"") -> -0.6489693941 | P24: =IFERROR(INDEX('Guia de BTC'!BD:BD,MATCH('Lâmina Gera'!$C24&"<xbsp>",'Guia de BTC'!$C:$C,0)),"") -> -0.5968436155
B25: =B24+1 -> 4 | C25: ='Base Resumo'!G8 -> TRAD3 | D25: =IFERROR(INDEX('Guia de BTC'!G:G,MATCH('Lâmina Gera'!$C25&"<xbsp>",'Guia de BTC'!$C:$C,0)),"") -> 5.02 | E25: =IFERROR(INDEX('Guia de BTC'!H:H,MATCH('Lâmina Gera'!$C25&"<xbsp>",'Guia de BTC'!$C:$C,0)),"") ->  | F25: =IFERROR(INDEX('Guia de BTC'!Q:Q,MATCH('Lâmina Gera'!$C25&"<xbsp>",'Guia de BTC'!$C:$C,0)),"") -> 50717.58418 | G25: =IFERROR(INDEX('Guia de BTC'!R:R,MATCH('Lâmina Gera'!$C25&"<xbsp>",'Guia de BTC'!$C:$C,0)),"") -> 0.09553556795 | H25: =IFERROR(INDEX('Guia de BTC'!T:T,MATCH('Lâmina Gera'!$C25&"<xbsp>",'Guia de BTC'!$C:$C,0)),"") -> 4845.33321 | I25: =IFERROR(INDEX('Guia de BTC'!Y:Y,MATCH('Lâmina Gera'!$C25&"<xbsp>",'Guia de BTC'!$C:$C,0)),"") -> 1302.699174 | J25: =IFERROR(INDEX('Guia de BTC'!Z:Z,MATCH('Lâmina Gera'!$C25&"<xbsp>",'Guia de BTC'!$C:$C,0)),"") -> 3.71945673 | K25: =IFERROR(INDEX('Guia de BTC'!AF:AF,MATCH('Lâmina Gera'!$C25&"<xbsp>",'Guia de BTC'!$C:$C,0)),"") -> 0.03424595054 | L25: =IFERROR(INDEX('Guia de BTC'!AJ:AJ,MATCH('Lâmina Gera'!$C25&"<xbsp>",'Guia de BTC'!$C:$C,0)),"") -> 0.02726241159 | M25: =IFERROR(INDEX('Guia de BTC'!AN:AN,MATCH('Lâmina Gera'!$C25&"<xbsp>",'Guia de BTC'!$C:$C,0)),"") -> 0.4809 | N25: =IFERROR(INDEX('Guia de BTC'!BB:BB,MATCH('Lâmina Gera'!$C25&"<xbsp>",'Guia de BTC'!$C:$C,0)),"") -> 0.61414791 | O25: =IFERROR(INDEX('Guia de BTC'!BC:BC,MATCH('Lâmina Gera'!$C25&"<xbsp>",'Guia de BTC'!$C:$C,0)),"") -> -0.1756978653 | P25: =IFERROR(INDEX('Guia de BTC'!BD:BD,MATCH('Lâmina Gera'!$C25&"<xbsp>",'Guia de BTC'!$C:$C,0)),"") -> -0.3297730307
B26: 5 | C26: ='Base Resumo'!G9 -> CRFB3 | D26: =IFERROR(INDEX('Guia de BTC'!G:G,MATCH('Lâmina Gera'!$C26&"<xbsp>",'Guia de BTC'!$C:$C,0)),"") -> 9.15 | E26: =IFERROR(INDEX('Guia de BTC'!H:H,MATCH('Lâmina Gera'!$C26&"<xbsp>",'Guia de BTC'!$C:$C,0)),"") -> 0.0022 | F26: =IFERROR(INDEX('Guia de BTC'!Q:Q,MATCH('Lâmina Gera'!$C26&"<xbsp>",'Guia de BTC'!$C:$C,0)),"") -> 4872116.569 | G26: =IFERROR(INDEX('Guia de BTC'!R:R,MATCH('Lâmina Gera'!$C26&"<xbsp>",'Guia de BTC'!$C:$C,0)),"") -> 0.1255449531 | H26: =IFERROR(INDEX('Guia de BTC'!T:T,MATCH('Lâmina Gera'!$C26&"<xbsp>",'Guia de BTC'!$C:$C,0)),"") -> 611669.6461 | I26: =IFERROR(INDEX('Guia de BTC'!Y:Y,MATCH('Lâmina Gera'!$C26&"<xbsp>",'Guia de BTC'!$C:$C,0)),"") -> 82361.26652 | J26: =IFERROR(INDEX('Guia de BTC'!Z:Z,MATCH('Lâmina Gera'!$C26&"<xbsp>",'Guia de BTC'!$C:$C,0)),"") -> 7.426666343 | K26: =IFERROR(INDEX('Guia de BTC'!AF:AF,MATCH('Lâmina Gera'!$C26&"<xbsp>",'Guia de BTC'!$C:$C,0)),"") -> 0.07198784797 | L26: =IFERROR(INDEX('Guia de BTC'!AJ:AJ,MATCH('Lâmina Gera'!$C26&"<xbsp>",'Guia de BTC'!$C:$C,0)),"") -> 0.0002377895622 | M26: =IFERROR(INDEX('Guia de BTC'!AN:AN,MATCH('Lâmina Gera'!$C26&"<xbsp>",'Guia de BTC'!$C:$C,0)),"") -> 0.4118 | N26: =IFERROR(INDEX('Guia de BTC'!BB:BB,MATCH('Lâmina Gera'!$C26&"<xbsp>",'Guia de BTC'!$C:$C,0)),"") -> 0.02006688963 | O26: =IFERROR(INDEX('Guia de BTC'!BC:BC,MATCH('Lâmina Gera'!$C26&"<xbsp>",'Guia de BTC'!$C:$C,0)),"") -> -0.265060241 | P26: =IFERROR(INDEX('Guia de BTC'!BD:BD,MATCH('Lâmina Gera'!$C26&"<xbsp>",'Guia de BTC'!$C:$C,0)),"") -> -0.04388714734
B27: 6 | C27: ='Base Resumo'!G10 -> CSED3 | D27: =IFERROR(INDEX('Guia de BTC'!G:G,MATCH('Lâmina Gera'!$C27&"<xbsp>",'Guia de BTC'!$C:$C,0)),"") -> 3.51 | E27: =IFERROR(INDEX('Guia de BTC'!H:H,MATCH('Lâmina Gera'!$C27&"<xbsp>",'Guia de BTC'!$C:$C,0)),"") ->  | F27: =IFERROR(INDEX('Guia de BTC'!Q:Q,MATCH('Lâmina Gera'!$C27&"<xbsp>",'Guia de BTC'!$C:$C,0)),"") -> 158566.0471 | G27: =IFERROR(INDEX('Guia de BTC'!R:R,MATCH('Lâmina Gera'!$C27&"<xbsp>",'Guia de BTC'!$C:$C,0)),"") -> 0.0106620708 | H27: =IFERROR(INDEX('Guia de BTC'!T:T,MATCH('Lâmina Gera'!$C27&"<xbsp>",'Guia de BTC'!$C:$C,0)),"") -> 1690.64242 | I27: =IFERROR(INDEX('Guia de BTC'!Y:Y,MATCH('Lâmina Gera'!$C27&"<xbsp>",'Guia de BTC'!$C:$C,0)),"") -> 2233.881522 | J27: =IFERROR(INDEX('Guia de BTC'!Z:Z,MATCH('Lâmina Gera'!$C27&"<xbsp>",'Guia de BTC'!$C:$C,0)),"") -> 0.7568183019 | K27: =IFERROR(INDEX('Guia de BTC'!AF:AF,MATCH('Lâmina Gera'!$C27&"<xbsp>",'Guia de BTC'!$C:$C,0)),"") -> 1.551568226e-05 | L27: =IFERROR(INDEX('Guia de BTC'!AJ:AJ,MATCH('Lâmina Gera'!$C27&"<xbsp>",'Guia de BTC'!$C:$C,0)),"") -> -0.1227156705 | M27: =IFERROR(INDEX('Guia de BTC'!AN:AN,MATCH('Lâmina Gera'!$C27&"<xbsp>",'Guia de BTC'!$C:$C,0)),"") -> 0.3982 | N27: =IFERROR(INDEX('Guia de BTC'!BB:BB,MATCH('Lâmina Gera'!$C27&"<xbsp>",'Guia de BTC'!$C:$C,0)),"") -> -0.03835616439 | O27: =IFERROR(INDEX('Guia de BTC'!BC:BC,MATCH('Lâmina Gera'!$C27&"<xbsp>",'Guia de BTC'!$C:$C,0)),"") -> -0.3090919065 | P27: =IFERROR(INDEX('Guia de BTC'!BD:BD,MATCH('Lâmina Gera'!$C27&"<xbsp>",'Guia de BTC'!$C:$C,0)),"") -> -0.0478453765
B28: 7 | C28: ='Base Resumo'!G11 -> KLBN3 | D28: =IFERROR(INDEX('Guia de BTC'!G:G,MATCH('Lâmina Gera'!$C28&"<xbsp>",'Guia de BTC'!$C:$C,0)),"") -> 4.28 | E28: =IFERROR(INDEX('Guia de BTC'!H:H,MATCH('Lâmina Gera'!$C28&"<xbsp>",'Guia de BTC'!$C:$C,0)),"") ->  | F28: =IFERROR(INDEX('Guia de BTC'!Q:Q,MATCH('Lâmina Gera'!$C28&"<xbsp>",'Guia de BTC'!$C:$C,0)),"") -> 3763906.868 | G28: =IFERROR(INDEX('Guia de BTC'!R:R,MATCH('Lâmina Gera'!$C28&"<xbsp>",'Guia de BTC'!$C:$C,0)),"") -> 0.000285218598 | H28: =IFERROR(INDEX('Guia de BTC'!T:T,MATCH('Lâmina Gera'!$C28&"<xbsp>",'Guia de BTC'!$C:$C,0)),"") -> 1073.53624 | I28: =IFERROR(INDEX('Guia de BTC'!Y:Y,MATCH('Lâmina Gera'!$C28&"<xbsp>",'Guia de BTC'!$C:$C,0)),"") -> 998.9536087 | J28: =IFERROR(INDEX('Guia de BTC'!Z:Z,MATCH('Lâmina Gera'!$C28&"<xbsp>",'Guia de BTC'!$C:$C,0)),"") -> 1.074660756 | K28: =IFERROR(INDEX('Guia de BTC'!AF:AF,MATCH('Lâmina Gera'!$C28&"<xbsp>",'Guia de BTC'!$C:$C,0)),"") -> 0.001263535276 | L28: =IFERROR(INDEX('Guia de BTC'!AJ:AJ,MATCH('Lâmina Gera'!$C28&"<xbsp>",'Guia de BTC'!$C:$C,0)),"") -> 0.01117673933 | M28: =IFERROR(INDEX('Guia de BTC'!AN:AN,MATCH('Lâmina Gera'!$C28&"<xbsp>",'Guia de BTC'!$C:$C,0)),"") -> 0.3751 | N28: =IFERROR(INDEX('Guia de BTC'!BB:BB,MATCH('Lâmina Gera'!$C28&"<xbsp>",'Guia de BTC'!$C:$C,0)),"") -> -0.009259259259 | O28: =IFERROR(INDEX('Guia de BTC'!BC:BC,MATCH('Lâmina Gera'!$C28&"<xbsp>",'Guia de BTC'!$C:$C,0)),"") -> 0.1049872766 | P28: =IFERROR(INDEX('Guia de BTC'!BD:BD,MATCH('Lâmina Gera'!$C28&"<xbsp>",'Guia de BTC'!$C:$C,0)),"") -> 0.076485365
B29: 8 | C29: ='Base Resumo'!G12 -> AMER3 | D29: =IFERROR(INDEX('Guia de BTC'!G:G,MATCH('Lâmina Gera'!$C29&"<xbsp>",'Guia de BTC'!$C:$C,0)),"") -> 6.52 | E29: =IFERROR(INDEX('Guia de BTC'!H:H,MATCH('Lâmina Gera'!$C29&"<xbsp>",'Guia de BTC'!$C:$C,0)),"") ->  | F29: =IFERROR(INDEX('Guia de BTC'!Q:Q,MATCH('Lâmina Gera'!$C29&"<xbsp>",'Guia de BTC'!$C:$C,0)),"") -> 652593.4007 | G29: =IFERROR(INDEX('Guia de BTC'!R:R,MATCH('Lâmina Gera'!$C29&"<xbsp>",'Guia de BTC'!$C:$C,0)),"") -> 0.04316676176 | H29: =IFERROR(INDEX('Guia de BTC'!T:T,MATCH('Lâmina Gera'!$C29&"<xbsp>",'Guia de BTC'!$C:$C,0)),"") -> 28170.34385 | I29: =IFERROR(INDEX('Guia de BTC'!Y:Y,MATCH('Lâmina Gera'!$C29&"<xbsp>",'Guia de BTC'!$C:$C,0)),"") -> 58606.46374 | J29: =IFERROR(INDEX('Guia de BTC'!Z:Z,MATCH('Lâmina Gera'!$C29&"<xbsp>",'Guia de BTC'!$C:$C,0)),"") -> 0.4806695722 | K29: =IFERROR(INDEX('Guia de BTC'!AF:AF,MATCH('Lâmina Gera'!$C29&"<xbsp>",'Guia de BTC'!$C:$C,0)),"") -> 14.20959115 | L29: =IFERROR(INDEX('Guia de BTC'!AJ:AJ,MATCH('Lâmina Gera'!$C29&"<xbsp>",'Guia de BTC'!$C:$C,0)),"") -> 0.1318582515 | M29: =IFERROR(INDEX('Guia de BTC'!AN:AN,MATCH('Lâmina Gera'!$C29&"<xbsp>",'Guia de BTC'!$C:$C,0)),"") -> 0.3146 | N29: =IFERROR(INDEX('Guia de BTC'!BB:BB,MATCH('Lâmina Gera'!$C29&"<xbsp>",'Guia de BTC'!$C:$C,0)),"") -> 0.129982669 | O29: =IFERROR(INDEX('Guia de BTC'!BC:BC,MATCH('Lâmina Gera'!$C29&"<xbsp>",'Guia de BTC'!$C:$C,0)),"") -> -0.9283516483 | P29: =IFERROR(INDEX('Guia de BTC'!BD:BD,MATCH('Lâmina Gera'!$C29&"<xbsp>",'Guia de BTC'!$C:$C,0)),"") -> -0.9185
B30: 9 | C30: ='Base Resumo'!G13 -> BRIT3 | D30: =IFERROR(INDEX('Guia de BTC'!G:G,MATCH('Lâmina Gera'!$C30&"<xbsp>",'Guia de BTC'!$C:$C,0)),"") -> 3.39 | E30: =IFERROR(INDEX('Guia de BTC'!H:H,MATCH('Lâmina Gera'!$C30&"<xbsp>",'Guia de BTC'!$C:$C,0)),"") ->  | F30: =IFERROR(INDEX('Guia de BTC'!Q:Q,MATCH('Lâmina Gera'!$C30&"<xbsp>",'Guia de BTC'!$C:$C,0)),"") -> 302790.7042 | G30: =IFERROR(INDEX('Guia de BTC'!R:R,MATCH('Lâmina Gera'!$C30&"<xbsp>",'Guia de BTC'!$C:$C,0)),"") -> 0.01833458033 | H30: =IFERROR(INDEX('Guia de BTC'!T:T,MATCH('Lâmina Gera'!$C30&"<xbsp>",'Guia de BTC'!$C:$C,0)),"") -> 5551.54049 | I30: =IFERROR(INDEX('Guia de BTC'!Y:Y,MATCH('Lâmina Gera'!$C30&"<xbsp>",'Guia de BTC'!$C:$C,0)),"") -> 1918.087957 | J30: =IFERROR(INDEX('Guia de BTC'!Z:Z,MATCH('Lâmina Gera'!$C30&"<xbsp>",'Guia de BTC'!$C:$C,0)),"") -> 2.894309654 | K30: =IFERROR(INDEX('Guia de BTC'!AF:AF,MATCH('Lâmina Gera'!$C30&"<xbsp>",'Guia de BTC'!$C:$C,0)),"") -> 0.0329519692 | L30: =IFERROR(INDEX('Guia de BTC'!AJ:AJ,MATCH('Lâmina Gera'!$C30&"<xbsp>",'Guia de BTC'!$C:$C,0)),"") -> -0.02176858147 | M30: =IFERROR(INDEX('Guia de BTC'!AN:AN,MATCH('Lâmina Gera'!$C30&"<xbsp>",'Guia de BTC'!$C:$C,0)),"") -> 0.2962 | N30: =IFERROR(INDEX('Guia de BTC'!BB:BB,MATCH('Lâmina Gera'!$C30&"<xbsp>",'Guia de BTC'!$C:$C,0)),"") -> -0.03966005666 | O30: =IFERROR(INDEX('Guia de BTC'!BC:BC,MATCH('Lâmina Gera'!$C30&"<xbsp>",'Guia de BTC'!$C:$C,0)),"") -> -0.06502229212 | P30: =IFERROR(INDEX('Guia de BTC'!BD:BD,MATCH('Lâmina Gera'!$C30&"<xbsp>",'Guia de BTC'!$C:$C,0)),"") -> -0.07499538767
B31: 10 | C31: ='Base Resumo'!G14 -> ONCO3 | D31: =IFERROR(INDEX('Guia de BTC'!G:G,MATCH('Lâmina Gera'!$C31&"<xbsp>",'Guia de BTC'!$C:$C,0)),"") -> 5.59 | E31: =IFERROR(INDEX('Guia de BTC'!H:H,MATCH('Lâmina Gera'!$C31&"<xbsp>",'Guia de BTC'!$C:$C,0)),"") ->  | F31: =IFERROR(INDEX('Guia de BTC'!Q:Q,MATCH('Lâmina Gera'!$C31&"<xbsp>",'Guia de BTC'!$C:$C,0)),"") -> 3110285.849 | G31: =IFERROR(INDEX('Guia de BTC'!R:R,MATCH('Lâmina Gera'!$C31&"<xbsp>",'Guia de BTC'!$C:$C,0)),"") -> 0.03003301664 | H31: =IFERROR(INDEX('Guia de BTC'!T:T,MATCH('Lâmina Gera'!$C31&"<xbsp>",'Guia de BTC'!$C:$C,0)),"") -> 93411.26668 | I31: =IFERROR(INDEX('Guia de BTC'!Y:Y,MATCH('Lâmina Gera'!$C31&"<xbsp>",'Guia de BTC'!$C:$C,0)),"") -> 24817.99822 | J31: =IFERROR(INDEX('Guia de BTC'!Z:Z,MATCH('Lâmina Gera'!$C31&"<xbsp>",'Guia de BTC'!$C:$C,0)),"") -> 3.763851777 | K31: =IFERROR(INDEX('Guia de BTC'!AF:AF,MATCH('Lâmina Gera'!$C31&"<xbsp>",'Guia de BTC'!$C:$C,0)),"") -> 0.02015264102 | L31: =IFERROR(INDEX('Guia de BTC'!AJ:AJ,MATCH('Lâmina Gera'!$C31&"<xbsp>",'Guia de BTC'!$C:$C,0)),"") -> 0.0004029734197 | M31: =IFERROR(INDEX('Guia de BTC'!AN:AN,MATCH('Lâmina Gera'!$C31&"<xbsp>",'Guia de BTC'!$C:$C,0)),"") -> 0.2766 | N31: =IFERROR(INDEX('Guia de BTC'!BB:BB,MATCH('Lâmina Gera'!$C31&"<xbsp>",'Guia de BTC'!$C:$C,0)),"") -> -0.1606606607 | O31: =IFERROR(INDEX('Guia de BTC'!BC:BC,MATCH('Lâmina Gera'!$C31&"<xbsp>",'Guia de BTC'!$C:$C,0)),"") -> -0.57 | P31: =IFERROR(INDEX('Guia de BTC'!BD:BD,MATCH('Lâmina Gera'!$C31&"<xbsp>",'Guia de BTC'!$C:$C,0)),"") -> -0.5193465176
B32: =B31+1 -> 11 | C32: ='Base Resumo'!G15 -> PETZ3 | D32: =IFERROR(INDEX('Guia de BTC'!G:G,MATCH('Lâmina Gera'!$C32&"<xbsp>",'Guia de BTC'!$C:$C,0)),"") -> 4.67 | E32: =IFERROR(INDEX('Guia de BTC'!H:H,MATCH('Lâmina Gera'!$C32&"<xbsp>",'Guia de BTC'!$C:$C,0)),"") -> 0.00065 | F32: =IFERROR(INDEX('Guia de BTC'!Q:Q,MATCH('Lâmina Gera'!$C32&"<xbsp>",'Guia de BTC'!$C:$C,0)),"") -> 1401054.282 | G32: =IFERROR(INDEX('Guia de BTC'!R:R,MATCH('Lâmina Gera'!$C32&"<xbsp>",'Guia de BTC'!$C:$C,0)),"") -> 0.1983590287 | H32: =IFERROR(INDEX('Guia de BTC'!T:T,MATCH('Lâmina Gera'!$C32&"<xbsp>",'Guia de BTC'!$C:$C,0)),"") -> 277911.7664 | I32: =IFERROR(INDEX('Guia de BTC'!Y:Y,MATCH('Lâmina Gera'!$C32&"<xbsp>",'Guia de BTC'!$C:$C,0)),"") -> 94783.34074 | J32: =IFERROR(INDEX('Guia de BTC'!Z:Z,MATCH('Lâmina Gera'!$C32&"<xbsp>",'Guia de BTC'!$C:$C,0)),"") -> 2.932073973 | K32: =IFERROR(INDEX('Guia de BTC'!AF:AF,MATCH('Lâmina Gera'!$C32&"<xbsp>",'Guia de BTC'!$C:$C,0)),"") -> 0.114211447 | L32: =IFERROR(INDEX('Guia de BTC'!AJ:AJ,MATCH('Lâmina Gera'!$C32&"<xbsp>",'Guia de BTC'!$C:$C,0)),"") -> 0.01880371191 | M32: =IFERROR(INDEX('Guia de BTC'!AN:AN,MATCH('Lâmina Gera'!$C32&"<xbsp>",'Guia de BTC'!$C:$C,0)),"") -> 0.2237 | N32: =IFERROR(INDEX('Guia de BTC'!BB:BB,MATCH('Lâmina Gera'!$C32&"<xbsp>",'Guia de BTC'!$C:$C,0)),"") -> -0.03909465021 | O32: =IFERROR(INDEX('Guia de BTC'!BC:BC,MATCH('Lâmina Gera'!$C32&"<xbsp>",'Guia de BTC'!$C:$C,0)),"") -> 0.1829757069 | P32: =IFERROR(INDEX('Guia de BTC'!BD:BD,MATCH('Lâmina Gera'!$C32&"<xbsp>",'Guia de BTC'!$C:$C,0)),"") -> -0.1519502645
B33: 12 | C33: ='Base Resumo'!G16 -> ASAI3 | D33: =IFERROR(INDEX('Guia de BTC'!G:G,MATCH('Lâmina Gera'!$C33&"<xbsp>",'Guia de BTC'!$C:$C,0)),"") -> 8.74 | E33: =IFERROR(INDEX('Guia de BTC'!H:H,MATCH('Lâmina Gera'!$C33&"<xbsp>",'Guia de BTC'!$C:$C,0)),"") -> 0.00534 | F33: =IFERROR(INDEX('Guia de BTC'!Q:Q,MATCH('Lâmina Gera'!$C33&"<xbsp>",'Guia de BTC'!$C:$C,0)),"") -> 11794038.55 | G33: =IFERROR(INDEX('Guia de BTC'!R:R,MATCH('Lâmina Gera'!$C33&"<xbsp>",'Guia de BTC'!$C:$C,0)),"") -> 0.07261884761 | H33: =IFERROR(INDEX('Guia de BTC'!T:T,MATCH('Lâmina Gera'!$C33&"<xbsp>",'Guia de BTC'!$C:$C,0)),"") -> 856469.4882 | I33: =IFERROR(INDEX('Guia de BTC'!Y:Y,MATCH('Lâmina Gera'!$C33&"<xbsp>",'Guia de BTC'!$C:$C,0)),"") -> 171449.1664 | J33: =IFERROR(INDEX('Guia de BTC'!Z:Z,MATCH('Lâmina Gera'!$C33&"<xbsp>",'Guia de BTC'!$C:$C,0)),"") -> 4.995471873 | K33: =IFERROR(INDEX('Guia de BTC'!AF:AF,MATCH('Lâmina Gera'!$C33&"<xbsp>",'Guia de BTC'!$C:$C,0)),"") -> 0.008069435259 | L33: =IFERROR(INDEX('Guia de BTC'!AJ:AJ,MATCH('Lâmina Gera'!$C33&"<xbsp>",'Guia de BTC'!$C:$C,0)),"") -> 0.02031035013 | M33: =IFERROR(INDEX('Guia de BTC'!AN:AN,MATCH('Lâmina Gera'!$C33&"<xbsp>",'Guia de BTC'!$C:$C,0)),"") -> 0.2113 | N33: =IFERROR(INDEX('Guia de BTC'!BB:BB,MATCH('Lâmina Gera'!$C33&"<xbsp>",'Guia de BTC'!$C:$C,0)),"") -> -0.08672936259 | O33: =IFERROR(INDEX('Guia de BTC'!BC:BC,MATCH('Lâmina Gera'!$C33&"<xbsp>",'Guia de BTC'!$C:$C,0)),"") -> -0.3540280857 | P33: =IFERROR(INDEX('Guia de BTC'!BD:BD,MATCH('Lâmina Gera'!$C33&"<xbsp>",'Guia de BTC'!$C:$C,0)),"") -> -0.2871125612
B34: 13 | C34: ='Base Resumo'!G17 -> SYNE3 | D34: =IFERROR(INDEX('Guia de BTC'!G:G,MATCH('Lâmina Gera'!$C34&"<xbsp>",'Guia de BTC'!$C:$C,0)),"") -> 7.95 | E34: =IFERROR(INDEX('Guia de BTC'!H:H,MATCH('Lâmina Gera'!$C34&"<xbsp>",'Guia de BTC'!$C:$C,0)),"") ->  | F34: =IFERROR(INDEX('Guia de BTC'!Q:Q,MATCH('Lâmina Gera'!$C34&"<xbsp>",'Guia de BTC'!$C:$C,0)),"") -> 475798.0755 | G34: =IFERROR(INDEX('Guia de BTC'!R:R,MATCH('Lâmina Gera'!$C34&"<xbsp>",'Guia de BTC'!$C:$C,0)),"") -> 0.004468754099 | H34: =IFERROR(INDEX('Guia de BTC'!T:T,MATCH('Lâmina Gera'!$C34&"<xbsp>",'Guia de BTC'!$C:$C,0)),"") -> 2126.2246 | I34: =IFERROR(INDEX('Guia de BTC'!Y:Y,MATCH('Lâmina Gera'!$C34&"<xbsp>",'Guia de BTC'!$C:$C,0)),"") -> 7830.444 | J34: =IFERROR(INDEX('Guia de BTC'!Z:Z,MATCH('Lâmina Gera'!$C34&"<xbsp>",'Guia de BTC'!$C:$C,0)),"") -> 0.2715330829 | K34: =IFERROR(INDEX('Guia de BTC'!AF:AF,MATCH('Lâmina Gera'!$C34&"<xbsp>",'Guia de BTC'!$C:$C,0)),"") -> 0.008709828376 | L34: =IFERROR(INDEX('Guia de BTC'!AJ:AJ,MATCH('Lâmina Gera'!$C34&"<xbsp>",'Guia de BTC'!$C:$C,0)),"") -> 0.1562515127 | M34: =IFERROR(INDEX('Guia de BTC'!AN:AN,MATCH('Lâmina Gera'!$C34&"<xbsp>",'Guia de BTC'!$C:$C,0)),"") -> 0.2 | N34: =IFERROR(INDEX('Guia de BTC'!BB:BB,MATCH('Lâmina Gera'!$C34&"<xbsp>",'Guia de BTC'!$C:$C,0)),"") -> -0.001256281407 | O34: =IFERROR(INDEX('Guia de BTC'!BC:BC,MATCH('Lâmina Gera'!$C34&"<xbsp>",'Guia de BTC'!$C:$C,0)),"") -> 1.244745037 | P34: =IFERROR(INDEX('Guia de BTC'!BD:BD,MATCH('Lâmina Gera'!$C34&"<xbsp>",'Guia de BTC'!$C:$C,0)),"") -> 1.64184981
B35: 14 | C35: ='Base Resumo'!G18 -> SAPR3 | D35: =IFERROR(INDEX('Guia de BTC'!G:G,MATCH('Lâmina Gera'!$C35&"<xbsp>",'Guia de BTC'!$C:$C,0)),"") -> 6.03 | E35: =IFERROR(INDEX('Guia de BTC'!H:H,MATCH('Lâmina Gera'!$C35&"<xbsp>",'Guia de BTC'!$C:$C,0)),"") ->  | F35: =IFERROR(INDEX('Guia de BTC'!Q:Q,MATCH('Lâmina Gera'!$C35&"<xbsp>",'Guia de BTC'!$C:$C,0)),"") -> 1212497.229 | G35: =IFERROR(INDEX('Guia de BTC'!R:R,MATCH('Lâmina Gera'!$C35&"<xbsp>",'Guia de BTC'!$C:$C,0)),"") -> 0.00116870268 | H35: =IFERROR(INDEX('Guia de BTC'!T:T,MATCH('Lâmina Gera'!$C35&"<xbsp>",'Guia de BTC'!$C:$C,0)),"") -> 1417.04876 | I35: =IFERROR(INDEX('Guia de BTC'!Y:Y,MATCH('Lâmina Gera'!$C35&"<xbsp>",'Guia de BTC'!$C:$C,0)),"") -> 1081.373696 | J35: =IFERROR(INDEX('Guia de BTC'!Z:Z,MATCH('Lâmina Gera'!$C35&"<xbsp>",'Guia de BTC'!$C:$C,0)),"") -> 1.310415415 | K35: =IFERROR(INDEX('Guia de BTC'!AF:AF,MATCH('Lâmina Gera'!$C35&"<xbsp>",'Guia de BTC'!$C:$C,0)),"") -> 0.001957503798 | L35: =IFERROR(INDEX('Guia de BTC'!AJ:AJ,MATCH('Lâmina Gera'!$C35&"<xbsp>",'Guia de BTC'!$C:$C,0)),"") -> -0.002489307737 | M35: =IFERROR(INDEX('Guia de BTC'!AN:AN,MATCH('Lâmina Gera'!$C35&"<xbsp>",'Guia de BTC'!$C:$C,0)),"") -> 0.1763 | N35: =IFERROR(INDEX('Guia de BTC'!BB:BB,MATCH('Lâmina Gera'!$C35&"<xbsp>",'Guia de BTC'!$C:$C,0)),"") -> 0.1166666667 | O35: =IFERROR(INDEX('Guia de BTC'!BC:BC,MATCH('Lâmina Gera'!$C35&"<xbsp>",'Guia de BTC'!$C:$C,0)),"") -> 0.1270811811 | P35: =IFERROR(INDEX('Guia de BTC'!BD:BD,MATCH('Lâmina Gera'!$C35&"<xbsp>",'Guia de BTC'!$C:$C,0)),"") -> 0.4050945391
B36: 15 | C36: ='Base Resumo'!G19 -> PDGR3 | D36: =IFERROR(INDEX('Guia de BTC'!G:G,MATCH('Lâmina Gera'!$C36&"<xbsp>",'Guia de BTC'!$C:$C,0)),"") -> 0.15 | E36: =IFERROR(INDEX('Guia de BTC'!H:H,MATCH('Lâmina Gera'!$C36&"<xbsp>",'Guia de BTC'!$C:$C,0)),"") ->  | F36: =IFERROR(INDEX('Guia de BTC'!Q:Q,MATCH('Lâmina Gera'!$C36&"<xbsp>",'Guia de BTC'!$C:$C,0)),"") -> 11666.29381 | G36: =IFERROR(INDEX('Guia de BTC'!R:R,MATCH('Lâmina Gera'!$C36&"<xbsp>",'Guia de BTC'!$C:$C,0)),"") -> 0.1246261807 | H36: =IFERROR(INDEX('Guia de BTC'!T:T,MATCH('Lâmina Gera'!$C36&"<xbsp>",'Guia de BTC'!$C:$C,0)),"") -> 1453.92564 | I36: =IFERROR(INDEX('Guia de BTC'!Y:Y,MATCH('Lâmina Gera'!$C36&"<xbsp>",'Guia de BTC'!$C:$C,0)),"") -> 205.5123043 | J36: =IFERROR(INDEX('Guia de BTC'!Z:Z,MATCH('Lâmina Gera'!$C36&"<xbsp>",'Guia de BTC'!$C:$C,0)),"") -> 7.074640346 | K36: =IFERROR(INDEX('Guia de BTC'!AF:AF,MATCH('Lâmina Gera'!$C36&"<xbsp>",'Guia de BTC'!$C:$C,0)),"") -> 0.009941246598 | L36: =IFERROR(INDEX('Guia de BTC'!AJ:AJ,MATCH('Lâmina Gera'!$C36&"<xbsp>",'Guia de BTC'!$C:$C,0)),"") -> -0.01597266112 | M36: =IFERROR(INDEX('Guia de BTC'!AN:AN,MATCH('Lâmina Gera'!$C36&"<xbsp>",'Guia de BTC'!$C:$C,0)),"") -> 0.1561 | N36: =IFERROR(INDEX('Guia de BTC'!BB:BB,MATCH('Lâmina Gera'!$C36&"<xbsp>",'Guia de BTC'!$C:$C,0)),"") -> -0.0625 | O36: =IFERROR(INDEX('Guia de BTC'!BC:BC,MATCH('Lâmina Gera'!$C36&"<xbsp>",'Guia de BTC'!$C:$C,0)),"") -> -0.6666666667 | P36: =IFERROR(INDEX('Guia de BTC'!BD:BD,MATCH('Lâmina Gera'!$C36&"<xbsp>",'Guia de BTC'!$C:$C,0)),"") -> -0.9647887324
B37: 16 | C37: ='Base Resumo'!G20 -> AMAR3 | D37: =IFERROR(INDEX('Guia de BTC'!G:G,MATCH('Lâmina Gera'!$C37&"<xbsp>",'Guia de BTC'!$C:$C,0)),"") -> 1.1 | E37: =IFERROR(INDEX('Guia de BTC'!H:H,MATCH('Lâmina Gera'!$C37&"<xbsp>",'Guia de BTC'!$C:$C,0)),"") ->  | F37: =IFERROR(INDEX('Guia de BTC'!Q:Q,MATCH('Lâmina Gera'!$C37&"<xbsp>",'Guia de BTC'!$C:$C,0)),"") -> 39899.10353 | G37: =IFERROR(INDEX('Guia de BTC'!R:R,MATCH('Lâmina Gera'!$C37&"<xbsp>",'Guia de BTC'!$C:$C,0)),"") -> 0.09628320289 | H37: =IFERROR(INDEX('Guia de BTC'!T:T,MATCH('Lâmina Gera'!$C37&"<xbsp>",'Guia de BTC'!$C:$C,0)),"") -> 3841.61348 | I37: =IFERROR(INDEX('Guia de BTC'!Y:Y,MATCH('Lâmina Gera'!$C37&"<xbsp>",'Guia de BTC'!$C:$C,0)),"") -> 451.5976522 | J37: =IFERROR(INDEX('Guia de BTC'!Z:Z,MATCH('Lâmina Gera'!$C37&"<xbsp>",'Guia de BTC'!$C:$C,0)),"") -> 8.506717122 | K37: =IFERROR(INDEX('Guia de BTC'!AF:AF,MATCH('Lâmina Gera'!$C37&"<xbsp>",'Guia de BTC'!$C:$C,0)),"") -> 0.04946461096 | L37: =IFERROR(INDEX('Guia de BTC'!AJ:AJ,MATCH('Lâmina Gera'!$C37&"<xbsp>",'Guia de BTC'!$C:$C,0)),"") -> 0.02001330373 | M37: =IFERROR(INDEX('Guia de BTC'!AN:AN,MATCH('Lâmina Gera'!$C37&"<xbsp>",'Guia de BTC'!$C:$C,0)),"") -> 0.1545 | N37: =IFERROR(INDEX('Guia de BTC'!BB:BB,MATCH('Lâmina Gera'!$C37&"<xbsp>",'Guia de BTC'!$C:$C,0)),"") -> -0.05982905983 | O37: =IFERROR(INDEX('Guia de BTC'!BC:BC,MATCH('Lâmina Gera'!$C37&"<xbsp>",'Guia de BTC'!$C:$C,0)),"") -> -0.6638252937 | P37: =IFERROR(INDEX('Guia de BTC'!BD:BD,MATCH('Lâmina Gera'!$C37&"<xbsp>",'Guia de BTC'!$C:$C,0)),"") -> -0.6029936802
B38: 17 | C38: ='Base Resumo'!G21 -> SEQL3 | D38: =IFERROR(INDEX('Guia de BTC'!G:G,MATCH('Lâmina Gera'!$C38&"<xbsp>",'Guia de BTC'!$C:$C,0)),"") -> 4.97 | E38: =IFERROR(INDEX('Guia de BTC'!H:H,MATCH('Lâmina Gera'!$C38&"<xbsp>",'Guia de BTC'!$C:$C,0)),"") ->  | F38: =IFERROR(INDEX('Guia de BTC'!Q:Q,MATCH('Lâmina Gera'!$C38&"<xbsp>",'Guia de BTC'!$C:$C,0)),"") -> 108290.4155 | G38: =IFERROR(INDEX('Guia de BTC'!R:R,MATCH('Lâmina Gera'!$C38&"<xbsp>",'Guia de BTC'!$C:$C,0)),"") -> 0.1375831653 | H38: =IFERROR(INDEX('Guia de BTC'!T:T,MATCH('Lâmina Gera'!$C38&"<xbsp>",'Guia de BTC'!$C:$C,0)),"") -> 14898.93814 | I38: =IFERROR(INDEX('Guia de BTC'!Y:Y,MATCH('Lâmina Gera'!$C38&"<xbsp>",'Guia de BTC'!$C:$C,0)),"") -> 5270.957957 | J38: =IFERROR(INDEX('Guia de BTC'!Z:Z,MATCH('Lâmina Gera'!$C38&"<xbsp>",'Guia de BTC'!$C:$C,0)),"") -> 2.826609179 | K38: =IFERROR(INDEX('Guia de BTC'!AF:AF,MATCH('Lâmina Gera'!$C38&"<xbsp>",'Guia de BTC'!$C:$C,0)),"") -> 0.01211924665 | L38: =IFERROR(INDEX('Guia de BTC'!AJ:AJ,MATCH('Lâmina Gera'!$C38&"<xbsp>",'Guia de BTC'!$C:$C,0)),"") -> 0.07453527902 | M38: =IFERROR(INDEX('Guia de BTC'!AN:AN,MATCH('Lâmina Gera'!$C38&"<xbsp>",'Guia de BTC'!$C:$C,0)),"") -> 0.1322 | N38: =IFERROR(INDEX('Guia de BTC'!BB:BB,MATCH('Lâmina Gera'!$C38&"<xbsp>",'Guia de BTC'!$C:$C,0)),"") -> -0.2222222222 | O38: =IFERROR(INDEX('Guia de BTC'!BC:BC,MATCH('Lâmina Gera'!$C38&"<xbsp>",'Guia de BTC'!$C:$C,0)),"") -> -0.3460526316 | P38: =IFERROR(INDEX('Guia de BTC'!BD:BD,MATCH('Lâmina Gera'!$C38&"<xbsp>",'Guia de BTC'!$C:$C,0)),"") -> -0.512745098
B39: 18 | C39: ='Base Resumo'!G22 -> MELK3 | D39: =IFERROR(INDEX('Guia de BTC'!G:G,MATCH('Lâmina Gera'!$C39&"<xbsp>",'Guia de BTC'!$C:$C,0)),"") -> 3.68 | E39: =IFERROR(INDEX('Guia de BTC'!H:H,MATCH('Lâmina Gera'!$C39&"<xbsp>",'Guia de BTC'!$C:$C,0)),"") ->  | F39: =IFERROR(INDEX('Guia de BTC'!Q:Q,MATCH('Lâmina Gera'!$C39&"<xbsp>",'Guia de BTC'!$C:$C,0)),"") -> 553694.951 | G39: =IFERROR(INDEX('Guia de BTC'!R:R,MATCH('Lâmina Gera'!$C39&"<xbsp>",'Guia de BTC'!$C:$C,0)),"") -> 0.002278063775 | H39: =IFERROR(INDEX('Guia de BTC'!T:T,MATCH('Lâmina Gera'!$C39&"<xbsp>",'Guia de BTC'!$C:$C,0)),"") -> 1261.35241 | I39: =IFERROR(INDEX('Guia de BTC'!Y:Y,MATCH('Lâmina Gera'!$C39&"<xbsp>",'Guia de BTC'!$C:$C,0)),"") -> 7063.580739 | J39: =IFERROR(INDEX('Guia de BTC'!Z:Z,MATCH('Lâmina Gera'!$C39&"<xbsp>",'Guia de BTC'!$C:$C,0)),"") -> 0.1785712455 | K39: =IFERROR(INDEX('Guia de BTC'!AF:AF,MATCH('Lâmina Gera'!$C39&"<xbsp>",'Guia de BTC'!$C:$C,0)),"") -> 0.0174723985 | L39: =IFERROR(INDEX('Guia de BTC'!AJ:AJ,MATCH('Lâmina Gera'!$C39&"<xbsp>",'Guia de BTC'!$C:$C,0)),"") -> 0.009285417137 | M39: =IFERROR(INDEX('Guia de BTC'!AN:AN,MATCH('Lâmina Gera'!$C39&"<xbsp>",'Guia de BTC'!$C:$C,0)),"") -> 0.1147 | N39: =IFERROR(INDEX('Guia de BTC'!BB:BB,MATCH('Lâmina Gera'!$C39&"<xbsp>",'Guia de BTC'!$C:$C,0)),"") -> 0.08554572271 | O39: =IFERROR(INDEX('Guia de BTC'!BC:BC,MATCH('Lâmina Gera'!$C39&"<xbsp>",'Guia de BTC'!$C:$C,0)),"") -> -0.1969589808 | P39: =IFERROR(INDEX('Guia de BTC'!BD:BD,MATCH('Lâmina Gera'!$C39&"<xbsp>",'Guia de BTC'!$C:$C,0)),"") -> -0.0925139324
B40: 19 | C40: ='Base Resumo'!G23 -> BRBI11 | D40: =IFERROR(INDEX('Guia de BTC'!G:G,MATCH('Lâmina Gera'!$C40&"<xbsp>",'Guia de BTC'!$C:$C,0)),"") -> 15.56 | E40: =IFERROR(INDEX('Guia de BTC'!H:H,MATCH('Lâmina Gera'!$C40&"<xbsp>",'Guia de BTC'!$C:$C,0)),"") ->  | F40: =IFERROR(INDEX('Guia de BTC'!Q:Q,MATCH('Lâmina Gera'!$C40&"<xbsp>",'Guia de BTC'!$C:$C,0)),"") -> 735024.1669 | G40: =IFERROR(INDEX('Guia de BTC'!R:R,MATCH('Lâmina Gera'!$C40&"<xbsp>",'Guia de BTC'!$C:$C,0)),"") -> 0.01093917167 | H40: =IFERROR(INDEX('Guia de BTC'!T:T,MATCH('Lâmina Gera'!$C40&"<xbsp>",'Guia de BTC'!$C:$C,0)),"") -> 8040.55554 | I40: =IFERROR(INDEX('Guia de BTC'!Y:Y,MATCH('Lâmina Gera'!$C40&"<xbsp>",'Guia de BTC'!$C:$C,0)),"") -> 4601.499087 | J40: =IFERROR(INDEX('Guia de BTC'!Z:Z,MATCH('Lâmina Gera'!$C40&"<xbsp>",'Guia de BTC'!$C:$C,0)),"") -> 1.747377406 | K40: =IFERROR(INDEX('Guia de BTC'!AF:AF,MATCH('Lâmina Gera'!$C40&"<xbsp>",'Guia de BTC'!$C:$C,0)),"") -> 0.007094818852 | L40: =IFERROR(INDEX('Guia de BTC'!AJ:AJ,MATCH('Lâmina Gera'!$C40&"<xbsp>",'Guia de BTC'!$C:$C,0)),"") -> -0.0005601237176 | M40: =IFERROR(INDEX('Guia de BTC'!AN:AN,MATCH('Lâmina Gera'!$C40&"<xbsp>",'Guia de BTC'!$C:$C,0)),"") -> 0.1089 | N40: =IFERROR(INDEX('Guia de BTC'!BB:BB,MATCH('Lâmina Gera'!$C40&"<xbsp>",'Guia de BTC'!$C:$C,0)),"") -> -0.008917197452 | O40: =IFERROR(INDEX('Guia de BTC'!BC:BC,MATCH('Lâmina Gera'!$C40&"<xbsp>",'Guia de BTC'!$C:$C,0)),"") -> 0.06996050493 | P40: =IFERROR(INDEX('Guia de BTC'!BD:BD,MATCH('Lâmina Gera'!$C40&"<xbsp>",'Guia de BTC'!$C:$C,0)),"") -> 0.2345759279
B41: =B40+1 -> 20 | C41: ='Base Resumo'!G24 -> GOLL4 | D41: =IFERROR(INDEX('Guia de BTC'!G:G,MATCH('Lâmina Gera'!$C41&"<xbsp>",'Guia de BTC'!$C:$C,0)),"") -> 1.14 | E41: =IFERROR(INDEX('Guia de BTC'!H:H,MATCH('Lâmina Gera'!$C41&"<xbsp>",'Guia de BTC'!$C:$C,0)),"") ->  | F41: =IFERROR(INDEX('Guia de BTC'!Q:Q,MATCH('Lâmina Gera'!$C41&"<xbsp>",'Guia de BTC'!$C:$C,0)),"") -> 200517.3198 | G41: =IFERROR(INDEX('Guia de BTC'!R:R,MATCH('Lâmina Gera'!$C41&"<xbsp>",'Guia de BTC'!$C:$C,0)),"") -> 0.1930509406 | H41: =IFERROR(INDEX('Guia de BTC'!T:T,MATCH('Lâmina Gera'!$C41&"<xbsp>",'Guia de BTC'!$C:$C,0)),"") -> 38710.0572 | I41: =IFERROR(INDEX('Guia de BTC'!Y:Y,MATCH('Lâmina Gera'!$C41&"<xbsp>",'Guia de BTC'!$C:$C,0)),"") -> 5466.899435 | J41: =IFERROR(INDEX('Guia de BTC'!Z:Z,MATCH('Lâmina Gera'!$C41&"<xbsp>",'Guia de BTC'!$C:$C,0)),"") -> 7.080806527 | K41: =IFERROR(INDEX('Guia de BTC'!AF:AF,MATCH('Lâmina Gera'!$C41&"<xbsp>",'Guia de BTC'!$C:$C,0)),"") -> 0.06992099439 | L41: =IFERROR(INDEX('Guia de BTC'!AJ:AJ,MATCH('Lâmina Gera'!$C41&"<xbsp>",'Guia de BTC'!$C:$C,0)),"") -> 0.01513424008 | M41: =IFERROR(INDEX('Guia de BTC'!AN:AN,MATCH('Lâmina Gera'!$C41&"<xbsp>",'Guia de BTC'!$C:$C,0)),"") -> 0.1067 | N41: =IFERROR(INDEX('Guia de BTC'!BB:BB,MATCH('Lâmina Gera'!$C41&"<xbsp>",'Guia de BTC'!$C:$C,0)),"") -> 0.05555555555 | O41: =IFERROR(INDEX('Guia de BTC'!BC:BC,MATCH('Lâmina Gera'!$C41&"<xbsp>",'Guia de BTC'!$C:$C,0)),"") -> -0.872909699 | P41: =IFERROR(INDEX('Guia de BTC'!BD:BD,MATCH('Lâmina Gera'!$C41&"<xbsp>",'Guia de BTC'!$C:$C,0)),"") -> -0.8298507463

Sheet Base Resumo
E1: Planilha Auxiliar Não Modificar
C3: ='Lâmina Gera'!O20 -> Taxa Média De Aluguel | F3: Descrecente | I3: Dados para o Gráfico
B4: Nº | C4: Ticker | D4: =_xll.ECONOMATICA(C5:C600,"ticker") -> Código | E4: Valor | F4: Maior Valor | G4: Código | I4: Série (%) | J4: Série ($) | K4: Série (1,2)
B5: =IFERROR(RANK(E5,$E$5:$E$400)+COUNTIF($E$5:E5,E5)-1,"") -> 126 | C5: =IF('Guia de BTC'!C7=0,"",'Guia de BTC'!C7) -> BOVA11<XBSP> | D5: BOVA11 | E5: =IF(C5="","",IFERROR(INDEX(IF($C$3="% IBOV",'Guia de BTC'!H:H,IF($C$3="% Float Alugado",'Guia de BTC'!R:R,IF($C$3="Valor Alugado",'Guia de BTC'!T:T,IF($C$3="Volume Médio",'Guia de BTC'!Y:Y,IF($C$3="Dias de Giro",'Guia de BTC'!Z:Z,IF($C$3="Aluguel vs Vista",'Guia de BTC'!AF:AF,IF($C$3="Ações Alugadas",'Guia de BTC'!AD:AD,IF($C$3="▲ de 1 dia",'Guia de BTC'!AJ:AJ,IF($C$3="Taxa Média De Aluguel",'Guia de BTC'!AN:AN,""))))))))),MATCH(C5,'Guia de BTC'!C:C,0)),"")) -> 0.0093 | F5: =IF(C5="","",IFERROR(VLOOKUP(ROW()-4,$B$3:$E$600,4,FALSE),"")) -> 0.9628 | G5: =IF(C5="","",IFERROR(VLOOKUP(ROW()-4,$B$3:$E$600,3,FALSE),"")) -> CMIN3 | I5: =IF($C$3="% IBOV",F5, IF($C$3="% Float Alugado",F5, IF($C$3="Aluguel vs Vista",F5, IF($C$3="▲ de 1 dia",F5, IF($C$3="Taxa Média De Aluguel",F5,NA()))))) -> 0.9628 | J5: =IF($C$3="Valor Alugado",F5,IF($C$3="Volume Médio",F5,NA())) ->  | K5: =IF($C$3="Dias de Giro",F5,NA()) -> 
B6: =IFERROR(RANK(E6,$E$5:$E$400)+COUNTIF($E$5:E6,E6)-1,"") -> 251 | C6: =IF('Guia de BTC'!C8=0,"",'Guia de BTC'!C8) -> PETR4<XBSP> | D6: PETR4 | E6: =IF(C6="","",IFERROR(INDEX(IF($C$3="% IBOV",'Guia de BTC'!H:H,IF($C$3="% Float Alugado",'Guia de BTC'!R:R,IF($C$3="Valor Alugado",'Guia de BTC'!T:T,IF($C$3="Volume Médio",'Guia de BTC'!Y:Y,IF($C$3="Dias de Giro",'Guia de BTC'!Z:Z,IF($C$3="Aluguel vs Vista",'Guia de BTC'!AF:AF,IF($C$3="Ações Alugadas",'Guia de BTC'!AD:AD,IF($C$3="▲ de 1 dia",'Guia de BTC'!AJ:AJ,IF($C$3="Taxa Média De Aluguel",'Guia de BTC'!AN:AN,""))))))))),MATCH(C6,'Guia de BTC'!C:C,0)),"")) -> 0.0001 | F6: =IF(C6="","",IFERROR(VLOOKUP(ROW()-4,$B$3:$E$600,4,FALSE),"")) -> 0.9462 | G6: =IF(C6="","",IFERROR(VLOOKUP(ROW()-4,$B$3:$E$600,3,FALSE),"")) -> AMBP3 | I6: =IF($C$3="% IBOV",F6, IF($C$3="% Float Alugado",F6, IF($C$3="Aluguel vs Vista",F6, IF($C$3="▲ de 1 dia",F6, IF($C$3="Taxa Média De Aluguel",F6,NA()))))) -> 0.9462 | J6: =IF($C$3="Valor Alugado",F6,IF($C$3="Volume Médio",F6,NA())) ->  | K6: =IF($C$3="Dias de Giro",F6,NA()) -> 
B7: =IFERROR(RANK(E7,$E$5:$E$400)+COUNTIF($E$5:E7,E7)-1,"") -> 226 | C7: =IF('Guia de BTC'!C9=0,"",'Guia de BTC'!C9) -> ITUB4<XBSP> | D7: ITUB4 | E7: =IF(C7="","",IFERROR(INDEX(IF($C$3="% IBOV",'Guia de BTC'!H:H,IF($C$3="% Float Alugado",'Guia de BTC'!R:R,IF($C$3="Valor Alugado",'Guia de BTC'!T:T,IF($C$3="Volume Médio",'Guia de BTC'!Y:Y,IF($C$3="Dias de Giro",'Guia de BTC'!Z:Z,IF($C$3="Aluguel vs Vista",'Guia de BTC'!AF:AF,IF($C$3="Ações Alugadas",'Guia de BTC'!AD:AD,IF($C$3="▲ de 1 dia",'Guia de BTC'!AJ:AJ,IF($C$3="Taxa Média De Aluguel",'Guia de BTC'!AN:AN,""))))))))),MATCH(C7,'Guia de BTC'!C:C,0)),"")) -> 0.0005 | F7: =IF(C7="","",IFERROR(VLOOKUP(ROW()-4,$B$3:$E$600,4,FALSE),"")) -> 0.5164 | G7: =IF(C7="","",IFERROR(VLOOKUP(ROW()-4,$B$3:$E$600,3,FALSE),"")) -> AZUL4 | I7: 0.5164
B8: =IFERROR(RANK(E8,$E$5:$E$400)+COUNTIF($E$5:E8,E8)-1,"") -> 236 | C8: =IF('Guia de BTC'!C10=0,"",'Guia de BTC'!C10) -> VALE3<XBSP> | D8: VALE3 | E8: =IF(C8="","",IFERROR(INDEX(IF($C$3="% IBOV",'Guia de BTC'!H:H,IF($C$3="% Float Alugado",'Guia de BTC'!R:R,IF($C$3="Valor Alugado",'Guia de BTC'!T:T,IF($C$3="Volume Médio",'Guia de BTC'!Y:Y,IF($C$3="Dias de Giro",'Guia de BTC'!Z:Z,IF($C$3="Aluguel vs Vista",'Guia de BTC'!AF:AF,IF($C$3="Ações Alugadas",'Guia de BTC'!AD:AD,IF($C$3="▲ de 1 dia",'Guia de BTC'!AJ:AJ,IF($C$3="Taxa Média De Aluguel",'Guia de BTC'!AN:AN,""))))))))),MATCH(C8,'Guia de BTC'!C:C,0)),"")) -> 0.0003 | F8: 0.4809 | G8: TRAD3 | I8: 0.4809
B9: =IFERROR(RANK(E9,$E$5:$E$400)+COUNTIF($E$5:E9,E9)-1,"") -> 227 | C9: =IF('Guia de BTC'!C11=0,"",'Guia de BTC'!C11) -> BBAS3<XBSP> | D9: BBAS3 | E9: =IF(C9="","",IFERROR(INDEX(IF($C$3="% IBOV",'Guia de BTC'!H:H,IF($C$3="% Float Alugado",'Guia de BTC'!R:R,IF($C$3="Valor Alugado",'Guia de BTC'!T:T,IF($C$3="Volume Médio",'Guia de BTC'!Y:Y,IF($C$3="Dias de Giro",'Guia de BTC'!Z:Z,IF($C$3="Aluguel vs Vista",'Guia de BTC'!AF:AF,IF($C$3="Ações Alugadas",'Guia de BTC'!AD:AD,IF($C$3="▲ de 1 dia",'Guia de BTC'!AJ:AJ,IF($C$3="Taxa Média De Aluguel",'Guia de BTC'!AN:AN,""))))))))),MATCH(C9,'Guia de BTC'!C:C,0)),"")) -> 0.0005 | F9: 0.4118 | G9: CRFB3 | I9: 0.4118
B10: =IFERROR(RANK(E10,$E$5:$E$400)+COUNTIF($E$5:E10,E10)-1,"") -> 219 | C10: =IF('Guia de BTC'!C12=0,"",'Guia de BTC'!C12) -> WEGE3<XBSP> | D10: WEGE3 | E10: =IF(C10="","",IFERROR(INDEX(IF($C$3="% IBOV",'Guia de BTC'!H:H,IF($C$3="% Float Alugado",'Guia de BTC'!R:R,IF($C$3="Valor Alugado",'Guia de BTC'!T:T,IF($C$3="Volume Médio",'Guia de BTC'!Y:Y,IF($C$3="Dias de Giro",'Guia de BTC'!Z:Z,IF($C$3="Aluguel vs Vista",'Guia de BTC'!AF:AF,IF($C$3="Ações Alugadas",'Guia de BTC'!AD:AD,IF($C$3="▲ de 1 dia",'Guia de BTC'!AJ:AJ,IF($C$3="Taxa Média De Aluguel",'Guia de BTC'!AN:AN,""))))))))),MATCH(C10,'Guia de BTC'!C:C,0)),"")) -> 0.0006 | F10: 0.3982 | G10: CSED3 | I10: 0.3982
B11: =IFERROR(RANK(E11,$E$5:$E$400)+COUNTIF($E$5:E11,E11)-1,"") -> 237 | C11: =IF('Guia de BTC'!C13=0,"",'Guia de BTC'!C13) -> BBDC4<XBSP> | D11: BBDC4 | E11: =IF(C11="","",IFERROR(INDEX(IF($C$3="% IBOV",'Guia de BTC'!H:H,IF($C$3="% Float Alugado",'Guia de BTC'!R:R,IF($C$3="Valor Alugado",'Guia de BTC'!T:T,IF($C$3="Volume Médio",'Guia de BTC'!Y:Y,IF($C$3="Dias de Giro",'Guia de BTC'!Z:Z,IF($C$3="Aluguel vs Vista",'Guia de BTC'!AF:AF,IF($C$3="Ações Alugadas",'Guia de BTC'!AD:AD,IF($C$3="▲ de 1 dia",'Guia de BTC'!AJ:AJ,IF($C$3="Taxa Média De Aluguel",'Guia de BTC'!AN:AN,""))))))))),MATCH(C11,'Guia de BTC'!C:C,0)),"")) -> 0.0003 | F11: 0.3751 | G11: KLBN3 | I11: 0.3751
B12: =IFERROR(RANK(E12,$E$5:$E$400)+COUNTIF($E$5:E12,E12)-1,"") -> 212 | C12: =IF('Guia de BTC'!C14=0,"",'Guia de BTC'!C14) -> PETR3<XBSP> | D12: PETR3 | E12: =IF(C12="","",IFERROR(INDEX(IF($C$3="% IBOV",'Guia de BTC'!H:H,IF($C$3="% Float Alugado",'Guia de BTC'!R:R,IF($C$3="Valor Alugado",'Guia de BTC'!T:T,IF($C$3="Volume Médio",'Guia de BTC'!Y:Y,IF($C$3="Dias de Giro",'Guia de BTC'!Z:Z,IF($C$3="Aluguel vs Vista",'Guia de BTC'!AF:AF,IF($C$3="Ações Alugadas",'Guia de BTC'!AD:AD,IF($C$3="▲ de 1 dia",'Guia de BTC'!AJ:AJ,IF($C$3="Taxa Média De Aluguel",'Guia de BTC'!AN:AN,""))))))))),MATCH(C12,'Guia de BTC'!C:C,0)),"")) -> 0.0011 | F12: 0.3146 | G12: AMER3 | I12: 0.3146
B13: =IFERROR(RANK(E13,$E$5:$E$400)+COUNTIF($E$5:E13,E13)-1,"") -> 178 | C13: =IF('Guia de BTC'!C15=0,"",'Guia de BTC'!C15) -> RENT3<XBSP> | D13: RENT3 | E13: =IF(C13="","",IFERROR(INDEX(IF($C$3="% IBOV",'Guia de BTC'!H:H,IF($C$3="% Float Alugado",'Guia de BTC'!R:R,IF($C$3="Valor Alugado",'Guia de BTC'!T:T,IF($C$3="Volume Médio",'Guia de BTC'!Y:Y,IF($C$3="Dias de Giro",'Guia de BTC'!Z:Z,IF($C$3="Aluguel vs Vista",'Guia de BTC'!AF:AF,IF($C$3="Ações Alugadas",'Guia de BTC'!AD:AD,IF($C$3="▲ de 1 dia",'Guia de BTC'!AJ:AJ,IF($C$3="Taxa Média De Aluguel",'Guia de BTC'!AN:AN,""))))))))),MATCH(C13,'Guia de BTC'!C:C,0)),"")) -> 0.0023 | F13: 0.2962 | G13: BRIT3 | I13: 0.2962
B14: =IFERROR(RANK(E14,$E$5:$E$400)+COUNTIF($E$5:E14,E14)-1,"") -> 189 | C14: =IF('Guia de BTC'!C16=0,"",'Guia de BTC'!C16) -> ABEV3<XBSP> | D14: ABEV3 | E14: =IF(C14="","",IFERROR(INDEX(IF($C$3="% IBOV",'Guia de BTC'!H:H,IF($C$3="% Float Alugado",'Guia de BTC'!R:R,IF($C$3="Valor Alugado",'Guia de BTC'!T:T,IF($C$3="Volume Médio",'Guia de BTC'!Y:Y,IF($C$3="Dias de Giro",'Guia de BTC'!Z:Z,IF($C$3="Aluguel vs Vista",'Guia de BTC'!AF:AF,IF($C$3="Ações Alugadas",'Guia de BTC'!AD:AD,IF($C$3="▲ de 1 dia",'Guia de BTC'!AJ:AJ,IF($C$3="Taxa Média De Aluguel",'Guia de BTC'!AN:AN,""))))))))),MATCH(C14,'Guia de BTC'!C:C,0)),"")) -> 0.0018 | F14: 0.2766 | G14: ONCO3 | I14: 0.2766
B15: =IFERROR(RANK(E15,$E$5:$E$400)+COUNTIF($E$5:E15,E15)-1,"") -> 228 | C15: =IF('Guia de BTC'!C17=0,"",'Guia de BTC'!C17) -> B3SA3<XBSP> | D15: B3SA3 | E15: =IF(C15="","",IFERROR(INDEX(IF($C$3="% IBOV",'Guia de BTC'!H:H,IF($C$3="% Float Alugado",'Guia de BTC'!R:R,IF($C$3="Valor Alugado",'Guia de BTC'!T:T,IF($C$3="Volume Médio",'Guia de BTC'!Y:Y,IF($C$3="Dias de Giro",'Guia de BTC'!Z:Z,IF($C$3="Aluguel vs Vista",'Guia de BTC'!AF:AF,IF($C$3="Ações Alugadas",'Guia de BTC'!AD:AD,IF($C$3="▲ de 1 dia",'Guia de BTC'!AJ:AJ,IF($C$3="Taxa Média De Aluguel",'Guia de BTC'!AN:AN,""))))))))),MATCH(C15,'Guia de BTC'!C:C,0)),"")) -> 0.0005 | F15: 0.2237 | G15: PETZ3 | I15: 0.2237
B16: =IFERROR(RANK(E16,$E$5:$E$400)+COUNTIF($E$5:E16,E16)-1,"") -> 216 | C16: =IF('Guia de BTC'!C18=0,"",'Guia de BTC'!C18) -> ELET3<XBSP> | D16: ELET3 | E16: =IF(C16="","",IFERROR(INDEX(IF($C$3="% IBOV",'Guia de BTC'!H:H,IF($C$3="% Float Alugado",'Guia de BTC'!R:R,IF($C$3="Valor Alugado",'Guia de BTC'!T:T,IF($C$3="Volume Médio",'Guia de BTC'!Y:Y,IF($C$3="Dias de Giro",'Guia de BTC'!Z:Z,IF($C$3="Aluguel vs Vista",'Guia de BTC'!AF:AF,IF($C$3="Ações Alugadas",'Guia de BTC'!AD:AD,IF($C$3="▲ de 1 dia",'Guia de BTC'!AJ:AJ,IF($C$3="Taxa Média De Aluguel",'Guia de BTC'!AN:AN,""))))))))),MATCH(C16,'Guia de BTC'!C:C,0)),"")) -> 0.0008 | F16: 0.2113 | G16: ASAI3 | I16: 0.2113
B17: =IFERROR(RANK(E17,$E$5:$E$400)+COUNTIF($E$5:E17,E17)-1,"") -> 37 | C17: =IF('Guia de BTC'!C19=0,"",'Guia de BTC'!C19) -> EMBR3<XBSP> | D17: EMBR3 | E17: =IF(C17="","",IFERROR(INDEX(IF($C$3="% IBOV",'Guia de BTC'!H:H,IF($C$3="% Float Alugado",'Guia de BTC'!R:R,IF($C$3="Valor Alugado",'Guia de BTC'!T:T,IF($C$3="Volume Médio",'Guia de BTC'!Y:Y,IF($C$3="Dias de Giro",'Guia de BTC'!Z:Z,IF($C$3="Aluguel vs Vista",'Guia de BTC'!AF:AF,IF($C$3="Ações Alugadas",'Guia de BTC'!AD:AD,IF($C$3="▲ de 1 dia",'Guia de BTC'!AJ:AJ,IF($C$3="Taxa Média De Aluguel",'Guia de BTC'!AN:AN,""))))))))),MATCH(C17,'Guia de BTC'!C:C,0)),"")) -> 0.073 | F17: 0.2 | G17: SYNE3 | I17: 0.2
B18: =IFERROR(RANK(E18,$E$5:$E$400)+COUNTIF($E$5:E18,E18)-1,"") -> 233 | C18: =IF('Guia de BTC'!C20=0,"",'Guia de BTC'!C20) -> PRIO3<XBSP> | D18: PRIO3 | E18: =IF(C18="","",IFERROR(INDEX(IF($C$3="% IBOV",'Guia de BTC'!H:H,IF($C$3="% Float Alugado",'Guia de BTC'!R:R,IF($C$3="Valor Alugado",'Guia de BTC'!T:T,IF($C$3="Volume Médio",'Guia de BTC'!Y:Y,IF($C$3="Dias de Giro",'Guia de BTC'!Z:Z,IF($C$3="Aluguel vs Vista",'Guia de BTC'!AF:AF,IF($C$3="Ações Alugadas",'Guia de BTC'!AD:AD,IF($C$3="▲ de 1 dia",'Guia de BTC'!AJ:AJ,IF($C$3="Taxa Média De Aluguel",'Guia de BTC'!AN:AN,""))))))))),MATCH(C18,'Guia de BTC'!C:C,0)),"")) -> 0.0004 | F18: 0.1763 | G18: SAPR3 | I18: 0.1763
B19: =IFERROR(RANK(E19,$E$5:$E$400)+COUNTIF($E$5:E19,E19)-1,"") -> 117 | C19: =IF('Guia de BTC'!C21=0,"",'Guia de BTC'!C21) -> BRAV3<XBSP> | D19: BRAV3 | E19: =IF(C19="","",IFERROR(INDEX(IF($C$3="% IBOV",'Guia de BTC'!H:H,IF($C$3="% Float Alugado",'Guia de BTC'!R:R,IF($C$3="Valor Alugado",'Guia de BTC'!T:T,IF($C$3="Volume Médio",'Guia de BTC'!Y:Y,IF($C$3="Dias de Giro",'Guia de BTC'!Z:Z,IF($C$3="Aluguel vs Vista",'Guia de BTC'!AF:AF,IF($C$3="Ações Alugadas",'Guia de BTC'!AD:AD,IF($C$3="▲ de 1 dia",'Guia de BTC'!AJ:AJ,IF($C$3="Taxa Média De Aluguel",'Guia de BTC'!AN:AN,""))))))))),MATCH(C19,'Guia de BTC'!C:C,0)),"")) -> 0.0113 | F19: 0.1561 | G19: PDGR3 | I19: 0.1561
B20: =IFERROR(RANK(E20,$E$5:$E$400)+COUNTIF($E$5:E20,E20)-1,"") -> 107 | C20: =IF('Guia de BTC'!C22=0,"",'Guia de BTC'!C22) -> BOVV11<XBSP> | D20: BOVV11 | E20: =IF(C20="","",IFERROR(INDEX(IF($C$3="% IBOV",'Guia de BTC'!H:H,IF($C$3="% Float Alugado",'Guia de BTC'!R:R,IF($C$3="Valor Alugado",'Guia de BTC'!T:T,IF($C$3="Volume Médio",'Guia de BTC'!Y:Y,IF($C$3="Dias de Giro",'Guia de BTC'!Z:Z,IF($C$3="Aluguel vs Vista",'Guia de BTC'!AF:AF,IF($C$3="Ações Alugadas",'Guia de BTC'!AD:AD,IF($C$3="▲ de 1 dia",'Guia de BTC'!AJ:AJ,IF($C$3="Taxa Média De Aluguel",'Guia de BTC'!AN:AN,""))))))))),MATCH(C20,'Guia de BTC'!C:C,0)),"")) -> 0.0138 | F20: 0.1545 | G20: AMAR3 | I20: 0.1545
B21: =IFERROR(RANK(E21,$E$5:$E$400)+COUNTIF($E$5:E21,E21)-1,"") -> 193 | C21: =IF('Guia de BTC'!C23=0,"",'Guia de BTC'!C23) -> CMIG4<XBSP> | D21: CMIG4 | E21: =IF(C21="","",IFERROR(INDEX(IF($C$3="% IBOV",'Guia de BTC'!H:H,IF($C$3="% Float Alugado",'Guia de BTC'!R:R,IF($C$3="Valor Alugado",'Guia de BTC'!T:T,IF($C$3="Volume Médio",'Guia de BTC'!Y:Y,IF($C$3="Dias de Giro",'Guia de BTC'!Z:Z,IF($C$3="Aluguel vs Vista",'Guia de BTC'!AF:AF,IF($C$3="Ações Alugadas",'Guia de BTC'!AD:AD,IF($C$3="▲ de 1 dia",'Guia de BTC'!AJ:AJ,IF($C$3="Taxa Média De Aluguel",'Guia de BTC'!AN:AN,""))))))))),MATCH(C21,'Guia de BTC'!C:C,0)),"")) -> 0.0017 | F21: 0.1322 | G21: SEQL3 | I21: 0.1322 | J21: =IF($C$3="Valor Alugado",F21,IF($C$3="Volume Médio",F21,NA())) ->  | K21: =IF($C$3="Dias de Giro",F21,NA()) -> 
B22: =IFERROR(RANK(E22,$E$5:$E$400)+COUNTIF($E$5:E22,E22)-1,"") -> 66 | C22: =IF('Guia de BTC'!C24=0,"",'Guia de BTC'!C24) -> SMAL11<XBSP> | D22: SMAL11 | E22: =IF(C22="","",IFERROR(INDEX(IF($C$3="% IBOV",'Guia de BTC'!H:H,IF($C$3="% Float Alugado",'Guia de BTC'!R:R,IF($C$3="Valor Alugado",'Guia de BTC'!T:T,IF($C$3="Volume Médio",'Guia de BTC'!Y:Y,IF($C$3="Dias de Giro",'Guia de BTC'!Z:Z,IF($C$3="Aluguel vs Vista",'Guia de BTC'!AF:AF,IF($C$3="Ações Alugadas",'Guia de BTC'!AD:AD,IF($C$3="▲ de 1 dia",'Guia de BTC'!AJ:AJ,IF($C$3="Taxa Média De Aluguel",'Guia de BTC'!AN:AN,""))))))))),MATCH(C22,'Guia de BTC'!C:C,0)),"")) -> 0.0385 | F22: 0.1147 | G22: MELK3 | I22: 0.1147 | J22: =IF($C$3="Valor Alugado",F22,IF($C$3="Volume Médio",F22,NA())) ->  | K22: =IF($C$3="Dias de Giro",F22,NA()) -> 
B23: =IFERROR(RANK(E23,$E$5:$E$400)+COUNTIF($E$5:E23,E23)-1,"") -> 195 | C23: =IF('Guia de BTC'!C25=0,"",'Guia de BTC'!C25) -> BBSE3<XBSP> | D23: BBSE3 | E23: =IF(C23="","",IFERROR(INDEX(IF($C$3="% IBOV",'Guia de BTC'!H:H,IF($C$3="% Float Alugado",'Guia de BTC'!R:R,IF($C$3="Valor Alugado",'Guia de BTC'!T:T,IF($C$3="Volume Médio",'Guia de BTC'!Y:Y,IF($C$3="Dias de Giro",'Guia de BTC'!Z:Z,IF($C$3="Aluguel vs Vista",'Guia de BTC'!AF:AF,IF($C$3="Ações Alugadas",'Guia de BTC'!AD:AD,IF($C$3="▲ de 1 dia",'Guia de BTC'!AJ:AJ,IF($C$3="Taxa Média De Aluguel",'Guia de BTC'!AN:AN,""))))))))),MATCH(C23,'Guia de BTC'!C:C,0)),"")) -> 0.0015 | F23: 0.1089 | G23: BRBI11 | I23: 0.1089
B24: =IFERROR(RANK(E24,$E$5:$E$400)+COUNTIF($E$5:E24,E24)-1,"") -> 229 | C24: =IF('Guia de BTC'!C26=0,"",'Guia de BTC'!C26) -> BPAC11<XBSP> | D24: BPAC11 | E24: =IF(C24="","",IFERROR(INDEX(IF($C$3="% IBOV",'Guia de BTC'!H:H,IF($C$3="% Float Alugado",'Guia de BTC'!R:R,IF($C$3="Valor Alugado",'Guia de BTC'!T:T,IF($C$3="Volume Médio",'Guia de BTC'!Y:Y,IF($C$3="Dias de Giro",'Guia de BTC'!Z:Z,IF($C$3="Aluguel vs Vista",'Guia de BTC'!AF:AF,IF($C$3="Ações Alugadas",'Guia de BTC'!AD:AD,IF($C$3="▲ de 1 dia",'Guia de BTC'!AJ:AJ,IF($C$3="Taxa Média De Aluguel",'Guia de BTC'!AN:AN,""))))))))),MATCH(C24,'Guia de BTC'!C:C,0)),"")) -> 0.0005 | F24: 0.1067 | G24: GOLL4 | I24: 0.1067
B25: =IFERROR(RANK(E25,$E$5:$E$400)+COUNTIF($E$5:E25,E25)-1,"") -> 173 | C25: =IF('Guia de BTC'!C27=0,"",'Guia de BTC'!C27) -> TAEE11<XBSP> | D25: TAEE11 | E25: =IF(C25="","",IFERROR(INDEX(IF($C$3="% IBOV",'Guia de BTC'!H:H,IF($C$3="% Float Alugado",'Guia de BTC'!R:R,IF($C$3="Valor Alugado",'Guia de BTC'!T:T,IF($C$3="Volume Médio",'Guia de BTC'!Y:Y,IF($C$3="Dias de Giro",'Guia de BTC'!Z:Z,IF($C$3="Aluguel vs Vista",'Guia de BTC'!AF:AF,IF($C$3="Ações Alugadas",'Guia de BTC'!AD:AD,IF($C$3="▲ de 1 dia",'Guia de BTC'!AJ:AJ,IF($C$3="Taxa Média De Aluguel",'Guia de BTC'!AN:AN,""))))))))),MATCH(C25,'Guia de BTC'!C:C,0)),"")) -> 0.0026 | F25: 0.106 | G25: RAIZ4
B26: =IFERROR(RANK(E26,$E$5:$E$400)+COUNTIF($E$5:E26,E26)-1,"") -> 246 | C26: =IF('Guia de BTC'!C28=0,"",'Guia de BTC'!C28) -> SUZB3<XBSP> | D26: SUZB3 | E26: =IF(C26="","",IFERROR(INDEX(IF($C$3="% IBOV",'Guia de BTC'!H:H,IF($C$3="% Float Alugado",'Guia de BTC'!R:R,IF($C$3="Valor Alugado",'Guia de BTC'!T:T,IF($C$3="Volume Médio",'Guia de BTC'!Y:Y,IF($C$3="Dias de Giro",'Guia de BTC'!Z:Z,IF($C$3="Aluguel vs Vista",'Guia de BTC'!AF:AF,IF($C$3="Ações Alugadas",'Guia de BTC'!AD:AD,IF($C$3="▲ de 1 dia",'Guia de BTC'!AJ:AJ,IF($C$3="Taxa Média De Aluguel",'Guia de BTC'!AN:AN,""))))))))),MATCH(C26,'Guia de BTC'!C:C,0)),"")) -> 0.0002 | F26: 0.1024 | G26: MATD3
B27: =IFERROR(RANK(E27,$E$5:$E$400)+COUNTIF($E$5:E27,E27)-1,"") -> 90 | C27: =IF('Guia de BTC'!C29=0,"",'Guia de BTC'!C29) -> EGIE3<XBSP> | D27: EGIE3 | E27: =IF(C27="","",IFERROR(INDEX(IF($C$3="% IBOV",'Guia de BTC'!H:H,IF($C$3="% Float Alugado",'Guia de BTC'!R:R,IF($C$3="Valor Alugado",'Guia de BTC'!T:T,IF($C$3="Volume Médio",'Guia de BTC'!Y:Y,IF($C$3="Dias de Giro",'Guia de BTC'!Z:Z,IF($C$3="Aluguel vs Vista",'Guia de BTC'!AF:AF,IF($C$3="Ações Alugadas",'Guia de BTC'!AD:AD,IF($C$3="▲ de 1 dia",'Guia de BTC'!AJ:AJ,IF($C$3="Taxa Média De Aluguel",'Guia de BTC'!AN:AN,""))))))))),MATCH(C27,'Guia de BTC'!C:C,0)),"")) -> 0.0239 | F27: 0.1012 | G27: BHIA3
B28: =IFERROR(RANK(E28,$E$5:$E$400)+COUNTIF($E$5:E28,E28)-1,"") -> 185 | C28: =IF('Guia de BTC'!C30=0,"",'Guia de BTC'!C30) -> VIVT3<XBSP> | D28: VIVT3 | E28: =IF(C28="","",IFERROR(INDEX(IF($C$3="% IBOV",'Guia de BTC'!H:H,IF($C$3="% Float Alugado",'Guia de BTC'!R:R,IF($C$3="Valor Alugado",'Guia de BTC'!T:T,IF($C$3="Volume Médio",'Guia de BTC'!Y:Y,IF($C$3="Dias de Giro",'Guia de BTC'!Z:Z,IF($C$3="Aluguel vs Vista",'Guia de BTC'!AF:AF,IF($C$3="Ações Alugadas",'Guia de BTC'!AD:AD,IF($C$3="▲ de 1 dia",'Guia de BTC'!AJ:AJ,IF($C$3="Taxa Média De Aluguel",'Guia de BTC'!AN:AN,""))))))))),MATCH(C28,'Guia de BTC'!C:C,0)),"")) -> 0.0019 | F28: 0.0994 | G28: KLBN4
B29: =IFERROR(RANK(E29,$E$5:$E$400)+COUNTIF($E$5:E29,E29)-1,"") -> 166 | C29: =IF('Guia de BTC'!C31=0,"",'Guia de BTC'!C31) -> EQTL3<XBSP> | D29: EQTL3 | E29: =IF(C29="","",IFERROR(INDEX(IF($C$3="% IBOV",'Guia de BTC'!H:H,IF($C$3="% Float Alugado",'Guia de BTC'!R:R,IF($C$3="Valor Alugado",'Guia de BTC'!T:T,IF($C$3="Volume Médio",'Guia de BTC'!Y:Y,IF($C$3="Dias de Giro",'Guia de BTC'!Z:Z,IF($C$3="Aluguel vs Vista",'Guia de BTC'!AF:AF,IF($C$3="Ações Alugadas",'Guia de BTC'!AD:AD,IF($C$3="▲ de 1 dia",'Guia de BTC'!AJ:AJ,IF($C$3="Taxa Média De Aluguel",'Guia de BTC'!AN:AN,""))))))))),MATCH(C29,'Guia de BTC'!C:C,0)),"")) -> 0.0034 | F29: 0.0988 | G29: HBSA3
B30: =IFERROR(RANK(E30,$E$5:$E$400)+COUNTIF($E$5:E30,E30)-1,"") -> 238 | C30: =IF('Guia de BTC'!C32=0,"",'Guia de BTC'!C32) -> GGBR4<XBSP> | D30: GGBR4 | E30: =IF(C30="","",IFERROR(INDEX(IF($C$3="% IBOV",'Guia de BTC'!H:H,IF($C$3="% Float Alugado",'Guia de BTC'!R:R,IF($C$3="Valor Alugado",'Guia de BTC'!T:T,IF($C$3="Volume Médio",'Guia de BTC'!Y:Y,IF($C$3="Dias de Giro",'Guia de BTC'!Z:Z,IF($C$3="Aluguel vs Vista",'Guia de BTC'!AF:AF,IF($C$3="Ações Alugadas",'Guia de BTC'!AD:AD,IF($C$3="▲ de 1 dia",'Guia de BTC'!AJ:AJ,IF($C$3="Taxa Média De Aluguel",'Guia de BTC'!AN:AN,""))))))))),MATCH(C30,'Guia de BTC'!C:C,0)),"")) -> 0.0003 | F30: 0.0941 | G30: ODPV3
B31: =IFERROR(RANK(E31,$E$5:$E$400)+COUNTIF($E$5:E31,E31)-1,"") -> 220 | C31: =IF('Guia de BTC'!C33=0,"",'Guia de BTC'!C33) -> ITSA4<XBSP> | D31: ITSA4 | E31: =IF(C31="","",IFERROR(INDEX(IF($C$3="% IBOV",'Guia de BTC'!H:H,IF($C$3="% Float Alugado",'Guia de BTC'!R:R,IF($C$3="Valor Alugado",'Guia de BTC'!T:T,IF($C$3="Volume Médio",'Guia de BTC'!Y:Y,IF($C$3="Dias de Giro",'Guia de BTC'!Z:Z,IF($C$3="Aluguel vs Vista",'Guia de BTC'!AF:AF,IF($C$3="Ações Alugadas",'Guia de BTC'!AD:AD,IF($C$3="▲ de 1 dia",'Guia de BTC'!AJ:AJ,IF($C$3="Taxa Média De Aluguel",'Guia de BTC'!AN:AN,""))))))))),MATCH(C31,'Guia de BTC'!C:C,0)),"")) -> 0.0006 | F31: 0.0935 | G31: MBLY3
B32: =IFERROR(RANK(E32,$E$5:$E$400)+COUNTIF($E$5:E32,E32)-1,"") -> 180 | C32: =IF('Guia de BTC'!C34=0,"",'Guia de BTC'!C34) -> NTCO3<XBSP> | D32: NTCO3 | E32: =IF(C32="","",IFERROR(INDEX(IF($C$3="% IBOV",'Guia de BTC'!H:H,IF($C$3="% Float Alugado",'Guia de BTC'!R:R,IF($C$3="Valor Alugado",'Guia de BTC'!T:T,IF($C$3="Volume Médio",'Guia de BTC'!Y:Y,IF($C$3="Dias de Giro",'Guia de BTC'!Z:Z,IF($C$3="Aluguel vs Vista",'Guia de BTC'!AF:AF,IF($C$3="Ações Alugadas",'Guia de BTC'!AD:AD,IF($C$3="▲ de 1 dia",'Guia de BTC'!AJ:AJ,IF($C$3="Taxa Média De Aluguel",'Guia de BTC'!AN:AN,""))))))))),MATCH(C32,'Guia de BTC'!C:C,0)),"")) -> 0.002 | F32: 0.0928 | G32: PLPL3
B33: =IFERROR(RANK(E33,$E$5:$E$400)+COUNTIF($E$5:E33,E33)-1,"") -> 125 | C33: =IF('Guia de BTC'!C35=0,"",'Guia de BTC'!C35) -> RADL3<XBSP> | D33: RADL3 | E33: =IF(C33="","",IFERROR(INDEX(IF($C$3="% IBOV",'Guia de BTC'!H:H,IF($C$3="% Float Alugado",'Guia de BTC'!R:R,IF($C$3="Valor Alugado",'Guia de BTC'!T:T,IF($C$3="Volume Médio",'Guia de BTC'!Y:Y,IF($C$3="Dias de Giro",'Guia de BTC'!Z:Z,IF($C$3="Aluguel vs Vista",'Guia de BTC'!AF:AF,IF($C$3="Ações Alugadas",'Guia de BTC'!AD:AD,IF($C$3="▲ de 1 dia",'Guia de BTC'!AJ:AJ,IF($C$3="Taxa Média De Aluguel",'Guia de BTC'!AN:AN,""))))))))),MATCH(C33,'Guia de BTC'!C:C,0)),"")) -> 0.0094 | F33: 0.0921 | G33: MDNE3
B34: =IFERROR(RANK(E34,$E$5:$E$400)+COUNTIF($E$5:E34,E34)-1,"") -> 202 | C34: =IF('Guia de BTC'!C36=0,"",'Guia de BTC'!C36) -> BRFS3<XBSP> | D34: BRFS3 | E34: =IF(C34="","",IFERROR(INDEX(IF($C$3="% IBOV",'Guia de BTC'!H:H,IF($C$3="% Float Alugado",'Guia de BTC'!R:R,IF($C$3="Valor Alugado",'Guia de BTC'!T:T,IF($C$3="Volume Médio",'Guia de BTC'!Y:Y,IF($C$3="Dias de Giro",'Guia de BTC'!Z:Z,IF($C$3="Aluguel vs Vista",'Guia de BTC'!AF:AF,IF($C$3="Ações Alugadas",'Guia de BTC'!AD:AD,IF($C$3="▲ de 1 dia",'Guia de BTC'!AJ:AJ,IF($C$3="Taxa Média De Aluguel",'Guia de BTC'!AN:AN,""))))))))),MATCH(C34,'Guia de BTC'!C:C,0)),"")) -> 0.0014 | F34: 0.0845 | G34: POMO3
B35: =IFERROR(RANK(E35,$E$5:$E$400)+COUNTIF($E$5:E35,E35)-1,"") -> 239 | C35: =IF('Guia de BTC'!C37=0,"",'Guia de BTC'!C37) -> RDOR3<XBSP> | D35: RDOR3 | E35: =IF(C35="","",IFERROR(INDEX(IF($C$3="% IBOV",'Guia de BTC'!H:H,IF($C$3="% Float Alugado",'Guia de BTC'!R:R,IF($C$3="Valor Alugado",'Guia de BTC'!T:T,IF($C$3="Volume Médio",'Guia de BTC'!Y:Y,IF($C$3="Dias de Giro",'Guia de BTC'!Z:Z,IF($C$3="Aluguel vs Vista",'Guia de BTC'!AF:AF,IF($C$3="Ações Alugadas",'Guia de BTC'!AD:AD,IF($C$3="▲ de 1 dia",'Guia de BTC'!AJ:AJ,IF($C$3="Taxa Média De Aluguel",'Guia de BTC'!AN:AN,""))))))))),MATCH(C35,'Guia de BTC'!C:C,0)),"")) -> 0.0003 | F35: 0.08 | G35: USAL11
B36: =IFERROR(RANK(E36,$E$5:$E$400)+COUNTIF($E$5:E36,E36)-1,"") -> 85 | C36: =IF('Guia de BTC'!C38=0,"",'Guia de BTC'!C38) -> IVVB11<XBSP> | D36: IVVB11 | E36: =IF(C36="","",IFERROR(INDEX(IF($C$3="% IBOV",'Guia de BTC'!H:H,IF($C$3="% Float Alugado",'Guia de BTC'!R:R,IF($C$3="Valor Alugado",'Guia de BTC'!T:T,IF($C$3="Volume Médio",'Guia de BTC'!Y:Y,IF($C$3="Dias de Giro",'Guia de BTC'!Z:Z,IF($C$3="Aluguel vs Vista",'Guia de BTC'!AF:AF,IF($C$3="Ações Alugadas",'Guia de BTC'!AD:AD,IF($C$3="▲ de 1 dia",'Guia de BTC'!AJ:AJ,IF($C$3="Taxa Média De Aluguel",'Guia de BTC'!AN:AN,""))))))))),MATCH(C36,'Guia de BTC'!C:C,0)),"")) -> 0.0262 | F36: 0.08 | G36: DIVO11
B37: =IFERROR(RANK(E37,$E$5:$E$400)+COUNTIF($E$5:E37,E37)-1,"") -> 240 | C37: =IF('Guia de BTC'!C39=0,"",'Guia de BTC'!C39) -> JBSS3<XBSP> | D37: JBSS3 | E37: =IF(C37="","",IFERROR(INDEX(IF($C$3="% IBOV",'Guia de BTC'!H:H,IF($C$3="% Float Alugado",'Guia de BTC'!R:R,IF($C$3="Valor Alugado",'Guia de BTC'!T:T,IF($C$3="Volume Médio",'Guia de BTC'!Y:Y,IF($C$3="Dias de Giro",'Guia de BTC'!Z:Z,IF($C$3="Aluguel vs Vista",'Guia de BTC'!AF:AF,IF($C$3="Ações Alugadas",'Guia de BTC'!AD:AD,IF($C$3="▲ de 1 dia",'Guia de BTC'!AJ:AJ,IF($C$3="Taxa Média De Aluguel",'Guia de BTC'!AN:AN,""))))))))),MATCH(C37,'Guia de BTC'!C:C,0)),"")) -> 0.0003 | F37: 0.08 | G37: PIBB11
B38: =IFERROR(RANK(E38,$E$5:$E$400)+COUNTIF($E$5:E38,E38)-1,"") -> 241 | C38: =IF('Guia de BTC'!C40=0,"",'Guia de BTC'!C40) -> CPLE6<XBSP> | D38: CPLE6 | E38: =IF(C38="","",IFERROR(INDEX(IF($C$3="% IBOV",'Guia de BTC'!H:H,IF($C$3="% Float Alugado",'Guia de BTC'!R:R,IF($C$3="Valor Alugado",'Guia de BTC'!T:T,IF($C$3="Volume Médio",'Guia de BTC'!Y:Y,IF($C$3="Dias de Giro",'Guia de BTC'!Z:Z,IF($C$3="Aluguel vs Vista",'Guia de BTC'!AF:AF,IF($C$3="Ações Alugadas",'Guia de BTC'!AD:AD,IF($C$3="▲ de 1 dia",'Guia de BTC'!AJ:AJ,IF($C$3="Taxa Média De Aluguel",'Guia de BTC'!AN:AN,""))))))))),MATCH(C38,'Guia de BTC'!C:C,0)),"")) -> 0.0003 | F38: 0.0781 | G38: GFSA3
B39: =IFERROR(RANK(E39,$E$5:$E$400)+COUNTIF($E$5:E39,E39)-1,"") -> 12 | C39: =IF('Guia de BTC'!C41=0,"",'Guia de BTC'!C41) -> ASAI3<XBSP> | D39: ASAI3 | E39: =IF(C39="","",IFERROR(INDEX(IF($C$3="% IBOV",'Guia de BTC'!H:H,IF($C$3="% Float Alugado",'Guia de BTC'!R:R,IF($C$3="Valor Alugado",'Guia de BTC'!T:T,IF($C$3="Volume Médio",'Guia de BTC'!Y:Y,IF($C$3="Dias de Giro",'Guia de BTC'!Z:Z,IF($C$3="Aluguel vs Vista",'Guia de BTC'!AF:AF,IF($C$3="Ações Alugadas",'Guia de BTC'!AD:AD,IF($C$3="▲ de 1 dia",'Guia de BTC'!AJ:AJ,IF($C$3="Taxa Média De Aluguel",'Guia de BTC'!AN:AN,""))))))))),MATCH(C39,'Guia de BTC'!C:C,0)),"")) -> 0.2113 | F39: 0.0749 | G39: TECN3
B40: =IFERROR(RANK(E40,$E$5:$E$400)+COUNTIF($E$5:E40,E40)-1,"") -> 71 | C40: =IF('Guia de BTC'!C42=0,"",'Guia de BTC'!C42) -> MULT3<XBSP> | D40: MULT3 | E40: =IF(C40="","",IFERROR(INDEX(IF($C$3="% IBOV",'Guia de BTC'!H:H,IF($C$3="% Float Alugado",'Guia de BTC'!R:R,IF($C$3="Valor Alugado",'Guia de BTC'!T:T,IF($C$3="Volume Médio",'Guia de BTC'!Y:Y,IF($C$3="Dias de Giro",'Guia de BTC'!Z:Z,IF($C$3="Aluguel vs Vista",'Guia de BTC'!AF:AF,IF($C$3="Ações Alugadas",'Guia de BTC'!AD:AD,IF($C$3="▲ de 1 dia",'Guia de BTC'!AJ:AJ,IF($C$3="Taxa Média De Aluguel",'Guia de BTC'!AN:AN,""))))))))),MATCH(C40,'Guia de BTC'!C:C,0)),"")) -> 0.0361 | F40: 0.0744 | G40: LAND3
B41: =IFERROR(RANK(E41,$E$5:$E$400)+COUNTIF($E$5:E41,E41)-1,"") -> 146 | C41: =IF('Guia de BTC'!C43=0,"",'Guia de BTC'!C43) -> TIMS3<XBSP> | D41: TIMS3 | E41: =IF(C41="","",IFERROR(INDEX(IF($C$3="% IBOV",'Guia de BTC'!H:H,IF($C$3="% Float Alugado",'Guia de BTC'!R:R,IF($C$3="Valor Alugado",'Guia de BTC'!T:T,IF($C$3="Volume Médio",'Guia de BTC'!Y:Y,IF($C$3="Dias de Giro",'Guia de BTC'!Z:Z,IF($C$3="Aluguel vs Vista",'Guia de BTC'!AF:AF,IF($C$3="Ações Alugadas",'Guia de BTC'!AD:AD,IF($C$3="▲ de 1 dia",'Guia de BTC'!AJ:AJ,IF($C$3="Taxa Média De Aluguel",'Guia de BTC'!AN:AN,""))))))))),MATCH(C41,'Guia de BTC'!C:C,0)),"")) -> 0.005 | F41: 0.073 | G41: EMBR3
B42: =IFERROR(RANK(E42,$E$5:$E$400)+COUNTIF($E$5:E42,E42)-1,"") -> 142 | C42: =IF('Guia de BTC'!C44=0,"",'Guia de BTC'!C44) -> CCRO3<XBSP> | D42: CCRO3 | E42: =IF(C42="","",IFERROR(INDEX(IF($C$3="% IBOV",'Guia de BTC'!H:H,IF($C$3="% Float Alugado",'Guia de BTC'!R:R,IF($C$3="Valor Alugado",'Guia de BTC'!T:T,IF($C$3="Volume Médio",'Guia de BTC'!Y:Y,IF($C$3="Dias de Giro",'Guia de BTC'!Z:Z,IF($C$3="Aluguel vs Vista",'Guia de BTC'!AF:AF,IF($C$3="Ações Alugadas",'Guia de BTC'!AD:AD,IF($C$3="▲ de 1 dia",'Guia de BTC'!AJ:AJ,IF($C$3="Taxa Média De Aluguel",'Guia de BTC'!AN:AN,""))))))))),MATCH(C42,'Guia de BTC'!C:C,0)),"")) -> 0.0063 | F42: 0.0724 | G42: TGMA3
B43: =IFERROR(RANK(E43,$E$5:$E$400)+COUNTIF($E$5:E43,E43)-1,"") -> 160 | C43: =IF('Guia de BTC'!C45=0,"",'Guia de BTC'!C45) -> CXSE3<XBSP> | D43: CXSE3 | E43: =IF(C43="","",IFERROR(INDEX(IF($C$3="% IBOV",'Guia de BTC'!H:H,IF($C$3="% Float Alugado",'Guia de BTC'!R:R,IF($C$3="Valor Alugado",'Guia de BTC'!T:T,IF($C$3="Volume Médio",'Guia de BTC'!Y:Y,IF($C$3="Dias de Giro",'Guia de BTC'!Z:Z,IF($C$3="Aluguel vs Vista",'Guia de BTC'!AF:AF,IF($C$3="Ações Alugadas",'Guia de BTC'!AD:AD,IF($C$3="▲ de 1 dia",'Guia de BTC'!AJ:AJ,IF($C$3="Taxa Média De Aluguel",'Guia de BTC'!AN:AN,""))))))))),MATCH(C43,'Guia de BTC'!C:C,0)),"")) -> 0.0037 | F43: 0.0697 | G43: OPCT3
B44: =IFERROR(RANK(E44,$E$5:$E$400)+COUNTIF($E$5:E44,E44)-1,"") -> 1 | C44: =IF('Guia de BTC'!C46=0,"",'Guia de BTC'!C46) -> CMIN3<XBSP> | D44: CMIN3 | E44: =IF(C44="","",IFERROR(INDEX(IF($C$3="% IBOV",'Guia de BTC'!H:H,IF($C$3="% Float Alugado",'Guia de BTC'!R:R,IF($C$3="Valor Alugado",'Guia de BTC'!T:T,IF($C$3="Volume Médio",'Guia de BTC'!Y:Y,IF($C$3="Dias de Giro",'Guia de BTC'!Z:Z,IF($C$3="Aluguel vs Vista",'Guia de BTC'!AF:AF,IF($C$3="Ações Alugadas",'Guia de BTC'!AD:AD,IF($C$3="▲ de 1 dia",'Guia de BTC'!AJ:AJ,IF($C$3="Taxa Média De Aluguel",'Guia de BTC'!AN:AN,""))))))))),MATCH(C44,'Guia de BTC'!C:C,0)),"")) -> 0.9628 | F44: 0.0695 | G44: DESK3
B45: =IFERROR(RANK(E45,$E$5:$E$400)+COUNTIF($E$5:E45,E45)-1,"") -> 203 | C45: =IF('Guia de BTC'!C47=0,"",'Guia de BTC'!C47) -> CSNA3<XBSP> | D45: CSNA3 | E45: =IF(C45="","",IFERROR(INDEX(IF($C$3="% IBOV",'Guia de BTC'!H:H,IF($C$3="% Float Alugado",'Guia de BTC'!R:R,IF($C$3="Valor Alugado",'Guia de BTC'!T:T,IF($C$3="Volume Médio",'Guia de BTC'!Y:Y,IF($C$3="Dias de Giro",'Guia de BTC'!Z:Z,IF($C$3="Aluguel vs Vista",'Guia de BTC'!AF:AF,IF($C$3="Ações Alugadas",'Guia de BTC'!AD:AD,IF($C$3="▲ de 1 dia",'Guia de BTC'!AJ:AJ,IF($C$3="Taxa Média De Aluguel",'Guia de BTC'!AN:AN,""))))))))),MATCH(C45,'Guia de BTC'!C:C,0)),"")) -> 0.0014 | F45: 0.0693 | G45: SAPR4
B46: =IFERROR(RANK(E46,$E$5:$E$400)+COUNTIF($E$5:E46,E46)-1,"") -> 217 | C46: =IF('Guia de BTC'!C48=0,"",'Guia de BTC'!C48) -> SBSP3<XBSP> | D46: SBSP3 | E46: =IF(C46="","",IFERROR(INDEX(IF($C$3="% IBOV",'Guia de BTC'!H:H,IF($C$3="% Float Alugado",'Guia de BTC'!R:R,IF($C$3="Valor Alugado",'Guia de BTC'!T:T,IF($C$3="Volume Médio",'Guia de BTC'!Y:Y,IF($C$3="Dias de Giro",'Guia de BTC'!Z:Z,IF($C$3="Aluguel vs Vista",'Guia de BTC'!AF:AF,IF($C$3="Ações Alugadas",'Guia de BTC'!AD:AD,IF($C$3="▲ de 1 dia",'Guia de BTC'!AJ:AJ,IF($C$3="Taxa Média De Aluguel",'Guia de BTC'!AN:AN,""))))))))),MATCH(C46,'Guia de BTC'!C:C,0)),"")) -> 0.0007 | F46: 0.0691 | G46: LUPA3
B47: =IFERROR(RANK(E47,$E$5:$E$400)+COUNTIF($E$5:E47,E47)-1,"") -> 174 | C47: =IF('Guia de BTC'!C49=0,"",'Guia de BTC'!C49) -> KLBN11<XBSP> | D47: KLBN11 | E47: =IF(C47="","",IFERROR(INDEX(IF($C$3="% IBOV",'Guia de BTC'!H:H,IF($C$3="% Float Alugado",'Guia de BTC'!R:R,IF($C$3="Valor Alugado",'Guia de BTC'!T:T,IF($C$3="Volume Médio",'Guia de BTC'!Y:Y,IF($C$3="Dias de Giro",'Guia de BTC'!Z:Z,IF($C$3="Aluguel vs Vista",'Guia de BTC'!AF:AF,IF($C$3="Ações Alugadas",'Guia de BTC'!AD:AD,IF($C$3="▲ de 1 dia",'Guia de BTC'!AJ:AJ,IF($C$3="Taxa Média De Aluguel",'Guia de BTC'!AN:AN,""))))))))),MATCH(C47,'Guia de BTC'!C:C,0)),"")) -> 0.0025 | F47: 0.0685 | G47: PINE4
